Workbook

Sheet IM Calc 8
D2: Intermodulation Calculator for RF Devices
D3: Calculates the RF intermodulation between up to 16 devices operating at the same time
B5: http://rfcoordinationnyc.com
K7: IAS
B8: Device Frequencies | E8: Ch. Sp | F8: 2T3O | G8: 2T5O | H8: 3T3O | J8: Channel to Channel Spacing & Channel to Intermod Spacing Acceptance Criteria | M8: Presets From IAS & WWB for BTR Tx & User Presets | T8: Absolute Values between two tones
C9: Freq. In | V9: 1 | W9: 2 | X9: 3 | Y9: 4 | Z9: 5 | AA9: 6 | AB9: 7 | AC9: 8 | AD9: 9 | AE9: 10 | AF9: 11 | AG9: 12 | AH9: 13 | AI9: 14 | AJ9: 15 | AK9: 16 | BO9: Channel Spacing Acceptance Criteria Calculation
B10: Device | C10: MHz | D10: TV Ch. # | P10: Potential Generated Intermods | U10: MHz | V10: =U11 -> 518.35 | W10: =U12 -> 518.85 | X10: =U13 -> 519.575 | Y10: =U14 -> 520.5 | Z10: =U15 -> 521.625 | AA10: =U16 -> 522.45 | AB10: =U17 -> 523.075 | AC10: =U18 -> 523.475 | AD10: =U19 -> 548.125 | AE10: =U20 -> 548.65 | AF10: =U21 -> 549.675 | AG10: =U22 -> 551.025 | AH10: =U23 -> 551.75 | AI10: =U24 -> 552.15 | AJ10: =U25 -> 552.975 | AK10: =U26 -> 553.6 | BP10: instances | BQ10: =BP11 -> 518.35 | BR10: =BP12 -> 518.85 | BS10: =BP13 -> 519.575 | BT10: =BP14 -> 520.5 | BU10: =BP15 -> 521.625 | BV10: =BP16 -> 522.45 | BW10: =BP17 -> 523.075 | BX10: =BP18 -> 523.475 | BY10: =BP19 -> 548.125 | BZ10: =BP20 -> 548.65 | CA10: =BP21 -> 549.675 | CB10: =BP22 -> 551.025 | CC10: =BP23 -> 551.75 | CD10: =BP24 -> 552.15 | CE10: =BP25 -> 552.975 | CF10: =BP26 -> 553.6 | CG10: results
B11: 1 | C11: 518.35 | D11: =IF(ISNUMBER(C11),VLOOKUP(C11,U$423:W$460,3,TRUE),"") -> 22 | E11: =IF(CG11=0,1,0) -> 1 | F11: =IF(CK36=0,1,0) -> 1 | G11: =IF(CK298=0,1,0) -> 1 | H11: =IF(CK564=0,1,0) -> 0 | J11: Ch. Spacing | K11: 0.299 | L11: MHz | P11: MAX | Q11: MAX | R11: MAX | T11: 1 | U11: =C11 -> 518.35 | W11: =IF(AND(U11>0,W$10>0),ABS(W$10-U11),"") -> 0.5 | X11: =IF(AND(U11>0,X$10>0),ABS(X$10-U11),"") -> 1.225 | Y11: =IF(AND(U11>0,Y$10>0),ABS(Y$10-U11),"") -> 2.15 | Z11: =IF(AND(U11>0,Z$10>0),ABS(Z$10-U11),"") -> 3.275 | AA11: =IF(AND(U11>0,AA$10>0),ABS(AA$10-U11),"") -> 4.1 | AB11: =IF(AND(U11>0,AB$10>0),ABS(AB$10-U11),"") -> 4.725 | AC11: =IF(AND(U11>0,AC$10>0),ABS(AC$10-U11),"") -> 5.125 | AD11: =IF(AND(U11>0,AD$10>0),ABS(AD$10-U11),"") -> 29.775 | AE11: =IF(AND(U11>0,AE$10>0),ABS(AE$10-U11),"") -> 30.3 | AF11: =IF(AND(U11>0,AF$10>0),ABS(AF$10-U11),"") -> 31.325 | AG11: =IF(AND(U11>0,AG$10>0),ABS(AG$10-U11),"") -> 32.675 | AH11: =IF(AND(U11>0,AH$10>0),ABS(AH$10-U11),"") -> 33.4 | AI11: =IF(AND(U11>0,AI$10>0),ABS(AI$10-U11),"") -> 33.8 | AJ11: =IF(AND(U11>0,AJ$10>0),ABS(AJ$10-U11),"") -> 34.625 | AK11: =IF(AND(U11>0,AK$10>0),ABS(AK$10-U11),"") -> 35.25 | BO11: 1 | BP11: =C11 -> 518.35 | BR11: =IF(ISNUMBER(W11),IF((ROUND($K$11,3)<=ROUND(W11,3)),0,1),0) -> 0 | BS11: =IF(ISNUMBER(X11),IF((ROUND($K$11,3)<=ROUND(X11,3)),0,1),0) -> 0 | BT11: =IF(ISNUMBER(Y11),IF((ROUND($K$11,3)<=ROUND(Y11,3)),0,1),0) -> 0 | BU11: =IF(ISNUMBER(Z11),IF((ROUND($K$11,3)<=ROUND(Z11,3)),0,1),0) -> 0 | BV11: =IF(ISNUMBER(AA11),IF((ROUND($K$11,3)<=ROUND(AA11,3)),0,1),0) -> 0 | BW11: =IF(ISNUMBER(AB11),IF((ROUND($K$11,3)<=ROUND(AB11,3)),0,1),0) -> 0 | BX11: =IF(ISNUMBER(AC11),IF((ROUND($K$11,3)<=ROUND(AC11,3)),0,1),0) -> 0 | BY11: =IF(ISNUMBER(AD11),IF((ROUND($K$11,3)<=ROUND(AD11,3)),0,1),0) -> 0 | BZ11: =IF(ISNUMBER(AE11),IF((ROUND($K$11,3)<=ROUND(AE11,3)),0,1),0) -> 0 | CA11: =IF(ISNUMBER(AF11),IF((ROUND($K$11,3)<=ROUND(AF11,3)),0,1),0) -> 0 | CB11: =IF(ISNUMBER(AG11),IF((ROUND($K$11,3)<=ROUND(AG11,3)),0,1),0) -> 0 | CC11: =IF(ISNUMBER(AH11),IF((ROUND($K$11,3)<=ROUND(AH11,3)),0,1),0) -> 0 | CD11: =IF(ISNUMBER(AI11),IF((ROUND($K$11,3)<=ROUND(AI11,3)),0,1),0) -> 0 | CE11: =IF(ISNUMBER(AJ11),IF((ROUND($K$11,3)<=ROUND(AJ11,3)),0,1),0) -> 0 | CF11: =IF(ISNUMBER(AK11),IF((ROUND($K$11,3)<=ROUND(AK11,3)),0,1),0) -> 0 | CG11: =SUM(BQ11:CF11) -> 0
B12: 2 | C12: 518.85 | D12: 22 | E12: =IF(CG12=0,1,0) -> 1 | F12: =IF(CL36=0,1,0) -> 1 | G12: =IF(CL298=0,1,0) -> 1 | H12: =IF(CL564=0,1,0) -> 0 | J12: 2T3O Space | K12: 0.099 | L12: MHz | P12: =AP18 -> 588.85 | Q12: =BC18 -> 624.1 | R12: =BM18 -> 588.225 | T12: 2 | U12: 518.85 | V12: =IF(AND(U12>0,V$10>0),ABS(V$10-U12),"") -> 0.5 | X12: =IF(AND(U12>0,X$10>0),ABS(X$10-U12),"") -> 0.725 | Y12: =IF(AND(U12>0,Y$10>0),ABS(Y$10-U12),"") -> 1.65 | Z12: =IF(AND(U12>0,Z$10>0),ABS(Z$10-U12),"") -> 2.775 | AA12: =IF(AND(U12>0,AA$10>0),ABS(AA$10-U12),"") -> 3.6 | AB12: =IF(AND(U12>0,AB$10>0),ABS(AB$10-U12),"") -> 4.225 | AC12: =IF(AND(U12>0,AC$10>0),ABS(AC$10-U12),"") -> 4.625 | AD12: =IF(AND(U12>0,AD$10>0),ABS(AD$10-U12),"") -> 29.275 | AE12: =IF(AND(U12>0,AE$10>0),ABS(AE$10-U12),"") -> 29.8 | AF12: =IF(AND(U12>0,AF$10>0),ABS(AF$10-U12),"") -> 30.825 | AG12: =IF(AND(U12>0,AG$10>0),ABS(AG$10-U12),"") -> 32.175 | AH12: =IF(AND(U12>0,AH$10>0),ABS(AH$10-U12),"") -> 32.9 | AI12: =IF(AND(U12>0,AI$10>0),ABS(AI$10-U12),"") -> 33.3 | AJ12: =IF(AND(U12>0,AJ$10>0),ABS(AJ$10-U12),"") -> 34.125 | AK12: =IF(AND(U12>0,AK$10>0),ABS(AK$10-U12),"") -> 34.75 | BO12: 2 | BP12: 518.85 | BQ12: =IF(ISNUMBER(V12),IF((ROUND($K$11,3)<=ROUND(V12,3)),0,1),0) -> 0 | BS12: 0 | BT12: =IF(ISNUMBER(Y12),IF((ROUND($K$11,3)<=ROUND(Y12,3)),0,1),0) -> 0 | BU12: =IF(ISNUMBER(Z12),IF((ROUND($K$11,3)<=ROUND(Z12,3)),0,1),0) -> 0 | BV12: =IF(ISNUMBER(AA12),IF((ROUND($K$11,3)<=ROUND(AA12,3)),0,1),0) -> 0 | BW12: =IF(ISNUMBER(AB12),IF((ROUND($K$11,3)<=ROUND(AB12,3)),0,1),0) -> 0 | BX12: =IF(ISNUMBER(AC12),IF((ROUND($K$11,3)<=ROUND(AC12,3)),0,1),0) -> 0 | BY12: =IF(ISNUMBER(AD12),IF((ROUND($K$11,3)<=ROUND(AD12,3)),0,1),0) -> 0 | BZ12: =IF(ISNUMBER(AE12),IF((ROUND($K$11,3)<=ROUND(AE12,3)),0,1),0) -> 0 | CA12: =IF(ISNUMBER(AF12),IF((ROUND($K$11,3)<=ROUND(AF12,3)),0,1),0) -> 0 | CB12: =IF(ISNUMBER(AG12),IF((ROUND($K$11,3)<=ROUND(AG12,3)),0,1),0) -> 0 | CC12: =IF(ISNUMBER(AH12),IF((ROUND($K$11,3)<=ROUND(AH12,3)),0,1),0) -> 0 | CD12: =IF(ISNUMBER(AI12),IF((ROUND($K$11,3)<=ROUND(AI12,3)),0,1),0) -> 0 | CE12: =IF(ISNUMBER(AJ12),IF((ROUND($K$11,3)<=ROUND(AJ12,3)),0,1),0) -> 0 | CF12: =IF(ISNUMBER(AK12),IF((ROUND($K$11,3)<=ROUND(AK12,3)),0,1),0) -> 0 | CG12: =SUM(BQ12:CF12) -> 0
B13: 3 | C13: 519.575 | D13: 22 | E13: 1 | F13: =IF(CM36=0,1,0) -> 1 | G13: =IF(CM298=0,1,0) -> 1 | H13: =IF(CM564=0,1,0) -> 0 | J13: 2T5O Space | K13: 0.089 | L13: MHz | P13: MIN | Q13: MIN | R13: MIN | T13: 3 | U13: 519.575 | V13: =IF(AND(U13>0,V$10>0),ABS(V$10-U13),"") -> 1.225 | W13: =IF(AND(U13>0,W$10>0),ABS(W$10-U13),"") -> 0.725 | Y13: 0.925 | Z13: 2.05 | AA13: 2.875 | AB13: 3.5 | AC13: 3.9 | AD13: 28.55 | AE13: 29.075 | AF13: 30.1 | AG13: 31.45 | AH13: 32.175 | AI13: 32.575 | AJ13: 33.4 | AK13: 34.025 | BO13: 3 | BP13: 519.575 | BQ13: 0 | BR13: 0 | BT13: 0 | BU13: 0 | BV13: 0 | BW13: 0 | BX13: 0 | BY13: 0 | BZ13: 0 | CA13: 0 | CB13: 0 | CC13: 0 | CD13: 0 | CE13: 0 | CF13: 0 | CG13: 0
B14: 4 | C14: 520.5 | D14: 22 | E14: 1 | F14: =IF(CN36=0,1,0) -> 1 | G14: =IF(CN298=0,1,0) -> 1 | H14: =IF(CN564=0,1,0) -> 0 | J14: 3T3O Space | K14: 0.049 | L14: MHz | P14: =AU20 -> 483.1 | Q14: =BC20 -> 447.85 | R14: =BM20 -> 483.6 | T14: 4 | U14: 520.5 | V14: 2.15 | W14: =IF(AND(U14>0,W$10>0),ABS(W$10-U14),"") -> 1.65 | X14: 0.925 | Z14: 1.125 | AA14: 1.95 | AB14: 2.575 | AC14: 2.975 | AD14: 27.625 | AE14: 28.15 | AF14: 29.175 | AG14: 30.525 | AH14: 31.25 | AI14: 31.65 | AJ14: 32.475 | AK14: 33.1 | BO14: 4 | BP14: 520.5 | BQ14: 0 | BR14: 0 | BS14: 0 | BU14: 0 | BV14: 0 | BW14: 0 | BX14: 0 | BY14: 0 | BZ14: 0 | CA14: 0 | CB14: 0 | CC14: 0 | CD14: 0 | CE14: 0 | CF14: 0 | CG14: 0
B15: 5 | C15: 521.625 | D15: 22 | E15: 1 | F15: =IF(CO36=0,1,0) -> 1 | G15: =IF(CO298=0,1,0) -> 1 | H15: =IF(CO564=0,1,0) -> 0 | P15: # OF IM | Q15: # OF IM | R15: # OF IM | T15: 5 | U15: 521.625 | V15: 3.275 | W15: 2.775 | X15: 2.05 | Y15: 1.125 | AA15: 0.825 | AB15: 1.45 | AC15: 1.85 | AD15: 26.5 | AE15: 27.025 | AF15: 28.05 | AG15: 29.4 | AH15: 30.125 | AI15: 30.525 | AJ15: 31.35 | AK15: 31.975 | BO15: 5 | BP15: 521.625 | BQ15: 0 | BR15: 0 | BS15: 0 | BT15: 0 | BV15: 0 | BW15: 0 | BX15: 0 | BY15: 0 | BZ15: 0 | CA15: 0 | CB15: 0 | CC15: 0 | CD15: 0 | CE15: 0 | CF15: 0 | CG15: 0
B16: 6 | C16: 522.45 | D16: 22 | E16: 1 | F16: =IF(CP36=0,1,0) -> 1 | G16: =IF(CP298=0,1,0) -> 1 | H16: =IF(CP564=0,1,0) -> 0 | J16: User 1 | K16: User 2 | L16: User 3 | P16: =AU22 -> 219 | Q16: =BC22 -> 236 | R16: =BM22 -> 793 | T16: 6 | U16: 522.45 | V16: 4.1 | W16: 3.6 | X16: 2.875 | Y16: 1.95 | Z16: 0.825 | AB16: 0.625 | AC16: 1.025 | AD16: 25.675 | AE16: 26.2 | AF16: 27.225 | AG16: 28.575 | AH16: 29.3 | AI16: 29.7 | AJ16: 30.525 | AK16: 31.15 | AO16: Sort Two Tone 3rd Order Intermodulation Products | AW16: Sort Two Tone 5th Order Intermodulation Products | BG16: Sort Three Tone 3rd Order Cross Modulation Products | BO16: 6 | BP16: 522.45 | BQ16: =IF(ISNUMBER(V16),IF((ROUND($K$11,3)<=ROUND(V16,3)),0,1),0) -> 0 | BR16: 0 | BS16: 0 | BT16: 0 | BU16: 0 | BW16: 0 | BX16: 0 | BY16: 0 | BZ16: 0 | CA16: 0 | CB16: 0 | CC16: 0 | CD16: 0 | CE16: 0 | CF16: 0 | CG16: 0
B17: 7 | C17: 523.075 | D17: 22 | E17: 1 | F17: =IF(CQ36=0,1,0) -> 1 | G17: =IF(CQ298=0,1,0) -> 1 | H17: =IF(CQ564=0,1,0) -> 0 | J17: 0.5 | K17: 0.4 | L17: 0.35 | P17: 2T3O | Q17: 2T5O | R17: 3T3O | T17: 7 | U17: 523.075 | V17: 4.725 | W17: 4.225 | X17: 3.5 | Y17: 2.575 | Z17: 1.45 | AA17: 0.625 | AC17: 0.4 | AD17: 25.05 | AE17: 25.575 | AF17: 26.6 | AG17: 27.95 | AH17: 28.675 | AI17: 29.075 | AJ17: 29.9 | AK17: 30.525 | AO17: Check Data | AP17: MAX | AQ17: MAX | AR17: MAX | AS17: MAX | AT17: MAX | AU17: MAX | AW17: Check Data | AX17: MAX | AY17: MAX | AZ17: MAX | BA17: MAX | BB17: MAX | BC17: MAX | BH17: MAX | BI17: MAX | BJ17: MAX | BK17: MAX | BL17: MAX | BM17: MAX | BO17: 7 | BP17: 523.075 | BQ17: 0 | BR17: 0 | BS17: 0 | BT17: 0 | BU17: 0 | BV17: 0 | BX17: 0 | BY17: 0 | BZ17: 0 | CA17: 0 | CB17: 0 | CC17: 0 | CD17: 0 | CE17: 0 | CF17: 0 | CG17: 0
B18: 8 | C18: 523.475 | D18: 22 | E18: 1 | F18: =IF(CR36=0,1,0) -> 1 | G18: =IF(CR298=0,1,0) -> 1 | H18: =IF(CR564=0,1,0) -> 0 | J18: 0.1 | K18: 0.3 | L18: 0.175 | P18: =AU24 -> 483.1 | Q18: =BC24 -> 447.85 | R18: =BM24 -> 483.6 | T18: 8 | U18: 523.475 | V18: 5.125 | W18: 4.625 | X18: 3.9 | Y18: 2.975 | Z18: 1.85 | AA18: 1.025 | AB18: 0.4 | AD18: 24.65 | AE18: 25.175 | AF18: 26.2 | AG18: 27.55 | AH18: 28.275 | AI18: 28.675 | AJ18: 29.5 | AK18: 30.125 | AO18: =IF(AP18=AU18,"OK","Error") -> OK | AP18: =MAX(AP24:AP279) -> 588.85 | AQ18: =MAX(AQ24:AQ279) -> 240 | AR18: 588.85 | AS18: 588.85 | AT18: 219 | AU18: 588.85 | AW18: =IF(AX18=BC18,"OK","Error") -> OK | AX18: =MAX(AX24:AX279) -> 624.1 | AY18: =MAX(AY24:AY279) -> 240 | AZ18: 624.1 | BA18: 624.1 | BB18: 236 | BC18: 624.1 | BG18: =IF(BH18=BM18,"OK","Error") -> OK | BH18: =MAX(BH24:BH4119) -> 588.225 | BI18: =MAX(BI24:BI4119) -> 3360 | BJ18: =MAX(BJ24:BJ4119) -> 588.225 | BK18: =MAX(BK24:BK4119) -> 588.225 | BL18: =MAX(BL24:BL4119) -> 793 | BM18: =MAX(BM24:BM4119) -> 588.225 | BO18: 8 | BP18: 523.475 | BQ18: 0 | BR18: 0 | BS18: 0 | BT18: 0 | BU18: 0 | BV18: 0 | BW18: 0 | BY18: 0 | BZ18: 0 | CA18: 0 | CB18: 0 | CC18: 0 | CD18: 0 | CE18: 0 | CF18: 0 | CG18: 0
B19: 9 | C19: 548.125 | D19: 27 | E19: 1 | F19: =IF(CS36=0,1,0) -> 1 | G19: =IF(CS298=0,1,0) -> 0 | H19: =IF(CS564=0,1,0) -> 0 | J19: 0.1 | K19: 0 | L19: 0 | P19: 483.725 | Q19: 449.1 | R19: 484.225 | T19: 9 | U19: 548.125 | V19: 29.775 | W19: 29.275 | X19: 28.55 | Y19: 27.625 | Z19: 26.5 | AA19: 25.675 | AB19: 25.05 | AC19: 24.65 | AE19: 0.525 | AF19: 1.55 | AG19: 2.9 | AH19: 3.625 | AI19: 4.025 | AJ19: 4.85 | AK19: 5.475 | AP19: MIN | AQ19: MIN | AR19: MIN | AS19: MIN | AT19: MIN | AU19: MIN | AX19: MIN | AY19: MIN | AZ19: MIN | BA19: MIN | BB19: MIN | BC19: MIN | BH19: MIN | BI19: MIN | BJ19: MIN | BK19: MIN | BL19: MIN | BM19: MIN | BO19: 9 | BP19: 548.125 | BQ19: 0 | BR19: 0 | BS19: 0 | BT19: 0 | BU19: 0 | BV19: 0 | BW19: 0 | BX19: 0 | BZ19: 0 | CA19: 0 | CB19: 0 | CC19: 0 | CD19: 0 | CE19: 0 | CF19: 0 | CG19: 0
B20: 10 | C20: 548.65 | D20: 27 | E20: 1 | F20: =IF(CT36=0,1,0) -> 1 | G20: =IF(CT298=0,1,0) -> 1 | H20: =IF(CT564=0,1,0) -> 0 | J20: 0.1 | K20: 0.15 | L20: 0.15 | P20: 484.1 | Q20: 449.35 | R20: 484.325 | T20: 10 | U20: 548.65 | V20: 30.3 | W20: 29.8 | X20: 29.075 | Y20: 28.15 | Z20: 27.025 | AA20: 26.2 | AB20: 25.575 | AC20: 25.175 | AD20: 0.525 | AF20: 1.025 | AG20: 2.375 | AH20: 3.1 | AI20: 3.5 | AJ20: 4.325 | AK20: 4.95 | AO20: =IF(AP20=AU20,"OK","Error") -> OK | AP20: =MIN(AP24:AP279) -> 483.1 | AQ20: 1 | AR20: 483.1 | AS20: 483.1 | AT20: 1 | AU20: 483.1 | AW20: =IF(AX20=BC20,"OK","Error") -> OK | AX20: =MIN(AX24:AX279) -> 447.85 | AY20: =MIN(AY24:AY279) -> 1 | AZ20: 447.85 | BA20: 447.85 | BB20: 1 | BC20: 447.85 | BG20: =IF(BH20=BM20,"OK","Error") -> OK | BH20: =MIN(BH24:BH4119) -> 483.6 | BI20: =MIN(BI24:BI4119) -> 1 | BJ20: =MIN(BJ24:BJ4119) -> 483.6 | BK20: =MIN(BK24:BK4119) -> 483.6 | BL20: =MIN(BL24:BL4119) -> 1 | BM20: =MIN(BM24:BM4119) -> 483.6 | BO20: 10 | BP20: 548.65 | BQ20: 0 | BR20: 0 | BS20: 0 | BT20: 0 | BU20: 0 | BV20: 0 | BW20: 0 | BX20: 0 | BY20: 0 | CA20: 0 | CB20: 0 | CC20: 0 | CD20: 0 | CE20: 0 | CF20: 0 | CG20: 0
B21: 11 | C21: 549.675 | D21: 27 | E21: 1 | F21: =IF(CU36=0,1,0) -> 1 | G21: =IF(CU298=0,1,0) -> 0 | H21: =IF(CU564=0,1,0) -> 0 | P21: 484.55 | Q21: 450.6 | R21: 484.825 | T21: 11 | U21: 549.675 | V21: 31.325 | W21: 30.825 | X21: 30.1 | Y21: 29.175 | Z21: 28.05 | AA21: 27.225 | AB21: 26.6 | AC21: 26.2 | AD21: 1.55 | AE21: 1.025 | AG21: 1.35 | AH21: 2.075 | AI21: 2.475 | AJ21: 3.3 | AK21: 3.925 | BH21: # of 3T3O | BO21: 11 | BP21: 549.675 | BQ21: 0 | BR21: 0 | BS21: 0 | BT21: 0 | BU21: 0 | BV21: 0 | BW21: 0 | BX21: 0 | BY21: 0 | BZ21: 0 | CB21: 0 | CC21: 0 | CD21: 0 | CE21: 0 | CF21: 0 | CG21: 0
B22: 12 | C22: 551.025 | D22: 27 | E22: 1 | F22: =IF(CV36=0,1,0) -> 1 | G22: =IF(CV298=0,1,0) -> 0 | H22: =IF(CV564=0,1,0) -> 0 | J22: MIN Channel & IMD Spacing | P22: 484.725 | Q22: 450.75 | R22: 484.95 | T22: 12 | U22: 551.025 | V22: 32.675 | W22: 32.175 | X22: 31.45 | Y22: 30.525 | Z22: 29.4 | AA22: 28.575 | AB22: 27.95 | AC22: 27.55 | AD22: 2.9 | AE22: 2.375 | AF22: 1.35 | AH22: 0.725 | AI22: 1.125 | AJ22: 1.95 | AK22: 2.575 | AO22: Count | AP22: =COUNT(AP24:AP279) -> 240 | AQ22: 240 | AR22: 240 | AS22: 219 | AT22: 219 | AU22: 219 | AW22: Count | AX22: =COUNT(AX24:AX279) -> 240 | AY22: 240 | AZ22: 240 | BA22: 236 | BB22: 236 | BC22: =COUNT(BC24:BC279) -> 236 | BH22: =COUNT(BH24:BH4119) -> 3360 | BI22: 3360 | BJ22: 3360 | BK22: 793 | BL22: 793 | BM22: =COUNT(BM24:BM4119) -> 793 | BO22: 12 | BP22: 551.025 | BQ22: 0 | BR22: 0 | BS22: 0 | BT22: 0 | BU22: 0 | BV22: 0 | BW22: 0 | BX22: 0 | BY22: 0 | BZ22: 0 | CA22: 0 | CC22: 0 | CD22: 0 | CE22: 0 | CF22: 0 | CG22: 0
B23: 13 | C23: 551.75 | D23: 27 | E23: 1 | F23: =IF(CW36=0,1,0) -> 1 | G23: =IF(CW298=0,1,0) -> 0 | H23: =IF(CW564=0,1,0) -> 0 | J23: MIN Channel | K23: =MIN(V11:AK26) -> 0.4 | L23: MHz | P23: 484.95 | Q23: 451.525 | R23: 485.05 | T23: 13 | U23: 551.75 | V23: 33.4 | W23: 32.9 | X23: 32.175 | Y23: 31.25 | Z23: 30.125 | AA23: 29.3 | AB23: 28.675 | AC23: 28.275 | AD23: 3.625 | AE23: 3.1 | AF23: 2.075 | AG23: 0.725 | AI23: 0.4 | AJ23: 1.225 | AK23: 1.85 | AM23: Row | AN23: Column | AP23: 2T3O | AQ23: Rank | AR23: Sort 2T3O | AS23: Remove Dupl | AT23: Rank | AU23: Remove Blank | AX23: 2T3O | AY23: Rank | AZ23: Sort 2T5O | BA23: Remove Dupl | BB23: Rank | BC23: Remove Blank | BH23: 3T3O | BI23: Rank | BJ23: Sort 3T3O | BK23: Remove Dupl | BL23: Rank | BM23: Remove Blank | BO23: 13 | BP23: 551.75 | BQ23: 0 | BR23: 0 | BS23: 0 | BT23: 0 | BU23: 0 | BV23: 0 | BW23: 0 | BX23: 0 | BY23: 0 | BZ23: 0 | CA23: 0 | CB23: 0 | CD23: 0 | CE23: 0 | CF23: 0 | CG23: 0
B24: 14 | C24: 552.15 | D24: 27 | E24: 1 | F24: =IF(CX36=0,1,0) -> 1 | G24: =IF(CX298=0,1,0) -> 1 | H24: =IF(CX564=0,1,0) -> 0 | J24: MIN 2T3O | K24: =MIN(BQ37:CF292) -> 0.2 | L24: MHz | P24: 485.55 | Q24: 451.55 | R24: 485.25 | T24: 14 | U24: 552.15 | V24: 33.8 | W24: 33.3 | X24: 32.575 | Y24: 31.65 | Z24: 30.525 | AA24: 29.7 | AB24: 29.075 | AC24: 28.675 | AD24: 4.025 | AE24: 3.5 | AF24: 2.475 | AG24: 1.125 | AH24: 0.4 | AJ24: 0.825 | AK24: 1.45 | AM24: 1 | AN24: 1 | AO24: 1 | AP24: =IF(INDEX($V$31:$AK$46,AM24,AN24)>0,INDEX($V$31:$AK$46,AM24,AN24),"") ->  | AQ24: =IFERROR(RANK(AP24,$AP$24:$AP$279,1)+COUNTIF($AP$24:AP24,AP24)-1,"") ->  | AR24: =IFERROR(INDEX($AP$24:$AP$279,MATCH(SMALL($AQ$24:$AQ$279,ROWS($AR$24:AR24)),$AQ$24:$AQ$279,0))," ") -> 483.1 | AS24: =IF(ISNUMBER(AR24),(IF(COUNTIF( AR$24:AR24, AR24 )=1,AR24,"")),"") -> 483.1 | AT24: =IFERROR(RANK(AS24,$AS$24:$AS$279,1)+COUNTIF($AS$24:AS24,AS24)-1,"") -> 1 | AU24: =IFERROR(INDEX($AS$24:$AS$279,MATCH(SMALL($AT$24:$AT$279,ROWS(AU$24:$AU24)),$AT$24:$AT$279,0))," ") -> 483.1 | AW24: 1 | AX24: =IF(INDEX($V$51:$AK$66,AM24,AN24)>0,INDEX($V$51:$AK$66,AM24,AN24),"") ->  | AY24: =IFERROR(RANK(AX24,$AX$24:$AX$279,1)+COUNTIF($AX$24:AX24,AX24)-1,"") ->  | AZ24: =IFERROR(INDEX($AX$24:$AX$279,MATCH(SMALL($AY$24:$AY$279,ROWS($AZ$24:AZ24)),$AY$24:$AY$279,0))," ") -> 447.85 | BA24: =IF(ISNUMBER(AZ24),(IF(COUNTIF( AZ$24:AZ24, AZ24 )=1,AZ24,"")),"") -> 447.85 | BB24: =IFERROR(RANK(BA24,$BA$24:$BA$279,1)+COUNTIF($BA$24:BA24,BA24)-1,"") -> 1 | BC24: =IFERROR(INDEX($BA$24:$BA$279,MATCH(SMALL($BB$24:$BB$279,ROWS($BC$24:BC24)),$BB$24:$BB$279,0))," ") -> 447.85 | BE24: 1 | BF24: 1 | BG24: 1 | BH24: =IF(INDEX($V$71:$AK$326,BE24,BF24)>0,INDEX($V$71:$AK$326,BE24,BF24),"") ->  | BI24: =IFERROR(RANK(BH24,$BH$24:$BH$4119,1)+COUNTIF($BH$24:BH24,BH24)-1,"") ->  | BJ24: =IFERROR(INDEX($BH$24:$BH$4119,MATCH(SMALL($BI$24:$BI$4119,ROWS($BJ$24:BJ24)),$BI$24:$BI$4119,0))," ") -> 483.6 | BK24: =IF(ISNUMBER(BJ24),(IF(COUNTIF( BJ$24:BJ24, BJ24 )=1,BJ24,"")),"") -> 483.6 | BL24: =IFERROR(RANK(BK24,$BK$24:$BK$4119,1)+COUNTIF($BK$24:BK24,BK24)-1,"") -> 1 | BM24: =IFERROR(INDEX($BK$24:$BK$4119,MATCH(SMALL($BL$24:$BL$4119,ROWS($BM$24:BM24)),$BL$24:$BL$4119,0))," ") -> 483.6 | BO24: 14 | BP24: 552.15 | BQ24: 0 | BR24: 0 | BS24: 0 | BT24: 0 | BU24: 0 | BV24: 0 | BW24: 0 | BX24: 0 | BY24: 0 | BZ24: 0 | CA24: 0 | CB24: 0 | CC24: 0 | CE24: 0 | CF24: 0 | CG24: 0
B25: 15 | C25: 552.975 | D25: 27 | E25: 1 | F25: =IF(CY36=0,1,0) -> 1 | G25: =IF(CY298=0,1,0) -> 0 | H25: =IF(CY564=0,1,0) -> 0 | J25: MIN 2T5O | K25: =MIN(BQ299:CF554) -> 0.025 | L25: MHz | P25: 485.675 | Q25: 452.25 | R25: 485.45 | T25: 15 | U25: 552.975 | V25: 34.625 | W25: 34.125 | X25: 33.4 | Y25: 32.475 | Z25: 31.35 | AA25: 30.525 | AB25: 29.9 | AC25: 29.5 | AD25: 4.85 | AE25: 4.325 | AF25: 3.3 | AG25: 1.95 | AH25: 1.225 | AI25: 0.825 | AK25: 0.625 | AM25: 2 | AN25: 1 | AO25: 2 | AP25: =IF(INDEX($V$31:$AK$46,AM25,AN25)>0,INDEX($V$31:$AK$46,AM25,AN25),"") -> 517.85 | AQ25: =IFERROR(RANK(AP25,$AP$24:$AP$279,1)+COUNTIF($AP$24:AP25,AP25)-1,"") -> 81 | AR25: =IFERROR(INDEX($AP$24:$AP$279,MATCH(SMALL($AQ$24:$AQ$279,ROWS($AR$24:AR25)),$AQ$24:$AQ$279,0))," ") -> 483.725 | AS25: =IF(ISNUMBER(AR25),(IF(COUNTIF( AR$24:AR25, AR25 )=1,AR25,"")),"") -> 483.725 | AT25: =IFERROR(RANK(AS25,$AS$24:$AS$279,1)+COUNTIF($AS$24:AS25,AS25)-1,"") -> 2 | AU25: =IFERROR(INDEX($AS$24:$AS$279,MATCH(SMALL($AT$24:$AT$279,ROWS(AU$24:$AU25)),$AT$24:$AT$279,0))," ") -> 483.725 | AW25: 2 | AX25: =IF(INDEX($V$51:$AK$66,AM25,AN25)>0,INDEX($V$51:$AK$66,AM25,AN25),"") -> 517.35 | AY25: =IFERROR(RANK(AX25,$AX$24:$AX$279,1)+COUNTIF($AX$24:AX25,AX25)-1,"") -> 83 | AZ25: =IFERROR(INDEX($AX$24:$AX$279,MATCH(SMALL($AY$24:$AY$279,ROWS($AZ$24:AZ25)),$AY$24:$AY$279,0))," ") -> 449.1 | BA25: =IF(ISNUMBER(AZ25),(IF(COUNTIF( AZ$24:AZ25, AZ25 )=1,AZ25,"")),"") -> 449.1 | BB25: =IFERROR(RANK(BA25,$BA$24:$BA$279,1)+COUNTIF($BA$24:BA25,BA25)-1,"") -> 2 | BC25: =IFERROR(INDEX($BA$24:$BA$279,MATCH(SMALL($BB$24:$BB$279,ROWS($BC$24:BC25)),$BB$24:$BB$279,0))," ") -> 449.1 | BE25: 2 | BF25: 1 | BG25: 2 | BH25: =IF(INDEX($V$71:$AK$326,BE25,BF25)>0,INDEX($V$71:$AK$326,BE25,BF25),"") ->  | BI25: =IFERROR(RANK(BH25,$BH$24:$BH$4119,1)+COUNTIF($BH$24:BH25,BH25)-1,"") ->  | BJ25: =IFERROR(INDEX($BH$24:$BH$4119,MATCH(SMALL($BI$24:$BI$4119,ROWS($BJ$24:BJ25)),$BI$24:$BI$4119,0))," ") -> 483.6 | BK25: =IF(ISNUMBER(BJ25),(IF(COUNTIF( BJ$24:BJ25, BJ25 )=1,BJ25,"")),"") ->  | BL25: =IFERROR(RANK(BK25,$BK$24:$BK$4119,1)+COUNTIF($BK$24:BK25,BK25)-1,"") ->  | BM25: =IFERROR(INDEX($BK$24:$BK$4119,MATCH(SMALL($BL$24:$BL$4119,ROWS($BM$24:BM25)),$BL$24:$BL$4119,0))," ") -> 484.225 | BO25: 15 | BP25: 552.975 | BQ25: 0 | BR25: 0 | BS25: 0 | BT25: 0 | BU25: 0 | BV25: 0 | BW25: 0 | BX25: 0 | BY25: 0 | BZ25: 0 | CA25: 0 | CB25: 0 | CC25: 0 | CD25: 0 | CF25: 0 | CG25: 0
B26: 16 | C26: 553.6 | D26: 27 | E26: 1 | F26: =IF(CZ36=0,1,0) -> 1 | G26: =IF(CZ298=0,1,0) -> 1 | H26: =IF(CZ564=0,1,0) -> 0 | J26: MIN 3T3O | K26: =MIN(BQ565:CF2612) -> 0 | L26: MHz | P26: 485.95 | Q26: 452.775 | R26: 485.75 | T26: 16 | U26: 553.6 | V26: 35.25 | W26: 34.75 | X26: 34.025 | Y26: 33.1 | Z26: 31.975 | AA26: 31.15 | AB26: 30.525 | AC26: 30.125 | AD26: 5.475 | AE26: 4.95 | AF26: 3.925 | AG26: 2.575 | AH26: 1.85 | AI26: 1.45 | AJ26: 0.625 | AM26: 3 | AN26: 1 | AO26: 3 | AP26: =IF(INDEX($V$31:$AK$46,AM26,AN26)>0,INDEX($V$31:$AK$46,AM26,AN26),"") -> 517.125 | AQ26: =IFERROR(RANK(AP26,$AP$24:$AP$279,1)+COUNTIF($AP$24:AP26,AP26)-1,"") -> 77 | AR26: =IFERROR(INDEX($AP$24:$AP$279,MATCH(SMALL($AQ$24:$AQ$279,ROWS($AR$24:AR26)),$AQ$24:$AQ$279,0))," ") -> 484.1 | AS26: =IF(ISNUMBER(AR26),(IF(COUNTIF( AR$24:AR26, AR26 )=1,AR26,"")),"") -> 484.1 | AT26: =IFERROR(RANK(AS26,$AS$24:$AS$279,1)+COUNTIF($AS$24:AS26,AS26)-1,"") -> 3 | AU26: =IFERROR(INDEX($AS$24:$AS$279,MATCH(SMALL($AT$24:$AT$279,ROWS(AU$24:$AU26)),$AT$24:$AT$279,0))," ") -> 484.1 | AW26: 3 | AX26: =IF(INDEX($V$51:$AK$66,AM26,AN26)>0,INDEX($V$51:$AK$66,AM26,AN26),"") -> 515.9 | AY26: =IFERROR(RANK(AX26,$AX$24:$AX$279,1)+COUNTIF($AX$24:AX26,AX26)-1,"") -> 81 | AZ26: =IFERROR(INDEX($AX$24:$AX$279,MATCH(SMALL($AY$24:$AY$279,ROWS($AZ$24:AZ26)),$AY$24:$AY$279,0))," ") -> 449.35 | BA26: =IF(ISNUMBER(AZ26),(IF(COUNTIF( AZ$24:AZ26, AZ26 )=1,AZ26,"")),"") -> 449.35 | BB26: =IFERROR(RANK(BA26,$BA$24:$BA$279,1)+COUNTIF($BA$24:BA26,BA26)-1,"") -> 3 | BC26: =IFERROR(INDEX($BA$24:$BA$279,MATCH(SMALL($BB$24:$BB$279,ROWS($BC$24:BC26)),$BB$24:$BB$279,0))," ") -> 449.35 | BE26: 3 | BF26: 1 | BG26: 3 | BH26: =IF(INDEX($V$71:$AK$326,BE26,BF26)>0,INDEX($V$71:$AK$326,BE26,BF26),"") ->  | BI26: =IFERROR(RANK(BH26,$BH$24:$BH$4119,1)+COUNTIF($BH$24:BH26,BH26)-1,"") ->  | BJ26: =IFERROR(INDEX($BH$24:$BH$4119,MATCH(SMALL($BI$24:$BI$4119,ROWS($BJ$24:BJ26)),$BI$24:$BI$4119,0))," ") -> 484.225 | BK26: =IF(ISNUMBER(BJ26),(IF(COUNTIF( BJ$24:BJ26, BJ26 )=1,BJ26,"")),"") -> 484.225 | BL26: =IFERROR(RANK(BK26,$BK$24:$BK$4119,1)+COUNTIF($BK$24:BK26,BK26)-1,"") -> 2 | BM26: =IFERROR(INDEX($BK$24:$BK$4119,MATCH(SMALL($BL$24:$BL$4119,ROWS($BM$24:BM26)),$BL$24:$BL$4119,0))," ") -> 484.325 | BO26: 16 | BP26: 553.6 | BQ26: 0 | BR26: =IF(ISNUMBER(W26),IF((ROUND($K$11,3)<=ROUND(W26,3)),0,1),0) -> 0 | BS26: =IF(ISNUMBER(X26),IF((ROUND($K$11,3)<=ROUND(X26,3)),0,1),0) -> 0 | BT26: 0 | BU26: 0 | BV26: 0 | BW26: 0 | BX26: 0 | BY26: 0 | BZ26: 0 | CA26: 0 | CB26: 0 | CC26: 0 | CD26: 0 | CE26: 0 | CG26: 0
P27: 486.175 | Q27: 453 | R27: 485.775 | AM27: 4 | AN27: 1 | AO27: 4 | AP27: =IF(INDEX($V$31:$AK$46,AM27,AN27)>0,INDEX($V$31:$AK$46,AM27,AN27),"") -> 516.2 | AQ27: =IFERROR(RANK(AP27,$AP$24:$AP$279,1)+COUNTIF($AP$24:AP27,AP27)-1,"") -> 75 | AR27: =IFERROR(INDEX($AP$24:$AP$279,MATCH(SMALL($AQ$24:$AQ$279,ROWS($AR$24:AR27)),$AQ$24:$AQ$279,0))," ") -> 484.55 | AS27: =IF(ISNUMBER(AR27),(IF(COUNTIF( AR$24:AR27, AR27 )=1,AR27,"")),"") -> 484.55 | AT27: =IFERROR(RANK(AS27,$AS$24:$AS$279,1)+COUNTIF($AS$24:AS27,AS27)-1,"") -> 4 | AU27: =IFERROR(INDEX($AS$24:$AS$279,MATCH(SMALL($AT$24:$AT$279,ROWS(AU$24:$AU27)),$AT$24:$AT$279,0))," ") -> 484.55 | AW27: 4 | AX27: =IF(INDEX($V$51:$AK$66,AM27,AN27)>0,INDEX($V$51:$AK$66,AM27,AN27),"") -> 514.05 | AY27: =IFERROR(RANK(AX27,$AX$24:$AX$279,1)+COUNTIF($AX$24:AX27,AX27)-1,"") -> 76 | AZ27: =IFERROR(INDEX($AX$24:$AX$279,MATCH(SMALL($AY$24:$AY$279,ROWS($AZ$24:AZ27)),$AY$24:$AY$279,0))," ") -> 450.6 | BA27: =IF(ISNUMBER(AZ27),(IF(COUNTIF( AZ$24:AZ27, AZ27 )=1,AZ27,"")),"") -> 450.6 | BB27: =IFERROR(RANK(BA27,$BA$24:$BA$279,1)+COUNTIF($BA$24:BA27,BA27)-1,"") -> 4 | BC27: =IFERROR(INDEX($BA$24:$BA$279,MATCH(SMALL($BB$24:$BB$279,ROWS($BC$24:BC27)),$BB$24:$BB$279,0))," ") -> 450.6 | BE27: 4 | BF27: 1 | BG27: 4 | BH27: =IF(INDEX($V$71:$AK$326,BE27,BF27)>0,INDEX($V$71:$AK$326,BE27,BF27),"") ->  | BI27: =IFERROR(RANK(BH27,$BH$24:$BH$4119,1)+COUNTIF($BH$24:BH27,BH27)-1,"") ->  | BJ27: =IFERROR(INDEX($BH$24:$BH$4119,MATCH(SMALL($BI$24:$BI$4119,ROWS($BJ$24:BJ27)),$BI$24:$BI$4119,0))," ") -> 484.225 | BK27: =IF(ISNUMBER(BJ27),(IF(COUNTIF( BJ$24:BJ27, BJ27 )=1,BJ27,"")),"") ->  | BL27: =IFERROR(RANK(BK27,$BK$24:$BK$4119,1)+COUNTIF($BK$24:BK27,BK27)-1,"") ->  | BM27: =IFERROR(INDEX($BK$24:$BK$4119,MATCH(SMALL($BL$24:$BL$4119,ROWS($BM$24:BM27)),$BL$24:$BL$4119,0))," ") -> 484.825
B28: Device Frequency Presets | P28: 486.675 | Q28: 453.05 | R28: 485.875 | AM28: 5 | AN28: 1 | AO28: 5 | AP28: =IF(INDEX($V$31:$AK$46,AM28,AN28)>0,INDEX($V$31:$AK$46,AM28,AN28),"") -> 515.075 | AQ28: =IFERROR(RANK(AP28,$AP$24:$AP$279,1)+COUNTIF($AP$24:AP28,AP28)-1,"") -> 70 | AR28: =IFERROR(INDEX($AP$24:$AP$279,MATCH(SMALL($AQ$24:$AQ$279,ROWS($AR$24:AR28)),$AQ$24:$AQ$279,0))," ") -> 484.725 | AS28: =IF(ISNUMBER(AR28),(IF(COUNTIF( AR$24:AR28, AR28 )=1,AR28,"")),"") -> 484.725 | AT28: =IFERROR(RANK(AS28,$AS$24:$AS$279,1)+COUNTIF($AS$24:AS28,AS28)-1,"") -> 5 | AU28: =IFERROR(INDEX($AS$24:$AS$279,MATCH(SMALL($AT$24:$AT$279,ROWS(AU$24:$AU28)),$AT$24:$AT$279,0))," ") -> 484.725 | AW28: 5 | AX28: =IF(INDEX($V$51:$AK$66,AM28,AN28)>0,INDEX($V$51:$AK$66,AM28,AN28),"") -> 511.8 | AY28: =IFERROR(RANK(AX28,$AX$24:$AX$279,1)+COUNTIF($AX$24:AX28,AX28)-1,"") -> 72 | AZ28: =IFERROR(INDEX($AX$24:$AX$279,MATCH(SMALL($AY$24:$AY$279,ROWS($AZ$24:AZ28)),$AY$24:$AY$279,0))," ") -> 450.75 | BA28: =IF(ISNUMBER(AZ28),(IF(COUNTIF( AZ$24:AZ28, AZ28 )=1,AZ28,"")),"") -> 450.75 | BB28: =IFERROR(RANK(BA28,$BA$24:$BA$279,1)+COUNTIF($BA$24:BA28,BA28)-1,"") -> 5 | BC28: =IFERROR(INDEX($BA$24:$BA$279,MATCH(SMALL($BB$24:$BB$279,ROWS($BC$24:BC28)),$BB$24:$BB$279,0))," ") -> 450.75 | BE28: 5 | BF28: 1 | BG28: 5 | BH28: =IF(INDEX($V$71:$AK$326,BE28,BF28)>0,INDEX($V$71:$AK$326,BE28,BF28),"") ->  | BI28: =IFERROR(RANK(BH28,$BH$24:$BH$4119,1)+COUNTIF($BH$24:BH28,BH28)-1,"") ->  | BJ28: =IFERROR(INDEX($BH$24:$BH$4119,MATCH(SMALL($BI$24:$BI$4119,ROWS($BJ$24:BJ28)),$BI$24:$BI$4119,0))," ") -> 484.325 | BK28: =IF(ISNUMBER(BJ28),(IF(COUNTIF( BJ$24:BJ28, BJ28 )=1,BJ28,"")),"") -> 484.325 | BL28: =IFERROR(RANK(BK28,$BK$24:$BK$4119,1)+COUNTIF($BK$24:BK28,BK28)-1,"") -> 3 | BM28: =IFERROR(INDEX($BK$24:$BK$4119,MATCH(SMALL($BL$24:$BL$4119,ROWS($BM$24:BM28)),$BL$24:$BL$4119,0))," ") -> 484.95
P29: 487 | Q29: 454.3 | R29: 486.175 | T29: Two Tone 3rd Order Intermodulation Products | AM29: 6 | AN29: 1 | AO29: 6 | AP29: =IF(INDEX($V$31:$AK$46,AM29,AN29)>0,INDEX($V$31:$AK$46,AM29,AN29),"") -> 514.25 | AQ29: =IFERROR(RANK(AP29,$AP$24:$AP$279,1)+COUNTIF($AP$24:AP29,AP29)-1,"") -> 68 | AR29: =IFERROR(INDEX($AP$24:$AP$279,MATCH(SMALL($AQ$24:$AQ$279,ROWS($AR$24:AR29)),$AQ$24:$AQ$279,0))," ") -> 484.95 | AS29: =IF(ISNUMBER(AR29),(IF(COUNTIF( AR$24:AR29, AR29 )=1,AR29,"")),"") -> 484.95 | AT29: =IFERROR(RANK(AS29,$AS$24:$AS$279,1)+COUNTIF($AS$24:AS29,AS29)-1,"") -> 6 | AU29: =IFERROR(INDEX($AS$24:$AS$279,MATCH(SMALL($AT$24:$AT$279,ROWS(AU$24:$AU29)),$AT$24:$AT$279,0))," ") -> 484.95 | AW29: 6 | AX29: =IF(INDEX($V$51:$AK$66,AM29,AN29)>0,INDEX($V$51:$AK$66,AM29,AN29),"") -> 510.15 | AY29: =IFERROR(RANK(AX29,$AX$24:$AX$279,1)+COUNTIF($AX$24:AX29,AX29)-1,"") -> 68 | AZ29: =IFERROR(INDEX($AX$24:$AX$279,MATCH(SMALL($AY$24:$AY$279,ROWS($AZ$24:AZ29)),$AY$24:$AY$279,0))," ") -> 451.525 | BA29: =IF(ISNUMBER(AZ29),(IF(COUNTIF( AZ$24:AZ29, AZ29 )=1,AZ29,"")),"") -> 451.525 | BB29: =IFERROR(RANK(BA29,$BA$24:$BA$279,1)+COUNTIF($BA$24:BA29,BA29)-1,"") -> 6 | BC29: =IFERROR(INDEX($BA$24:$BA$279,MATCH(SMALL($BB$24:$BB$279,ROWS($BC$24:BC29)),$BB$24:$BB$279,0))," ") -> 451.525 | BE29: 6 | BF29: 1 | BG29: 6 | BH29: =IF(INDEX($V$71:$AK$326,BE29,BF29)>0,INDEX($V$71:$AK$326,BE29,BF29),"") ->  | BI29: =IFERROR(RANK(BH29,$BH$24:$BH$4119,1)+COUNTIF($BH$24:BH29,BH29)-1,"") ->  | BJ29: =IFERROR(INDEX($BH$24:$BH$4119,MATCH(SMALL($BI$24:$BI$4119,ROWS($BJ$24:BJ29)),$BI$24:$BI$4119,0))," ") -> 484.325 | BK29: =IF(ISNUMBER(BJ29),(IF(COUNTIF( BJ$24:BJ29, BJ29 )=1,BJ29,"")),"") ->  | BL29: =IFERROR(RANK(BK29,$BK$24:$BK$4119,1)+COUNTIF($BK$24:BK29,BK29)-1,"") ->  | BM29: =IFERROR(INDEX($BK$24:$BK$4119,MATCH(SMALL($BL$24:$BL$4119,ROWS($BM$24:BM29)),$BL$24:$BL$4119,0))," ") -> 485.05
P30: 487.025 | Q30: 454.425 | R30: 486.275 | T30: 2T3O | V30: T 1 | W30: T 2 | X30: T 3 | Y30: T 4 | Z30: T 5 | AA30: T 6 | AB30: T 7 | AC30: T 8 | AD30: T 9 | AE30: T 10 | AF30: T 11 | AG30: T 12 | AH30: T 13 | AI30: T 14 | AJ30: T 15 | AK30: T 16 | AM30: 7 | AN30: 1 | AO30: 7 | AP30: =IF(INDEX($V$31:$AK$46,AM30,AN30)>0,INDEX($V$31:$AK$46,AM30,AN30),"") -> 513.625 | AQ30: =IFERROR(RANK(AP30,$AP$24:$AP$279,1)+COUNTIF($AP$24:AP30,AP30)-1,"") -> 66 | AR30: =IFERROR(INDEX($AP$24:$AP$279,MATCH(SMALL($AQ$24:$AQ$279,ROWS($AR$24:AR30)),$AQ$24:$AQ$279,0))," ") -> 485.55 | AS30: =IF(ISNUMBER(AR30),(IF(COUNTIF( AR$24:AR30, AR30 )=1,AR30,"")),"") -> 485.55 | AT30: =IFERROR(RANK(AS30,$AS$24:$AS$279,1)+COUNTIF($AS$24:AS30,AS30)-1,"") -> 7 | AU30: =IFERROR(INDEX($AS$24:$AS$279,MATCH(SMALL($AT$24:$AT$279,ROWS(AU$24:$AU30)),$AT$24:$AT$279,0))," ") -> 485.55 | AW30: 7 | AX30: =IF(INDEX($V$51:$AK$66,AM30,AN30)>0,INDEX($V$51:$AK$66,AM30,AN30),"") -> 508.9 | AY30: =IFERROR(RANK(AX30,$AX$24:$AX$279,1)+COUNTIF($AX$24:AX30,AX30)-1,"") -> 66 | AZ30: =IFERROR(INDEX($AX$24:$AX$279,MATCH(SMALL($AY$24:$AY$279,ROWS($AZ$24:AZ30)),$AY$24:$AY$279,0))," ") -> 451.55 | BA30: =IF(ISNUMBER(AZ30),(IF(COUNTIF( AZ$24:AZ30, AZ30 )=1,AZ30,"")),"") -> 451.55 | BB30: =IFERROR(RANK(BA30,$BA$24:$BA$279,1)+COUNTIF($BA$24:BA30,BA30)-1,"") -> 7 | BC30: =IFERROR(INDEX($BA$24:$BA$279,MATCH(SMALL($BB$24:$BB$279,ROWS($BC$24:BC30)),$BB$24:$BB$279,0))," ") -> 451.55 | BE30: 7 | BF30: 1 | BG30: 7 | BH30: =IF(INDEX($V$71:$AK$326,BE30,BF30)>0,INDEX($V$71:$AK$326,BE30,BF30),"") ->  | BI30: =IFERROR(RANK(BH30,$BH$24:$BH$4119,1)+COUNTIF($BH$24:BH30,BH30)-1,"") ->  | BJ30: =IFERROR(INDEX($BH$24:$BH$4119,MATCH(SMALL($BI$24:$BI$4119,ROWS($BJ$24:BJ30)),$BI$24:$BI$4119,0))," ") -> 484.825 | BK30: =IF(ISNUMBER(BJ30),(IF(COUNTIF( BJ$24:BJ30, BJ30 )=1,BJ30,"")),"") -> 484.825 | BL30: =IFERROR(RANK(BK30,$BK$24:$BK$4119,1)+COUNTIF($BK$24:BK30,BK30)-1,"") -> 4 | BM30: =IFERROR(INDEX($BK$24:$BK$4119,MATCH(SMALL($BL$24:$BL$4119,ROWS($BM$24:BM30)),$BL$24:$BL$4119,0))," ") -> 485.25
P31: 487.4 | Q31: 454.5 | R31: 486.375 | U31: T 1 | W31: =IF(AND($U11>0,W401>0),MAX($U11,W401)+ABS(W401-$U11),"") -> 519.35 | X31: 520.8 | Y31: 522.65 | Z31: 524.9 | AA31: 526.55 | AB31: 527.8 | AC31: 528.6 | AD31: 577.9 | AE31: 578.95 | AF31: 581 | AG31: 583.7 | AH31: 585.15 | AI31: 585.95 | AJ31: 587.6 | AK31: 588.85 | AM31: 8 | AN31: 1 | AO31: 8 | AP31: =IF(INDEX($V$31:$AK$46,AM31,AN31)>0,INDEX($V$31:$AK$46,AM31,AN31),"") -> 513.225 | AQ31: =IFERROR(RANK(AP31,$AP$24:$AP$279,1)+COUNTIF($AP$24:AP31,AP31)-1,"") -> 65 | AR31: =IFERROR(INDEX($AP$24:$AP$279,MATCH(SMALL($AQ$24:$AQ$279,ROWS($AR$24:AR31)),$AQ$24:$AQ$279,0))," ") -> 485.55 | AS31: =IF(ISNUMBER(AR31),(IF(COUNTIF( AR$24:AR31, AR31 )=1,AR31,"")),"") ->  | AT31: =IFERROR(RANK(AS31,$AS$24:$AS$279,1)+COUNTIF($AS$24:AS31,AS31)-1,"") ->  | AU31: =IFERROR(INDEX($AS$24:$AS$279,MATCH(SMALL($AT$24:$AT$279,ROWS(AU$24:$AU31)),$AT$24:$AT$279,0))," ") -> 485.675 | AW31: 8 | AX31: =IF(INDEX($V$51:$AK$66,AM31,AN31)>0,INDEX($V$51:$AK$66,AM31,AN31),"") -> 508.1 | AY31: =IFERROR(RANK(AX31,$AX$24:$AX$279,1)+COUNTIF($AX$24:AX31,AX31)-1,"") -> 65 | AZ31: =IFERROR(INDEX($AX$24:$AX$279,MATCH(SMALL($AY$24:$AY$279,ROWS($AZ$24:AZ31)),$AY$24:$AY$279,0))," ") -> 452.25 | BA31: =IF(ISNUMBER(AZ31),(IF(COUNTIF( AZ$24:AZ31, AZ31 )=1,AZ31,"")),"") -> 452.25 | BB31: =IFERROR(RANK(BA31,$BA$24:$BA$279,1)+COUNTIF($BA$24:BA31,BA31)-1,"") -> 8 | BC31: =IFERROR(INDEX($BA$24:$BA$279,MATCH(SMALL($BB$24:$BB$279,ROWS($BC$24:BC31)),$BB$24:$BB$279,0))," ") -> 452.25 | BE31: 8 | BF31: 1 | BG31: 8 | BH31: =IF(INDEX($V$71:$AK$326,BE31,BF31)>0,INDEX($V$71:$AK$326,BE31,BF31),"") ->  | BI31: =IFERROR(RANK(BH31,$BH$24:$BH$4119,1)+COUNTIF($BH$24:BH31,BH31)-1,"") ->  | BJ31: =IFERROR(INDEX($BH$24:$BH$4119,MATCH(SMALL($BI$24:$BI$4119,ROWS($BJ$24:BJ31)),$BI$24:$BI$4119,0))," ") -> 484.825 | BK31: =IF(ISNUMBER(BJ31),(IF(COUNTIF( BJ$24:BJ31, BJ31 )=1,BJ31,"")),"") ->  | BL31: =IFERROR(RANK(BK31,$BK$24:$BK$4119,1)+COUNTIF($BK$24:BK31,BK31)-1,"") ->  | BM31: =IFERROR(INDEX($BK$24:$BK$4119,MATCH(SMALL($BL$24:$BL$4119,ROWS($BM$24:BM31)),$BL$24:$BL$4119,0))," ") -> 485.45
P32: 488.025 | Q32: 455.225 | R32: 486.475 | U32: T 2 | V32: =IF(AND($U12>0,V402>0),MIN($U12,V402)-ABS(V402-$U12),"") -> 517.85 | X32: =IF(AND($U12>0,X402>0),MAX($U12,X402)+ABS(X402-$U12),"") -> 520.3 | Y32: 522.15 | Z32: 524.4 | AA32: 526.05 | AB32: 527.3 | AC32: 528.1 | AD32: 577.4 | AE32: 578.45 | AF32: 580.5 | AG32: 583.2 | AH32: 584.65 | AI32: 585.45 | AJ32: 587.1 | AK32: 588.35 | AM32: 9 | AN32: 1 | AO32: 9 | AP32: =IF(INDEX($V$31:$AK$46,AM32,AN32)>0,INDEX($V$31:$AK$46,AM32,AN32),"") -> 488.575 | AQ32: =IFERROR(RANK(AP32,$AP$24:$AP$279,1)+COUNTIF($AP$24:AP32,AP32)-1,"") -> 21 | AR32: =IFERROR(INDEX($AP$24:$AP$279,MATCH(SMALL($AQ$24:$AQ$279,ROWS($AR$24:AR32)),$AQ$24:$AQ$279,0))," ") -> 485.675 | AS32: =IF(ISNUMBER(AR32),(IF(COUNTIF( AR$24:AR32, AR32 )=1,AR32,"")),"") -> 485.675 | AT32: =IFERROR(RANK(AS32,$AS$24:$AS$279,1)+COUNTIF($AS$24:AS32,AS32)-1,"") -> 8 | AU32: =IFERROR(INDEX($AS$24:$AS$279,MATCH(SMALL($AT$24:$AT$279,ROWS(AU$24:$AU32)),$AT$24:$AT$279,0))," ") -> 485.95 | AW32: 9 | AX32: =IF(INDEX($V$51:$AK$66,AM32,AN32)>0,INDEX($V$51:$AK$66,AM32,AN32),"") -> 458.8 | AY32: =IFERROR(RANK(AX32,$AX$24:$AX$279,1)+COUNTIF($AX$24:AX32,AX32)-1,"") -> 24 | AZ32: =IFERROR(INDEX($AX$24:$AX$279,MATCH(SMALL($AY$24:$AY$279,ROWS($AZ$24:AZ32)),$AY$24:$AY$279,0))," ") -> 452.775 | BA32: =IF(ISNUMBER(AZ32),(IF(COUNTIF( AZ$24:AZ32, AZ32 )=1,AZ32,"")),"") -> 452.775 | BB32: =IFERROR(RANK(BA32,$BA$24:$BA$279,1)+COUNTIF($BA$24:BA32,BA32)-1,"") -> 9 | BC32: =IFERROR(INDEX($BA$24:$BA$279,MATCH(SMALL($BB$24:$BB$279,ROWS($BC$24:BC32)),$BB$24:$BB$279,0))," ") -> 452.775 | BE32: 9 | BF32: 1 | BG32: 9 | BH32: =IF(INDEX($V$71:$AK$326,BE32,BF32)>0,INDEX($V$71:$AK$326,BE32,BF32),"") ->  | BI32: =IFERROR(RANK(BH32,$BH$24:$BH$4119,1)+COUNTIF($BH$24:BH32,BH32)-1,"") ->  | BJ32: =IFERROR(INDEX($BH$24:$BH$4119,MATCH(SMALL($BI$24:$BI$4119,ROWS($BJ$24:BJ32)),$BI$24:$BI$4119,0))," ") -> 484.95 | BK32: =IF(ISNUMBER(BJ32),(IF(COUNTIF( BJ$24:BJ32, BJ32 )=1,BJ32,"")),"") -> 484.95 | BL32: =IFERROR(RANK(BK32,$BK$24:$BK$4119,1)+COUNTIF($BK$24:BK32,BK32)-1,"") -> 5 | BM32: =IFERROR(INDEX($BK$24:$BK$4119,MATCH(SMALL($BL$24:$BL$4119,ROWS($BM$24:BM32)),$BL$24:$BL$4119,0))," ") -> 485.75
P33: 488.05 | Q33: 455.55 | R33: 486.675 | U33: T 3 | V33: 517.125 | W33: =IF(AND($U13>0,W403>0),MIN($U13,W403)-ABS(W403-$U13),"") -> 518.125 | Y33: =IF(AND($U13>0,Y403>0),MAX($U13,Y403)+ABS(Y403-$U13),"") -> 521.425 | Z33: 523.675 | AA33: 525.325 | AB33: 526.575 | AC33: 527.375 | AD33: 576.675 | AE33: 577.725 | AF33: 579.775 | AG33: 582.475 | AH33: 583.925 | AI33: 584.725 | AJ33: 586.375 | AK33: 587.625 | AM33: 10 | AN33: 1 | AO33: 10 | AP33: =IF(INDEX($V$31:$AK$46,AM33,AN33)>0,INDEX($V$31:$AK$46,AM33,AN33),"") -> 488.05 | AQ33: =IFERROR(RANK(AP33,$AP$24:$AP$279,1)+COUNTIF($AP$24:AP33,AP33)-1,"") -> 19 | AR33: =IFERROR(INDEX($AP$24:$AP$279,MATCH(SMALL($AQ$24:$AQ$279,ROWS($AR$24:AR33)),$AQ$24:$AQ$279,0))," ") -> 485.95 | AS33: =IF(ISNUMBER(AR33),(IF(COUNTIF( AR$24:AR33, AR33 )=1,AR33,"")),"") -> 485.95 | AT33: =IFERROR(RANK(AS33,$AS$24:$AS$279,1)+COUNTIF($AS$24:AS33,AS33)-1,"") -> 9 | AU33: =IFERROR(INDEX($AS$24:$AS$279,MATCH(SMALL($AT$24:$AT$279,ROWS(AU$24:$AU33)),$AT$24:$AT$279,0))," ") -> 486.175 | AW33: 10 | AX33: =IF(INDEX($V$51:$AK$66,AM33,AN33)>0,INDEX($V$51:$AK$66,AM33,AN33),"") -> 457.75 | AY33: =IFERROR(RANK(AX33,$AX$24:$AX$279,1)+COUNTIF($AX$24:AX33,AX33)-1,"") -> 22 | AZ33: =IFERROR(INDEX($AX$24:$AX$279,MATCH(SMALL($AY$24:$AY$279,ROWS($AZ$24:AZ33)),$AY$24:$AY$279,0))," ") -> 453 | BA33: =IF(ISNUMBER(AZ33),(IF(COUNTIF( AZ$24:AZ33, AZ33 )=1,AZ33,"")),"") -> 453 | BB33: =IFERROR(RANK(BA33,$BA$24:$BA$279,1)+COUNTIF($BA$24:BA33,BA33)-1,"") -> 10 | BC33: =IFERROR(INDEX($BA$24:$BA$279,MATCH(SMALL($BB$24:$BB$279,ROWS($BC$24:BC33)),$BB$24:$BB$279,0))," ") -> 453 | BE33: 10 | BF33: 1 | BG33: 10 | BH33: =IF(INDEX($V$71:$AK$326,BE33,BF33)>0,INDEX($V$71:$AK$326,BE33,BF33),"") ->  | BI33: =IFERROR(RANK(BH33,$BH$24:$BH$4119,1)+COUNTIF($BH$24:BH33,BH33)-1,"") ->  | BJ33: =IFERROR(INDEX($BH$24:$BH$4119,MATCH(SMALL($BI$24:$BI$4119,ROWS($BJ$24:BJ33)),$BI$24:$BI$4119,0))," ") -> 484.95 | BK33: =IF(ISNUMBER(BJ33),(IF(COUNTIF( BJ$24:BJ33, BJ33 )=1,BJ33,"")),"") ->  | BL33: =IFERROR(RANK(BK33,$BK$24:$BK$4119,1)+COUNTIF($BK$24:BK33,BK33)-1,"") ->  | BM33: =IFERROR(INDEX($BK$24:$BK$4119,MATCH(SMALL($BL$24:$BL$4119,ROWS($BM$24:BM33)),$BL$24:$BL$4119,0))," ") -> 485.775 | BO33: Two Tone 3rd Order Intermodulation Absolute Values Between 2T3O & Tone | CI33: Two Tone 3rd Order Intermodulation Products Acceptance Criteria Calculation
P34: 488.125 | Q34: 455.7 | R34: 486.7 | U34: T 4 | V34: 516.2 | W34: 517.2 | X34: =IF(AND($U14>0,X404>0),MIN($U14,X404)-ABS(X404-$U14),"") -> 518.65 | Z34: =IF(AND($U14>0,Z404>0),MAX($U14,Z404)+ABS(Z404-$U14),"") -> 522.75 | AA34: 524.4 | AB34: 525.65 | AC34: 526.45 | AD34: 575.75 | AE34: 576.8 | AF34: 578.85 | AG34: 581.55 | AH34: 583 | AI34: 583.8 | AJ34: 585.45 | AK34: 586.7 | AM34: 11 | AN34: 1 | AO34: 11 | AP34: =IF(INDEX($V$31:$AK$46,AM34,AN34)>0,INDEX($V$31:$AK$46,AM34,AN34),"") -> 487.025 | AQ34: =IFERROR(RANK(AP34,$AP$24:$AP$279,1)+COUNTIF($AP$24:AP34,AP34)-1,"") -> 14 | AR34: =IFERROR(INDEX($AP$24:$AP$279,MATCH(SMALL($AQ$24:$AQ$279,ROWS($AR$24:AR34)),$AQ$24:$AQ$279,0))," ") -> 486.175 | AS34: =IF(ISNUMBER(AR34),(IF(COUNTIF( AR$24:AR34, AR34 )=1,AR34,"")),"") -> 486.175 | AT34: =IFERROR(RANK(AS34,$AS$24:$AS$279,1)+COUNTIF($AS$24:AS34,AS34)-1,"") -> 10 | AU34: =IFERROR(INDEX($AS$24:$AS$279,MATCH(SMALL($AT$24:$AT$279,ROWS(AU$24:$AU34)),$AT$24:$AT$279,0))," ") -> 486.675 | AW34: 11 | AX34: =IF(INDEX($V$51:$AK$66,AM34,AN34)>0,INDEX($V$51:$AK$66,AM34,AN34),"") -> 455.7 | AY34: =IFERROR(RANK(AX34,$AX$24:$AX$279,1)+COUNTIF($AX$24:AX34,AX34)-1,"") -> 17 | AZ34: =IFERROR(INDEX($AX$24:$AX$279,MATCH(SMALL($AY$24:$AY$279,ROWS($AZ$24:AZ34)),$AY$24:$AY$279,0))," ") -> 453.05 | BA34: =IF(ISNUMBER(AZ34),(IF(COUNTIF( AZ$24:AZ34, AZ34 )=1,AZ34,"")),"") -> 453.05 | BB34: =IFERROR(RANK(BA34,$BA$24:$BA$279,1)+COUNTIF($BA$24:BA34,BA34)-1,"") -> 11 | BC34: =IFERROR(INDEX($BA$24:$BA$279,MATCH(SMALL($BB$24:$BB$279,ROWS($BC$24:BC34)),$BB$24:$BB$279,0))," ") -> 453.05 | BE34: 11 | BF34: 1 | BG34: 11 | BH34: =IF(INDEX($V$71:$AK$326,BE34,BF34)>0,INDEX($V$71:$AK$326,BE34,BF34),"") ->  | BI34: =IFERROR(RANK(BH34,$BH$24:$BH$4119,1)+COUNTIF($BH$24:BH34,BH34)-1,"") ->  | BJ34: =IFERROR(INDEX($BH$24:$BH$4119,MATCH(SMALL($BI$24:$BI$4119,ROWS($BJ$24:BJ34)),$BI$24:$BI$4119,0))," ") -> 485.05 | BK34: =IF(ISNUMBER(BJ34),(IF(COUNTIF( BJ$24:BJ34, BJ34 )=1,BJ34,"")),"") -> 485.05 | BL34: =IFERROR(RANK(BK34,$BK$24:$BK$4119,1)+COUNTIF($BK$24:BK34,BK34)-1,"") -> 6 | BM34: =IFERROR(INDEX($BK$24:$BK$4119,MATCH(SMALL($BL$24:$BL$4119,ROWS($BM$24:BM34)),$BL$24:$BL$4119,0))," ") -> 485.875 | BQ34: T 1 | BR34: T 2 | BS34: T 3 | BT34: T 4 | BU34: T 5 | BV34: T 6 | BW34: T 7 | BX34: T 8 | BY34: T 9 | BZ34: T 10 | CA34: T 11 | CB34: T 12 | CC34: T 13 | CD34: T 14 | CE34: T 15 | CF34: T 16 | CK34: T 1 | CL34: T 2 | CM34: T 3 | CN34: T 4 | CO34: T 5 | CP34: T 6 | CQ34: T 7 | CR34: T 8 | CS34: T 9 | CT34: T 10 | CU34: T 11 | CV34: T 12 | CW34: T 13 | CX34: T 14 | CY34: T 15 | CZ34: T 16
P35: 488.575 | Q35: 456.675 | R35: 486.875 | U35: T 5 | V35: 515.075 | W35: 516.075 | X35: 517.525 | Y35: =IF(AND($U15>0,Y405>0),MIN($U15,Y405)-ABS(Y405-$U15),"") -> 519.375 | AA35: =IF(AND($U15>0,AA405>0),MAX($U15,AA405)+ABS(AA405-$U15),"") -> 523.275 | AB35: 524.525 | AC35: 525.325 | AD35: 574.625 | AE35: 575.675 | AF35: 577.725 | AG35: 580.425 | AH35: 581.875 | AI35: 582.675 | AJ35: 584.325 | AK35: 585.575 | AM35: 12 | AN35: 1 | AO35: 12 | AP35: =IF(INDEX($V$31:$AK$46,AM35,AN35)>0,INDEX($V$31:$AK$46,AM35,AN35),"") -> 485.675 | AQ35: =IFERROR(RANK(AP35,$AP$24:$AP$279,1)+COUNTIF($AP$24:AP35,AP35)-1,"") -> 9 | AR35: =IFERROR(INDEX($AP$24:$AP$279,MATCH(SMALL($AQ$24:$AQ$279,ROWS($AR$24:AR35)),$AQ$24:$AQ$279,0))," ") -> 486.675 | AS35: =IF(ISNUMBER(AR35),(IF(COUNTIF( AR$24:AR35, AR35 )=1,AR35,"")),"") -> 486.675 | AT35: =IFERROR(RANK(AS35,$AS$24:$AS$279,1)+COUNTIF($AS$24:AS35,AS35)-1,"") -> 11 | AU35: =IFERROR(INDEX($AS$24:$AS$279,MATCH(SMALL($AT$24:$AT$279,ROWS(AU$24:$AU35)),$AT$24:$AT$279,0))," ") -> 487 | AW35: 12 | AX35: =IF(INDEX($V$51:$AK$66,AM35,AN35)>0,INDEX($V$51:$AK$66,AM35,AN35),"") -> 453 | AY35: =IFERROR(RANK(AX35,$AX$24:$AX$279,1)+COUNTIF($AX$24:AX35,AX35)-1,"") -> 10 | AZ35: =IFERROR(INDEX($AX$24:$AX$279,MATCH(SMALL($AY$24:$AY$279,ROWS($AZ$24:AZ35)),$AY$24:$AY$279,0))," ") -> 454.3 | BA35: =IF(ISNUMBER(AZ35),(IF(COUNTIF( AZ$24:AZ35, AZ35 )=1,AZ35,"")),"") -> 454.3 | BB35: =IFERROR(RANK(BA35,$BA$24:$BA$279,1)+COUNTIF($BA$24:BA35,BA35)-1,"") -> 12 | BC35: =IFERROR(INDEX($BA$24:$BA$279,MATCH(SMALL($BB$24:$BB$279,ROWS($BC$24:BC35)),$BB$24:$BB$279,0))," ") -> 454.3 | BE35: 12 | BF35: 1 | BG35: 12 | BH35: =IF(INDEX($V$71:$AK$326,BE35,BF35)>0,INDEX($V$71:$AK$326,BE35,BF35),"") ->  | BI35: =IFERROR(RANK(BH35,$BH$24:$BH$4119,1)+COUNTIF($BH$24:BH35,BH35)-1,"") ->  | BJ35: =IFERROR(INDEX($BH$24:$BH$4119,MATCH(SMALL($BI$24:$BI$4119,ROWS($BJ$24:BJ35)),$BI$24:$BI$4119,0))," ") -> 485.05 | BK35: =IF(ISNUMBER(BJ35),(IF(COUNTIF( BJ$24:BJ35, BJ35 )=1,BJ35,"")),"") ->  | BL35: =IFERROR(RANK(BK35,$BK$24:$BK$4119,1)+COUNTIF($BK$24:BK35,BK35)-1,"") ->  | BM35: =IFERROR(INDEX($BK$24:$BK$4119,MATCH(SMALL($BL$24:$BL$4119,ROWS($BM$24:BM35)),$BL$24:$BL$4119,0))," ") -> 486.175 | BQ35: =BP11 -> 518.35 | BR35: =BP12 -> 518.85 | BS35: =BP13 -> 519.575 | BT35: =BP14 -> 520.5 | BU35: =BP15 -> 521.625 | BV35: =BP16 -> 522.45 | BW35: =BP17 -> 523.075 | BX35: =BP18 -> 523.475 | BY35: =BP19 -> 548.125 | BZ35: =BP20 -> 548.65 | CA35: =BP21 -> 549.675 | CB35: =BP22 -> 551.025 | CC35: =BP23 -> 551.75 | CD35: =BP24 -> 552.15 | CE35: =BP25 -> 552.975 | CF35: =BP26 -> 553.6 | CK35: =BQ10 -> 518.35 | CL35: =BR10 -> 518.85 | CM35: 519.575 | CN35: 520.5 | CO35: 521.625 | CP35: 522.45 | CQ35: 523.075 | CR35: 523.475 | CS35: 548.125 | CT35: 548.65 | CU35: 549.675 | CV35: 551.025 | CW35: 551.75 | CX35: 552.15 | CY35: 552.975 | CZ35: 553.6
P36: 488.85 | Q36: 457.2 | R36: 486.9 | U36: T 6 | V36: 514.25 | W36: 515.25 | X36: 516.7 | Y36: 518.55 | Z36: =IF(AND($U16>0,Z406>0),MIN($U16,Z406)-ABS(Z406-$U16),"") -> 520.8 | AB36: =IF(AND($U16>0,AB406>0),MAX($U16,AB406)+ABS(AB406-$U16),"") -> 523.7 | AC36: 524.5 | AD36: 573.8 | AE36: 574.85 | AF36: 576.9 | AG36: 579.6 | AH36: 581.05 | AI36: 581.85 | AJ36: 583.5 | AK36: 584.75 | AM36: 13 | AN36: 1 | AO36: 13 | AP36: =IF(INDEX($V$31:$AK$46,AM36,AN36)>0,INDEX($V$31:$AK$46,AM36,AN36),"") -> 484.95 | AQ36: =IFERROR(RANK(AP36,$AP$24:$AP$279,1)+COUNTIF($AP$24:AP36,AP36)-1,"") -> 6 | AR36: =IFERROR(INDEX($AP$24:$AP$279,MATCH(SMALL($AQ$24:$AQ$279,ROWS($AR$24:AR36)),$AQ$24:$AQ$279,0))," ") -> 487 | AS36: =IF(ISNUMBER(AR36),(IF(COUNTIF( AR$24:AR36, AR36 )=1,AR36,"")),"") -> 487 | AT36: =IFERROR(RANK(AS36,$AS$24:$AS$279,1)+COUNTIF($AS$24:AS36,AS36)-1,"") -> 12 | AU36: =IFERROR(INDEX($AS$24:$AS$279,MATCH(SMALL($AT$24:$AT$279,ROWS(AU$24:$AU36)),$AT$24:$AT$279,0))," ") -> 487.025 | AW36: 13 | AX36: =IF(INDEX($V$51:$AK$66,AM36,AN36)>0,INDEX($V$51:$AK$66,AM36,AN36),"") -> 451.55 | AY36: =IFERROR(RANK(AX36,$AX$24:$AX$279,1)+COUNTIF($AX$24:AX36,AX36)-1,"") -> 7 | AZ36: =IFERROR(INDEX($AX$24:$AX$279,MATCH(SMALL($AY$24:$AY$279,ROWS($AZ$24:AZ36)),$AY$24:$AY$279,0))," ") -> 454.425 | BA36: =IF(ISNUMBER(AZ36),(IF(COUNTIF( AZ$24:AZ36, AZ36 )=1,AZ36,"")),"") -> 454.425 | BB36: =IFERROR(RANK(BA36,$BA$24:$BA$279,1)+COUNTIF($BA$24:BA36,BA36)-1,"") -> 13 | BC36: =IFERROR(INDEX($BA$24:$BA$279,MATCH(SMALL($BB$24:$BB$279,ROWS($BC$24:BC36)),$BB$24:$BB$279,0))," ") -> 454.425 | BE36: 13 | BF36: 1 | BG36: 13 | BH36: =IF(INDEX($V$71:$AK$326,BE36,BF36)>0,INDEX($V$71:$AK$326,BE36,BF36),"") ->  | BI36: =IFERROR(RANK(BH36,$BH$24:$BH$4119,1)+COUNTIF($BH$24:BH36,BH36)-1,"") ->  | BJ36: =IFERROR(INDEX($BH$24:$BH$4119,MATCH(SMALL($BI$24:$BI$4119,ROWS($BJ$24:BJ36)),$BI$24:$BI$4119,0))," ") -> 485.25 | BK36: =IF(ISNUMBER(BJ36),(IF(COUNTIF( BJ$24:BJ36, BJ36 )=1,BJ36,"")),"") -> 485.25 | BL36: =IFERROR(RANK(BK36,$BK$24:$BK$4119,1)+COUNTIF($BK$24:BK36,BK36)-1,"") -> 7 | BM36: =IFERROR(INDEX($BK$24:$BK$4119,MATCH(SMALL($BL$24:$BL$4119,ROWS($BM$24:BM36)),$BL$24:$BL$4119,0))," ") -> 486.275 | BO36: instances | CI36: instances | CK36: =SUM(CK37:CK292) -> 0 | CL36: =SUM(CL37:CL292) -> 0 | CM36: 0 | CN36: 0 | CO36: 0 | CP36: 0 | CQ36: 0 | CR36: 0 | CS36: 0 | CT36: 0 | CU36: 0 | CV36: 0 | CW36: 0 | CX36: 0 | CY36: 0 | CZ36: =SUM(CZ37:CZ292) -> 0
P37: 489.05 | Q37: 457.675 | R37: 487 | U37: T 7 | V37: 513.625 | W37: 514.625 | X37: 516.075 | Y37: 517.925 | Z37: 520.175 | AA37: =IF(AND($U17>0,AA407>0),MIN($U17,AA407)-ABS(AA407-$U17),"") -> 521.825 | AC37: =IF(AND($U17>0,AC407>0),MAX($U17,AC407)+ABS(AC407-$U17),"") -> 523.875 | AD37: 573.175 | AE37: 574.225 | AF37: 576.275 | AG37: 578.975 | AH37: 580.425 | AI37: 581.225 | AJ37: 582.875 | AK37: 584.125 | AM37: 14 | AN37: 1 | AO37: 14 | AP37: =IF(INDEX($V$31:$AK$46,AM37,AN37)>0,INDEX($V$31:$AK$46,AM37,AN37),"") -> 484.55 | AQ37: =IFERROR(RANK(AP37,$AP$24:$AP$279,1)+COUNTIF($AP$24:AP37,AP37)-1,"") -> 4 | AR37: =IFERROR(INDEX($AP$24:$AP$279,MATCH(SMALL($AQ$24:$AQ$279,ROWS($AR$24:AR37)),$AQ$24:$AQ$279,0))," ") -> 487.025 | AS37: =IF(ISNUMBER(AR37),(IF(COUNTIF( AR$24:AR37, AR37 )=1,AR37,"")),"") -> 487.025 | AT37: =IFERROR(RANK(AS37,$AS$24:$AS$279,1)+COUNTIF($AS$24:AS37,AS37)-1,"") -> 13 | AU37: =IFERROR(INDEX($AS$24:$AS$279,MATCH(SMALL($AT$24:$AT$279,ROWS(AU$24:$AU37)),$AT$24:$AT$279,0))," ") -> 487.4 | AW37: 14 | AX37: =IF(INDEX($V$51:$AK$66,AM37,AN37)>0,INDEX($V$51:$AK$66,AM37,AN37),"") -> 450.75 | AY37: =IFERROR(RANK(AX37,$AX$24:$AX$279,1)+COUNTIF($AX$24:AX37,AX37)-1,"") -> 5 | AZ37: =IFERROR(INDEX($AX$24:$AX$279,MATCH(SMALL($AY$24:$AY$279,ROWS($AZ$24:AZ37)),$AY$24:$AY$279,0))," ") -> 454.5 | BA37: =IF(ISNUMBER(AZ37),(IF(COUNTIF( AZ$24:AZ37, AZ37 )=1,AZ37,"")),"") -> 454.5 | BB37: =IFERROR(RANK(BA37,$BA$24:$BA$279,1)+COUNTIF($BA$24:BA37,BA37)-1,"") -> 14 | BC37: =IFERROR(INDEX($BA$24:$BA$279,MATCH(SMALL($BB$24:$BB$279,ROWS($BC$24:BC37)),$BB$24:$BB$279,0))," ") -> 454.5 | BE37: 14 | BF37: 1 | BG37: 14 | BH37: =IF(INDEX($V$71:$AK$326,BE37,BF37)>0,INDEX($V$71:$AK$326,BE37,BF37),"") ->  | BI37: =IFERROR(RANK(BH37,$BH$24:$BH$4119,1)+COUNTIF($BH$24:BH37,BH37)-1,"") ->  | BJ37: =IFERROR(INDEX($BH$24:$BH$4119,MATCH(SMALL($BI$24:$BI$4119,ROWS($BJ$24:BJ37)),$BI$24:$BI$4119,0))," ") -> 485.25 | BK37: =IF(ISNUMBER(BJ37),(IF(COUNTIF( BJ$24:BJ37, BJ37 )=1,BJ37,"")),"") ->  | BL37: =IFERROR(RANK(BK37,$BK$24:$BK$4119,1)+COUNTIF($BK$24:BK37,BK37)-1,"") ->  | BM37: =IFERROR(INDEX($BK$24:$BK$4119,MATCH(SMALL($BL$24:$BL$4119,ROWS($BM$24:BM37)),$BL$24:$BL$4119,0))," ") -> 486.375 | BO37: 1 | BP37: =AU24 -> 483.1 | BQ37: =IF(ISNUMBER($BP37),ABS($BP37-BQ$35),"") -> 35.25 | BR37: =IF(ISNUMBER($BP37),ABS($BP37-BR$35),"") -> 35.75 | BS37: =IF(ISNUMBER($BP37),ABS($BP37-BS$35),"") -> 36.475 | BT37: 37.4 | BU37: 38.525 | BV37: 39.35 | BW37: 39.975 | BX37: 40.375 | BY37: 65.025 | BZ37: 65.55 | CA37: 66.575 | CB37: 67.925 | CC37: 68.65 | CD37: 69.05 | CE37: 69.875 | CF37: 70.5 | CI37: 1 | CJ37: =AU24 -> 483.1 | CK37: =IF(ISNUMBER($CJ37),IF(ROUND($K$12,3)<=ROUND(BQ37,3),0,1),0) -> 0 | CL37: =IF(ISNUMBER($CJ37),IF(ROUND($K$12,3)<=ROUND(BR37,3),0,1),0) -> 0 | CM37: 0 | CN37: 0 | CO37: 0 | CP37: 0 | CQ37: 0 | CR37: 0 | CS37: 0 | CT37: 0 | CU37: 0 | CV37: 0 | CW37: 0 | CX37: 0 | CY37: 0 | CZ37: 0
P38: 489.25 | Q38: 457.75 | R38: 487.1 | U38: T 8 | V38: 513.225 | W38: 514.225 | X38: 515.675 | Y38: 517.525 | Z38: 519.775 | AA38: 521.425 | AB38: =IF(AND($U18>0,AB408>0),MIN($U18,AB408)-ABS(AB408-$U18),"") -> 522.675 | AD38: =IF(AND($U18>0,AD408>0),MAX($U18,AD408)+ABS(AD408-$U18),"") -> 572.775 | AE38: 573.825 | AF38: 575.875 | AG38: 578.575 | AH38: 580.025 | AI38: 580.825 | AJ38: 582.475 | AK38: 583.725 | AM38: 15 | AN38: 1 | AO38: 15 | AP38: =IF(INDEX($V$31:$AK$46,AM38,AN38)>0,INDEX($V$31:$AK$46,AM38,AN38),"") -> 483.725 | AQ38: =IFERROR(RANK(AP38,$AP$24:$AP$279,1)+COUNTIF($AP$24:AP38,AP38)-1,"") -> 2 | AR38: =IFERROR(INDEX($AP$24:$AP$279,MATCH(SMALL($AQ$24:$AQ$279,ROWS($AR$24:AR38)),$AQ$24:$AQ$279,0))," ") -> 487.4 | AS38: =IF(ISNUMBER(AR38),(IF(COUNTIF( AR$24:AR38, AR38 )=1,AR38,"")),"") -> 487.4 | AT38: =IFERROR(RANK(AS38,$AS$24:$AS$279,1)+COUNTIF($AS$24:AS38,AS38)-1,"") -> 14 | AU38: =IFERROR(INDEX($AS$24:$AS$279,MATCH(SMALL($AT$24:$AT$279,ROWS(AU$24:$AU38)),$AT$24:$AT$279,0))," ") -> 488.025 | AW38: 15 | AX38: =IF(INDEX($V$51:$AK$66,AM38,AN38)>0,INDEX($V$51:$AK$66,AM38,AN38),"") -> 449.1 | AY38: =IFERROR(RANK(AX38,$AX$24:$AX$279,1)+COUNTIF($AX$24:AX38,AX38)-1,"") -> 2 | AZ38: =IFERROR(INDEX($AX$24:$AX$279,MATCH(SMALL($AY$24:$AY$279,ROWS($AZ$24:AZ38)),$AY$24:$AY$279,0))," ") -> 455.225 | BA38: =IF(ISNUMBER(AZ38),(IF(COUNTIF( AZ$24:AZ38, AZ38 )=1,AZ38,"")),"") -> 455.225 | BB38: =IFERROR(RANK(BA38,$BA$24:$BA$279,1)+COUNTIF($BA$24:BA38,BA38)-1,"") -> 15 | BC38: =IFERROR(INDEX($BA$24:$BA$279,MATCH(SMALL($BB$24:$BB$279,ROWS($BC$24:BC38)),$BB$24:$BB$279,0))," ") -> 455.225 | BE38: 15 | BF38: 1 | BG38: 15 | BH38: =IF(INDEX($V$71:$AK$326,BE38,BF38)>0,INDEX($V$71:$AK$326,BE38,BF38),"") ->  | BI38: =IFERROR(RANK(BH38,$BH$24:$BH$4119,1)+COUNTIF($BH$24:BH38,BH38)-1,"") ->  | BJ38: =IFERROR(INDEX($BH$24:$BH$4119,MATCH(SMALL($BI$24:$BI$4119,ROWS($BJ$24:BJ38)),$BI$24:$BI$4119,0))," ") -> 485.45 | BK38: =IF(ISNUMBER(BJ38),(IF(COUNTIF( BJ$24:BJ38, BJ38 )=1,BJ38,"")),"") -> 485.45 | BL38: =IFERROR(RANK(BK38,$BK$24:$BK$4119,1)+COUNTIF($BK$24:BK38,BK38)-1,"") -> 8 | BM38: =IFERROR(INDEX($BK$24:$BK$4119,MATCH(SMALL($BL$24:$BL$4119,ROWS($BM$24:BM38)),$BL$24:$BL$4119,0))," ") -> 486.475 | BO38: 2 | BP38: 483.725 | BQ38: =IF(ISNUMBER($BP38),ABS($BP38-BQ$35),"") -> 34.625 | BR38: 35.125 | BS38: 35.85 | BT38: 36.775 | BU38: 37.9 | BV38: 38.725 | BW38: 39.35 | BX38: 39.75 | BY38: 64.4 | BZ38: 64.925 | CA38: 65.95 | CB38: 67.3 | CC38: 68.025 | CD38: 68.425 | CE38: 69.25 | CF38: 69.875 | CI38: 2 | CJ38: =AU25 -> 483.725 | CK38: =IF(ISNUMBER($CJ38),IF(ROUND($K$12,3)<=ROUND(BQ38,3),0,1),0) -> 0 | CL38: =IF(ISNUMBER($CJ38),IF(ROUND($K$12,3)<=ROUND(BR38,3),0,1),0) -> 0 | CM38: =IF(ISNUMBER($CJ38),IF(ROUND($K$12,3)<=ROUND(BS38,3),0,1),0) -> 0 | CN38: =IF(ISNUMBER($CJ38),IF(ROUND($K$12,3)<=ROUND(BT38,3),0,1),0) -> 0 | CO38: =IF(ISNUMBER($CJ38),IF(ROUND($K$12,3)<=ROUND(BU38,3),0,1),0) -> 0 | CP38: =IF(ISNUMBER($CJ38),IF(ROUND($K$12,3)<=ROUND(BV38,3),0,1),0) -> 0 | CQ38: =IF(ISNUMBER($CJ38),IF(ROUND($K$12,3)<=ROUND(BW38,3),0,1),0) -> 0 | CR38: =IF(ISNUMBER($CJ38),IF(ROUND($K$12,3)<=ROUND(BX38,3),0,1),0) -> 0 | CS38: =IF(ISNUMBER($CJ38),IF(ROUND($K$12,3)<=ROUND(BY38,3),0,1),0) -> 0 | CT38: =IF(ISNUMBER($CJ38),IF(ROUND($K$12,3)<=ROUND(BZ38,3),0,1),0) -> 0 | CU38: =IF(ISNUMBER($CJ38),IF(ROUND($K$12,3)<=ROUND(CA38,3),0,1),0) -> 0 | CV38: =IF(ISNUMBER($CJ38),IF(ROUND($K$12,3)<=ROUND(CB38,3),0,1),0) -> 0 | CW38: =IF(ISNUMBER($CJ38),IF(ROUND($K$12,3)<=ROUND(CC38,3),0,1),0) -> 0 | CX38: =IF(ISNUMBER($CJ38),IF(ROUND($K$12,3)<=ROUND(CD38,3),0,1),0) -> 0 | CY38: =IF(ISNUMBER($CJ38),IF(ROUND($K$12,3)<=ROUND(CE38,3),0,1),0) -> 0 | CZ38: =IF(ISNUMBER($CJ38),IF(ROUND($K$12,3)<=ROUND(CF38,3),0,1),0) -> 0
P39: 489.475 | Q39: 458 | R39: 487.2 | U39: T 9 | V39: 488.575 | W39: 489.575 | X39: 491.025 | Y39: 492.875 | Z39: 495.125 | AA39: 496.775 | AB39: 498.025 | AC39: =IF(AND($U19>0,AC409>0),MIN($U19,AC409)-ABS(AC409-$U19),"") -> 498.825 | AE39: =IF(AND($U19>0,AE409>0),MAX($U19,AE409)+ABS(AE409-$U19),"") -> 549.175 | AF39: 551.225 | AG39: 553.925 | AH39: 555.375 | AI39: 556.175 | AJ39: 557.825 | AK39: 559.075 | AM39: 16 | AN39: 1 | AO39: 16 | AP39: =IF(INDEX($V$31:$AK$46,AM39,AN39)>0,INDEX($V$31:$AK$46,AM39,AN39),"") -> 483.1 | AQ39: =IFERROR(RANK(AP39,$AP$24:$AP$279,1)+COUNTIF($AP$24:AP39,AP39)-1,"") -> 1 | AR39: =IFERROR(INDEX($AP$24:$AP$279,MATCH(SMALL($AQ$24:$AQ$279,ROWS($AR$24:AR39)),$AQ$24:$AQ$279,0))," ") -> 487.4 | AS39: =IF(ISNUMBER(AR39),(IF(COUNTIF( AR$24:AR39, AR39 )=1,AR39,"")),"") ->  | AT39: =IFERROR(RANK(AS39,$AS$24:$AS$279,1)+COUNTIF($AS$24:AS39,AS39)-1,"") ->  | AU39: =IFERROR(INDEX($AS$24:$AS$279,MATCH(SMALL($AT$24:$AT$279,ROWS(AU$24:$AU39)),$AT$24:$AT$279,0))," ") -> 488.05 | AW39: 16 | AX39: =IF(INDEX($V$51:$AK$66,AM39,AN39)>0,INDEX($V$51:$AK$66,AM39,AN39),"") -> 447.85 | AY39: =IFERROR(RANK(AX39,$AX$24:$AX$279,1)+COUNTIF($AX$24:AX39,AX39)-1,"") -> 1 | AZ39: =IFERROR(INDEX($AX$24:$AX$279,MATCH(SMALL($AY$24:$AY$279,ROWS($AZ$24:AZ39)),$AY$24:$AY$279,0))," ") -> 455.55 | BA39: =IF(ISNUMBER(AZ39),(IF(COUNTIF( AZ$24:AZ39, AZ39 )=1,AZ39,"")),"") -> 455.55 | BB39: =IFERROR(RANK(BA39,$BA$24:$BA$279,1)+COUNTIF($BA$24:BA39,BA39)-1,"") -> 16 | BC39: =IFERROR(INDEX($BA$24:$BA$279,MATCH(SMALL($BB$24:$BB$279,ROWS($BC$24:BC39)),$BB$24:$BB$279,0))," ") -> 455.55 | BE39: 16 | BF39: 1 | BG39: 16 | BH39: =IF(INDEX($V$71:$AK$326,BE39,BF39)>0,INDEX($V$71:$AK$326,BE39,BF39),"") ->  | BI39: =IFERROR(RANK(BH39,$BH$24:$BH$4119,1)+COUNTIF($BH$24:BH39,BH39)-1,"") ->  | BJ39: =IFERROR(INDEX($BH$24:$BH$4119,MATCH(SMALL($BI$24:$BI$4119,ROWS($BJ$24:BJ39)),$BI$24:$BI$4119,0))," ") -> 485.45 | BK39: =IF(ISNUMBER(BJ39),(IF(COUNTIF( BJ$24:BJ39, BJ39 )=1,BJ39,"")),"") ->  | BL39: =IFERROR(RANK(BK39,$BK$24:$BK$4119,1)+COUNTIF($BK$24:BK39,BK39)-1,"") ->  | BM39: =IFERROR(INDEX($BK$24:$BK$4119,MATCH(SMALL($BL$24:$BL$4119,ROWS($BM$24:BM39)),$BL$24:$BL$4119,0))," ") -> 486.675 | BO39: 3 | BP39: 484.1 | BQ39: 34.25 | BR39: 34.75 | BS39: 35.475 | BT39: 36.4 | BU39: 37.525 | BV39: 38.35 | BW39: 38.975 | BX39: 39.375 | BY39: 64.025 | BZ39: 64.55 | CA39: 65.575 | CB39: 66.925 | CC39: 67.65 | CD39: 68.05 | CE39: 68.875 | CF39: 69.5 | CI39: 3 | CJ39: 484.1 | CK39: 0 | CL39: 0 | CM39: 0 | CN39: 0 | CO39: 0 | CP39: 0 | CQ39: 0 | CR39: 0 | CS39: 0 | CT39: 0 | CU39: 0 | CV39: 0 | CW39: 0 | CX39: 0 | CY39: 0 | CZ39: 0
P40: 489.575 | Q40: 458.8 | R40: 487.4 | U40: T 10 | V40: 488.05 | W40: 489.05 | X40: 490.5 | Y40: 492.35 | Z40: 494.6 | AA40: 496.25 | AB40: 497.5 | AC40: 498.3 | AD40: =IF(AND($U20>0,AD410>0),MIN($U20,AD410)-ABS(AD410-$U20),"") -> 547.6 | AF40: =IF(AND($U20>0,AF410>0),MAX($U20,AF410)+ABS(AF410-$U20),"") -> 550.7 | AG40: 553.4 | AH40: 554.85 | AI40: 555.65 | AJ40: 557.3 | AK40: 558.55 | AM40: 1 | AN40: 2 | AO40: 17 | AP40: =IF(INDEX($V$31:$AK$46,AM40,AN40)>0,INDEX($V$31:$AK$46,AM40,AN40),"") -> 519.35 | AQ40: =IFERROR(RANK(AP40,$AP$24:$AP$279,1)+COUNTIF($AP$24:AP40,AP40)-1,"") -> 86 | AR40: =IFERROR(INDEX($AP$24:$AP$279,MATCH(SMALL($AQ$24:$AQ$279,ROWS($AR$24:AR40)),$AQ$24:$AQ$279,0))," ") -> 488.025 | AS40: =IF(ISNUMBER(AR40),(IF(COUNTIF( AR$24:AR40, AR40 )=1,AR40,"")),"") -> 488.025 | AT40: =IFERROR(RANK(AS40,$AS$24:$AS$279,1)+COUNTIF($AS$24:AS40,AS40)-1,"") -> 15 | AU40: =IFERROR(INDEX($AS$24:$AS$279,MATCH(SMALL($AT$24:$AT$279,ROWS(AU$24:$AU40)),$AT$24:$AT$279,0))," ") -> 488.125 | AW40: 17 | AX40: =IF(INDEX($V$51:$AK$66,AM40,AN40)>0,INDEX($V$51:$AK$66,AM40,AN40),"") -> 519.85 | AY40: =IFERROR(RANK(AX40,$AX$24:$AX$279,1)+COUNTIF($AX$24:AX40,AX40)-1,"") -> 89 | AZ40: =IFERROR(INDEX($AX$24:$AX$279,MATCH(SMALL($AY$24:$AY$279,ROWS($AZ$24:AZ40)),$AY$24:$AY$279,0))," ") -> 455.7 | BA40: =IF(ISNUMBER(AZ40),(IF(COUNTIF( AZ$24:AZ40, AZ40 )=1,AZ40,"")),"") -> 455.7 | BB40: =IFERROR(RANK(BA40,$BA$24:$BA$279,1)+COUNTIF($BA$24:BA40,BA40)-1,"") -> 17 | BC40: =IFERROR(INDEX($BA$24:$BA$279,MATCH(SMALL($BB$24:$BB$279,ROWS($BC$24:BC40)),$BB$24:$BB$279,0))," ") -> 455.7 | BE40: 17 | BF40: 1 | BG40: 17 | BH40: =IF(INDEX($V$71:$AK$326,BE40,BF40)>0,INDEX($V$71:$AK$326,BE40,BF40),"") ->  | BI40: =IFERROR(RANK(BH40,$BH$24:$BH$4119,1)+COUNTIF($BH$24:BH40,BH40)-1,"") ->  | BJ40: =IFERROR(INDEX($BH$24:$BH$4119,MATCH(SMALL($BI$24:$BI$4119,ROWS($BJ$24:BJ40)),$BI$24:$BI$4119,0))," ") -> 485.45 | BK40: =IF(ISNUMBER(BJ40),(IF(COUNTIF( BJ$24:BJ40, BJ40 )=1,BJ40,"")),"") ->  | BL40: =IFERROR(RANK(BK40,$BK$24:$BK$4119,1)+COUNTIF($BK$24:BK40,BK40)-1,"") ->  | BM40: =IFERROR(INDEX($BK$24:$BK$4119,MATCH(SMALL($BL$24:$BL$4119,ROWS($BM$24:BM40)),$BL$24:$BL$4119,0))," ") -> 486.7 | BO40: 4 | BP40: 484.55 | BQ40: 33.8 | BR40: 34.3 | BS40: 35.025 | BT40: 35.95 | BU40: 37.075 | BV40: 37.9 | BW40: 38.525 | BX40: 38.925 | BY40: 63.575 | BZ40: 64.1 | CA40: 65.125 | CB40: 66.475 | CC40: 67.2 | CD40: 67.6 | CE40: 68.425 | CF40: 69.05 | CI40: 4 | CJ40: 484.55 | CK40: 0 | CL40: 0 | CM40: 0 | CN40: 0 | CO40: 0 | CP40: 0 | CQ40: 0 | CR40: 0 | CS40: 0 | CT40: 0 | CU40: 0 | CV40: 0 | CW40: 0 | CX40: 0 | CY40: 0 | CZ40: 0
J41: Comments or suggestions are welcome | P41: 489.65 | Q41: 458.925 | R41: 487.5 | U41: T 11 | V41: 487.025 | W41: 488.025 | X41: 489.475 | Y41: 491.325 | Z41: 493.575 | AA41: 495.225 | AB41: 496.475 | AC41: 497.275 | AD41: 546.575 | AE41: =IF(AND($U21>0,AE411>0),MIN($U21,AE411)-ABS(AE411-$U21),"") -> 547.625 | AG41: =IF(AND($U21>0,AG411>0),MAX($U21,AG411)+ABS(AG411-$U21),"") -> 552.375 | AH41: =IF(AND($U21>0,AH411>0),MAX($U21,AH411)+ABS(AH411-$U21),"") -> 553.825 | AI41: =IF(AND($U21>0,AI411>0),MAX($U21,AI411)+ABS(AI411-$U21),"") -> 554.625 | AJ41: =IF(AND($U21>0,AJ411>0),MAX($U21,AJ411)+ABS(AJ411-$U21),"") -> 556.275 | AK41: =IF(AND($U21>0,AK411>0),MAX($U21,AK411)+ABS(AK411-$U21),"") -> 557.525 | AM41: 2 | AN41: 2 | AO41: 18 | AP41: =IF(INDEX($V$31:$AK$46,AM41,AN41)>0,INDEX($V$31:$AK$46,AM41,AN41),"") ->  | AQ41: =IFERROR(RANK(AP41,$AP$24:$AP$279,1)+COUNTIF($AP$24:AP41,AP41)-1,"") ->  | AR41: =IFERROR(INDEX($AP$24:$AP$279,MATCH(SMALL($AQ$24:$AQ$279,ROWS($AR$24:AR41)),$AQ$24:$AQ$279,0))," ") -> 488.025 | AS41: =IF(ISNUMBER(AR41),(IF(COUNTIF( AR$24:AR41, AR41 )=1,AR41,"")),"") ->  | AT41: =IFERROR(RANK(AS41,$AS$24:$AS$279,1)+COUNTIF($AS$24:AS41,AS41)-1,"") ->  | AU41: =IFERROR(INDEX($AS$24:$AS$279,MATCH(SMALL($AT$24:$AT$279,ROWS(AU$24:$AU41)),$AT$24:$AT$279,0))," ") -> 488.575 | AW41: 18 | AX41: =IF(INDEX($V$51:$AK$66,AM41,AN41)>0,INDEX($V$51:$AK$66,AM41,AN41),"") ->  | AY41: =IFERROR(RANK(AX41,$AX$24:$AX$279,1)+COUNTIF($AX$24:AX41,AX41)-1,"") ->  | AZ41: =IFERROR(INDEX($AX$24:$AX$279,MATCH(SMALL($AY$24:$AY$279,ROWS($AZ$24:AZ41)),$AY$24:$AY$279,0))," ") -> 456.675 | BA41: =IF(ISNUMBER(AZ41),(IF(COUNTIF( AZ$24:AZ41, AZ41 )=1,AZ41,"")),"") -> 456.675 | BB41: =IFERROR(RANK(BA41,$BA$24:$BA$279,1)+COUNTIF($BA$24:BA41,BA41)-1,"") -> 18 | BC41: =IFERROR(INDEX($BA$24:$BA$279,MATCH(SMALL($BB$24:$BB$279,ROWS($BC$24:BC41)),$BB$24:$BB$279,0))," ") -> 456.675 | BE41: 18 | BF41: 1 | BG41: 18 | BH41: =IF(INDEX($V$71:$AK$326,BE41,BF41)>0,INDEX($V$71:$AK$326,BE41,BF41),"") ->  | BI41: =IFERROR(RANK(BH41,$BH$24:$BH$4119,1)+COUNTIF($BH$24:BH41,BH41)-1,"") ->  | BJ41: =IFERROR(INDEX($BH$24:$BH$4119,MATCH(SMALL($BI$24:$BI$4119,ROWS($BJ$24:BJ41)),$BI$24:$BI$4119,0))," ") -> 485.45 | BK41: =IF(ISNUMBER(BJ41),(IF(COUNTIF( BJ$24:BJ41, BJ41 )=1,BJ41,"")),"") ->  | BL41: =IFERROR(RANK(BK41,$BK$24:$BK$4119,1)+COUNTIF($BK$24:BK41,BK41)-1,"") ->  | BM41: =IFERROR(INDEX($BK$24:$BK$4119,MATCH(SMALL($BL$24:$BL$4119,ROWS($BM$24:BM41)),$BL$24:$BL$4119,0))," ") -> 486.875 | BO41: 5 | BP41: 484.725 | BQ41: 33.625 | BR41: 34.125 | BS41: 34.85 | BT41: 35.775 | BU41: 36.9 | BV41: 37.725 | BW41: 38.35 | BX41: 38.75 | BY41: 63.4 | BZ41: 63.925 | CA41: 64.95 | CB41: 66.3 | CC41: 67.025 | CD41: 67.425 | CE41: 68.25 | CF41: 68.875 | CI41: 5 | CJ41: 484.725 | CK41: 0 | CL41: 0 | CM41: 0 | CN41: 0 | CO41: 0 | CP41: 0 | CQ41: 0 | CR41: 0 | CS41: 0 | CT41: 0 | CU41: 0 | CV41: 0 | CW41: 0 | CX41: 0 | CY41: 0 | CZ41: 0
J42: Paul McDermott | P42: 489.975 | Q42: 459.25 | R42: 487.525 | U42: T 12 | V42: 485.675 | W42: 486.675 | X42: 488.125 | Y42: 489.975 | Z42: 492.225 | AA42: 493.875 | AB42: 495.125 | AC42: 495.925 | AD42: 545.225 | AE42: 546.275 | AF42: =IF(AND($U22>0,AF412>0),MIN($U22,AF412)-ABS(AF412-$U22),"") -> 548.325 | AH42: =IF(AND($U22>0,AH412>0),MAX($U22,AH412)+ABS(AH412-$U22),"") -> 552.475 | AI42: =IF(AND($U22>0,AI412>0),MAX($U22,AI412)+ABS(AI412-$U22),"") -> 553.275 | AJ42: =IF(AND($U22>0,AJ412>0),MAX($U22,AJ412)+ABS(AJ412-$U22),"") -> 554.925 | AK42: =IF(AND($U22>0,AK412>0),MAX($U22,AK412)+ABS(AK412-$U22),"") -> 556.175 | AM42: 3 | AN42: 2 | AO42: 19 | AP42: =IF(INDEX($V$31:$AK$46,AM42,AN42)>0,INDEX($V$31:$AK$46,AM42,AN42),"") -> 518.125 | AQ42: =IFERROR(RANK(AP42,$AP$24:$AP$279,1)+COUNTIF($AP$24:AP42,AP42)-1,"") -> 83 | AR42: =IFERROR(INDEX($AP$24:$AP$279,MATCH(SMALL($AQ$24:$AQ$279,ROWS($AR$24:AR42)),$AQ$24:$AQ$279,0))," ") -> 488.05 | AS42: =IF(ISNUMBER(AR42),(IF(COUNTIF( AR$24:AR42, AR42 )=1,AR42,"")),"") -> 488.05 | AT42: =IFERROR(RANK(AS42,$AS$24:$AS$279,1)+COUNTIF($AS$24:AS42,AS42)-1,"") -> 16 | AU42: =IFERROR(INDEX($AS$24:$AS$279,MATCH(SMALL($AT$24:$AT$279,ROWS(AU$24:$AU42)),$AT$24:$AT$279,0))," ") -> 488.85 | AW42: 19 | AX42: =IF(INDEX($V$51:$AK$66,AM42,AN42)>0,INDEX($V$51:$AK$66,AM42,AN42),"") -> 517.4 | AY42: =IFERROR(RANK(AX42,$AX$24:$AX$279,1)+COUNTIF($AX$24:AX42,AX42)-1,"") -> 84 | AZ42: =IFERROR(INDEX($AX$24:$AX$279,MATCH(SMALL($AY$24:$AY$279,ROWS($AZ$24:AZ42)),$AY$24:$AY$279,0))," ") -> 457.2 | BA42: =IF(ISNUMBER(AZ42),(IF(COUNTIF( AZ$24:AZ42, AZ42 )=1,AZ42,"")),"") -> 457.2 | BB42: =IFERROR(RANK(BA42,$BA$24:$BA$279,1)+COUNTIF($BA$24:BA42,BA42)-1,"") -> 19 | BC42: =IFERROR(INDEX($BA$24:$BA$279,MATCH(SMALL($BB$24:$BB$279,ROWS($BC$24:BC42)),$BB$24:$BB$279,0))," ") -> 457.2 | BE42: 19 | BF42: 1 | BG42: 19 | BH42: =IF(INDEX($V$71:$AK$326,BE42,BF42)>0,INDEX($V$71:$AK$326,BE42,BF42),"") -> 517.625 | BI42: =IFERROR(RANK(BH42,$BH$24:$BH$4119,1)+COUNTIF($BH$24:BH42,BH42)-1,"") -> 665 | BJ42: =IFERROR(INDEX($BH$24:$BH$4119,MATCH(SMALL($BI$24:$BI$4119,ROWS($BJ$24:BJ42)),$BI$24:$BI$4119,0))," ") -> 485.75 | BK42: =IF(ISNUMBER(BJ42),(IF(COUNTIF( BJ$24:BJ42, BJ42 )=1,BJ42,"")),"") -> 485.75 | BL42: =IFERROR(RANK(BK42,$BK$24:$BK$4119,1)+COUNTIF($BK$24:BK42,BK42)-1,"") -> 9 | BM42: =IFERROR(INDEX($BK$24:$BK$4119,MATCH(SMALL($BL$24:$BL$4119,ROWS($BM$24:BM42)),$BL$24:$BL$4119,0))," ") -> 486.9 | BO42: 6 | BP42: 484.95 | BQ42: 33.4 | BR42: 33.9 | BS42: 34.625 | BT42: 35.55 | BU42: 36.675 | BV42: 37.5 | BW42: 38.125 | BX42: 38.525 | BY42: 63.175 | BZ42: 63.7 | CA42: 64.725 | CB42: 66.075 | CC42: 66.8 | CD42: 67.2 | CE42: 68.025 | CF42: 68.65 | CI42: 6 | CJ42: 484.95 | CK42: 0 | CL42: 0 | CM42: 0 | CN42: 0 | CO42: 0 | CP42: 0 | CQ42: 0 | CR42: 0 | CS42: 0 | CT42: 0 | CU42: 0 | CV42: 0 | CW42: 0 | CX42: 0 | CY42: 0 | CZ42: 0
J43: http://rfcoordinationnyc.com | P43: 490.275 | Q43: 459.375 | R43: 487.6 | U43: T 13 | V43: 484.95 | W43: 485.95 | X43: 487.4 | Y43: 489.25 | Z43: 491.5 | AA43: 493.15 | AB43: 494.4 | AC43: 495.2 | AD43: 544.5 | AE43: 545.55 | AF43: =IF(AND($U23>0,AF413>0),MIN($U23,AF413)-ABS(AF413-$U23),"") -> 547.6 | AG43: =IF(AND($U23>0,AG413>0),MIN($U23,AG413)-ABS(AG413-$U23),"") -> 550.3 | AI43: =IF(AND($U23>0,AI413>0),MAX($U23,AI413)+ABS(AI413-$U23),"") -> 552.55 | AJ43: =IF(AND($U23>0,AJ413>0),MAX($U23,AJ413)+ABS(AJ413-$U23),"") -> 554.2 | AK43: =IF(AND($U23>0,AK413>0),MAX($U23,AK413)+ABS(AK413-$U23),"") -> 555.45 | AM43: 4 | AN43: 2 | AO43: 20 | AP43: =IF(INDEX($V$31:$AK$46,AM43,AN43)>0,INDEX($V$31:$AK$46,AM43,AN43),"") -> 517.2 | AQ43: =IFERROR(RANK(AP43,$AP$24:$AP$279,1)+COUNTIF($AP$24:AP43,AP43)-1,"") -> 78 | AR43: =IFERROR(INDEX($AP$24:$AP$279,MATCH(SMALL($AQ$24:$AQ$279,ROWS($AR$24:AR43)),$AQ$24:$AQ$279,0))," ") -> 488.125 | AS43: =IF(ISNUMBER(AR43),(IF(COUNTIF( AR$24:AR43, AR43 )=1,AR43,"")),"") -> 488.125 | AT43: =IFERROR(RANK(AS43,$AS$24:$AS$279,1)+COUNTIF($AS$24:AS43,AS43)-1,"") -> 17 | AU43: =IFERROR(INDEX($AS$24:$AS$279,MATCH(SMALL($AT$24:$AT$279,ROWS(AU$24:$AU43)),$AT$24:$AT$279,0))," ") -> 489.05 | AW43: 20 | AX43: =IF(INDEX($V$51:$AK$66,AM43,AN43)>0,INDEX($V$51:$AK$66,AM43,AN43),"") -> 515.55 | AY43: =IFERROR(RANK(AX43,$AX$24:$AX$279,1)+COUNTIF($AX$24:AX43,AX43)-1,"") -> 80 | AZ43: =IFERROR(INDEX($AX$24:$AX$279,MATCH(SMALL($AY$24:$AY$279,ROWS($AZ$24:AZ43)),$AY$24:$AY$279,0))," ") -> 457.2 | BA43: =IF(ISNUMBER(AZ43),(IF(COUNTIF( AZ$24:AZ43, AZ43 )=1,AZ43,"")),"") ->  | BB43: =IFERROR(RANK(BA43,$BA$24:$BA$279,1)+COUNTIF($BA$24:BA43,BA43)-1,"") ->  | BC43: =IFERROR(INDEX($BA$24:$BA$279,MATCH(SMALL($BB$24:$BB$279,ROWS($BC$24:BC43)),$BB$24:$BB$279,0))," ") -> 457.675 | BE43: 20 | BF43: 1 | BG43: 20 | BH43: =IF(INDEX($V$71:$AK$326,BE43,BF43)>0,INDEX($V$71:$AK$326,BE43,BF43),"") -> 516.7 | BI43: =IFERROR(RANK(BH43,$BH$24:$BH$4119,1)+COUNTIF($BH$24:BH43,BH43)-1,"") -> 585 | BJ43: =IFERROR(INDEX($BH$24:$BH$4119,MATCH(SMALL($BI$24:$BI$4119,ROWS($BJ$24:BJ43)),$BI$24:$BI$4119,0))," ") -> 485.75 | BK43: =IF(ISNUMBER(BJ43),(IF(COUNTIF( BJ$24:BJ43, BJ43 )=1,BJ43,"")),"") ->  | BL43: =IFERROR(RANK(BK43,$BK$24:$BK$4119,1)+COUNTIF($BK$24:BK43,BK43)-1,"") ->  | BM43: =IFERROR(INDEX($BK$24:$BK$4119,MATCH(SMALL($BL$24:$BL$4119,ROWS($BM$24:BM43)),$BL$24:$BL$4119,0))," ") -> 487 | BO43: 7 | BP43: 485.55 | BQ43: 32.8 | BR43: 33.3 | BS43: 34.025 | BT43: 34.95 | BU43: 36.075 | BV43: 36.9 | BW43: 37.525 | BX43: 37.925 | BY43: 62.575 | BZ43: 63.1 | CA43: 64.125 | CB43: 65.475 | CC43: 66.2 | CD43: 66.6 | CE43: 67.425 | CF43: 68.05 | CI43: 7 | CJ43: 485.55 | CK43: 0 | CL43: 0 | CM43: 0 | CN43: 0 | CO43: 0 | CP43: 0 | CQ43: 0 | CR43: 0 | CS43: 0 | CT43: 0 | CU43: 0 | CV43: 0 | CW43: 0 | CX43: 0 | CY43: 0 | CZ43: 0
J44: thunderpaul@me.com | P44: 490.5 | Q44: 459.45 | R44: 487.7 | U44: T 14 | V44: 484.55 | W44: 485.55 | X44: 487 | Y44: 488.85 | Z44: 491.1 | AA44: 492.75 | AB44: 494 | AC44: 494.8 | AD44: 544.1 | AE44: 545.15 | AF44: =IF(AND($U24>0,AF414>0),MIN($U24,AF414)-ABS(AF414-$U24),"") -> 547.2 | AG44: =IF(AND($U24>0,AG414>0),MIN($U24,AG414)-ABS(AG414-$U24),"") -> 549.9 | AH44: =IF(AND($U24>0,AH414>0),MIN($U24,AH414)-ABS(AH414-$U24),"") -> 551.35 | AJ44: =IF(AND($U24>0,AJ414>0),MAX($U24,AJ414)+ABS(AJ414-$U24),"") -> 553.8 | AK44: =IF(AND($U24>0,AK414>0),MAX($U24,AK414)+ABS(AK414-$U24),"") -> 555.05 | AM44: 5 | AN44: 2 | AO44: 21 | AP44: =IF(INDEX($V$31:$AK$46,AM44,AN44)>0,INDEX($V$31:$AK$46,AM44,AN44),"") -> 516.075 | AQ44: =IFERROR(RANK(AP44,$AP$24:$AP$279,1)+COUNTIF($AP$24:AP44,AP44)-1,"") -> 73 | AR44: =IFERROR(INDEX($AP$24:$AP$279,MATCH(SMALL($AQ$24:$AQ$279,ROWS($AR$24:AR44)),$AQ$24:$AQ$279,0))," ") -> 488.575 | AS44: =IF(ISNUMBER(AR44),(IF(COUNTIF( AR$24:AR44, AR44 )=1,AR44,"")),"") -> 488.575 | AT44: =IFERROR(RANK(AS44,$AS$24:$AS$279,1)+COUNTIF($AS$24:AS44,AS44)-1,"") -> 18 | AU44: =IFERROR(INDEX($AS$24:$AS$279,MATCH(SMALL($AT$24:$AT$279,ROWS(AU$24:$AU44)),$AT$24:$AT$279,0))," ") -> 489.25 | AW44: 21 | AX44: =IF(INDEX($V$51:$AK$66,AM44,AN44)>0,INDEX($V$51:$AK$66,AM44,AN44),"") -> 513.3 | AY44: =IFERROR(RANK(AX44,$AX$24:$AX$279,1)+COUNTIF($AX$24:AX44,AX44)-1,"") -> 74 | AZ44: =IFERROR(INDEX($AX$24:$AX$279,MATCH(SMALL($AY$24:$AY$279,ROWS($AZ$24:AZ44)),$AY$24:$AY$279,0))," ") -> 457.675 | BA44: =IF(ISNUMBER(AZ44),(IF(COUNTIF( AZ$24:AZ44, AZ44 )=1,AZ44,"")),"") -> 457.675 | BB44: =IFERROR(RANK(BA44,$BA$24:$BA$279,1)+COUNTIF($BA$24:BA44,BA44)-1,"") -> 20 | BC44: =IFERROR(INDEX($BA$24:$BA$279,MATCH(SMALL($BB$24:$BB$279,ROWS($BC$24:BC44)),$BB$24:$BB$279,0))," ") -> 457.75 | BE44: 21 | BF44: 1 | BG44: 21 | BH44: =IF(INDEX($V$71:$AK$326,BE44,BF44)>0,INDEX($V$71:$AK$326,BE44,BF44),"") -> 515.575 | BI44: =IFERROR(RANK(BH44,$BH$24:$BH$4119,1)+COUNTIF($BH$24:BH44,BH44)-1,"") -> 521 | BJ44: =IFERROR(INDEX($BH$24:$BH$4119,MATCH(SMALL($BI$24:$BI$4119,ROWS($BJ$24:BJ44)),$BI$24:$BI$4119,0))," ") -> 485.775 | BK44: =IF(ISNUMBER(BJ44),(IF(COUNTIF( BJ$24:BJ44, BJ44 )=1,BJ44,"")),"") -> 485.775 | BL44: =IFERROR(RANK(BK44,$BK$24:$BK$4119,1)+COUNTIF($BK$24:BK44,BK44)-1,"") -> 10 | BM44: =IFERROR(INDEX($BK$24:$BK$4119,MATCH(SMALL($BL$24:$BL$4119,ROWS($BM$24:BM44)),$BL$24:$BL$4119,0))," ") -> 487.1 | BO44: 8 | BP44: 485.675 | BQ44: 32.675 | BR44: 33.175 | BS44: 33.9 | BT44: 34.825 | BU44: 35.95 | BV44: 36.775 | BW44: 37.4 | BX44: 37.8 | BY44: 62.45 | BZ44: 62.975 | CA44: 64 | CB44: 65.35 | CC44: 66.075 | CD44: 66.475 | CE44: 67.3 | CF44: 67.925 | CI44: 8 | CJ44: 485.675 | CK44: 0 | CL44: 0 | CM44: 0 | CN44: 0 | CO44: 0 | CP44: 0 | CQ44: 0 | CR44: 0 | CS44: 0 | CT44: 0 | CU44: 0 | CV44: 0 | CW44: 0 | CX44: 0 | CY44: 0 | CZ44: 0
P45: 491.025 | Q45: 460.15 | R45: 487.825 | U45: T 15 | V45: 483.725 | W45: 484.725 | X45: 486.175 | Y45: 488.025 | Z45: 490.275 | AA45: 491.925 | AB45: 493.175 | AC45: 493.975 | AD45: 543.275 | AE45: 544.325 | AF45: =IF(AND($U25>0,AF415>0),MIN($U25,AF415)-ABS(AF415-$U25),"") -> 546.375 | AG45: =IF(AND($U25>0,AG415>0),MIN($U25,AG415)-ABS(AG415-$U25),"") -> 549.075 | AH45: =IF(AND($U25>0,AH415>0),MIN($U25,AH415)-ABS(AH415-$U25),"") -> 550.525 | AI45: =IF(AND($U25>0,AI415>0),MIN($U25,AI415)-ABS(AI415-$U25),"") -> 551.325 | AK45: =IF(AND($U25>0,AK415>0),MAX($U25,AK415)+ABS(AK415-$U25),"") -> 554.225 | AM45: 6 | AN45: 2 | AO45: 22 | AP45: =IF(INDEX($V$31:$AK$46,AM45,AN45)>0,INDEX($V$31:$AK$46,AM45,AN45),"") -> 515.25 | AQ45: =IFERROR(RANK(AP45,$AP$24:$AP$279,1)+COUNTIF($AP$24:AP45,AP45)-1,"") -> 71 | AR45: =IFERROR(INDEX($AP$24:$AP$279,MATCH(SMALL($AQ$24:$AQ$279,ROWS($AR$24:AR45)),$AQ$24:$AQ$279,0))," ") -> 488.85 | AS45: =IF(ISNUMBER(AR45),(IF(COUNTIF( AR$24:AR45, AR45 )=1,AR45,"")),"") -> 488.85 | AT45: =IFERROR(RANK(AS45,$AS$24:$AS$279,1)+COUNTIF($AS$24:AS45,AS45)-1,"") -> 19 | AU45: =IFERROR(INDEX($AS$24:$AS$279,MATCH(SMALL($AT$24:$AT$279,ROWS(AU$24:$AU45)),$AT$24:$AT$279,0))," ") -> 489.475 | AW45: 22 | AX45: =IF(INDEX($V$51:$AK$66,AM45,AN45)>0,INDEX($V$51:$AK$66,AM45,AN45),"") -> 511.65 | AY45: =IFERROR(RANK(AX45,$AX$24:$AX$279,1)+COUNTIF($AX$24:AX45,AX45)-1,"") -> 70 | AZ45: =IFERROR(INDEX($AX$24:$AX$279,MATCH(SMALL($AY$24:$AY$279,ROWS($AZ$24:AZ45)),$AY$24:$AY$279,0))," ") -> 457.75 | BA45: =IF(ISNUMBER(AZ45),(IF(COUNTIF( AZ$24:AZ45, AZ45 )=1,AZ45,"")),"") -> 457.75 | BB45: =IFERROR(RANK(BA45,$BA$24:$BA$279,1)+COUNTIF($BA$24:BA45,BA45)-1,"") -> 21 | BC45: =IFERROR(INDEX($BA$24:$BA$279,MATCH(SMALL($BB$24:$BB$279,ROWS($BC$24:BC45)),$BB$24:$BB$279,0))," ") -> 458 | BE45: 22 | BF45: 1 | BG45: 22 | BH45: =IF(INDEX($V$71:$AK$326,BE45,BF45)>0,INDEX($V$71:$AK$326,BE45,BF45),"") -> 514.75 | BI45: =IFERROR(RANK(BH45,$BH$24:$BH$4119,1)+COUNTIF($BH$24:BH45,BH45)-1,"") -> 483 | BJ45: =IFERROR(INDEX($BH$24:$BH$4119,MATCH(SMALL($BI$24:$BI$4119,ROWS($BJ$24:BJ45)),$BI$24:$BI$4119,0))," ") -> 485.775 | BK45: =IF(ISNUMBER(BJ45),(IF(COUNTIF( BJ$24:BJ45, BJ45 )=1,BJ45,"")),"") ->  | BL45: =IFERROR(RANK(BK45,$BK$24:$BK$4119,1)+COUNTIF($BK$24:BK45,BK45)-1,"") ->  | BM45: =IFERROR(INDEX($BK$24:$BK$4119,MATCH(SMALL($BL$24:$BL$4119,ROWS($BM$24:BM45)),$BL$24:$BL$4119,0))," ") -> 487.2 | BO45: 9 | BP45: 485.95 | BQ45: 32.4 | BR45: 32.9 | BS45: 33.625 | BT45: 34.55 | BU45: 35.675 | BV45: 36.5 | BW45: 37.125 | BX45: 37.525 | BY45: 62.175 | BZ45: 62.7 | CA45: 63.725 | CB45: 65.075 | CC45: 65.8 | CD45: 66.2 | CE45: 67.025 | CF45: 67.65 | CI45: 9 | CJ45: 485.95 | CK45: 0 | CL45: 0 | CM45: 0 | CN45: 0 | CO45: 0 | CP45: 0 | CQ45: 0 | CR45: 0 | CS45: 0 | CT45: 0 | CU45: 0 | CV45: 0 | CW45: 0 | CX45: 0 | CY45: 0 | CZ45: 0
P46: 491.1 | Q46: 460.3 | R46: 487.925 | U46: T 16 | V46: 483.1 | W46: 484.1 | X46: 485.55 | Y46: 487.4 | Z46: 489.65 | AA46: 491.3 | AB46: 492.55 | AC46: 493.35 | AD46: 542.65 | AE46: 543.7 | AF46: =IF(AND($U26>0,AF416>0),MIN($U26,AF416)-ABS(AF416-$U26),"") -> 545.75 | AG46: =IF(AND($U26>0,AG416>0),MIN($U26,AG416)-ABS(AG416-$U26),"") -> 548.45 | AH46: =IF(AND($U26>0,AH416>0),MIN($U26,AH416)-ABS(AH416-$U26),"") -> 549.9 | AI46: =IF(AND($U26>0,AI416>0),MIN($U26,AI416)-ABS(AI416-$U26),"") -> 550.7 | AJ46: =IF(AND($U26>0,AJ416>0),MIN($U26,AJ416)-ABS(AJ416-$U26),"") -> 552.35 | AM46: 7 | AN46: 2 | AO46: 23 | AP46: =IF(INDEX($V$31:$AK$46,AM46,AN46)>0,INDEX($V$31:$AK$46,AM46,AN46),"") -> 514.625 | AQ46: =IFERROR(RANK(AP46,$AP$24:$AP$279,1)+COUNTIF($AP$24:AP46,AP46)-1,"") -> 69 | AR46: =IFERROR(INDEX($AP$24:$AP$279,MATCH(SMALL($AQ$24:$AQ$279,ROWS($AR$24:AR46)),$AQ$24:$AQ$279,0))," ") -> 489.05 | AS46: =IF(ISNUMBER(AR46),(IF(COUNTIF( AR$24:AR46, AR46 )=1,AR46,"")),"") -> 489.05 | AT46: =IFERROR(RANK(AS46,$AS$24:$AS$279,1)+COUNTIF($AS$24:AS46,AS46)-1,"") -> 20 | AU46: =IFERROR(INDEX($AS$24:$AS$279,MATCH(SMALL($AT$24:$AT$279,ROWS(AU$24:$AU46)),$AT$24:$AT$279,0))," ") -> 489.575 | AW46: 23 | AX46: =IF(INDEX($V$51:$AK$66,AM46,AN46)>0,INDEX($V$51:$AK$66,AM46,AN46),"") -> 510.4 | AY46: =IFERROR(RANK(AX46,$AX$24:$AX$279,1)+COUNTIF($AX$24:AX46,AX46)-1,"") -> 69 | AZ46: =IFERROR(INDEX($AX$24:$AX$279,MATCH(SMALL($AY$24:$AY$279,ROWS($AZ$24:AZ46)),$AY$24:$AY$279,0))," ") -> 458 | BA46: =IF(ISNUMBER(AZ46),(IF(COUNTIF( AZ$24:AZ46, AZ46 )=1,AZ46,"")),"") -> 458 | BB46: =IFERROR(RANK(BA46,$BA$24:$BA$279,1)+COUNTIF($BA$24:BA46,BA46)-1,"") -> 22 | BC46: =IFERROR(INDEX($BA$24:$BA$279,MATCH(SMALL($BB$24:$BB$279,ROWS($BC$24:BC46)),$BB$24:$BB$279,0))," ") -> 458.8 | BE46: 23 | BF46: 1 | BG46: 23 | BH46: =IF(INDEX($V$71:$AK$326,BE46,BF46)>0,INDEX($V$71:$AK$326,BE46,BF46),"") -> 514.125 | BI46: =IFERROR(RANK(BH46,$BH$24:$BH$4119,1)+COUNTIF($BH$24:BH46,BH46)-1,"") -> 467 | BJ46: =IFERROR(INDEX($BH$24:$BH$4119,MATCH(SMALL($BI$24:$BI$4119,ROWS($BJ$24:BJ46)),$BI$24:$BI$4119,0))," ") -> 485.875 | BK46: =IF(ISNUMBER(BJ46),(IF(COUNTIF( BJ$24:BJ46, BJ46 )=1,BJ46,"")),"") -> 485.875 | BL46: =IFERROR(RANK(BK46,$BK$24:$BK$4119,1)+COUNTIF($BK$24:BK46,BK46)-1,"") -> 11 | BM46: =IFERROR(INDEX($BK$24:$BK$4119,MATCH(SMALL($BL$24:$BL$4119,ROWS($BM$24:BM46)),$BL$24:$BL$4119,0))," ") -> 487.4 | BO46: 10 | BP46: 486.175 | BQ46: 32.175 | BR46: 32.675 | BS46: 33.4 | BT46: 34.325 | BU46: 35.45 | BV46: 36.275 | BW46: 36.9 | BX46: 37.3 | BY46: 61.95 | BZ46: 62.475 | CA46: 63.5 | CB46: 64.85 | CC46: 65.575 | CD46: 65.975 | CE46: 66.8 | CF46: 67.425 | CI46: 10 | CJ46: 486.175 | CK46: 0 | CL46: 0 | CM46: 0 | CN46: 0 | CO46: 0 | CP46: 0 | CQ46: 0 | CR46: 0 | CS46: 0 | CT46: 0 | CU46: 0 | CV46: 0 | CW46: 0 | CX46: 0 | CY46: 0 | CZ46: 0
B47: Enter user frequencies here. | J47: Enter up to 16 device frequencies in the Device Frequencies table. Enter Channel to Channel and Channel to Intermod spacing in the table above. Included are presets for default spacing in popular frequency coordination software. In the Potential Generated Intermods table Min & Max values are available to help determine possible impact of devices on adjacent bandwidth. The Min.Max values can be used to determine guard bands in adjacent bandwidth for Tx devices that have a high probability of creating strong intermods. Macros are also available to copy intermod frequencies for import into frequency coordination software. Comments or suggestions are welcome | P47: 491.3 | Q47: 460.575 | R47: 488.225 | AM47: 8 | AN47: 2 | AO47: 24 | AP47: =IF(INDEX($V$31:$AK$46,AM47,AN47)>0,INDEX($V$31:$AK$46,AM47,AN47),"") -> 514.225 | AQ47: =IFERROR(RANK(AP47,$AP$24:$AP$279,1)+COUNTIF($AP$24:AP47,AP47)-1,"") -> 67 | AR47: =IFERROR(INDEX($AP$24:$AP$279,MATCH(SMALL($AQ$24:$AQ$279,ROWS($AR$24:AR47)),$AQ$24:$AQ$279,0))," ") -> 489.25 | AS47: =IF(ISNUMBER(AR47),(IF(COUNTIF( AR$24:AR47, AR47 )=1,AR47,"")),"") -> 489.25 | AT47: =IFERROR(RANK(AS47,$AS$24:$AS$279,1)+COUNTIF($AS$24:AS47,AS47)-1,"") -> 21 | AU47: =IFERROR(INDEX($AS$24:$AS$279,MATCH(SMALL($AT$24:$AT$279,ROWS(AU$24:$AU47)),$AT$24:$AT$279,0))," ") -> 489.65 | AW47: 24 | AX47: =IF(INDEX($V$51:$AK$66,AM47,AN47)>0,INDEX($V$51:$AK$66,AM47,AN47),"") -> 509.6 | AY47: =IFERROR(RANK(AX47,$AX$24:$AX$279,1)+COUNTIF($AX$24:AX47,AX47)-1,"") -> 67 | AZ47: =IFERROR(INDEX($AX$24:$AX$279,MATCH(SMALL($AY$24:$AY$279,ROWS($AZ$24:AZ47)),$AY$24:$AY$279,0))," ") -> 458.8 | BA47: =IF(ISNUMBER(AZ47),(IF(COUNTIF( AZ$24:AZ47, AZ47 )=1,AZ47,"")),"") -> 458.8 | BB47: =IFERROR(RANK(BA47,$BA$24:$BA$279,1)+COUNTIF($BA$24:BA47,BA47)-1,"") -> 23 | BC47: =IFERROR(INDEX($BA$24:$BA$279,MATCH(SMALL($BB$24:$BB$279,ROWS($BC$24:BC47)),$BB$24:$BB$279,0))," ") -> 458.925 | BE47: 24 | BF47: 1 | BG47: 24 | BH47: =IF(INDEX($V$71:$AK$326,BE47,BF47)>0,INDEX($V$71:$AK$326,BE47,BF47),"") -> 513.725 | BI47: =IFERROR(RANK(BH47,$BH$24:$BH$4119,1)+COUNTIF($BH$24:BH47,BH47)-1,"") -> 457 | BJ47: =IFERROR(INDEX($BH$24:$BH$4119,MATCH(SMALL($BI$24:$BI$4119,ROWS($BJ$24:BJ47)),$BI$24:$BI$4119,0))," ") -> 485.875 | BK47: =IF(ISNUMBER(BJ47),(IF(COUNTIF( BJ$24:BJ47, BJ47 )=1,BJ47,"")),"") ->  | BL47: =IFERROR(RANK(BK47,$BK$24:$BK$4119,1)+COUNTIF($BK$24:BK47,BK47)-1,"") ->  | BM47: =IFERROR(INDEX($BK$24:$BK$4119,MATCH(SMALL($BL$24:$BL$4119,ROWS($BM$24:BM47)),$BL$24:$BL$4119,0))," ") -> 487.5 | BO47: 11 | BP47: 486.675 | BQ47: 31.675 | BR47: 32.175 | BS47: 32.9 | BT47: 33.825 | BU47: 34.95 | BV47: 35.775 | BW47: 36.4 | BX47: 36.8 | BY47: 61.45 | BZ47: 61.975 | CA47: 63 | CB47: 64.35 | CC47: 65.075 | CD47: 65.475 | CE47: 66.3 | CF47: 66.925 | CI47: 11 | CJ47: 486.675 | CK47: 0 | CL47: 0 | CM47: 0 | CN47: 0 | CO47: 0 | CP47: 0 | CQ47: 0 | CR47: 0 | CS47: 0 | CT47: 0 | CU47: 0 | CV47: 0 | CW47: 0 | CX47: 0 | CY47: 0 | CZ47: 0
P48: 491.325 | Q48: 461.375 | R48: 488.25 | AM48: 9 | AN48: 2 | AO48: 25 | AP48: =IF(INDEX($V$31:$AK$46,AM48,AN48)>0,INDEX($V$31:$AK$46,AM48,AN48),"") -> 489.575 | AQ48: =IFERROR(RANK(AP48,$AP$24:$AP$279,1)+COUNTIF($AP$24:AP48,AP48)-1,"") -> 26 | AR48: =IFERROR(INDEX($AP$24:$AP$279,MATCH(SMALL($AQ$24:$AQ$279,ROWS($AR$24:AR48)),$AQ$24:$AQ$279,0))," ") -> 489.475 | AS48: =IF(ISNUMBER(AR48),(IF(COUNTIF( AR$24:AR48, AR48 )=1,AR48,"")),"") -> 489.475 | AT48: =IFERROR(RANK(AS48,$AS$24:$AS$279,1)+COUNTIF($AS$24:AS48,AS48)-1,"") -> 22 | AU48: =IFERROR(INDEX($AS$24:$AS$279,MATCH(SMALL($AT$24:$AT$279,ROWS(AU$24:$AU48)),$AT$24:$AT$279,0))," ") -> 489.975 | AW48: 25 | AX48: =IF(INDEX($V$51:$AK$66,AM48,AN48)>0,INDEX($V$51:$AK$66,AM48,AN48),"") -> 460.3 | AY48: =IFERROR(RANK(AX48,$AX$24:$AX$279,1)+COUNTIF($AX$24:AX48,AX48)-1,"") -> 30 | AZ48: =IFERROR(INDEX($AX$24:$AX$279,MATCH(SMALL($AY$24:$AY$279,ROWS($AZ$24:AZ48)),$AY$24:$AY$279,0))," ") -> 458.925 | BA48: =IF(ISNUMBER(AZ48),(IF(COUNTIF( AZ$24:AZ48, AZ48 )=1,AZ48,"")),"") -> 458.925 | BB48: =IFERROR(RANK(BA48,$BA$24:$BA$279,1)+COUNTIF($BA$24:BA48,BA48)-1,"") -> 24 | BC48: =IFERROR(INDEX($BA$24:$BA$279,MATCH(SMALL($BB$24:$BB$279,ROWS($BC$24:BC48)),$BB$24:$BB$279,0))," ") -> 459.25 | BE48: 25 | BF48: 1 | BG48: 25 | BH48: =IF(INDEX($V$71:$AK$326,BE48,BF48)>0,INDEX($V$71:$AK$326,BE48,BF48),"") -> 489.075 | BI48: =IFERROR(RANK(BH48,$BH$24:$BH$4119,1)+COUNTIF($BH$24:BH48,BH48)-1,"") -> 127 | BJ48: =IFERROR(INDEX($BH$24:$BH$4119,MATCH(SMALL($BI$24:$BI$4119,ROWS($BJ$24:BJ48)),$BI$24:$BI$4119,0))," ") -> 486.175 | BK48: =IF(ISNUMBER(BJ48),(IF(COUNTIF( BJ$24:BJ48, BJ48 )=1,BJ48,"")),"") -> 486.175 | BL48: =IFERROR(RANK(BK48,$BK$24:$BK$4119,1)+COUNTIF($BK$24:BK48,BK48)-1,"") -> 12 | BM48: =IFERROR(INDEX($BK$24:$BK$4119,MATCH(SMALL($BL$24:$BL$4119,ROWS($BM$24:BM48)),$BL$24:$BL$4119,0))," ") -> 487.525 | BO48: 12 | BP48: 487 | BQ48: 31.35 | BR48: 31.85 | BS48: 32.575 | BT48: 33.5 | BU48: 34.625 | BV48: 35.45 | BW48: 36.075 | BX48: 36.475 | BY48: 61.125 | BZ48: 61.65 | CA48: 62.675 | CB48: 64.025 | CC48: 64.75 | CD48: 65.15 | CE48: 65.975 | CF48: 66.6 | CI48: 12 | CJ48: 487 | CK48: 0 | CL48: 0 | CM48: 0 | CN48: 0 | CO48: 0 | CP48: 0 | CQ48: 0 | CR48: 0 | CS48: 0 | CT48: 0 | CU48: 0 | CV48: 0 | CW48: 0 | CX48: 0 | CY48: 0 | CZ48: 0
B49: User 1 | C49: User 2 | D49: User 3 | P49: 491.5 | Q49: 461.4 | R49: 488.325 | T49: Two Tone 5th Order Intermodulation Products | AM49: 10 | AN49: 2 | AO49: 26 | AP49: =IF(INDEX($V$31:$AK$46,AM49,AN49)>0,INDEX($V$31:$AK$46,AM49,AN49),"") -> 489.05 | AQ49: =IFERROR(RANK(AP49,$AP$24:$AP$279,1)+COUNTIF($AP$24:AP49,AP49)-1,"") -> 23 | AR49: =IFERROR(INDEX($AP$24:$AP$279,MATCH(SMALL($AQ$24:$AQ$279,ROWS($AR$24:AR49)),$AQ$24:$AQ$279,0))," ") -> 489.575 | AS49: =IF(ISNUMBER(AR49),(IF(COUNTIF( AR$24:AR49, AR49 )=1,AR49,"")),"") -> 489.575 | AT49: =IFERROR(RANK(AS49,$AS$24:$AS$279,1)+COUNTIF($AS$24:AS49,AS49)-1,"") -> 23 | AU49: =IFERROR(INDEX($AS$24:$AS$279,MATCH(SMALL($AT$24:$AT$279,ROWS(AU$24:$AU49)),$AT$24:$AT$279,0))," ") -> 490.275 | AW49: 26 | AX49: =IF(INDEX($V$51:$AK$66,AM49,AN49)>0,INDEX($V$51:$AK$66,AM49,AN49),"") -> 459.25 | AY49: =IFERROR(RANK(AX49,$AX$24:$AX$279,1)+COUNTIF($AX$24:AX49,AX49)-1,"") -> 26 | AZ49: =IFERROR(INDEX($AX$24:$AX$279,MATCH(SMALL($AY$24:$AY$279,ROWS($AZ$24:AZ49)),$AY$24:$AY$279,0))," ") -> 459.25 | BA49: =IF(ISNUMBER(AZ49),(IF(COUNTIF( AZ$24:AZ49, AZ49 )=1,AZ49,"")),"") -> 459.25 | BB49: =IFERROR(RANK(BA49,$BA$24:$BA$279,1)+COUNTIF($BA$24:BA49,BA49)-1,"") -> 25 | BC49: =IFERROR(INDEX($BA$24:$BA$279,MATCH(SMALL($BB$24:$BB$279,ROWS($BC$24:BC49)),$BB$24:$BB$279,0))," ") -> 459.375 | BE49: 26 | BF49: 1 | BG49: 26 | BH49: =IF(INDEX($V$71:$AK$326,BE49,BF49)>0,INDEX($V$71:$AK$326,BE49,BF49),"") -> 488.55 | BI49: =IFERROR(RANK(BH49,$BH$24:$BH$4119,1)+COUNTIF($BH$24:BH49,BH49)-1,"") -> 101 | BJ49: =IFERROR(INDEX($BH$24:$BH$4119,MATCH(SMALL($BI$24:$BI$4119,ROWS($BJ$24:BJ49)),$BI$24:$BI$4119,0))," ") -> 486.175 | BK49: =IF(ISNUMBER(BJ49),(IF(COUNTIF( BJ$24:BJ49, BJ49 )=1,BJ49,"")),"") ->  | BL49: =IFERROR(RANK(BK49,$BK$24:$BK$4119,1)+COUNTIF($BK$24:BK49,BK49)-1,"") ->  | BM49: =IFERROR(INDEX($BK$24:$BK$4119,MATCH(SMALL($BL$24:$BL$4119,ROWS($BM$24:BM49)),$BL$24:$BL$4119,0))," ") -> 487.6 | BO49: 13 | BP49: 487.025 | BQ49: 31.325 | BR49: 31.825 | BS49: 32.55 | BT49: 33.475 | BU49: 34.6 | BV49: 35.425 | BW49: 36.05 | BX49: 36.45 | BY49: 61.1 | BZ49: 61.625 | CA49: 62.65 | CB49: 64 | CC49: 64.725 | CD49: 65.125 | CE49: 65.95 | CF49: 66.575 | CI49: 13 | CJ49: 487.025 | CK49: 0 | CL49: 0 | CM49: 0 | CN49: 0 | CO49: 0 | CP49: 0 | CQ49: 0 | CR49: 0 | CS49: 0 | CT49: 0 | CU49: 0 | CV49: 0 | CW49: 0 | CX49: 0 | CY49: 0 | CZ49: 0
B50: enter name | C50: enter name | D50: enter name | P50: 491.925 | Q50: 461.425 | R50: 488.425 | T50: 2T5O | V50: T 1 | W50: T 2 | X50: T 3 | Y50: T 4 | Z50: T 5 | AA50: T 6 | AB50: T 7 | AC50: T 8 | AD50: T 9 | AE50: T 10 | AF50: T 11 | AG50: T 12 | AH50: T 13 | AI50: T 14 | AJ50: T 15 | AK50: T 16 | AM50: 11 | AN50: 2 | AO50: 27 | AP50: =IF(INDEX($V$31:$AK$46,AM50,AN50)>0,INDEX($V$31:$AK$46,AM50,AN50),"") -> 488.025 | AQ50: =IFERROR(RANK(AP50,$AP$24:$AP$279,1)+COUNTIF($AP$24:AP50,AP50)-1,"") -> 18 | AR50: =IFERROR(INDEX($AP$24:$AP$279,MATCH(SMALL($AQ$24:$AQ$279,ROWS($AR$24:AR50)),$AQ$24:$AQ$279,0))," ") -> 489.65 | AS50: =IF(ISNUMBER(AR50),(IF(COUNTIF( AR$24:AR50, AR50 )=1,AR50,"")),"") -> 489.65 | AT50: =IFERROR(RANK(AS50,$AS$24:$AS$279,1)+COUNTIF($AS$24:AS50,AS50)-1,"") -> 24 | AU50: =IFERROR(INDEX($AS$24:$AS$279,MATCH(SMALL($AT$24:$AT$279,ROWS(AU$24:$AU50)),$AT$24:$AT$279,0))," ") -> 490.5 | AW50: 27 | AX50: =IF(INDEX($V$51:$AK$66,AM50,AN50)>0,INDEX($V$51:$AK$66,AM50,AN50),"") -> 457.2 | AY50: =IFERROR(RANK(AX50,$AX$24:$AX$279,1)+COUNTIF($AX$24:AX50,AX50)-1,"") -> 20 | AZ50: =IFERROR(INDEX($AX$24:$AX$279,MATCH(SMALL($AY$24:$AY$279,ROWS($AZ$24:AZ50)),$AY$24:$AY$279,0))," ") -> 459.375 | BA50: =IF(ISNUMBER(AZ50),(IF(COUNTIF( AZ$24:AZ50, AZ50 )=1,AZ50,"")),"") -> 459.375 | BB50: =IFERROR(RANK(BA50,$BA$24:$BA$279,1)+COUNTIF($BA$24:BA50,BA50)-1,"") -> 26 | BC50: =IFERROR(INDEX($BA$24:$BA$279,MATCH(SMALL($BB$24:$BB$279,ROWS($BC$24:BC50)),$BB$24:$BB$279,0))," ") -> 459.45 | BE50: 27 | BF50: 1 | BG50: 27 | BH50: =IF(INDEX($V$71:$AK$326,BE50,BF50)>0,INDEX($V$71:$AK$326,BE50,BF50),"") -> 487.525 | BI50: =IFERROR(RANK(BH50,$BH$24:$BH$4119,1)+COUNTIF($BH$24:BH50,BH50)-1,"") -> 59 | BJ50: =IFERROR(INDEX($BH$24:$BH$4119,MATCH(SMALL($BI$24:$BI$4119,ROWS($BJ$24:BJ50)),$BI$24:$BI$4119,0))," ") -> 486.175 | BK50: =IF(ISNUMBER(BJ50),(IF(COUNTIF( BJ$24:BJ50, BJ50 )=1,BJ50,"")),"") ->  | BL50: =IFERROR(RANK(BK50,$BK$24:$BK$4119,1)+COUNTIF($BK$24:BK50,BK50)-1,"") ->  | BM50: =IFERROR(INDEX($BK$24:$BK$4119,MATCH(SMALL($BL$24:$BL$4119,ROWS($BM$24:BM50)),$BL$24:$BL$4119,0))," ") -> 487.7 | BO50: 14 | BP50: 487.4 | BQ50: 30.95 | BR50: 31.45 | BS50: 32.175 | BT50: 33.1 | BU50: 34.225 | BV50: 35.05 | BW50: 35.675 | BX50: 36.075 | BY50: 60.725 | BZ50: 61.25 | CA50: 62.275 | CB50: 63.625 | CC50: 64.35 | CD50: 64.75 | CE50: 65.575 | CF50: 66.2 | CI50: 14 | CJ50: 487.4 | CK50: 0 | CL50: 0 | CM50: 0 | CN50: 0 | CO50: 0 | CP50: 0 | CQ50: 0 | CR50: 0 | CS50: 0 | CT50: 0 | CU50: 0 | CV50: 0 | CW50: 0 | CX50: 0 | CY50: 0 | CZ50: 0
P51: 492.225 | Q51: 462.025 | R51: 488.45 | U51: T 1 | W51: =IF(AND($U11>0,W401>0),MAX($U11,W401)+2*ABS(W401-$U11),"") -> 519.85 | X51: 522.025 | Y51: 524.8 | Z51: 528.175 | AA51: 530.65 | AB51: 532.525 | AC51: 533.725 | AD51: 607.675 | AE51: 609.25 | AF51: 612.325 | AG51: 616.375 | AH51: 618.55 | AI51: 619.75 | AJ51: 622.225 | AK51: 624.1 | AM51: 12 | AN51: 2 | AO51: 28 | AP51: =IF(INDEX($V$31:$AK$46,AM51,AN51)>0,INDEX($V$31:$AK$46,AM51,AN51),"") -> 486.675 | AQ51: =IFERROR(RANK(AP51,$AP$24:$AP$279,1)+COUNTIF($AP$24:AP51,AP51)-1,"") -> 12 | AR51: =IFERROR(INDEX($AP$24:$AP$279,MATCH(SMALL($AQ$24:$AQ$279,ROWS($AR$24:AR51)),$AQ$24:$AQ$279,0))," ") -> 489.975 | AS51: =IF(ISNUMBER(AR51),(IF(COUNTIF( AR$24:AR51, AR51 )=1,AR51,"")),"") -> 489.975 | AT51: =IFERROR(RANK(AS51,$AS$24:$AS$279,1)+COUNTIF($AS$24:AS51,AS51)-1,"") -> 25 | AU51: =IFERROR(INDEX($AS$24:$AS$279,MATCH(SMALL($AT$24:$AT$279,ROWS(AU$24:$AU51)),$AT$24:$AT$279,0))," ") -> 491.025 | AW51: 28 | AX51: =IF(INDEX($V$51:$AK$66,AM51,AN51)>0,INDEX($V$51:$AK$66,AM51,AN51),"") -> 454.5 | AY51: =IFERROR(RANK(AX51,$AX$24:$AX$279,1)+COUNTIF($AX$24:AX51,AX51)-1,"") -> 14 | AZ51: =IFERROR(INDEX($AX$24:$AX$279,MATCH(SMALL($AY$24:$AY$279,ROWS($AZ$24:AZ51)),$AY$24:$AY$279,0))," ") -> 459.45 | BA51: =IF(ISNUMBER(AZ51),(IF(COUNTIF( AZ$24:AZ51, AZ51 )=1,AZ51,"")),"") -> 459.45 | BB51: =IFERROR(RANK(BA51,$BA$24:$BA$279,1)+COUNTIF($BA$24:BA51,BA51)-1,"") -> 27 | BC51: =IFERROR(INDEX($BA$24:$BA$279,MATCH(SMALL($BB$24:$BB$279,ROWS($BC$24:BC51)),$BB$24:$BB$279,0))," ") -> 460.15 | BE51: 28 | BF51: 1 | BG51: 28 | BH51: =IF(INDEX($V$71:$AK$326,BE51,BF51)>0,INDEX($V$71:$AK$326,BE51,BF51),"") -> 486.175 | BI51: =IFERROR(RANK(BH51,$BH$24:$BH$4119,1)+COUNTIF($BH$24:BH51,BH51)-1,"") -> 25 | BJ51: =IFERROR(INDEX($BH$24:$BH$4119,MATCH(SMALL($BI$24:$BI$4119,ROWS($BJ$24:BJ51)),$BI$24:$BI$4119,0))," ") -> 486.175 | BK51: =IF(ISNUMBER(BJ51),(IF(COUNTIF( BJ$24:BJ51, BJ51 )=1,BJ51,"")),"") ->  | BL51: =IFERROR(RANK(BK51,$BK$24:$BK$4119,1)+COUNTIF($BK$24:BK51,BK51)-1,"") ->  | BM51: =IFERROR(INDEX($BK$24:$BK$4119,MATCH(SMALL($BL$24:$BL$4119,ROWS($BM$24:BM51)),$BL$24:$BL$4119,0))," ") -> 487.825 | BO51: 15 | BP51: 488.025 | BQ51: 30.325 | BR51: 30.825 | BS51: 31.55 | BT51: 32.475 | BU51: 33.6 | BV51: 34.425 | BW51: 35.05 | BX51: 35.45 | BY51: 60.1 | BZ51: 60.625 | CA51: 61.65 | CB51: 63 | CC51: 63.725 | CD51: 64.125 | CE51: 64.95 | CF51: 65.575 | CI51: 15 | CJ51: 488.025 | CK51: 0 | CL51: 0 | CM51: 0 | CN51: 0 | CO51: 0 | CP51: 0 | CQ51: 0 | CR51: 0 | CS51: 0 | CT51: 0 | CU51: 0 | CV51: 0 | CW51: 0 | CX51: 0 | CY51: 0 | CZ51: 0
P52: 492.35 | Q52: 462.15 | R52: 488.525 | U52: T 2 | V52: =IF(AND($U12>0,V402>0),MIN($U12,V402)-2*ABS(V402-$U12),"") -> 517.35 | X52: =IF(AND($U12>0,X402>0),MAX($U12,X402)+2*ABS(X402-$U12),"") -> 521.025 | Y52: 523.8 | Z52: 527.175 | AA52: 529.65 | AB52: 531.525 | AC52: 532.725 | AD52: 606.675 | AE52: 608.25 | AF52: 611.325 | AG52: 615.375 | AH52: 617.55 | AI52: 618.75 | AJ52: 621.225 | AK52: 623.1 | AM52: 13 | AN52: 2 | AO52: 29 | AP52: =IF(INDEX($V$31:$AK$46,AM52,AN52)>0,INDEX($V$31:$AK$46,AM52,AN52),"") -> 485.95 | AQ52: =IFERROR(RANK(AP52,$AP$24:$AP$279,1)+COUNTIF($AP$24:AP52,AP52)-1,"") -> 10 | AR52: =IFERROR(INDEX($AP$24:$AP$279,MATCH(SMALL($AQ$24:$AQ$279,ROWS($AR$24:AR52)),$AQ$24:$AQ$279,0))," ") -> 490.275 | AS52: =IF(ISNUMBER(AR52),(IF(COUNTIF( AR$24:AR52, AR52 )=1,AR52,"")),"") -> 490.275 | AT52: =IFERROR(RANK(AS52,$AS$24:$AS$279,1)+COUNTIF($AS$24:AS52,AS52)-1,"") -> 26 | AU52: =IFERROR(INDEX($AS$24:$AS$279,MATCH(SMALL($AT$24:$AT$279,ROWS(AU$24:$AU52)),$AT$24:$AT$279,0))," ") -> 491.1 | AW52: 29 | AX52: =IF(INDEX($V$51:$AK$66,AM52,AN52)>0,INDEX($V$51:$AK$66,AM52,AN52),"") -> 453.05 | AY52: =IFERROR(RANK(AX52,$AX$24:$AX$279,1)+COUNTIF($AX$24:AX52,AX52)-1,"") -> 11 | AZ52: =IFERROR(INDEX($AX$24:$AX$279,MATCH(SMALL($AY$24:$AY$279,ROWS($AZ$24:AZ52)),$AY$24:$AY$279,0))," ") -> 460.15 | BA52: =IF(ISNUMBER(AZ52),(IF(COUNTIF( AZ$24:AZ52, AZ52 )=1,AZ52,"")),"") -> 460.15 | BB52: =IFERROR(RANK(BA52,$BA$24:$BA$279,1)+COUNTIF($BA$24:BA52,BA52)-1,"") -> 28 | BC52: =IFERROR(INDEX($BA$24:$BA$279,MATCH(SMALL($BB$24:$BB$279,ROWS($BC$24:BC52)),$BB$24:$BB$279,0))," ") -> 460.3 | BE52: 29 | BF52: 1 | BG52: 29 | BH52: =IF(INDEX($V$71:$AK$326,BE52,BF52)>0,INDEX($V$71:$AK$326,BE52,BF52),"") -> 485.45 | BI52: =IFERROR(RANK(BH52,$BH$24:$BH$4119,1)+COUNTIF($BH$24:BH52,BH52)-1,"") -> 15 | BJ52: =IFERROR(INDEX($BH$24:$BH$4119,MATCH(SMALL($BI$24:$BI$4119,ROWS($BJ$24:BJ52)),$BI$24:$BI$4119,0))," ") -> 486.275 | BK52: =IF(ISNUMBER(BJ52),(IF(COUNTIF( BJ$24:BJ52, BJ52 )=1,BJ52,"")),"") -> 486.275 | BL52: =IFERROR(RANK(BK52,$BK$24:$BK$4119,1)+COUNTIF($BK$24:BK52,BK52)-1,"") -> 13 | BM52: =IFERROR(INDEX($BK$24:$BK$4119,MATCH(SMALL($BL$24:$BL$4119,ROWS($BM$24:BM52)),$BL$24:$BL$4119,0))," ") -> 487.925 | BO52: 16 | BP52: 488.05 | BQ52: 30.3 | BR52: 30.8 | BS52: 31.525 | BT52: 32.45 | BU52: 33.575 | BV52: 34.4 | BW52: 35.025 | BX52: 35.425 | BY52: 60.075 | BZ52: 60.6 | CA52: 61.625 | CB52: 62.975 | CC52: 63.7 | CD52: 64.1 | CE52: 64.925 | CF52: 65.55 | CI52: 16 | CJ52: 488.05 | CK52: 0 | CL52: 0 | CM52: 0 | CN52: 0 | CO52: 0 | CP52: 0 | CQ52: 0 | CR52: 0 | CS52: 0 | CT52: 0 | CU52: 0 | CV52: 0 | CW52: 0 | CX52: 0 | CY52: 0 | CZ52: 0
P53: 492.55 | Q53: 462.475 | R53: 488.55 | U53: T 3 | V53: 515.9 | W53: =IF(AND($U13>0,W403>0),MIN($U13,W403)-2*ABS(W403-$U13),"") -> 517.4 | Y53: =IF(AND($U13>0,Y403>0),MAX($U13,Y403)+2*ABS(Y403-$U13),"") -> 522.35 | Z53: 525.725 | AA53: 528.2 | AB53: 530.075 | AC53: 531.275 | AD53: 605.225 | AE53: 606.8 | AF53: 609.875 | AG53: 613.925 | AH53: 616.1 | AI53: 617.3 | AJ53: 619.775 | AK53: 621.65 | AM53: 14 | AN53: 2 | AO53: 30 | AP53: =IF(INDEX($V$31:$AK$46,AM53,AN53)>0,INDEX($V$31:$AK$46,AM53,AN53),"") -> 485.55 | AQ53: =IFERROR(RANK(AP53,$AP$24:$AP$279,1)+COUNTIF($AP$24:AP53,AP53)-1,"") -> 7 | AR53: =IFERROR(INDEX($AP$24:$AP$279,MATCH(SMALL($AQ$24:$AQ$279,ROWS($AR$24:AR53)),$AQ$24:$AQ$279,0))," ") -> 490.5 | AS53: =IF(ISNUMBER(AR53),(IF(COUNTIF( AR$24:AR53, AR53 )=1,AR53,"")),"") -> 490.5 | AT53: =IFERROR(RANK(AS53,$AS$24:$AS$279,1)+COUNTIF($AS$24:AS53,AS53)-1,"") -> 27 | AU53: =IFERROR(INDEX($AS$24:$AS$279,MATCH(SMALL($AT$24:$AT$279,ROWS(AU$24:$AU53)),$AT$24:$AT$279,0))," ") -> 491.3 | AW53: 30 | AX53: =IF(INDEX($V$51:$AK$66,AM53,AN53)>0,INDEX($V$51:$AK$66,AM53,AN53),"") -> 452.25 | AY53: =IFERROR(RANK(AX53,$AX$24:$AX$279,1)+COUNTIF($AX$24:AX53,AX53)-1,"") -> 8 | AZ53: =IFERROR(INDEX($AX$24:$AX$279,MATCH(SMALL($AY$24:$AY$279,ROWS($AZ$24:AZ53)),$AY$24:$AY$279,0))," ") -> 460.3 | BA53: =IF(ISNUMBER(AZ53),(IF(COUNTIF( AZ$24:AZ53, AZ53 )=1,AZ53,"")),"") -> 460.3 | BB53: =IFERROR(RANK(BA53,$BA$24:$BA$279,1)+COUNTIF($BA$24:BA53,BA53)-1,"") -> 29 | BC53: =IFERROR(INDEX($BA$24:$BA$279,MATCH(SMALL($BB$24:$BB$279,ROWS($BC$24:BC53)),$BB$24:$BB$279,0))," ") -> 460.575 | BE53: 30 | BF53: 1 | BG53: 30 | BH53: =IF(INDEX($V$71:$AK$326,BE53,BF53)>0,INDEX($V$71:$AK$326,BE53,BF53),"") -> 485.05 | BI53: =IFERROR(RANK(BH53,$BH$24:$BH$4119,1)+COUNTIF($BH$24:BH53,BH53)-1,"") -> 11 | BJ53: =IFERROR(INDEX($BH$24:$BH$4119,MATCH(SMALL($BI$24:$BI$4119,ROWS($BJ$24:BJ53)),$BI$24:$BI$4119,0))," ") -> 486.275 | BK53: =IF(ISNUMBER(BJ53),(IF(COUNTIF( BJ$24:BJ53, BJ53 )=1,BJ53,"")),"") ->  | BL53: =IFERROR(RANK(BK53,$BK$24:$BK$4119,1)+COUNTIF($BK$24:BK53,BK53)-1,"") ->  | BM53: =IFERROR(INDEX($BK$24:$BK$4119,MATCH(SMALL($BL$24:$BL$4119,ROWS($BM$24:BM53)),$BL$24:$BL$4119,0))," ") -> 488.225 | BO53: 17 | BP53: 488.125 | BQ53: 30.225 | BR53: 30.725 | BS53: 31.45 | BT53: 32.375 | BU53: 33.5 | BV53: 34.325 | BW53: 34.95 | BX53: 35.35 | BY53: 60 | BZ53: 60.525 | CA53: 61.55 | CB53: 62.9 | CC53: 63.625 | CD53: 64.025 | CE53: 64.85 | CF53: 65.475 | CI53: 17 | CJ53: 488.125 | CK53: 0 | CL53: 0 | CM53: 0 | CN53: 0 | CO53: 0 | CP53: 0 | CQ53: 0 | CR53: 0 | CS53: 0 | CT53: 0 | CU53: 0 | CV53: 0 | CW53: 0 | CX53: 0 | CY53: 0 | CZ53: 0
P54: 492.75 | Q54: 462.825 | R54: 488.65 | U54: T 4 | V54: 514.05 | W54: 515.55 | X54: =IF(AND($U14>0,X404>0),MIN($U14,X404)-2*ABS(X404-$U14),"") -> 517.725 | Z54: =IF(AND($U14>0,Z404>0),MAX($U14,Z404)+2*ABS(Z404-$U14),"") -> 523.875 | AA54: 526.35 | AB54: 528.225 | AC54: 529.425 | AD54: 603.375 | AE54: 604.95 | AF54: 608.025 | AG54: 612.075 | AH54: 614.25 | AI54: 615.45 | AJ54: 617.925 | AK54: 619.8 | AM54: 15 | AN54: 2 | AO54: 31 | AP54: =IF(INDEX($V$31:$AK$46,AM54,AN54)>0,INDEX($V$31:$AK$46,AM54,AN54),"") -> 484.725 | AQ54: =IFERROR(RANK(AP54,$AP$24:$AP$279,1)+COUNTIF($AP$24:AP54,AP54)-1,"") -> 5 | AR54: =IFERROR(INDEX($AP$24:$AP$279,MATCH(SMALL($AQ$24:$AQ$279,ROWS($AR$24:AR54)),$AQ$24:$AQ$279,0))," ") -> 491.025 | AS54: =IF(ISNUMBER(AR54),(IF(COUNTIF( AR$24:AR54, AR54 )=1,AR54,"")),"") -> 491.025 | AT54: =IFERROR(RANK(AS54,$AS$24:$AS$279,1)+COUNTIF($AS$24:AS54,AS54)-1,"") -> 28 | AU54: =IFERROR(INDEX($AS$24:$AS$279,MATCH(SMALL($AT$24:$AT$279,ROWS(AU$24:$AU54)),$AT$24:$AT$279,0))," ") -> 491.325 | AW54: 31 | AX54: =IF(INDEX($V$51:$AK$66,AM54,AN54)>0,INDEX($V$51:$AK$66,AM54,AN54),"") -> 450.6 | AY54: =IFERROR(RANK(AX54,$AX$24:$AX$279,1)+COUNTIF($AX$24:AX54,AX54)-1,"") -> 4 | AZ54: =IFERROR(INDEX($AX$24:$AX$279,MATCH(SMALL($AY$24:$AY$279,ROWS($AZ$24:AZ54)),$AY$24:$AY$279,0))," ") -> 460.575 | BA54: =IF(ISNUMBER(AZ54),(IF(COUNTIF( AZ$24:AZ54, AZ54 )=1,AZ54,"")),"") -> 460.575 | BB54: =IFERROR(RANK(BA54,$BA$24:$BA$279,1)+COUNTIF($BA$24:BA54,BA54)-1,"") -> 30 | BC54: =IFERROR(INDEX($BA$24:$BA$279,MATCH(SMALL($BB$24:$BB$279,ROWS($BC$24:BC54)),$BB$24:$BB$279,0))," ") -> 461.375 | BE54: 31 | BF54: 1 | BG54: 31 | BH54: =IF(INDEX($V$71:$AK$326,BE54,BF54)>0,INDEX($V$71:$AK$326,BE54,BF54),"") -> 484.225 | BI54: =IFERROR(RANK(BH54,$BH$24:$BH$4119,1)+COUNTIF($BH$24:BH54,BH54)-1,"") -> 3 | BJ54: =IFERROR(INDEX($BH$24:$BH$4119,MATCH(SMALL($BI$24:$BI$4119,ROWS($BJ$24:BJ54)),$BI$24:$BI$4119,0))," ") -> 486.375 | BK54: =IF(ISNUMBER(BJ54),(IF(COUNTIF( BJ$24:BJ54, BJ54 )=1,BJ54,"")),"") -> 486.375 | BL54: =IFERROR(RANK(BK54,$BK$24:$BK$4119,1)+COUNTIF($BK$24:BK54,BK54)-1,"") -> 14 | BM54: =IFERROR(INDEX($BK$24:$BK$4119,MATCH(SMALL($BL$24:$BL$4119,ROWS($BM$24:BM54)),$BL$24:$BL$4119,0))," ") -> 488.25 | BO54: 18 | BP54: 488.575 | BQ54: 29.775 | BR54: 30.275 | BS54: 31 | BT54: 31.925 | BU54: 33.05 | BV54: 33.875 | BW54: 34.5 | BX54: 34.9 | BY54: 59.55 | BZ54: 60.075 | CA54: 61.1 | CB54: 62.45 | CC54: 63.175 | CD54: 63.575 | CE54: 64.4 | CF54: 65.025 | CI54: 18 | CJ54: 488.575 | CK54: 0 | CL54: 0 | CM54: 0 | CN54: 0 | CO54: 0 | CP54: 0 | CQ54: 0 | CR54: 0 | CS54: 0 | CT54: 0 | CU54: 0 | CV54: 0 | CW54: 0 | CX54: 0 | CY54: 0 | CZ54: 0
P55: 492.875 | Q55: 463.05 | R55: 488.725 | U55: T 5 | V55: 511.8 | W55: 513.3 | X55: 515.475 | Y55: =IF(AND($U15>0,Y405>0),MIN($U15,Y405)-2*ABS(Y405-$U15),"") -> 518.25 | AA55: =IF(AND($U15>0,AA405>0),MAX($U15,AA405)+2*ABS(AA405-$U15),"") -> 524.1 | AB55: 525.975 | AC55: 527.175 | AD55: 601.125 | AE55: 602.7 | AF55: 605.775 | AG55: 609.825 | AH55: 612 | AI55: 613.2 | AJ55: 615.675 | AK55: 617.55 | AM55: 16 | AN55: 2 | AO55: 32 | AP55: =IF(INDEX($V$31:$AK$46,AM55,AN55)>0,INDEX($V$31:$AK$46,AM55,AN55),"") -> 484.1 | AQ55: =IFERROR(RANK(AP55,$AP$24:$AP$279,1)+COUNTIF($AP$24:AP55,AP55)-1,"") -> 3 | AR55: =IFERROR(INDEX($AP$24:$AP$279,MATCH(SMALL($AQ$24:$AQ$279,ROWS($AR$24:AR55)),$AQ$24:$AQ$279,0))," ") -> 491.1 | AS55: =IF(ISNUMBER(AR55),(IF(COUNTIF( AR$24:AR55, AR55 )=1,AR55,"")),"") -> 491.1 | AT55: =IFERROR(RANK(AS55,$AS$24:$AS$279,1)+COUNTIF($AS$24:AS55,AS55)-1,"") -> 29 | AU55: =IFERROR(INDEX($AS$24:$AS$279,MATCH(SMALL($AT$24:$AT$279,ROWS(AU$24:$AU55)),$AT$24:$AT$279,0))," ") -> 491.5 | AW55: 32 | AX55: =IF(INDEX($V$51:$AK$66,AM55,AN55)>0,INDEX($V$51:$AK$66,AM55,AN55),"") -> 449.35 | AY55: =IFERROR(RANK(AX55,$AX$24:$AX$279,1)+COUNTIF($AX$24:AX55,AX55)-1,"") -> 3 | AZ55: =IFERROR(INDEX($AX$24:$AX$279,MATCH(SMALL($AY$24:$AY$279,ROWS($AZ$24:AZ55)),$AY$24:$AY$279,0))," ") -> 461.375 | BA55: =IF(ISNUMBER(AZ55),(IF(COUNTIF( AZ$24:AZ55, AZ55 )=1,AZ55,"")),"") -> 461.375 | BB55: =IFERROR(RANK(BA55,$BA$24:$BA$279,1)+COUNTIF($BA$24:BA55,BA55)-1,"") -> 31 | BC55: =IFERROR(INDEX($BA$24:$BA$279,MATCH(SMALL($BB$24:$BB$279,ROWS($BC$24:BC55)),$BB$24:$BB$279,0))," ") -> 461.4 | BE55: 32 | BF55: 1 | BG55: 32 | BH55: =IF(INDEX($V$71:$AK$326,BE55,BF55)>0,INDEX($V$71:$AK$326,BE55,BF55),"") -> 483.6 | BI55: =IFERROR(RANK(BH55,$BH$24:$BH$4119,1)+COUNTIF($BH$24:BH55,BH55)-1,"") -> 1 | BJ55: =IFERROR(INDEX($BH$24:$BH$4119,MATCH(SMALL($BI$24:$BI$4119,ROWS($BJ$24:BJ55)),$BI$24:$BI$4119,0))," ") -> 486.375 | BK55: =IF(ISNUMBER(BJ55),(IF(COUNTIF( BJ$24:BJ55, BJ55 )=1,BJ55,"")),"") ->  | BL55: =IFERROR(RANK(BK55,$BK$24:$BK$4119,1)+COUNTIF($BK$24:BK55,BK55)-1,"") ->  | BM55: =IFERROR(INDEX($BK$24:$BK$4119,MATCH(SMALL($BL$24:$BL$4119,ROWS($BM$24:BM55)),$BL$24:$BL$4119,0))," ") -> 488.325 | BO55: 19 | BP55: 488.85 | BQ55: 29.5 | BR55: 30 | BS55: 30.725 | BT55: 31.65 | BU55: 32.775 | BV55: 33.6 | BW55: 34.225 | BX55: 34.625 | BY55: 59.275 | BZ55: 59.8 | CA55: 60.825 | CB55: 62.175 | CC55: 62.9 | CD55: 63.3 | CE55: 64.125 | CF55: 64.75 | CI55: 19 | CJ55: 488.85 | CK55: 0 | CL55: 0 | CM55: 0 | CN55: 0 | CO55: 0 | CP55: 0 | CQ55: 0 | CR55: 0 | CS55: 0 | CT55: 0 | CU55: 0 | CV55: 0 | CW55: 0 | CX55: 0 | CY55: 0 | CZ55: 0
P56: 493.15 | Q56: 463.225 | R56: 488.75 | U56: T 6 | V56: 510.15 | W56: 511.65 | X56: 513.825 | Y56: 516.6 | Z56: =IF(AND($U16>0,Z406>0),MIN($U16,Z406)-2*ABS(Z406-$U16),"") -> 519.975 | AB56: =IF(AND($U16>0,AB406>0),MAX($U16,AB406)+2*ABS(AB406-$U16),"") -> 524.325 | AC56: 525.525 | AD56: 599.475 | AE56: 601.05 | AF56: 604.125 | AG56: 608.175 | AH56: 610.35 | AI56: 611.55 | AJ56: 614.025 | AK56: 615.9 | AM56: 1 | AN56: 3 | AO56: 33 | AP56: =IF(INDEX($V$31:$AK$46,AM56,AN56)>0,INDEX($V$31:$AK$46,AM56,AN56),"") -> 520.8 | AQ56: =IFERROR(RANK(AP56,$AP$24:$AP$279,1)+COUNTIF($AP$24:AP56,AP56)-1,"") -> 92 | AR56: =IFERROR(INDEX($AP$24:$AP$279,MATCH(SMALL($AQ$24:$AQ$279,ROWS($AR$24:AR56)),$AQ$24:$AQ$279,0))," ") -> 491.3 | AS56: =IF(ISNUMBER(AR56),(IF(COUNTIF( AR$24:AR56, AR56 )=1,AR56,"")),"") -> 491.3 | AT56: =IFERROR(RANK(AS56,$AS$24:$AS$279,1)+COUNTIF($AS$24:AS56,AS56)-1,"") -> 30 | AU56: =IFERROR(INDEX($AS$24:$AS$279,MATCH(SMALL($AT$24:$AT$279,ROWS(AU$24:$AU56)),$AT$24:$AT$279,0))," ") -> 491.925 | AW56: 33 | AX56: =IF(INDEX($V$51:$AK$66,AM56,AN56)>0,INDEX($V$51:$AK$66,AM56,AN56),"") -> 522.025 | AY56: =IFERROR(RANK(AX56,$AX$24:$AX$279,1)+COUNTIF($AX$24:AX56,AX56)-1,"") -> 94 | AZ56: =IFERROR(INDEX($AX$24:$AX$279,MATCH(SMALL($AY$24:$AY$279,ROWS($AZ$24:AZ56)),$AY$24:$AY$279,0))," ") -> 461.4 | BA56: =IF(ISNUMBER(AZ56),(IF(COUNTIF( AZ$24:AZ56, AZ56 )=1,AZ56,"")),"") -> 461.4 | BB56: =IFERROR(RANK(BA56,$BA$24:$BA$279,1)+COUNTIF($BA$24:BA56,BA56)-1,"") -> 32 | BC56: =IFERROR(INDEX($BA$24:$BA$279,MATCH(SMALL($BB$24:$BB$279,ROWS($BC$24:BC56)),$BB$24:$BB$279,0))," ") -> 461.425 | BE56: 33 | BF56: 1 | BG56: 33 | BH56: =IF(INDEX($V$71:$AK$326,BE56,BF56)>0,INDEX($V$71:$AK$326,BE56,BF56),"") ->  | BI56: =IFERROR(RANK(BH56,$BH$24:$BH$4119,1)+COUNTIF($BH$24:BH56,BH56)-1,"") ->  | BJ56: =IFERROR(INDEX($BH$24:$BH$4119,MATCH(SMALL($BI$24:$BI$4119,ROWS($BJ$24:BJ56)),$BI$24:$BI$4119,0))," ") -> 486.375 | BK56: =IF(ISNUMBER(BJ56),(IF(COUNTIF( BJ$24:BJ56, BJ56 )=1,BJ56,"")),"") ->  | BL56: =IFERROR(RANK(BK56,$BK$24:$BK$4119,1)+COUNTIF($BK$24:BK56,BK56)-1,"") ->  | BM56: =IFERROR(INDEX($BK$24:$BK$4119,MATCH(SMALL($BL$24:$BL$4119,ROWS($BM$24:BM56)),$BL$24:$BL$4119,0))," ") -> 488.425 | BO56: 20 | BP56: 489.05 | BQ56: 29.3 | BR56: 29.8 | BS56: 30.525 | BT56: 31.45 | BU56: 32.575 | BV56: 33.4 | BW56: 34.025 | BX56: 34.425 | BY56: 59.075 | BZ56: 59.6 | CA56: 60.625 | CB56: 61.975 | CC56: 62.7 | CD56: 63.1 | CE56: 63.925 | CF56: 64.55 | CI56: 20 | CJ56: 489.05 | CK56: 0 | CL56: 0 | CM56: 0 | CN56: 0 | CO56: 0 | CP56: 0 | CQ56: 0 | CR56: 0 | CS56: 0 | CT56: 0 | CU56: 0 | CV56: 0 | CW56: 0 | CX56: 0 | CY56: 0 | CZ56: 0
P57: 493.175 | Q57: 463.275 | R57: 488.85 | U57: T 7 | V57: 508.9 | W57: 510.4 | X57: 512.575 | Y57: 515.35 | Z57: 518.725 | AA57: =IF(AND($U17>0,AA407>0),MIN($U17,AA407)-2*ABS(AA407-$U17),"") -> 521.2 | AC57: =IF(AND($U17>0,AC407>0),MAX($U17,AC407)+2*ABS(AC407-$U17),"") -> 524.275 | AD57: 598.225 | AE57: 599.8 | AF57: 602.875 | AG57: 606.925 | AH57: 609.1 | AI57: 610.3 | AJ57: 612.775 | AK57: 614.65 | AM57: 2 | AN57: 3 | AO57: 34 | AP57: =IF(INDEX($V$31:$AK$46,AM57,AN57)>0,INDEX($V$31:$AK$46,AM57,AN57),"") -> 520.3 | AQ57: =IFERROR(RANK(AP57,$AP$24:$AP$279,1)+COUNTIF($AP$24:AP57,AP57)-1,"") -> 90 | AR57: =IFERROR(INDEX($AP$24:$AP$279,MATCH(SMALL($AQ$24:$AQ$279,ROWS($AR$24:AR57)),$AQ$24:$AQ$279,0))," ") -> 491.325 | AS57: =IF(ISNUMBER(AR57),(IF(COUNTIF( AR$24:AR57, AR57 )=1,AR57,"")),"") -> 491.325 | AT57: =IFERROR(RANK(AS57,$AS$24:$AS$279,1)+COUNTIF($AS$24:AS57,AS57)-1,"") -> 31 | AU57: =IFERROR(INDEX($AS$24:$AS$279,MATCH(SMALL($AT$24:$AT$279,ROWS(AU$24:$AU57)),$AT$24:$AT$279,0))," ") -> 492.225 | AW57: 34 | AX57: =IF(INDEX($V$51:$AK$66,AM57,AN57)>0,INDEX($V$51:$AK$66,AM57,AN57),"") -> 521.025 | AY57: =IFERROR(RANK(AX57,$AX$24:$AX$279,1)+COUNTIF($AX$24:AX57,AX57)-1,"") -> 92 | AZ57: =IFERROR(INDEX($AX$24:$AX$279,MATCH(SMALL($AY$24:$AY$279,ROWS($AZ$24:AZ57)),$AY$24:$AY$279,0))," ") -> 461.425 | BA57: =IF(ISNUMBER(AZ57),(IF(COUNTIF( AZ$24:AZ57, AZ57 )=1,AZ57,"")),"") -> 461.425 | BB57: =IFERROR(RANK(BA57,$BA$24:$BA$279,1)+COUNTIF($BA$24:BA57,BA57)-1,"") -> 33 | BC57: =IFERROR(INDEX($BA$24:$BA$279,MATCH(SMALL($BB$24:$BB$279,ROWS($BC$24:BC57)),$BB$24:$BB$279,0))," ") -> 462.025 | BE57: 34 | BF57: 1 | BG57: 34 | BH57: =IF(INDEX($V$71:$AK$326,BE57,BF57)>0,INDEX($V$71:$AK$326,BE57,BF57),"") -> 519.075 | BI57: =IFERROR(RANK(BH57,$BH$24:$BH$4119,1)+COUNTIF($BH$24:BH57,BH57)-1,"") -> 814 | BJ57: =IFERROR(INDEX($BH$24:$BH$4119,MATCH(SMALL($BI$24:$BI$4119,ROWS($BJ$24:BJ57)),$BI$24:$BI$4119,0))," ") -> 486.375 | BK57: =IF(ISNUMBER(BJ57),(IF(COUNTIF( BJ$24:BJ57, BJ57 )=1,BJ57,"")),"") ->  | BL57: =IFERROR(RANK(BK57,$BK$24:$BK$4119,1)+COUNTIF($BK$24:BK57,BK57)-1,"") ->  | BM57: =IFERROR(INDEX($BK$24:$BK$4119,MATCH(SMALL($BL$24:$BL$4119,ROWS($BM$24:BM57)),$BL$24:$BL$4119,0))," ") -> 488.45 | BO57: 21 | BP57: 489.25 | BQ57: 29.1 | BR57: 29.6 | BS57: 30.325 | BT57: 31.25 | BU57: 32.375 | BV57: 33.2 | BW57: 33.825 | BX57: 34.225 | BY57: 58.875 | BZ57: 59.4 | CA57: 60.425 | CB57: 61.775 | CC57: 62.5 | CD57: 62.9 | CE57: 63.725 | CF57: 64.35 | CI57: 21 | CJ57: 489.25 | CK57: 0 | CL57: 0 | CM57: 0 | CN57: 0 | CO57: 0 | CP57: 0 | CQ57: 0 | CR57: 0 | CS57: 0 | CT57: 0 | CU57: 0 | CV57: 0 | CW57: 0 | CX57: 0 | CY57: 0 | CZ57: 0
P58: 493.35 | Q58: 463.85 | R58: 488.95 | U58: T 8 | V58: 508.1 | W58: 509.6 | X58: 511.775 | Y58: 514.55 | Z58: 517.925 | AA58: 520.4 | AB58: =IF(AND($U18>0,AB408>0),MIN($U18,AB408)-2*ABS(AB408-$U18),"") -> 522.275 | AD58: =IF(AND($U18>0,AD408>0),MAX($U18,AD408)+2*ABS(AD408-$U18),"") -> 597.425 | AE58: 599 | AF58: 602.075 | AG58: 606.125 | AH58: 608.3 | AI58: 609.5 | AJ58: 611.975 | AK58: 613.85 | AM58: 3 | AN58: 3 | AO58: 35 | AP58: =IF(INDEX($V$31:$AK$46,AM58,AN58)>0,INDEX($V$31:$AK$46,AM58,AN58),"") ->  | AQ58: =IFERROR(RANK(AP58,$AP$24:$AP$279,1)+COUNTIF($AP$24:AP58,AP58)-1,"") ->  | AR58: =IFERROR(INDEX($AP$24:$AP$279,MATCH(SMALL($AQ$24:$AQ$279,ROWS($AR$24:AR58)),$AQ$24:$AQ$279,0))," ") -> 491.5 | AS58: =IF(ISNUMBER(AR58),(IF(COUNTIF( AR$24:AR58, AR58 )=1,AR58,"")),"") -> 491.5 | AT58: =IFERROR(RANK(AS58,$AS$24:$AS$279,1)+COUNTIF($AS$24:AS58,AS58)-1,"") -> 32 | AU58: =IFERROR(INDEX($AS$24:$AS$279,MATCH(SMALL($AT$24:$AT$279,ROWS(AU$24:$AU58)),$AT$24:$AT$279,0))," ") -> 492.35 | AW58: 35 | AX58: =IF(INDEX($V$51:$AK$66,AM58,AN58)>0,INDEX($V$51:$AK$66,AM58,AN58),"") ->  | AY58: =IFERROR(RANK(AX58,$AX$24:$AX$279,1)+COUNTIF($AX$24:AX58,AX58)-1,"") ->  | AZ58: =IFERROR(INDEX($AX$24:$AX$279,MATCH(SMALL($AY$24:$AY$279,ROWS($AZ$24:AZ58)),$AY$24:$AY$279,0))," ") -> 462.025 | BA58: =IF(ISNUMBER(AZ58),(IF(COUNTIF( AZ$24:AZ58, AZ58 )=1,AZ58,"")),"") -> 462.025 | BB58: =IFERROR(RANK(BA58,$BA$24:$BA$279,1)+COUNTIF($BA$24:BA58,BA58)-1,"") -> 34 | BC58: =IFERROR(INDEX($BA$24:$BA$279,MATCH(SMALL($BB$24:$BB$279,ROWS($BC$24:BC58)),$BB$24:$BB$279,0))," ") -> 462.15 | BE58: 35 | BF58: 1 | BG58: 35 | BH58: =IF(INDEX($V$71:$AK$326,BE58,BF58)>0,INDEX($V$71:$AK$326,BE58,BF58),"") ->  | BI58: =IFERROR(RANK(BH58,$BH$24:$BH$4119,1)+COUNTIF($BH$24:BH58,BH58)-1,"") ->  | BJ58: =IFERROR(INDEX($BH$24:$BH$4119,MATCH(SMALL($BI$24:$BI$4119,ROWS($BJ$24:BJ58)),$BI$24:$BI$4119,0))," ") -> 486.475 | BK58: =IF(ISNUMBER(BJ58),(IF(COUNTIF( BJ$24:BJ58, BJ58 )=1,BJ58,"")),"") -> 486.475 | BL58: =IFERROR(RANK(BK58,$BK$24:$BK$4119,1)+COUNTIF($BK$24:BK58,BK58)-1,"") -> 15 | BM58: =IFERROR(INDEX($BK$24:$BK$4119,MATCH(SMALL($BL$24:$BL$4119,ROWS($BM$24:BM58)),$BL$24:$BL$4119,0))," ") -> 488.525 | BO58: 22 | BP58: 489.475 | BQ58: 28.875 | BR58: 29.375 | BS58: 30.1 | BT58: 31.025 | BU58: 32.15 | BV58: 32.975 | BW58: 33.6 | BX58: 34 | BY58: 58.65 | BZ58: 59.175 | CA58: 60.2 | CB58: 61.55 | CC58: 62.275 | CD58: 62.675 | CE58: 63.5 | CF58: 64.125 | CI58: 22 | CJ58: 489.475 | CK58: 0 | CL58: 0 | CM58: 0 | CN58: 0 | CO58: 0 | CP58: 0 | CQ58: 0 | CR58: 0 | CS58: 0 | CT58: 0 | CU58: 0 | CV58: 0 | CW58: 0 | CX58: 0 | CY58: 0 | CZ58: 0
P59: 493.575 | Q59: 464.2 | R59: 489.05 | U59: T 9 | V59: 458.8 | W59: 460.3 | X59: 462.475 | Y59: 465.25 | Z59: 468.625 | AA59: 471.1 | AB59: 472.975 | AC59: =IF(AND($U19>0,AC409>0),MIN($U19,AC409)-2*ABS(AC409-$U19),"") -> 474.175 | AE59: =IF(AND($U19>0,AE409>0),MAX($U19,AE409)+2*ABS(AE409-$U19),"") -> 549.7 | AF59: 552.775 | AG59: 556.825 | AH59: 559 | AI59: 560.2 | AJ59: 562.675 | AK59: 564.55 | AM59: 4 | AN59: 3 | AO59: 36 | AP59: =IF(INDEX($V$31:$AK$46,AM59,AN59)>0,INDEX($V$31:$AK$46,AM59,AN59),"") -> 518.65 | AQ59: =IFERROR(RANK(AP59,$AP$24:$AP$279,1)+COUNTIF($AP$24:AP59,AP59)-1,"") -> 85 | AR59: =IFERROR(INDEX($AP$24:$AP$279,MATCH(SMALL($AQ$24:$AQ$279,ROWS($AR$24:AR59)),$AQ$24:$AQ$279,0))," ") -> 491.925 | AS59: =IF(ISNUMBER(AR59),(IF(COUNTIF( AR$24:AR59, AR59 )=1,AR59,"")),"") -> 491.925 | AT59: =IFERROR(RANK(AS59,$AS$24:$AS$279,1)+COUNTIF($AS$24:AS59,AS59)-1,"") -> 33 | AU59: =IFERROR(INDEX($AS$24:$AS$279,MATCH(SMALL($AT$24:$AT$279,ROWS(AU$24:$AU59)),$AT$24:$AT$279,0))," ") -> 492.55 | AW59: 36 | AX59: =IF(INDEX($V$51:$AK$66,AM59,AN59)>0,INDEX($V$51:$AK$66,AM59,AN59),"") -> 517.725 | AY59: =IFERROR(RANK(AX59,$AX$24:$AX$279,1)+COUNTIF($AX$24:AX59,AX59)-1,"") -> 85 | AZ59: =IFERROR(INDEX($AX$24:$AX$279,MATCH(SMALL($AY$24:$AY$279,ROWS($AZ$24:AZ59)),$AY$24:$AY$279,0))," ") -> 462.15 | BA59: =IF(ISNUMBER(AZ59),(IF(COUNTIF( AZ$24:AZ59, AZ59 )=1,AZ59,"")),"") -> 462.15 | BB59: =IFERROR(RANK(BA59,$BA$24:$BA$279,1)+COUNTIF($BA$24:BA59,BA59)-1,"") -> 35 | BC59: =IFERROR(INDEX($BA$24:$BA$279,MATCH(SMALL($BB$24:$BB$279,ROWS($BC$24:BC59)),$BB$24:$BB$279,0))," ") -> 462.475 | BE59: 36 | BF59: 1 | BG59: 36 | BH59: =IF(INDEX($V$71:$AK$326,BE59,BF59)>0,INDEX($V$71:$AK$326,BE59,BF59),"") -> 517.425 | BI59: =IFERROR(RANK(BH59,$BH$24:$BH$4119,1)+COUNTIF($BH$24:BH59,BH59)-1,"") -> 645 | BJ59: =IFERROR(INDEX($BH$24:$BH$4119,MATCH(SMALL($BI$24:$BI$4119,ROWS($BJ$24:BJ59)),$BI$24:$BI$4119,0))," ") -> 486.475 | BK59: =IF(ISNUMBER(BJ59),(IF(COUNTIF( BJ$24:BJ59, BJ59 )=1,BJ59,"")),"") ->  | BL59: =IFERROR(RANK(BK59,$BK$24:$BK$4119,1)+COUNTIF($BK$24:BK59,BK59)-1,"") ->  | BM59: =IFERROR(INDEX($BK$24:$BK$4119,MATCH(SMALL($BL$24:$BL$4119,ROWS($BM$24:BM59)),$BL$24:$BL$4119,0))," ") -> 488.55 | BO59: 23 | BP59: 489.575 | BQ59: 28.775 | BR59: 29.275 | BS59: 30 | BT59: 30.925 | BU59: 32.05 | BV59: 32.875 | BW59: 33.5 | BX59: 33.9 | BY59: 58.55 | BZ59: 59.075 | CA59: 60.1 | CB59: 61.45 | CC59: 62.175 | CD59: 62.575 | CE59: 63.4 | CF59: 64.025 | CI59: 23 | CJ59: 489.575 | CK59: 0 | CL59: 0 | CM59: 0 | CN59: 0 | CO59: 0 | CP59: 0 | CQ59: 0 | CR59: 0 | CS59: 0 | CT59: 0 | CU59: 0 | CV59: 0 | CW59: 0 | CX59: 0 | CY59: 0 | CZ59: 0
P60: 493.875 | Q60: 464.475 | R60: 489.075 | U60: T 10 | V60: 457.75 | W60: 459.25 | X60: 461.425 | Y60: 464.2 | Z60: 467.575 | AA60: 470.05 | AB60: 471.925 | AC60: 473.125 | AD60: =IF(AND($U20>0,AD410>0),MIN($U20,AD410)-2*ABS(AD410-$U20),"") -> 547.075 | AF60: =IF(AND($U20>0,AF410>0),MAX($U20,AF410)+2*ABS(AF410-$U20),"") -> 551.725 | AG60: 555.775 | AH60: 557.95 | AI60: 559.15 | AJ60: 561.625 | AK60: 563.5 | AM60: 5 | AN60: 3 | AO60: 37 | AP60: =IF(INDEX($V$31:$AK$46,AM60,AN60)>0,INDEX($V$31:$AK$46,AM60,AN60),"") -> 517.525 | AQ60: =IFERROR(RANK(AP60,$AP$24:$AP$279,1)+COUNTIF($AP$24:AP60,AP60)-1,"") -> 80 | AR60: =IFERROR(INDEX($AP$24:$AP$279,MATCH(SMALL($AQ$24:$AQ$279,ROWS($AR$24:AR60)),$AQ$24:$AQ$279,0))," ") -> 492.225 | AS60: =IF(ISNUMBER(AR60),(IF(COUNTIF( AR$24:AR60, AR60 )=1,AR60,"")),"") -> 492.225 | AT60: =IFERROR(RANK(AS60,$AS$24:$AS$279,1)+COUNTIF($AS$24:AS60,AS60)-1,"") -> 34 | AU60: =IFERROR(INDEX($AS$24:$AS$279,MATCH(SMALL($AT$24:$AT$279,ROWS(AU$24:$AU60)),$AT$24:$AT$279,0))," ") -> 492.75 | AW60: 37 | AX60: =IF(INDEX($V$51:$AK$66,AM60,AN60)>0,INDEX($V$51:$AK$66,AM60,AN60),"") -> 515.475 | AY60: =IFERROR(RANK(AX60,$AX$24:$AX$279,1)+COUNTIF($AX$24:AX60,AX60)-1,"") -> 79 | AZ60: =IFERROR(INDEX($AX$24:$AX$279,MATCH(SMALL($AY$24:$AY$279,ROWS($AZ$24:AZ60)),$AY$24:$AY$279,0))," ") -> 462.475 | BA60: =IF(ISNUMBER(AZ60),(IF(COUNTIF( AZ$24:AZ60, AZ60 )=1,AZ60,"")),"") -> 462.475 | BB60: =IFERROR(RANK(BA60,$BA$24:$BA$279,1)+COUNTIF($BA$24:BA60,BA60)-1,"") -> 36 | BC60: =IFERROR(INDEX($BA$24:$BA$279,MATCH(SMALL($BB$24:$BB$279,ROWS($BC$24:BC60)),$BB$24:$BB$279,0))," ") -> 462.825 | BE60: 37 | BF60: 1 | BG60: 37 | BH60: =IF(INDEX($V$71:$AK$326,BE60,BF60)>0,INDEX($V$71:$AK$326,BE60,BF60),"") -> 516.3 | BI60: =IFERROR(RANK(BH60,$BH$24:$BH$4119,1)+COUNTIF($BH$24:BH60,BH60)-1,"") -> 559 | BJ60: =IFERROR(INDEX($BH$24:$BH$4119,MATCH(SMALL($BI$24:$BI$4119,ROWS($BJ$24:BJ60)),$BI$24:$BI$4119,0))," ") -> 486.675 | BK60: =IF(ISNUMBER(BJ60),(IF(COUNTIF( BJ$24:BJ60, BJ60 )=1,BJ60,"")),"") -> 486.675 | BL60: =IFERROR(RANK(BK60,$BK$24:$BK$4119,1)+COUNTIF($BK$24:BK60,BK60)-1,"") -> 16 | BM60: =IFERROR(INDEX($BK$24:$BK$4119,MATCH(SMALL($BL$24:$BL$4119,ROWS($BM$24:BM60)),$BL$24:$BL$4119,0))," ") -> 488.65 | BO60: 24 | BP60: 489.65 | BQ60: 28.7 | BR60: 29.2 | BS60: 29.925 | BT60: 30.85 | BU60: 31.975 | BV60: 32.8 | BW60: 33.425 | BX60: 33.825 | BY60: 58.475 | BZ60: 59 | CA60: 60.025 | CB60: 61.375 | CC60: 62.1 | CD60: 62.5 | CE60: 63.325 | CF60: 63.95 | CI60: 24 | CJ60: 489.65 | CK60: 0 | CL60: 0 | CM60: 0 | CN60: 0 | CO60: 0 | CP60: 0 | CQ60: 0 | CR60: 0 | CS60: 0 | CT60: 0 | CU60: 0 | CV60: 0 | CW60: 0 | CX60: 0 | CY60: 0 | CZ60: 0
P61: 493.975 | Q61: 464.925 | R61: 489.15 | U61: T 11 | V61: 455.7 | W61: 457.2 | X61: 459.375 | Y61: 462.15 | Z61: 465.525 | AA61: 468 | AB61: 469.875 | AC61: 471.075 | AD61: 545.025 | AE61: =IF(AND($U21>0,AE411>0),MIN($U21,AE411)-2*ABS(AE411-$U21),"") -> 546.6 | AG61: =IF(AND($U21>0,AG411>0),MAX($U21,AG411)+2*ABS(AG411-$U21),"") -> 553.725 | AH61: =IF(AND($U21>0,AH411>0),MAX($U21,AH411)+2*ABS(AH411-$U21),"") -> 555.9 | AI61: =IF(AND($U21>0,AI411>0),MAX($U21,AI411)+2*ABS(AI411-$U21),"") -> 557.1 | AJ61: =IF(AND($U21>0,AJ411>0),MAX($U21,AJ411)+2*ABS(AJ411-$U21),"") -> 559.575 | AK61: =IF(AND($U21>0,AK411>0),MAX($U21,AK411)+2*ABS(AK411-$U21),"") -> 561.45 | AM61: 6 | AN61: 3 | AO61: 38 | AP61: =IF(INDEX($V$31:$AK$46,AM61,AN61)>0,INDEX($V$31:$AK$46,AM61,AN61),"") -> 516.7 | AQ61: =IFERROR(RANK(AP61,$AP$24:$AP$279,1)+COUNTIF($AP$24:AP61,AP61)-1,"") -> 76 | AR61: =IFERROR(INDEX($AP$24:$AP$279,MATCH(SMALL($AQ$24:$AQ$279,ROWS($AR$24:AR61)),$AQ$24:$AQ$279,0))," ") -> 492.35 | AS61: =IF(ISNUMBER(AR61),(IF(COUNTIF( AR$24:AR61, AR61 )=1,AR61,"")),"") -> 492.35 | AT61: =IFERROR(RANK(AS61,$AS$24:$AS$279,1)+COUNTIF($AS$24:AS61,AS61)-1,"") -> 35 | AU61: =IFERROR(INDEX($AS$24:$AS$279,MATCH(SMALL($AT$24:$AT$279,ROWS(AU$24:$AU61)),$AT$24:$AT$279,0))," ") -> 492.875 | AW61: 38 | AX61: =IF(INDEX($V$51:$AK$66,AM61,AN61)>0,INDEX($V$51:$AK$66,AM61,AN61),"") -> 513.825 | AY61: =IFERROR(RANK(AX61,$AX$24:$AX$279,1)+COUNTIF($AX$24:AX61,AX61)-1,"") -> 75 | AZ61: =IFERROR(INDEX($AX$24:$AX$279,MATCH(SMALL($AY$24:$AY$279,ROWS($AZ$24:AZ61)),$AY$24:$AY$279,0))," ") -> 462.825 | BA61: =IF(ISNUMBER(AZ61),(IF(COUNTIF( AZ$24:AZ61, AZ61 )=1,AZ61,"")),"") -> 462.825 | BB61: =IFERROR(RANK(BA61,$BA$24:$BA$279,1)+COUNTIF($BA$24:BA61,BA61)-1,"") -> 37 | BC61: =IFERROR(INDEX($BA$24:$BA$279,MATCH(SMALL($BB$24:$BB$279,ROWS($BC$24:BC61)),$BB$24:$BB$279,0))," ") -> 463.05 | BE61: 38 | BF61: 1 | BG61: 38 | BH61: =IF(INDEX($V$71:$AK$326,BE61,BF61)>0,INDEX($V$71:$AK$326,BE61,BF61),"") -> 515.475 | BI61: =IFERROR(RANK(BH61,$BH$24:$BH$4119,1)+COUNTIF($BH$24:BH61,BH61)-1,"") -> 513 | BJ61: =IFERROR(INDEX($BH$24:$BH$4119,MATCH(SMALL($BI$24:$BI$4119,ROWS($BJ$24:BJ61)),$BI$24:$BI$4119,0))," ") -> 486.675 | BK61: =IF(ISNUMBER(BJ61),(IF(COUNTIF( BJ$24:BJ61, BJ61 )=1,BJ61,"")),"") ->  | BL61: =IFERROR(RANK(BK61,$BK$24:$BK$4119,1)+COUNTIF($BK$24:BK61,BK61)-1,"") ->  | BM61: =IFERROR(INDEX($BK$24:$BK$4119,MATCH(SMALL($BL$24:$BL$4119,ROWS($BM$24:BM61)),$BL$24:$BL$4119,0))," ") -> 488.725 | BO61: 25 | BP61: 489.975 | BQ61: 28.375 | BR61: 28.875 | BS61: 29.6 | BT61: 30.525 | BU61: 31.65 | BV61: 32.475 | BW61: 33.1 | BX61: 33.5 | BY61: 58.15 | BZ61: 58.675 | CA61: 59.7 | CB61: 61.05 | CC61: 61.775 | CD61: 62.175 | CE61: 63 | CF61: 63.625 | CI61: 25 | CJ61: 489.975 | CK61: 0 | CL61: 0 | CM61: 0 | CN61: 0 | CO61: 0 | CP61: 0 | CQ61: 0 | CR61: 0 | CS61: 0 | CT61: 0 | CU61: 0 | CV61: 0 | CW61: 0 | CX61: 0 | CY61: 0 | CZ61: 0
P62: 494 | Q62: 465.25 | R62: 489.175 | U62: T 12 | V62: 453 | W62: 454.5 | X62: 456.675 | Y62: 459.45 | Z62: 462.825 | AA62: 465.3 | AB62: 467.175 | AC62: 468.375 | AD62: 542.325 | AE62: 543.9 | AF62: =IF(AND($U22>0,AF412>0),MIN($U22,AF412)-2*ABS(AF412-$U22),"") -> 546.975 | AH62: =IF(AND($U22>0,AH412>0),MAX($U22,AH412)+2*ABS(AH412-$U22),"") -> 553.2 | AI62: =IF(AND($U22>0,AI412>0),MAX($U22,AI412)+2*ABS(AI412-$U22),"") -> 554.4 | AJ62: =IF(AND($U22>0,AJ412>0),MAX($U22,AJ412)+2*ABS(AJ412-$U22),"") -> 556.875 | AK62: =IF(AND($U22>0,AK412>0),MAX($U22,AK412)+2*ABS(AK412-$U22),"") -> 558.75 | AM62: 7 | AN62: 3 | AO62: 39 | AP62: =IF(INDEX($V$31:$AK$46,AM62,AN62)>0,INDEX($V$31:$AK$46,AM62,AN62),"") -> 516.075 | AQ62: =IFERROR(RANK(AP62,$AP$24:$AP$279,1)+COUNTIF($AP$24:AP62,AP62)-1,"") -> 74 | AR62: =IFERROR(INDEX($AP$24:$AP$279,MATCH(SMALL($AQ$24:$AQ$279,ROWS($AR$24:AR62)),$AQ$24:$AQ$279,0))," ") -> 492.55 | AS62: =IF(ISNUMBER(AR62),(IF(COUNTIF( AR$24:AR62, AR62 )=1,AR62,"")),"") -> 492.55 | AT62: =IFERROR(RANK(AS62,$AS$24:$AS$279,1)+COUNTIF($AS$24:AS62,AS62)-1,"") -> 36 | AU62: =IFERROR(INDEX($AS$24:$AS$279,MATCH(SMALL($AT$24:$AT$279,ROWS(AU$24:$AU62)),$AT$24:$AT$279,0))," ") -> 493.15 | AW62: 39 | AX62: =IF(INDEX($V$51:$AK$66,AM62,AN62)>0,INDEX($V$51:$AK$66,AM62,AN62),"") -> 512.575 | AY62: =IFERROR(RANK(AX62,$AX$24:$AX$279,1)+COUNTIF($AX$24:AX62,AX62)-1,"") -> 73 | AZ62: =IFERROR(INDEX($AX$24:$AX$279,MATCH(SMALL($AY$24:$AY$279,ROWS($AZ$24:AZ62)),$AY$24:$AY$279,0))," ") -> 463.05 | BA62: =IF(ISNUMBER(AZ62),(IF(COUNTIF( AZ$24:AZ62, AZ62 )=1,AZ62,"")),"") -> 463.05 | BB62: =IFERROR(RANK(BA62,$BA$24:$BA$279,1)+COUNTIF($BA$24:BA62,BA62)-1,"") -> 38 | BC62: =IFERROR(INDEX($BA$24:$BA$279,MATCH(SMALL($BB$24:$BB$279,ROWS($BC$24:BC62)),$BB$24:$BB$279,0))," ") -> 463.225 | BE62: 39 | BF62: 1 | BG62: 39 | BH62: =IF(INDEX($V$71:$AK$326,BE62,BF62)>0,INDEX($V$71:$AK$326,BE62,BF62),"") -> 514.85 | BI62: =IFERROR(RANK(BH62,$BH$24:$BH$4119,1)+COUNTIF($BH$24:BH62,BH62)-1,"") -> 487 | BJ62: =IFERROR(INDEX($BH$24:$BH$4119,MATCH(SMALL($BI$24:$BI$4119,ROWS($BJ$24:BJ62)),$BI$24:$BI$4119,0))," ") -> 486.7 | BK62: =IF(ISNUMBER(BJ62),(IF(COUNTIF( BJ$24:BJ62, BJ62 )=1,BJ62,"")),"") -> 486.7 | BL62: =IFERROR(RANK(BK62,$BK$24:$BK$4119,1)+COUNTIF($BK$24:BK62,BK62)-1,"") -> 17 | BM62: =IFERROR(INDEX($BK$24:$BK$4119,MATCH(SMALL($BL$24:$BL$4119,ROWS($BM$24:BM62)),$BL$24:$BL$4119,0))," ") -> 488.75 | BO62: 26 | BP62: 490.275 | BQ62: 28.075 | BR62: 28.575 | BS62: 29.3 | BT62: 30.225 | BU62: 31.35 | BV62: 32.175 | BW62: 32.8 | BX62: 33.2 | BY62: 57.85 | BZ62: 58.375 | CA62: 59.4 | CB62: 60.75 | CC62: 61.475 | CD62: 61.875 | CE62: 62.7 | CF62: 63.325 | CI62: 26 | CJ62: 490.275 | CK62: 0 | CL62: 0 | CM62: 0 | CN62: 0 | CO62: 0 | CP62: 0 | CQ62: 0 | CR62: 0 | CS62: 0 | CT62: 0 | CU62: 0 | CV62: 0 | CW62: 0 | CX62: 0 | CY62: 0 | CZ62: 0
P63: 494.4 | Q63: 465.3 | R63: 489.275 | U63: T 13 | V63: 451.55 | W63: 453.05 | X63: 455.225 | Y63: 458 | Z63: 461.375 | AA63: 463.85 | AB63: 465.725 | AC63: 466.925 | AD63: 540.875 | AE63: 542.45 | AF63: =IF(AND($U23>0,AF413>0),MIN($U23,AF413)-2*ABS(AF413-$U23),"") -> 545.525 | AG63: =IF(AND($U23>0,AG413>0),MIN($U23,AG413)-2*ABS(AG413-$U23),"") -> 549.575 | AI63: =IF(AND($U23>0,AI413>0),MAX($U23,AI413)+2*ABS(AI413-$U23),"") -> 552.95 | AJ63: =IF(AND($U23>0,AJ413>0),MAX($U23,AJ413)+2*ABS(AJ413-$U23),"") -> 555.425 | AK63: =IF(AND($U23>0,AK413>0),MAX($U23,AK413)+2*ABS(AK413-$U23),"") -> 557.3 | AM63: 8 | AN63: 3 | AO63: 40 | AP63: =IF(INDEX($V$31:$AK$46,AM63,AN63)>0,INDEX($V$31:$AK$46,AM63,AN63),"") -> 515.675 | AQ63: =IFERROR(RANK(AP63,$AP$24:$AP$279,1)+COUNTIF($AP$24:AP63,AP63)-1,"") -> 72 | AR63: =IFERROR(INDEX($AP$24:$AP$279,MATCH(SMALL($AQ$24:$AQ$279,ROWS($AR$24:AR63)),$AQ$24:$AQ$279,0))," ") -> 492.75 | AS63: =IF(ISNUMBER(AR63),(IF(COUNTIF( AR$24:AR63, AR63 )=1,AR63,"")),"") -> 492.75 | AT63: =IFERROR(RANK(AS63,$AS$24:$AS$279,1)+COUNTIF($AS$24:AS63,AS63)-1,"") -> 37 | AU63: =IFERROR(INDEX($AS$24:$AS$279,MATCH(SMALL($AT$24:$AT$279,ROWS(AU$24:$AU63)),$AT$24:$AT$279,0))," ") -> 493.175 | AW63: 40 | AX63: =IF(INDEX($V$51:$AK$66,AM63,AN63)>0,INDEX($V$51:$AK$66,AM63,AN63),"") -> 511.775 | AY63: =IFERROR(RANK(AX63,$AX$24:$AX$279,1)+COUNTIF($AX$24:AX63,AX63)-1,"") -> 71 | AZ63: =IFERROR(INDEX($AX$24:$AX$279,MATCH(SMALL($AY$24:$AY$279,ROWS($AZ$24:AZ63)),$AY$24:$AY$279,0))," ") -> 463.225 | BA63: =IF(ISNUMBER(AZ63),(IF(COUNTIF( AZ$24:AZ63, AZ63 )=1,AZ63,"")),"") -> 463.225 | BB63: =IFERROR(RANK(BA63,$BA$24:$BA$279,1)+COUNTIF($BA$24:BA63,BA63)-1,"") -> 39 | BC63: =IFERROR(INDEX($BA$24:$BA$279,MATCH(SMALL($BB$24:$BB$279,ROWS($BC$24:BC63)),$BB$24:$BB$279,0))," ") -> 463.275 | BE63: 40 | BF63: 1 | BG63: 40 | BH63: =IF(INDEX($V$71:$AK$326,BE63,BF63)>0,INDEX($V$71:$AK$326,BE63,BF63),"") -> 514.45 | BI63: =IFERROR(RANK(BH63,$BH$24:$BH$4119,1)+COUNTIF($BH$24:BH63,BH63)-1,"") -> 473 | BJ63: =IFERROR(INDEX($BH$24:$BH$4119,MATCH(SMALL($BI$24:$BI$4119,ROWS($BJ$24:BJ63)),$BI$24:$BI$4119,0))," ") -> 486.7 | BK63: =IF(ISNUMBER(BJ63),(IF(COUNTIF( BJ$24:BJ63, BJ63 )=1,BJ63,"")),"") ->  | BL63: =IFERROR(RANK(BK63,$BK$24:$BK$4119,1)+COUNTIF($BK$24:BK63,BK63)-1,"") ->  | BM63: =IFERROR(INDEX($BK$24:$BK$4119,MATCH(SMALL($BL$24:$BL$4119,ROWS($BM$24:BM63)),$BL$24:$BL$4119,0))," ") -> 488.85 | BO63: 27 | BP63: 490.5 | BQ63: 27.85 | BR63: 28.35 | BS63: 29.075 | BT63: 30 | BU63: 31.125 | BV63: 31.95 | BW63: 32.575 | BX63: 32.975 | BY63: 57.625 | BZ63: 58.15 | CA63: 59.175 | CB63: 60.525 | CC63: 61.25 | CD63: 61.65 | CE63: 62.475 | CF63: 63.1 | CI63: 27 | CJ63: 490.5 | CK63: 0 | CL63: 0 | CM63: 0 | CN63: 0 | CO63: 0 | CP63: 0 | CQ63: 0 | CR63: 0 | CS63: 0 | CT63: 0 | CU63: 0 | CV63: 0 | CW63: 0 | CX63: 0 | CY63: 0 | CZ63: 0
P64: 494.6 | Q64: 465.525 | R64: 489.35 | U64: T 14 | V64: 450.75 | W64: 452.25 | X64: 454.425 | Y64: 457.2 | Z64: 460.575 | AA64: 463.05 | AB64: 464.925 | AC64: 466.125 | AD64: 540.075 | AE64: 541.65 | AF64: =IF(AND($U24>0,AF414>0),MIN($U24,AF414)-2*ABS(AF414-$U24),"") -> 544.725 | AG64: =IF(AND($U24>0,AG414>0),MIN($U24,AG414)-2*ABS(AG414-$U24),"") -> 548.775 | AH64: =IF(AND($U24>0,AH414>0),MIN($U24,AH414)-2*ABS(AH414-$U24),"") -> 550.95 | AJ64: =IF(AND($U24>0,AJ414>0),MAX($U24,AJ414)+2*ABS(AJ414-$U24),"") -> 554.625 | AK64: =IF(AND($U24>0,AK414>0),MAX($U24,AK414)+2*ABS(AK414-$U24),"") -> 556.5 | AM64: 9 | AN64: 3 | AO64: 41 | AP64: =IF(INDEX($V$31:$AK$46,AM64,AN64)>0,INDEX($V$31:$AK$46,AM64,AN64),"") -> 491.025 | AQ64: =IFERROR(RANK(AP64,$AP$24:$AP$279,1)+COUNTIF($AP$24:AP64,AP64)-1,"") -> 31 | AR64: =IFERROR(INDEX($AP$24:$AP$279,MATCH(SMALL($AQ$24:$AQ$279,ROWS($AR$24:AR64)),$AQ$24:$AQ$279,0))," ") -> 492.875 | AS64: =IF(ISNUMBER(AR64),(IF(COUNTIF( AR$24:AR64, AR64 )=1,AR64,"")),"") -> 492.875 | AT64: =IFERROR(RANK(AS64,$AS$24:$AS$279,1)+COUNTIF($AS$24:AS64,AS64)-1,"") -> 38 | AU64: =IFERROR(INDEX($AS$24:$AS$279,MATCH(SMALL($AT$24:$AT$279,ROWS(AU$24:$AU64)),$AT$24:$AT$279,0))," ") -> 493.35 | AW64: 41 | AX64: =IF(INDEX($V$51:$AK$66,AM64,AN64)>0,INDEX($V$51:$AK$66,AM64,AN64),"") -> 462.475 | AY64: =IFERROR(RANK(AX64,$AX$24:$AX$279,1)+COUNTIF($AX$24:AX64,AX64)-1,"") -> 37 | AZ64: =IFERROR(INDEX($AX$24:$AX$279,MATCH(SMALL($AY$24:$AY$279,ROWS($AZ$24:AZ64)),$AY$24:$AY$279,0))," ") -> 463.275 | BA64: =IF(ISNUMBER(AZ64),(IF(COUNTIF( AZ$24:AZ64, AZ64 )=1,AZ64,"")),"") -> 463.275 | BB64: =IFERROR(RANK(BA64,$BA$24:$BA$279,1)+COUNTIF($BA$24:BA64,BA64)-1,"") -> 40 | BC64: =IFERROR(INDEX($BA$24:$BA$279,MATCH(SMALL($BB$24:$BB$279,ROWS($BC$24:BC64)),$BB$24:$BB$279,0))," ") -> 463.85 | BE64: 41 | BF64: 1 | BG64: 41 | BH64: =IF(INDEX($V$71:$AK$326,BE64,BF64)>0,INDEX($V$71:$AK$326,BE64,BF64),"") -> 489.8 | BI64: =IFERROR(RANK(BH64,$BH$24:$BH$4119,1)+COUNTIF($BH$24:BH64,BH64)-1,"") -> 165 | BJ64: =IFERROR(INDEX($BH$24:$BH$4119,MATCH(SMALL($BI$24:$BI$4119,ROWS($BJ$24:BJ64)),$BI$24:$BI$4119,0))," ") -> 486.875 | BK64: =IF(ISNUMBER(BJ64),(IF(COUNTIF( BJ$24:BJ64, BJ64 )=1,BJ64,"")),"") -> 486.875 | BL64: =IFERROR(RANK(BK64,$BK$24:$BK$4119,1)+COUNTIF($BK$24:BK64,BK64)-1,"") -> 18 | BM64: =IFERROR(INDEX($BK$24:$BK$4119,MATCH(SMALL($BL$24:$BL$4119,ROWS($BM$24:BM64)),$BL$24:$BL$4119,0))," ") -> 488.95 | BO64: 28 | BP64: 491.025 | BQ64: 27.325 | BR64: 27.825 | BS64: 28.55 | BT64: 29.475 | BU64: 30.6 | BV64: 31.425 | BW64: 32.05 | BX64: 32.45 | BY64: 57.1 | BZ64: 57.625 | CA64: 58.65 | CB64: 60 | CC64: =IF(ISNUMBER($BP64),ABS($BP64-CC$35),"") -> 60.725 | CD64: 61.125 | CE64: 61.95 | CF64: 62.575 | CI64: 28 | CJ64: 491.025 | CK64: 0 | CL64: 0 | CM64: 0 | CN64: 0 | CO64: 0 | CP64: 0 | CQ64: 0 | CR64: 0 | CS64: 0 | CT64: 0 | CU64: 0 | CV64: 0 | CW64: 0 | CX64: 0 | CY64: 0 | CZ64: 0
P65: 494.8 | Q65: 465.725 | R65: 489.45 | U65: T 15 | V65: 449.1 | W65: 450.6 | X65: 452.775 | Y65: 455.55 | Z65: 458.925 | AA65: 461.4 | AB65: 463.275 | AC65: 464.475 | AD65: 538.425 | AE65: 540 | AF65: =IF(AND($U25>0,AF415>0),MIN($U25,AF415)-2*ABS(AF415-$U25),"") -> 543.075 | AG65: =IF(AND($U25>0,AG415>0),MIN($U25,AG415)-2*ABS(AG415-$U25),"") -> 547.125 | AH65: =IF(AND($U25>0,AH415>0),MIN($U25,AH415)-2*ABS(AH415-$U25),"") -> 549.3 | AI65: =IF(AND($U25>0,AI415>0),MIN($U25,AI415)-2*ABS(AI415-$U25),"") -> 550.5 | AK65: =IF(AND($U25>0,AK415>0),MAX($U25,AK415)+2*ABS(AK415-$U25),"") -> 554.85 | AM65: 10 | AN65: 3 | AO65: 42 | AP65: =IF(INDEX($V$31:$AK$46,AM65,AN65)>0,INDEX($V$31:$AK$46,AM65,AN65),"") -> 490.5 | AQ65: =IFERROR(RANK(AP65,$AP$24:$AP$279,1)+COUNTIF($AP$24:AP65,AP65)-1,"") -> 30 | AR65: =IFERROR(INDEX($AP$24:$AP$279,MATCH(SMALL($AQ$24:$AQ$279,ROWS($AR$24:AR65)),$AQ$24:$AQ$279,0))," ") -> 493.15 | AS65: =IF(ISNUMBER(AR65),(IF(COUNTIF( AR$24:AR65, AR65 )=1,AR65,"")),"") -> 493.15 | AT65: =IFERROR(RANK(AS65,$AS$24:$AS$279,1)+COUNTIF($AS$24:AS65,AS65)-1,"") -> 39 | AU65: =IFERROR(INDEX($AS$24:$AS$279,MATCH(SMALL($AT$24:$AT$279,ROWS(AU$24:$AU65)),$AT$24:$AT$279,0))," ") -> 493.575 | AW65: 42 | AX65: =IF(INDEX($V$51:$AK$66,AM65,AN65)>0,INDEX($V$51:$AK$66,AM65,AN65),"") -> 461.425 | AY65: =IFERROR(RANK(AX65,$AX$24:$AX$279,1)+COUNTIF($AX$24:AX65,AX65)-1,"") -> 34 | AZ65: =IFERROR(INDEX($AX$24:$AX$279,MATCH(SMALL($AY$24:$AY$279,ROWS($AZ$24:AZ65)),$AY$24:$AY$279,0))," ") -> 463.85 | BA65: =IF(ISNUMBER(AZ65),(IF(COUNTIF( AZ$24:AZ65, AZ65 )=1,AZ65,"")),"") -> 463.85 | BB65: =IFERROR(RANK(BA65,$BA$24:$BA$279,1)+COUNTIF($BA$24:BA65,BA65)-1,"") -> 41 | BC65: =IFERROR(INDEX($BA$24:$BA$279,MATCH(SMALL($BB$24:$BB$279,ROWS($BC$24:BC65)),$BB$24:$BB$279,0))," ") -> 464.2 | BE65: 42 | BF65: 1 | BG65: 42 | BH65: =IF(INDEX($V$71:$AK$326,BE65,BF65)>0,INDEX($V$71:$AK$326,BE65,BF65),"") -> 489.275 | BI65: =IFERROR(RANK(BH65,$BH$24:$BH$4119,1)+COUNTIF($BH$24:BH65,BH65)-1,"") -> 135 | BJ65: =IFERROR(INDEX($BH$24:$BH$4119,MATCH(SMALL($BI$24:$BI$4119,ROWS($BJ$24:BJ65)),$BI$24:$BI$4119,0))," ") -> 486.875 | BK65: =IF(ISNUMBER(BJ65),(IF(COUNTIF( BJ$24:BJ65, BJ65 )=1,BJ65,"")),"") ->  | BL65: =IFERROR(RANK(BK65,$BK$24:$BK$4119,1)+COUNTIF($BK$24:BK65,BK65)-1,"") ->  | BM65: =IFERROR(INDEX($BK$24:$BK$4119,MATCH(SMALL($BL$24:$BL$4119,ROWS($BM$24:BM65)),$BL$24:$BL$4119,0))," ") -> 489.05 | BO65: 29 | BP65: 491.1 | BQ65: 27.25 | BR65: =IF(ISNUMBER($BP65),ABS($BP65-BR$35),"") -> 27.75 | BS65: 28.475 | BT65: 29.4 | BU65: 30.525 | BV65: 31.35 | BW65: 31.975 | BX65: 32.375 | BY65: 57.025 | BZ65: 57.55 | CA65: 58.575 | CB65: 59.925 | CC65: 60.65 | CD65: 61.05 | CE65: 61.875 | CF65: 62.5 | CI65: 29 | CJ65: 491.1 | CK65: 0 | CL65: 0 | CM65: 0 | CN65: 0 | CO65: 0 | CP65: 0 | CQ65: 0 | CR65: 0 | CS65: 0 | CT65: 0 | CU65: 0 | CV65: 0 | CW65: 0 | CX65: 0 | CY65: 0 | CZ65: 0
P66: 495.125 | Q66: 466.125 | R66: 489.55 | U66: T 16 | V66: 447.85 | W66: 449.35 | X66: 451.525 | Y66: 454.3 | Z66: 457.675 | AA66: 460.15 | AB66: 462.025 | AC66: 463.225 | AD66: 537.175 | AE66: 538.75 | AF66: =IF(AND($U26>0,AF416>0),MIN($U26,AF416)-2*ABS(AF416-$U26),"") -> 541.825 | AG66: =IF(AND($U26>0,AG416>0),MIN($U26,AG416)-2*ABS(AG416-$U26),"") -> 545.875 | AH66: =IF(AND($U26>0,AH416>0),MIN($U26,AH416)-2*ABS(AH416-$U26),"") -> 548.05 | AI66: =IF(AND($U26>0,AI416>0),MIN($U26,AI416)-2*ABS(AI416-$U26),"") -> 549.25 | AJ66: =IF(AND($U26>0,AJ416>0),MIN($U26,AJ416)-2*ABS(AJ416-$U26),"") -> 551.725 | AM66: 11 | AN66: 3 | AO66: 43 | AP66: =IF(INDEX($V$31:$AK$46,AM66,AN66)>0,INDEX($V$31:$AK$46,AM66,AN66),"") -> 489.475 | AQ66: =IFERROR(RANK(AP66,$AP$24:$AP$279,1)+COUNTIF($AP$24:AP66,AP66)-1,"") -> 25 | AR66: =IFERROR(INDEX($AP$24:$AP$279,MATCH(SMALL($AQ$24:$AQ$279,ROWS($AR$24:AR66)),$AQ$24:$AQ$279,0))," ") -> 493.175 | AS66: =IF(ISNUMBER(AR66),(IF(COUNTIF( AR$24:AR66, AR66 )=1,AR66,"")),"") -> 493.175 | AT66: =IFERROR(RANK(AS66,$AS$24:$AS$279,1)+COUNTIF($AS$24:AS66,AS66)-1,"") -> 40 | AU66: =IFERROR(INDEX($AS$24:$AS$279,MATCH(SMALL($AT$24:$AT$279,ROWS(AU$24:$AU66)),$AT$24:$AT$279,0))," ") -> 493.875 | AW66: 43 | AX66: =IF(INDEX($V$51:$AK$66,AM66,AN66)>0,INDEX($V$51:$AK$66,AM66,AN66),"") -> 459.375 | AY66: =IFERROR(RANK(AX66,$AX$24:$AX$279,1)+COUNTIF($AX$24:AX66,AX66)-1,"") -> 27 | AZ66: =IFERROR(INDEX($AX$24:$AX$279,MATCH(SMALL($AY$24:$AY$279,ROWS($AZ$24:AZ66)),$AY$24:$AY$279,0))," ") -> 464.2 | BA66: =IF(ISNUMBER(AZ66),(IF(COUNTIF( AZ$24:AZ66, AZ66 )=1,AZ66,"")),"") -> 464.2 | BB66: =IFERROR(RANK(BA66,$BA$24:$BA$279,1)+COUNTIF($BA$24:BA66,BA66)-1,"") -> 42 | BC66: =IFERROR(INDEX($BA$24:$BA$279,MATCH(SMALL($BB$24:$BB$279,ROWS($BC$24:BC66)),$BB$24:$BB$279,0))," ") -> 464.475 | BE66: 43 | BF66: 1 | BG66: 43 | BH66: =IF(INDEX($V$71:$AK$326,BE66,BF66)>0,INDEX($V$71:$AK$326,BE66,BF66),"") -> 488.25 | BI66: =IFERROR(RANK(BH66,$BH$24:$BH$4119,1)+COUNTIF($BH$24:BH66,BH66)-1,"") -> 83 | BJ66: =IFERROR(INDEX($BH$24:$BH$4119,MATCH(SMALL($BI$24:$BI$4119,ROWS($BJ$24:BJ66)),$BI$24:$BI$4119,0))," ") -> 486.9 | BK66: =IF(ISNUMBER(BJ66),(IF(COUNTIF( BJ$24:BJ66, BJ66 )=1,BJ66,"")),"") -> 486.9 | BL66: =IFERROR(RANK(BK66,$BK$24:$BK$4119,1)+COUNTIF($BK$24:BK66,BK66)-1,"") -> 19 | BM66: =IFERROR(INDEX($BK$24:$BK$4119,MATCH(SMALL($BL$24:$BL$4119,ROWS($BM$24:BM66)),$BL$24:$BL$4119,0))," ") -> 489.075 | BO66: 30 | BP66: 491.3 | BQ66: 27.05 | BR66: 27.55 | BS66: 28.275 | BT66: 29.2 | BU66: 30.325 | BV66: 31.15 | BW66: 31.775 | BX66: 32.175 | BY66: 56.825 | BZ66: 57.35 | CA66: 58.375 | CB66: 59.725 | CC66: 60.45 | CD66: 60.85 | CE66: 61.675 | CF66: 62.3 | CI66: 30 | CJ66: 491.3 | CK66: 0 | CL66: 0 | CM66: 0 | CN66: 0 | CO66: 0 | CP66: 0 | CQ66: 0 | CR66: 0 | CS66: 0 | CT66: 0 | CU66: 0 | CV66: 0 | CW66: 0 | CX66: 0 | CY66: 0 | CZ66: 0
P67: 495.225 | Q67: 466.925 | R67: 489.675 | AM67: 12 | AN67: 3 | AO67: 44 | AP67: =IF(INDEX($V$31:$AK$46,AM67,AN67)>0,INDEX($V$31:$AK$46,AM67,AN67),"") -> 488.125 | AQ67: =IFERROR(RANK(AP67,$AP$24:$AP$279,1)+COUNTIF($AP$24:AP67,AP67)-1,"") -> 20 | AR67: =IFERROR(INDEX($AP$24:$AP$279,MATCH(SMALL($AQ$24:$AQ$279,ROWS($AR$24:AR67)),$AQ$24:$AQ$279,0))," ") -> 493.35 | AS67: =IF(ISNUMBER(AR67),(IF(COUNTIF( AR$24:AR67, AR67 )=1,AR67,"")),"") -> 493.35 | AT67: =IFERROR(RANK(AS67,$AS$24:$AS$279,1)+COUNTIF($AS$24:AS67,AS67)-1,"") -> 41 | AU67: =IFERROR(INDEX($AS$24:$AS$279,MATCH(SMALL($AT$24:$AT$279,ROWS(AU$24:$AU67)),$AT$24:$AT$279,0))," ") -> 493.975 | AW67: 44 | AX67: =IF(INDEX($V$51:$AK$66,AM67,AN67)>0,INDEX($V$51:$AK$66,AM67,AN67),"") -> 456.675 | AY67: =IFERROR(RANK(AX67,$AX$24:$AX$279,1)+COUNTIF($AX$24:AX67,AX67)-1,"") -> 18 | AZ67: =IFERROR(INDEX($AX$24:$AX$279,MATCH(SMALL($AY$24:$AY$279,ROWS($AZ$24:AZ67)),$AY$24:$AY$279,0))," ") -> 464.475 | BA67: =IF(ISNUMBER(AZ67),(IF(COUNTIF( AZ$24:AZ67, AZ67 )=1,AZ67,"")),"") -> 464.475 | BB67: =IFERROR(RANK(BA67,$BA$24:$BA$279,1)+COUNTIF($BA$24:BA67,BA67)-1,"") -> 43 | BC67: =IFERROR(INDEX($BA$24:$BA$279,MATCH(SMALL($BB$24:$BB$279,ROWS($BC$24:BC67)),$BB$24:$BB$279,0))," ") -> 464.925 | BE67: 44 | BF67: 1 | BG67: 44 | BH67: =IF(INDEX($V$71:$AK$326,BE67,BF67)>0,INDEX($V$71:$AK$326,BE67,BF67),"") -> 486.9 | BI67: =IFERROR(RANK(BH67,$BH$24:$BH$4119,1)+COUNTIF($BH$24:BH67,BH67)-1,"") -> 43 | BJ67: =IFERROR(INDEX($BH$24:$BH$4119,MATCH(SMALL($BI$24:$BI$4119,ROWS($BJ$24:BJ67)),$BI$24:$BI$4119,0))," ") -> 486.9 | BK67: =IF(ISNUMBER(BJ67),(IF(COUNTIF( BJ$24:BJ67, BJ67 )=1,BJ67,"")),"") ->  | BL67: =IFERROR(RANK(BK67,$BK$24:$BK$4119,1)+COUNTIF($BK$24:BK67,BK67)-1,"") ->  | BM67: =IFERROR(INDEX($BK$24:$BK$4119,MATCH(SMALL($BL$24:$BL$4119,ROWS($BM$24:BM67)),$BL$24:$BL$4119,0))," ") -> 489.15 | BO67: 31 | BP67: 491.325 | BQ67: 27.025 | BR67: 27.525 | BS67: 28.25 | BT67: 29.175 | BU67: 30.3 | BV67: 31.125 | BW67: 31.75 | BX67: 32.15 | BY67: 56.8 | BZ67: 57.325 | CA67: 58.35 | CB67: 59.7 | CC67: 60.425 | CD67: 60.825 | CE67: 61.65 | CF67: 62.275 | CI67: 31 | CJ67: 491.325 | CK67: 0 | CL67: 0 | CM67: 0 | CN67: 0 | CO67: 0 | CP67: 0 | CQ67: 0 | CR67: 0 | CS67: 0 | CT67: 0 | CU67: 0 | CV67: 0 | CW67: 0 | CX67: 0 | CY67: 0 | CZ67: 0
P68: 495.925 | Q68: 467.175 | R68: 489.775 | AM68: 13 | AN68: 3 | AO68: 45 | AP68: =IF(INDEX($V$31:$AK$46,AM68,AN68)>0,INDEX($V$31:$AK$46,AM68,AN68),"") -> 487.4 | AQ68: =IFERROR(RANK(AP68,$AP$24:$AP$279,1)+COUNTIF($AP$24:AP68,AP68)-1,"") -> 16 | AR68: =IFERROR(INDEX($AP$24:$AP$279,MATCH(SMALL($AQ$24:$AQ$279,ROWS($AR$24:AR68)),$AQ$24:$AQ$279,0))," ") -> 493.575 | AS68: =IF(ISNUMBER(AR68),(IF(COUNTIF( AR$24:AR68, AR68 )=1,AR68,"")),"") -> 493.575 | AT68: =IFERROR(RANK(AS68,$AS$24:$AS$279,1)+COUNTIF($AS$24:AS68,AS68)-1,"") -> 42 | AU68: =IFERROR(INDEX($AS$24:$AS$279,MATCH(SMALL($AT$24:$AT$279,ROWS(AU$24:$AU68)),$AT$24:$AT$279,0))," ") -> 494 | AW68: 45 | AX68: =IF(INDEX($V$51:$AK$66,AM68,AN68)>0,INDEX($V$51:$AK$66,AM68,AN68),"") -> 455.225 | AY68: =IFERROR(RANK(AX68,$AX$24:$AX$279,1)+COUNTIF($AX$24:AX68,AX68)-1,"") -> 15 | AZ68: =IFERROR(INDEX($AX$24:$AX$279,MATCH(SMALL($AY$24:$AY$279,ROWS($AZ$24:AZ68)),$AY$24:$AY$279,0))," ") -> 464.925 | BA68: =IF(ISNUMBER(AZ68),(IF(COUNTIF( AZ$24:AZ68, AZ68 )=1,AZ68,"")),"") -> 464.925 | BB68: =IFERROR(RANK(BA68,$BA$24:$BA$279,1)+COUNTIF($BA$24:BA68,BA68)-1,"") -> 44 | BC68: =IFERROR(INDEX($BA$24:$BA$279,MATCH(SMALL($BB$24:$BB$279,ROWS($BC$24:BC68)),$BB$24:$BB$279,0))," ") -> 465.25 | BE68: 45 | BF68: 1 | BG68: 45 | BH68: =IF(INDEX($V$71:$AK$326,BE68,BF68)>0,INDEX($V$71:$AK$326,BE68,BF68),"") -> 486.175 | BI68: =IFERROR(RANK(BH68,$BH$24:$BH$4119,1)+COUNTIF($BH$24:BH68,BH68)-1,"") -> 26 | BJ68: =IFERROR(INDEX($BH$24:$BH$4119,MATCH(SMALL($BI$24:$BI$4119,ROWS($BJ$24:BJ68)),$BI$24:$BI$4119,0))," ") -> 487 | BK68: =IF(ISNUMBER(BJ68),(IF(COUNTIF( BJ$24:BJ68, BJ68 )=1,BJ68,"")),"") -> 487 | BL68: =IFERROR(RANK(BK68,$BK$24:$BK$4119,1)+COUNTIF($BK$24:BK68,BK68)-1,"") -> 20 | BM68: =IFERROR(INDEX($BK$24:$BK$4119,MATCH(SMALL($BL$24:$BL$4119,ROWS($BM$24:BM68)),$BL$24:$BL$4119,0))," ") -> 489.175 | BO68: 32 | BP68: 491.5 | BQ68: 26.85 | BR68: 27.35 | BS68: 28.075 | BT68: 29 | BU68: 30.125 | BV68: 30.95 | BW68: 31.575 | BX68: 31.975 | BY68: 56.625 | BZ68: 57.15 | CA68: 58.175 | CB68: 59.525 | CC68: 60.25 | CD68: 60.65 | CE68: 61.475 | CF68: 62.1 | CI68: 32 | CJ68: 491.5 | CK68: 0 | CL68: 0 | CM68: 0 | CN68: 0 | CO68: 0 | CP68: 0 | CQ68: 0 | CR68: 0 | CS68: 0 | CT68: 0 | CU68: 0 | CV68: 0 | CW68: 0 | CX68: 0 | CY68: 0 | CZ68: 0
P69: 496.25 | Q69: 467.575 | R69: 489.8 | T69: Three Tone 3rd Order Cross Modulation Products | AM69: 14 | AN69: 3 | AO69: 46 | AP69: =IF(INDEX($V$31:$AK$46,AM69,AN69)>0,INDEX($V$31:$AK$46,AM69,AN69),"") -> 487 | AQ69: =IFERROR(RANK(AP69,$AP$24:$AP$279,1)+COUNTIF($AP$24:AP69,AP69)-1,"") -> 13 | AR69: =IFERROR(INDEX($AP$24:$AP$279,MATCH(SMALL($AQ$24:$AQ$279,ROWS($AR$24:AR69)),$AQ$24:$AQ$279,0))," ") -> 493.875 | AS69: =IF(ISNUMBER(AR69),(IF(COUNTIF( AR$24:AR69, AR69 )=1,AR69,"")),"") -> 493.875 | AT69: =IFERROR(RANK(AS69,$AS$24:$AS$279,1)+COUNTIF($AS$24:AS69,AS69)-1,"") -> 43 | AU69: =IFERROR(INDEX($AS$24:$AS$279,MATCH(SMALL($AT$24:$AT$279,ROWS(AU$24:$AU69)),$AT$24:$AT$279,0))," ") -> 494.4 | AW69: 46 | AX69: =IF(INDEX($V$51:$AK$66,AM69,AN69)>0,INDEX($V$51:$AK$66,AM69,AN69),"") -> 454.425 | AY69: =IFERROR(RANK(AX69,$AX$24:$AX$279,1)+COUNTIF($AX$24:AX69,AX69)-1,"") -> 13 | AZ69: =IFERROR(INDEX($AX$24:$AX$279,MATCH(SMALL($AY$24:$AY$279,ROWS($AZ$24:AZ69)),$AY$24:$AY$279,0))," ") -> 465.25 | BA69: =IF(ISNUMBER(AZ69),(IF(COUNTIF( AZ$24:AZ69, AZ69 )=1,AZ69,"")),"") -> 465.25 | BB69: =IFERROR(RANK(BA69,$BA$24:$BA$279,1)+COUNTIF($BA$24:BA69,BA69)-1,"") -> 45 | BC69: =IFERROR(INDEX($BA$24:$BA$279,MATCH(SMALL($BB$24:$BB$279,ROWS($BC$24:BC69)),$BB$24:$BB$279,0))," ") -> 465.3 | BE69: 46 | BF69: 1 | BG69: 46 | BH69: =IF(INDEX($V$71:$AK$326,BE69,BF69)>0,INDEX($V$71:$AK$326,BE69,BF69),"") -> 485.775 | BI69: =IFERROR(RANK(BH69,$BH$24:$BH$4119,1)+COUNTIF($BH$24:BH69,BH69)-1,"") -> 21 | BJ69: =IFERROR(INDEX($BH$24:$BH$4119,MATCH(SMALL($BI$24:$BI$4119,ROWS($BJ$24:BJ69)),$BI$24:$BI$4119,0))," ") -> 487 | BK69: =IF(ISNUMBER(BJ69),(IF(COUNTIF( BJ$24:BJ69, BJ69 )=1,BJ69,"")),"") ->  | BL69: =IFERROR(RANK(BK69,$BK$24:$BK$4119,1)+COUNTIF($BK$24:BK69,BK69)-1,"") ->  | BM69: =IFERROR(INDEX($BK$24:$BK$4119,MATCH(SMALL($BL$24:$BL$4119,ROWS($BM$24:BM69)),$BL$24:$BL$4119,0))," ") -> 489.275 | BO69: 33 | BP69: 491.925 | BQ69: 26.425 | BR69: 26.925 | BS69: 27.65 | BT69: 28.575 | BU69: 29.7 | BV69: 30.525 | BW69: 31.15 | BX69: 31.55 | BY69: 56.2 | BZ69: 56.725 | CA69: 57.75 | CB69: 59.1 | CC69: 59.825 | CD69: 60.225 | CE69: 61.05 | CF69: 61.675 | CI69: 33 | CJ69: 491.925 | CK69: 0 | CL69: 0 | CM69: 0 | CN69: 0 | CO69: 0 | CP69: 0 | CQ69: 0 | CR69: 0 | CS69: 0 | CT69: 0 | CU69: 0 | CV69: 0 | CW69: 0 | CX69: 0 | CY69: 0 | CZ69: 0
P70: 496.475 | Q70: 468 | R70: 489.875 | V70: T 1 | W70: T 2 | X70: T 3 | Y70: T 4 | Z70: T 5 | AA70: T 6 | AB70: T 7 | AC70: T 8 | AD70: T 9 | AE70: T 10 | AF70: T 11 | AG70: T 12 | AH70: T 13 | AI70: T 14 | AJ70: T 15 | AK70: T 16 | AM70: 15 | AN70: 3 | AO70: 47 | AP70: =IF(INDEX($V$31:$AK$46,AM70,AN70)>0,INDEX($V$31:$AK$46,AM70,AN70),"") -> 486.175 | AQ70: =IFERROR(RANK(AP70,$AP$24:$AP$279,1)+COUNTIF($AP$24:AP70,AP70)-1,"") -> 11 | AR70: =IFERROR(INDEX($AP$24:$AP$279,MATCH(SMALL($AQ$24:$AQ$279,ROWS($AR$24:AR70)),$AQ$24:$AQ$279,0))," ") -> 493.975 | AS70: =IF(ISNUMBER(AR70),(IF(COUNTIF( AR$24:AR70, AR70 )=1,AR70,"")),"") -> 493.975 | AT70: =IFERROR(RANK(AS70,$AS$24:$AS$279,1)+COUNTIF($AS$24:AS70,AS70)-1,"") -> 44 | AU70: =IFERROR(INDEX($AS$24:$AS$279,MATCH(SMALL($AT$24:$AT$279,ROWS(AU$24:$AU70)),$AT$24:$AT$279,0))," ") -> 494.6 | AW70: 47 | AX70: =IF(INDEX($V$51:$AK$66,AM70,AN70)>0,INDEX($V$51:$AK$66,AM70,AN70),"") -> 452.775 | AY70: =IFERROR(RANK(AX70,$AX$24:$AX$279,1)+COUNTIF($AX$24:AX70,AX70)-1,"") -> 9 | AZ70: =IFERROR(INDEX($AX$24:$AX$279,MATCH(SMALL($AY$24:$AY$279,ROWS($AZ$24:AZ70)),$AY$24:$AY$279,0))," ") -> 465.3 | BA70: =IF(ISNUMBER(AZ70),(IF(COUNTIF( AZ$24:AZ70, AZ70 )=1,AZ70,"")),"") -> 465.3 | BB70: =IFERROR(RANK(BA70,$BA$24:$BA$279,1)+COUNTIF($BA$24:BA70,BA70)-1,"") -> 46 | BC70: =IFERROR(INDEX($BA$24:$BA$279,MATCH(SMALL($BB$24:$BB$279,ROWS($BC$24:BC70)),$BB$24:$BB$279,0))," ") -> 465.525 | BE70: 47 | BF70: 1 | BG70: 47 | BH70: =IF(INDEX($V$71:$AK$326,BE70,BF70)>0,INDEX($V$71:$AK$326,BE70,BF70),"") -> 484.95 | BI70: =IFERROR(RANK(BH70,$BH$24:$BH$4119,1)+COUNTIF($BH$24:BH70,BH70)-1,"") -> 9 | BJ70: =IFERROR(INDEX($BH$24:$BH$4119,MATCH(SMALL($BI$24:$BI$4119,ROWS($BJ$24:BJ70)),$BI$24:$BI$4119,0))," ") -> 487.1 | BK70: =IF(ISNUMBER(BJ70),(IF(COUNTIF( BJ$24:BJ70, BJ70 )=1,BJ70,"")),"") -> 487.1 | BL70: =IFERROR(RANK(BK70,$BK$24:$BK$4119,1)+COUNTIF($BK$24:BK70,BK70)-1,"") -> 21 | BM70: =IFERROR(INDEX($BK$24:$BK$4119,MATCH(SMALL($BL$24:$BL$4119,ROWS($BM$24:BM70)),$BL$24:$BL$4119,0))," ") -> 489.35 | BO70: 34 | BP70: 492.225 | BQ70: 26.125 | BR70: 26.625 | BS70: 27.35 | BT70: 28.275 | BU70: 29.4 | BV70: 30.225 | BW70: 30.85 | BX70: 31.25 | BY70: 55.9 | BZ70: 56.425 | CA70: 57.45 | CB70: 58.8 | CC70: 59.525 | CD70: 59.925 | CE70: 60.75 | CF70: 61.375 | CI70: 34 | CJ70: 492.225 | CK70: 0 | CL70: 0 | CM70: 0 | CN70: 0 | CO70: 0 | CP70: 0 | CQ70: 0 | CR70: 0 | CS70: 0 | CT70: 0 | CU70: 0 | CV70: 0 | CW70: 0 | CX70: 0 | CY70: 0 | CZ70: 0
P71: 496.775 | Q71: 468.375 | R71: 489.975 | T71: =V401 -> 518.35 | U71: T 1 | AM71: 16 | AN71: 3 | AO71: 48 | AP71: =IF(INDEX($V$31:$AK$46,AM71,AN71)>0,INDEX($V$31:$AK$46,AM71,AN71),"") -> 485.55 | AQ71: =IFERROR(RANK(AP71,$AP$24:$AP$279,1)+COUNTIF($AP$24:AP71,AP71)-1,"") -> 8 | AR71: =IFERROR(INDEX($AP$24:$AP$279,MATCH(SMALL($AQ$24:$AQ$279,ROWS($AR$24:AR71)),$AQ$24:$AQ$279,0))," ") -> 494 | AS71: =IF(ISNUMBER(AR71),(IF(COUNTIF( AR$24:AR71, AR71 )=1,AR71,"")),"") -> 494 | AT71: =IFERROR(RANK(AS71,$AS$24:$AS$279,1)+COUNTIF($AS$24:AS71,AS71)-1,"") -> 45 | AU71: =IFERROR(INDEX($AS$24:$AS$279,MATCH(SMALL($AT$24:$AT$279,ROWS(AU$24:$AU71)),$AT$24:$AT$279,0))," ") -> 494.8 | AW71: 48 | AX71: =IF(INDEX($V$51:$AK$66,AM71,AN71)>0,INDEX($V$51:$AK$66,AM71,AN71),"") -> 451.525 | AY71: =IFERROR(RANK(AX71,$AX$24:$AX$279,1)+COUNTIF($AX$24:AX71,AX71)-1,"") -> 6 | AZ71: =IFERROR(INDEX($AX$24:$AX$279,MATCH(SMALL($AY$24:$AY$279,ROWS($AZ$24:AZ71)),$AY$24:$AY$279,0))," ") -> 465.525 | BA71: =IF(ISNUMBER(AZ71),(IF(COUNTIF( AZ$24:AZ71, AZ71 )=1,AZ71,"")),"") -> 465.525 | BB71: =IFERROR(RANK(BA71,$BA$24:$BA$279,1)+COUNTIF($BA$24:BA71,BA71)-1,"") -> 47 | BC71: =IFERROR(INDEX($BA$24:$BA$279,MATCH(SMALL($BB$24:$BB$279,ROWS($BC$24:BC71)),$BB$24:$BB$279,0))," ") -> 465.725 | BE71: 48 | BF71: 1 | BG71: 48 | BH71: =IF(INDEX($V$71:$AK$326,BE71,BF71)>0,INDEX($V$71:$AK$326,BE71,BF71),"") -> 484.325 | BI71: =IFERROR(RANK(BH71,$BH$24:$BH$4119,1)+COUNTIF($BH$24:BH71,BH71)-1,"") -> 5 | BJ71: =IFERROR(INDEX($BH$24:$BH$4119,MATCH(SMALL($BI$24:$BI$4119,ROWS($BJ$24:BJ71)),$BI$24:$BI$4119,0))," ") -> 487.1 | BK71: =IF(ISNUMBER(BJ71),(IF(COUNTIF( BJ$24:BJ71, BJ71 )=1,BJ71,"")),"") ->  | BL71: =IFERROR(RANK(BK71,$BK$24:$BK$4119,1)+COUNTIF($BK$24:BK71,BK71)-1,"") ->  | BM71: =IFERROR(INDEX($BK$24:$BK$4119,MATCH(SMALL($BL$24:$BL$4119,ROWS($BM$24:BM71)),$BL$24:$BL$4119,0))," ") -> 489.45 | BO71: 35 | BP71: 492.35 | BQ71: 26 | BR71: 26.5 | BS71: 27.225 | BT71: 28.15 | BU71: 29.275 | BV71: 30.1 | BW71: 30.725 | BX71: 31.125 | BY71: 55.775 | BZ71: 56.3 | CA71: 57.325 | CB71: 58.675 | CC71: 59.4 | CD71: 59.8 | CE71: 60.625 | CF71: 61.25 | CI71: 35 | CJ71: 492.35 | CK71: 0 | CL71: 0 | CM71: 0 | CN71: 0 | CO71: 0 | CP71: 0 | CQ71: 0 | CR71: 0 | CS71: 0 | CT71: 0 | CU71: 0 | CV71: 0 | CW71: 0 | CX71: 0 | CY71: 0 | CZ71: 0
P72: 497.275 | Q72: 468.625 | R72: 490.075 | T72: Ch. 1 3T3O | U72: T 2 | X72: =IF(AND($U12>0,X402>0,$T$71>0),$T$71+X12,"0") -> 519.075 | Y72: 520 | Z72: 521.125 | AA72: 521.95 | AB72: 522.575 | AC72: 522.975 | AD72: 547.625 | AE72: 548.15 | AF72: 549.175 | AG72: 550.525 | AH72: 551.25 | AI72: 551.65 | AJ72: 552.475 | AK72: 553.1 | AM72: 1 | AN72: 4 | AO72: 49 | AP72: =IF(INDEX($V$31:$AK$46,AM72,AN72)>0,INDEX($V$31:$AK$46,AM72,AN72),"") -> 522.65 | AQ72: =IFERROR(RANK(AP72,$AP$24:$AP$279,1)+COUNTIF($AP$24:AP72,AP72)-1,"") -> 97 | AR72: =IFERROR(INDEX($AP$24:$AP$279,MATCH(SMALL($AQ$24:$AQ$279,ROWS($AR$24:AR72)),$AQ$24:$AQ$279,0))," ") -> 494.4 | AS72: =IF(ISNUMBER(AR72),(IF(COUNTIF( AR$24:AR72, AR72 )=1,AR72,"")),"") -> 494.4 | AT72: =IFERROR(RANK(AS72,$AS$24:$AS$279,1)+COUNTIF($AS$24:AS72,AS72)-1,"") -> 46 | AU72: =IFERROR(INDEX($AS$24:$AS$279,MATCH(SMALL($AT$24:$AT$279,ROWS(AU$24:$AU72)),$AT$24:$AT$279,0))," ") -> 495.125 | AW72: 49 | AX72: =IF(INDEX($V$51:$AK$66,AM72,AN72)>0,INDEX($V$51:$AK$66,AM72,AN72),"") -> 524.8 | AY72: =IFERROR(RANK(AX72,$AX$24:$AX$279,1)+COUNTIF($AX$24:AX72,AX72)-1,"") -> 102 | AZ72: =IFERROR(INDEX($AX$24:$AX$279,MATCH(SMALL($AY$24:$AY$279,ROWS($AZ$24:AZ72)),$AY$24:$AY$279,0))," ") -> 465.725 | BA72: =IF(ISNUMBER(AZ72),(IF(COUNTIF( AZ$24:AZ72, AZ72 )=1,AZ72,"")),"") -> 465.725 | BB72: =IFERROR(RANK(BA72,$BA$24:$BA$279,1)+COUNTIF($BA$24:BA72,BA72)-1,"") -> 48 | BC72: =IFERROR(INDEX($BA$24:$BA$279,MATCH(SMALL($BB$24:$BB$279,ROWS($BC$24:BC72)),$BB$24:$BB$279,0))," ") -> 466.125 | BE72: 49 | BF72: 1 | BG72: 49 | BH72: =IF(INDEX($V$71:$AK$326,BE72,BF72)>0,INDEX($V$71:$AK$326,BE72,BF72),"") ->  | BI72: =IFERROR(RANK(BH72,$BH$24:$BH$4119,1)+COUNTIF($BH$24:BH72,BH72)-1,"") ->  | BJ72: =IFERROR(INDEX($BH$24:$BH$4119,MATCH(SMALL($BI$24:$BI$4119,ROWS($BJ$24:BJ72)),$BI$24:$BI$4119,0))," ") -> 487.1 | BK72: =IF(ISNUMBER(BJ72),(IF(COUNTIF( BJ$24:BJ72, BJ72 )=1,BJ72,"")),"") ->  | BL72: =IFERROR(RANK(BK72,$BK$24:$BK$4119,1)+COUNTIF($BK$24:BK72,BK72)-1,"") ->  | BM72: =IFERROR(INDEX($BK$24:$BK$4119,MATCH(SMALL($BL$24:$BL$4119,ROWS($BM$24:BM72)),$BL$24:$BL$4119,0))," ") -> 489.55 | BO72: 36 | BP72: 492.55 | BQ72: 25.8 | BR72: 26.3 | BS72: 27.025 | BT72: 27.95 | BU72: 29.075 | BV72: 29.9 | BW72: 30.525 | BX72: 30.925 | BY72: 55.575 | BZ72: 56.1 | CA72: 57.125 | CB72: 58.475 | CC72: 59.2 | CD72: 59.6 | CE72: 60.425 | CF72: 61.05 | CI72: 36 | CJ72: 492.55 | CK72: 0 | CL72: 0 | CM72: 0 | CN72: 0 | CO72: 0 | CP72: 0 | CQ72: 0 | CR72: 0 | CS72: 0 | CT72: 0 | CU72: 0 | CV72: 0 | CW72: 0 | CX72: 0 | CY72: 0 | CZ72: 0
P73: 497.5 | Q73: 469.875 | R73: 490.175 | U73: T 3 | W73: =IF(AND($U13>0,W403>0,$T$71>0),$T$71-W13,"0") -> 517.625 | Y73: =IF(AND($U13>0,Y403>0,$T$71>0),$T$71+Y13,"0") -> 519.275 | Z73: 520.4 | AA73: 521.225 | AB73: 521.85 | AC73: 522.25 | AD73: 546.9 | AE73: 547.425 | AF73: 548.45 | AG73: 549.8 | AH73: 550.525 | AI73: 550.925 | AJ73: 551.75 | AK73: 552.375 | AM73: 2 | AN73: 4 | AO73: 50 | AP73: =IF(INDEX($V$31:$AK$46,AM73,AN73)>0,INDEX($V$31:$AK$46,AM73,AN73),"") -> 522.15 | AQ73: =IFERROR(RANK(AP73,$AP$24:$AP$279,1)+COUNTIF($AP$24:AP73,AP73)-1,"") -> 96 | AR73: =IFERROR(INDEX($AP$24:$AP$279,MATCH(SMALL($AQ$24:$AQ$279,ROWS($AR$24:AR73)),$AQ$24:$AQ$279,0))," ") -> 494.6 | AS73: =IF(ISNUMBER(AR73),(IF(COUNTIF( AR$24:AR73, AR73 )=1,AR73,"")),"") -> 494.6 | AT73: =IFERROR(RANK(AS73,$AS$24:$AS$279,1)+COUNTIF($AS$24:AS73,AS73)-1,"") -> 47 | AU73: =IFERROR(INDEX($AS$24:$AS$279,MATCH(SMALL($AT$24:$AT$279,ROWS(AU$24:$AU73)),$AT$24:$AT$279,0))," ") -> 495.225 | AW73: 50 | AX73: =IF(INDEX($V$51:$AK$66,AM73,AN73)>0,INDEX($V$51:$AK$66,AM73,AN73),"") -> 523.8 | AY73: =IFERROR(RANK(AX73,$AX$24:$AX$279,1)+COUNTIF($AX$24:AX73,AX73)-1,"") -> 97 | AZ73: =IFERROR(INDEX($AX$24:$AX$279,MATCH(SMALL($AY$24:$AY$279,ROWS($AZ$24:AZ73)),$AY$24:$AY$279,0))," ") -> 466.125 | BA73: =IF(ISNUMBER(AZ73),(IF(COUNTIF( AZ$24:AZ73, AZ73 )=1,AZ73,"")),"") -> 466.125 | BB73: =IFERROR(RANK(BA73,$BA$24:$BA$279,1)+COUNTIF($BA$24:BA73,BA73)-1,"") -> 49 | BC73: =IFERROR(INDEX($BA$24:$BA$279,MATCH(SMALL($BB$24:$BB$279,ROWS($BC$24:BC73)),$BB$24:$BB$279,0))," ") -> 466.925 | BE73: 50 | BF73: 1 | BG73: 50 | BH73: =IF(INDEX($V$71:$AK$326,BE73,BF73)>0,INDEX($V$71:$AK$326,BE73,BF73),"") -> 520 | BI73: =IFERROR(RANK(BH73,$BH$24:$BH$4119,1)+COUNTIF($BH$24:BH73,BH73)-1,"") -> 937 | BJ73: =IFERROR(INDEX($BH$24:$BH$4119,MATCH(SMALL($BI$24:$BI$4119,ROWS($BJ$24:BJ73)),$BI$24:$BI$4119,0))," ") -> 487.1 | BK73: =IF(ISNUMBER(BJ73),(IF(COUNTIF( BJ$24:BJ73, BJ73 )=1,BJ73,"")),"") ->  | BL73: =IFERROR(RANK(BK73,$BK$24:$BK$4119,1)+COUNTIF($BK$24:BK73,BK73)-1,"") ->  | BM73: =IFERROR(INDEX($BK$24:$BK$4119,MATCH(SMALL($BL$24:$BL$4119,ROWS($BM$24:BM73)),$BL$24:$BL$4119,0))," ") -> 489.675 | BO73: 37 | BP73: 492.75 | BQ73: 25.6 | BR73: 26.1 | BS73: 26.825 | BT73: 27.75 | BU73: 28.875 | BV73: 29.7 | BW73: 30.325 | BX73: 30.725 | BY73: 55.375 | BZ73: 55.9 | CA73: 56.925 | CB73: 58.275 | CC73: 59 | CD73: 59.4 | CE73: 60.225 | CF73: 60.85 | CI73: 37 | CJ73: 492.75 | CK73: 0 | CL73: 0 | CM73: 0 | CN73: 0 | CO73: 0 | CP73: 0 | CQ73: 0 | CR73: 0 | CS73: 0 | CT73: 0 | CU73: 0 | CV73: 0 | CW73: 0 | CX73: 0 | CY73: 0 | CZ73: 0
P74: 498.025 | Q74: 470.05 | R74: 490.2 | U74: T 4 | W74: 516.7 | X74: =IF(AND($U14>0,X404>0,$T$71>0),$T$71-X14,"0") -> 517.425 | Z74: =IF(AND($U14>0,Z404>0,$T$71>0),$T$71+Z14,"0") -> 519.475 | AA74: 520.3 | AB74: 520.925 | AC74: 521.325 | AD74: 545.975 | AE74: 546.5 | AF74: 547.525 | AG74: 548.875 | AH74: 549.6 | AI74: 550 | AJ74: 550.825 | AK74: 551.45 | AM74: 3 | AN74: 4 | AO74: 51 | AP74: =IF(INDEX($V$31:$AK$46,AM74,AN74)>0,INDEX($V$31:$AK$46,AM74,AN74),"") -> 521.425 | AQ74: =IFERROR(RANK(AP74,$AP$24:$AP$279,1)+COUNTIF($AP$24:AP74,AP74)-1,"") -> 93 | AR74: =IFERROR(INDEX($AP$24:$AP$279,MATCH(SMALL($AQ$24:$AQ$279,ROWS($AR$24:AR74)),$AQ$24:$AQ$279,0))," ") -> 494.8 | AS74: =IF(ISNUMBER(AR74),(IF(COUNTIF( AR$24:AR74, AR74 )=1,AR74,"")),"") -> 494.8 | AT74: =IFERROR(RANK(AS74,$AS$24:$AS$279,1)+COUNTIF($AS$24:AS74,AS74)-1,"") -> 48 | AU74: =IFERROR(INDEX($AS$24:$AS$279,MATCH(SMALL($AT$24:$AT$279,ROWS(AU$24:$AU74)),$AT$24:$AT$279,0))," ") -> 495.925 | AW74: 51 | AX74: =IF(INDEX($V$51:$AK$66,AM74,AN74)>0,INDEX($V$51:$AK$66,AM74,AN74),"") -> 522.35 | AY74: =IFERROR(RANK(AX74,$AX$24:$AX$279,1)+COUNTIF($AX$24:AX74,AX74)-1,"") -> 96 | AZ74: =IFERROR(INDEX($AX$24:$AX$279,MATCH(SMALL($AY$24:$AY$279,ROWS($AZ$24:AZ74)),$AY$24:$AY$279,0))," ") -> 466.925 | BA74: =IF(ISNUMBER(AZ74),(IF(COUNTIF( AZ$24:AZ74, AZ74 )=1,AZ74,"")),"") -> 466.925 | BB74: =IFERROR(RANK(BA74,$BA$24:$BA$279,1)+COUNTIF($BA$24:BA74,BA74)-1,"") -> 50 | BC74: =IFERROR(INDEX($BA$24:$BA$279,MATCH(SMALL($BB$24:$BB$279,ROWS($BC$24:BC74)),$BB$24:$BB$279,0))," ") -> 467.175 | BE74: 51 | BF74: 1 | BG74: 51 | BH74: =IF(INDEX($V$71:$AK$326,BE74,BF74)>0,INDEX($V$71:$AK$326,BE74,BF74),"") -> 519.275 | BI74: =IFERROR(RANK(BH74,$BH$24:$BH$4119,1)+COUNTIF($BH$24:BH74,BH74)-1,"") -> 841 | BJ74: =IFERROR(INDEX($BH$24:$BH$4119,MATCH(SMALL($BI$24:$BI$4119,ROWS($BJ$24:BJ74)),$BI$24:$BI$4119,0))," ") -> 487.2 | BK74: =IF(ISNUMBER(BJ74),(IF(COUNTIF( BJ$24:BJ74, BJ74 )=1,BJ74,"")),"") -> 487.2 | BL74: =IFERROR(RANK(BK74,$BK$24:$BK$4119,1)+COUNTIF($BK$24:BK74,BK74)-1,"") -> 22 | BM74: =IFERROR(INDEX($BK$24:$BK$4119,MATCH(SMALL($BL$24:$BL$4119,ROWS($BM$24:BM74)),$BL$24:$BL$4119,0))," ") -> 489.775 | BO74: 38 | BP74: 492.875 | BQ74: 25.475 | BR74: 25.975 | BS74: 26.7 | BT74: 27.625 | BU74: 28.75 | BV74: 29.575 | BW74: 30.2 | BX74: 30.6 | BY74: 55.25 | BZ74: 55.775 | CA74: 56.8 | CB74: 58.15 | CC74: 58.875 | CD74: 59.275 | CE74: 60.1 | CF74: 60.725 | CI74: 38 | CJ74: 492.875 | CK74: 0 | CL74: 0 | CM74: 0 | CN74: 0 | CO74: 0 | CP74: 0 | CQ74: 0 | CR74: 0 | CS74: 0 | CT74: 0 | CU74: 0 | CV74: 0 | CW74: 0 | CX74: 0 | CY74: 0 | CZ74: 0
P75: 498.3 | Q75: 471.075 | R75: 490.275 | U75: T 5 | W75: 515.575 | X75: 516.3 | Y75: =IF(AND($U15>0,Y405>0,$T$71>0),$T$71-Y15,"0") -> 517.225 | AA75: =IF(AND($U15>0,AA405>0,$T$71>0),$T$71+AA15,"0") -> 519.175 | AB75: 519.8 | AC75: 520.2 | AD75: 544.85 | AE75: 545.375 | AF75: 546.4 | AG75: 547.75 | AH75: 548.475 | AI75: 548.875 | AJ75: 549.7 | AK75: 550.325 | AM75: 4 | AN75: 4 | AO75: 52 | AP75: =IF(INDEX($V$31:$AK$46,AM75,AN75)>0,INDEX($V$31:$AK$46,AM75,AN75),"") ->  | AQ75: =IFERROR(RANK(AP75,$AP$24:$AP$279,1)+COUNTIF($AP$24:AP75,AP75)-1,"") ->  | AR75: =IFERROR(INDEX($AP$24:$AP$279,MATCH(SMALL($AQ$24:$AQ$279,ROWS($AR$24:AR75)),$AQ$24:$AQ$279,0))," ") -> 495.125 | AS75: =IF(ISNUMBER(AR75),(IF(COUNTIF( AR$24:AR75, AR75 )=1,AR75,"")),"") -> 495.125 | AT75: =IFERROR(RANK(AS75,$AS$24:$AS$279,1)+COUNTIF($AS$24:AS75,AS75)-1,"") -> 49 | AU75: =IFERROR(INDEX($AS$24:$AS$279,MATCH(SMALL($AT$24:$AT$279,ROWS(AU$24:$AU75)),$AT$24:$AT$279,0))," ") -> 496.25 | AW75: 52 | AX75: =IF(INDEX($V$51:$AK$66,AM75,AN75)>0,INDEX($V$51:$AK$66,AM75,AN75),"") ->  | AY75: =IFERROR(RANK(AX75,$AX$24:$AX$279,1)+COUNTIF($AX$24:AX75,AX75)-1,"") ->  | AZ75: =IFERROR(INDEX($AX$24:$AX$279,MATCH(SMALL($AY$24:$AY$279,ROWS($AZ$24:AZ75)),$AY$24:$AY$279,0))," ") -> 467.175 | BA75: =IF(ISNUMBER(AZ75),(IF(COUNTIF( AZ$24:AZ75, AZ75 )=1,AZ75,"")),"") -> 467.175 | BB75: =IFERROR(RANK(BA75,$BA$24:$BA$279,1)+COUNTIF($BA$24:BA75,BA75)-1,"") -> 51 | BC75: =IFERROR(INDEX($BA$24:$BA$279,MATCH(SMALL($BB$24:$BB$279,ROWS($BC$24:BC75)),$BB$24:$BB$279,0))," ") -> 467.575 | BE75: 52 | BF75: 1 | BG75: 52 | BH75: =IF(INDEX($V$71:$AK$326,BE75,BF75)>0,INDEX($V$71:$AK$326,BE75,BF75),"") ->  | BI75: =IFERROR(RANK(BH75,$BH$24:$BH$4119,1)+COUNTIF($BH$24:BH75,BH75)-1,"") ->  | BJ75: =IFERROR(INDEX($BH$24:$BH$4119,MATCH(SMALL($BI$24:$BI$4119,ROWS($BJ$24:BJ75)),$BI$24:$BI$4119,0))," ") -> 487.2 | BK75: =IF(ISNUMBER(BJ75),(IF(COUNTIF( BJ$24:BJ75, BJ75 )=1,BJ75,"")),"") ->  | BL75: =IFERROR(RANK(BK75,$BK$24:$BK$4119,1)+COUNTIF($BK$24:BK75,BK75)-1,"") ->  | BM75: =IFERROR(INDEX($BK$24:$BK$4119,MATCH(SMALL($BL$24:$BL$4119,ROWS($BM$24:BM75)),$BL$24:$BL$4119,0))," ") -> 489.8 | BO75: 39 | BP75: 493.15 | BQ75: 25.2 | BR75: 25.7 | BS75: 26.425 | BT75: 27.35 | BU75: 28.475 | BV75: 29.3 | BW75: 29.925 | BX75: 30.325 | BY75: 54.975 | BZ75: 55.5 | CA75: 56.525 | CB75: 57.875 | CC75: 58.6 | CD75: 59 | CE75: 59.825 | CF75: 60.45 | CI75: 39 | CJ75: 493.15 | CK75: 0 | CL75: 0 | CM75: 0 | CN75: 0 | CO75: 0 | CP75: 0 | CQ75: 0 | CR75: 0 | CS75: 0 | CT75: 0 | CU75: 0 | CV75: 0 | CW75: 0 | CX75: 0 | CY75: 0 | CZ75: 0
P76: 498.825 | Q76: 471.1 | R76: 490.3 | U76: T 6 | W76: 514.75 | X76: 515.475 | Y76: 516.4 | Z76: =IF(AND($U16>0,Z406>0,$T$71>0),$T$71-Z16,"0") -> 517.525 | AB76: =IF(AND($U16>0,AB406>0,$T$71>0),$T$71+AB16,"0") -> 518.975 | AC76: 519.375 | AD76: 544.025 | AE76: 544.55 | AF76: 545.575 | AG76: 546.925 | AH76: 547.65 | AI76: 548.05 | AJ76: 548.875 | AK76: 549.5 | AM76: 5 | AN76: 4 | AO76: 53 | AP76: =IF(INDEX($V$31:$AK$46,AM76,AN76)>0,INDEX($V$31:$AK$46,AM76,AN76),"") -> 519.375 | AQ76: =IFERROR(RANK(AP76,$AP$24:$AP$279,1)+COUNTIF($AP$24:AP76,AP76)-1,"") -> 87 | AR76: =IFERROR(INDEX($AP$24:$AP$279,MATCH(SMALL($AQ$24:$AQ$279,ROWS($AR$24:AR76)),$AQ$24:$AQ$279,0))," ") -> 495.125 | AS76: =IF(ISNUMBER(AR76),(IF(COUNTIF( AR$24:AR76, AR76 )=1,AR76,"")),"") ->  | AT76: =IFERROR(RANK(AS76,$AS$24:$AS$279,1)+COUNTIF($AS$24:AS76,AS76)-1,"") ->  | AU76: =IFERROR(INDEX($AS$24:$AS$279,MATCH(SMALL($AT$24:$AT$279,ROWS(AU$24:$AU76)),$AT$24:$AT$279,0))," ") -> 496.475 | AW76: 53 | AX76: =IF(INDEX($V$51:$AK$66,AM76,AN76)>0,INDEX($V$51:$AK$66,AM76,AN76),"") -> 518.25 | AY76: =IFERROR(RANK(AX76,$AX$24:$AX$279,1)+COUNTIF($AX$24:AX76,AX76)-1,"") -> 87 | AZ76: =IFERROR(INDEX($AX$24:$AX$279,MATCH(SMALL($AY$24:$AY$279,ROWS($AZ$24:AZ76)),$AY$24:$AY$279,0))," ") -> 467.575 | BA76: =IF(ISNUMBER(AZ76),(IF(COUNTIF( AZ$24:AZ76, AZ76 )=1,AZ76,"")),"") -> 467.575 | BB76: =IFERROR(RANK(BA76,$BA$24:$BA$279,1)+COUNTIF($BA$24:BA76,BA76)-1,"") -> 52 | BC76: =IFERROR(INDEX($BA$24:$BA$279,MATCH(SMALL($BB$24:$BB$279,ROWS($BC$24:BC76)),$BB$24:$BB$279,0))," ") -> 468 | BE76: 53 | BF76: 1 | BG76: 53 | BH76: =IF(INDEX($V$71:$AK$326,BE76,BF76)>0,INDEX($V$71:$AK$326,BE76,BF76),"") -> 517.225 | BI76: =IFERROR(RANK(BH76,$BH$24:$BH$4119,1)+COUNTIF($BH$24:BH76,BH76)-1,"") -> 627 | BJ76: =IFERROR(INDEX($BH$24:$BH$4119,MATCH(SMALL($BI$24:$BI$4119,ROWS($BJ$24:BJ76)),$BI$24:$BI$4119,0))," ") -> 487.2 | BK76: =IF(ISNUMBER(BJ76),(IF(COUNTIF( BJ$24:BJ76, BJ76 )=1,BJ76,"")),"") ->  | BL76: =IFERROR(RANK(BK76,$BK$24:$BK$4119,1)+COUNTIF($BK$24:BK76,BK76)-1,"") ->  | BM76: =IFERROR(INDEX($BK$24:$BK$4119,MATCH(SMALL($BL$24:$BL$4119,ROWS($BM$24:BM76)),$BL$24:$BL$4119,0))," ") -> 489.875 | BO76: 40 | BP76: 493.175 | BQ76: 25.175 | BR76: 25.675 | BS76: 26.4 | BT76: 27.325 | BU76: 28.45 | BV76: 29.275 | BW76: 29.9 | BX76: 30.3 | BY76: 54.95 | BZ76: 55.475 | CA76: 56.5 | CB76: 57.85 | CC76: 58.575 | CD76: 58.975 | CE76: 59.8 | CF76: 60.425 | CI76: 40 | CJ76: 493.175 | CK76: 0 | CL76: 0 | CM76: 0 | CN76: 0 | CO76: 0 | CP76: 0 | CQ76: 0 | CR76: 0 | CS76: 0 | CT76: 0 | CU76: 0 | CV76: 0 | CW76: 0 | CX76: 0 | CY76: 0 | CZ76: 0
P77: 513.225 | Q77: 471.925 | R77: 490.375 | U77: T 7 | W77: 514.125 | X77: 514.85 | Y77: 515.775 | Z77: 516.9 | AA77: =IF(AND($U17>0,AA407>0,$T$71>0),$T$71-AA17,"0") -> 517.725 | AC77: =IF(AND($U17>0,AC407>0,$T$71>0),$T$71+AC17,"0") -> 518.75 | AD77: 543.4 | AE77: 543.925 | AF77: 544.95 | AG77: 546.3 | AH77: 547.025 | AI77: 547.425 | AJ77: 548.25 | AK77: 548.875 | AM77: 6 | AN77: 4 | AO77: 54 | AP77: =IF(INDEX($V$31:$AK$46,AM77,AN77)>0,INDEX($V$31:$AK$46,AM77,AN77),"") -> 518.55 | AQ77: =IFERROR(RANK(AP77,$AP$24:$AP$279,1)+COUNTIF($AP$24:AP77,AP77)-1,"") -> 84 | AR77: =IFERROR(INDEX($AP$24:$AP$279,MATCH(SMALL($AQ$24:$AQ$279,ROWS($AR$24:AR77)),$AQ$24:$AQ$279,0))," ") -> 495.125 | AS77: =IF(ISNUMBER(AR77),(IF(COUNTIF( AR$24:AR77, AR77 )=1,AR77,"")),"") ->  | AT77: =IFERROR(RANK(AS77,$AS$24:$AS$279,1)+COUNTIF($AS$24:AS77,AS77)-1,"") ->  | AU77: =IFERROR(INDEX($AS$24:$AS$279,MATCH(SMALL($AT$24:$AT$279,ROWS(AU$24:$AU77)),$AT$24:$AT$279,0))," ") -> 496.775 | AW77: 54 | AX77: =IF(INDEX($V$51:$AK$66,AM77,AN77)>0,INDEX($V$51:$AK$66,AM77,AN77),"") -> 516.6 | AY77: =IFERROR(RANK(AX77,$AX$24:$AX$279,1)+COUNTIF($AX$24:AX77,AX77)-1,"") -> 82 | AZ77: =IFERROR(INDEX($AX$24:$AX$279,MATCH(SMALL($AY$24:$AY$279,ROWS($AZ$24:AZ77)),$AY$24:$AY$279,0))," ") -> 468 | BA77: =IF(ISNUMBER(AZ77),(IF(COUNTIF( AZ$24:AZ77, AZ77 )=1,AZ77,"")),"") -> 468 | BB77: =IFERROR(RANK(BA77,$BA$24:$BA$279,1)+COUNTIF($BA$24:BA77,BA77)-1,"") -> 53 | BC77: =IFERROR(INDEX($BA$24:$BA$279,MATCH(SMALL($BB$24:$BB$279,ROWS($BC$24:BC77)),$BB$24:$BB$279,0))," ") -> 468.375 | BE77: 54 | BF77: 1 | BG77: 54 | BH77: =IF(INDEX($V$71:$AK$326,BE77,BF77)>0,INDEX($V$71:$AK$326,BE77,BF77),"") -> 516.4 | BI77: =IFERROR(RANK(BH77,$BH$24:$BH$4119,1)+COUNTIF($BH$24:BH77,BH77)-1,"") -> 563 | BJ77: =IFERROR(INDEX($BH$24:$BH$4119,MATCH(SMALL($BI$24:$BI$4119,ROWS($BJ$24:BJ77)),$BI$24:$BI$4119,0))," ") -> 487.2 | BK77: =IF(ISNUMBER(BJ77),(IF(COUNTIF( BJ$24:BJ77, BJ77 )=1,BJ77,"")),"") ->  | BL77: =IFERROR(RANK(BK77,$BK$24:$BK$4119,1)+COUNTIF($BK$24:BK77,BK77)-1,"") ->  | BM77: =IFERROR(INDEX($BK$24:$BK$4119,MATCH(SMALL($BL$24:$BL$4119,ROWS($BM$24:BM77)),$BL$24:$BL$4119,0))," ") -> 489.975 | BO77: 41 | BP77: 493.35 | BQ77: 25 | BR77: 25.5 | BS77: 26.225 | BT77: 27.15 | BU77: 28.275 | BV77: 29.1 | BW77: 29.725 | BX77: 30.125 | BY77: 54.775 | BZ77: 55.3 | CA77: 56.325 | CB77: 57.675 | CC77: 58.4 | CD77: 58.8 | CE77: 59.625 | CF77: 60.25 | CI77: 41 | CJ77: 493.35 | CK77: 0 | CL77: 0 | CM77: 0 | CN77: 0 | CO77: 0 | CP77: 0 | CQ77: 0 | CR77: 0 | CS77: 0 | CT77: 0 | CU77: 0 | CV77: 0 | CW77: 0 | CX77: 0 | CY77: 0 | CZ77: 0
P78: 513.625 | Q78: 472.975 | R78: 490.4 | U78: T 8 | W78: 513.725 | X78: 514.45 | Y78: 515.375 | Z78: 516.5 | AA78: 517.325 | AB78: =IF(AND($U18>0,AB408>0,$T$71>0),$T$71-AB18,"0") -> 517.95 | AD78: =IF(AND($U18>0,AD408>0,$T$71>0),$T$71+AD18,"0") -> 543 | AE78: 543.525 | AF78: 544.55 | AG78: 545.9 | AH78: 546.625 | AI78: 547.025 | AJ78: 547.85 | AK78: 548.475 | AM78: 7 | AN78: 4 | AO78: 55 | AP78: =IF(INDEX($V$31:$AK$46,AM78,AN78)>0,INDEX($V$31:$AK$46,AM78,AN78),"") -> 517.925 | AQ78: =IFERROR(RANK(AP78,$AP$24:$AP$279,1)+COUNTIF($AP$24:AP78,AP78)-1,"") -> 82 | AR78: =IFERROR(INDEX($AP$24:$AP$279,MATCH(SMALL($AQ$24:$AQ$279,ROWS($AR$24:AR78)),$AQ$24:$AQ$279,0))," ") -> 495.225 | AS78: =IF(ISNUMBER(AR78),(IF(COUNTIF( AR$24:AR78, AR78 )=1,AR78,"")),"") -> 495.225 | AT78: =IFERROR(RANK(AS78,$AS$24:$AS$279,1)+COUNTIF($AS$24:AS78,AS78)-1,"") -> 50 | AU78: =IFERROR(INDEX($AS$24:$AS$279,MATCH(SMALL($AT$24:$AT$279,ROWS(AU$24:$AU78)),$AT$24:$AT$279,0))," ") -> 497.275 | AW78: 55 | AX78: =IF(INDEX($V$51:$AK$66,AM78,AN78)>0,INDEX($V$51:$AK$66,AM78,AN78),"") -> 515.35 | AY78: =IFERROR(RANK(AX78,$AX$24:$AX$279,1)+COUNTIF($AX$24:AX78,AX78)-1,"") -> 78 | AZ78: =IFERROR(INDEX($AX$24:$AX$279,MATCH(SMALL($AY$24:$AY$279,ROWS($AZ$24:AZ78)),$AY$24:$AY$279,0))," ") -> 468.375 | BA78: =IF(ISNUMBER(AZ78),(IF(COUNTIF( AZ$24:AZ78, AZ78 )=1,AZ78,"")),"") -> 468.375 | BB78: =IFERROR(RANK(BA78,$BA$24:$BA$279,1)+COUNTIF($BA$24:BA78,BA78)-1,"") -> 54 | BC78: =IFERROR(INDEX($BA$24:$BA$279,MATCH(SMALL($BB$24:$BB$279,ROWS($BC$24:BC78)),$BB$24:$BB$279,0))," ") -> 468.625 | BE78: 55 | BF78: 1 | BG78: 55 | BH78: =IF(INDEX($V$71:$AK$326,BE78,BF78)>0,INDEX($V$71:$AK$326,BE78,BF78),"") -> 515.775 | BI78: =IFERROR(RANK(BH78,$BH$24:$BH$4119,1)+COUNTIF($BH$24:BH78,BH78)-1,"") -> 529 | BJ78: =IFERROR(INDEX($BH$24:$BH$4119,MATCH(SMALL($BI$24:$BI$4119,ROWS($BJ$24:BJ78)),$BI$24:$BI$4119,0))," ") -> 487.4 | BK78: =IF(ISNUMBER(BJ78),(IF(COUNTIF( BJ$24:BJ78, BJ78 )=1,BJ78,"")),"") -> 487.4 | BL78: =IFERROR(RANK(BK78,$BK$24:$BK$4119,1)+COUNTIF($BK$24:BK78,BK78)-1,"") -> 23 | BM78: =IFERROR(INDEX($BK$24:$BK$4119,MATCH(SMALL($BL$24:$BL$4119,ROWS($BM$24:BM78)),$BL$24:$BL$4119,0))," ") -> 490.075 | BO78: 42 | BP78: 493.575 | BQ78: 24.775 | BR78: 25.275 | BS78: 26 | BT78: 26.925 | BU78: 28.05 | BV78: 28.875 | BW78: 29.5 | BX78: 29.9 | BY78: 54.55 | BZ78: 55.075 | CA78: 56.1 | CB78: 57.45 | CC78: 58.175 | CD78: 58.575 | CE78: 59.4 | CF78: 60.025 | CI78: 42 | CJ78: 493.575 | CK78: 0 | CL78: 0 | CM78: 0 | CN78: 0 | CO78: 0 | CP78: 0 | CQ78: 0 | CR78: 0 | CS78: 0 | CT78: 0 | CU78: 0 | CV78: 0 | CW78: 0 | CX78: 0 | CY78: 0 | CZ78: 0
P79: 514.225 | Q79: 473.125 | R79: 490.475 | U79: T 9 | W79: 489.075 | X79: 489.8 | Y79: 490.725 | Z79: 491.85 | AA79: 492.675 | AB79: 493.3 | AC79: =IF(AND($U19>0,AC409>0,$T$71>0),$T$71-AC19,"0") -> 493.7 | AE79: =IF(AND($U19>0,AE409>0,$T$71>0),$T$71+AE19,"0") -> 518.875 | AF79: 519.9 | AG79: 521.25 | AH79: 521.975 | AI79: 522.375 | AJ79: 523.2 | AK79: 523.825 | AM79: 8 | AN79: 4 | AO79: 56 | AP79: =IF(INDEX($V$31:$AK$46,AM79,AN79)>0,INDEX($V$31:$AK$46,AM79,AN79),"") -> 517.525 | AQ79: =IFERROR(RANK(AP79,$AP$24:$AP$279,1)+COUNTIF($AP$24:AP79,AP79)-1,"") -> 80 | AR79: =IFERROR(INDEX($AP$24:$AP$279,MATCH(SMALL($AQ$24:$AQ$279,ROWS($AR$24:AR79)),$AQ$24:$AQ$279,0))," ") -> 495.925 | AS79: =IF(ISNUMBER(AR79),(IF(COUNTIF( AR$24:AR79, AR79 )=1,AR79,"")),"") -> 495.925 | AT79: =IFERROR(RANK(AS79,$AS$24:$AS$279,1)+COUNTIF($AS$24:AS79,AS79)-1,"") -> 51 | AU79: =IFERROR(INDEX($AS$24:$AS$279,MATCH(SMALL($AT$24:$AT$279,ROWS(AU$24:$AU79)),$AT$24:$AT$279,0))," ") -> 497.5 | AW79: 56 | AX79: =IF(INDEX($V$51:$AK$66,AM79,AN79)>0,INDEX($V$51:$AK$66,AM79,AN79),"") -> 514.55 | AY79: =IFERROR(RANK(AX79,$AX$24:$AX$279,1)+COUNTIF($AX$24:AX79,AX79)-1,"") -> 77 | AZ79: =IFERROR(INDEX($AX$24:$AX$279,MATCH(SMALL($AY$24:$AY$279,ROWS($AZ$24:AZ79)),$AY$24:$AY$279,0))," ") -> 468.625 | BA79: =IF(ISNUMBER(AZ79),(IF(COUNTIF( AZ$24:AZ79, AZ79 )=1,AZ79,"")),"") -> 468.625 | BB79: =IFERROR(RANK(BA79,$BA$24:$BA$279,1)+COUNTIF($BA$24:BA79,BA79)-1,"") -> 55 | BC79: =IFERROR(INDEX($BA$24:$BA$279,MATCH(SMALL($BB$24:$BB$279,ROWS($BC$24:BC79)),$BB$24:$BB$279,0))," ") -> 469.875 | BE79: 56 | BF79: 1 | BG79: 56 | BH79: =IF(INDEX($V$71:$AK$326,BE79,BF79)>0,INDEX($V$71:$AK$326,BE79,BF79),"") -> 515.375 | BI79: =IFERROR(RANK(BH79,$BH$24:$BH$4119,1)+COUNTIF($BH$24:BH79,BH79)-1,"") -> 509 | BJ79: =IFERROR(INDEX($BH$24:$BH$4119,MATCH(SMALL($BI$24:$BI$4119,ROWS($BJ$24:BJ79)),$BI$24:$BI$4119,0))," ") -> 487.4 | BK79: =IF(ISNUMBER(BJ79),(IF(COUNTIF( BJ$24:BJ79, BJ79 )=1,BJ79,"")),"") ->  | BL79: =IFERROR(RANK(BK79,$BK$24:$BK$4119,1)+COUNTIF($BK$24:BK79,BK79)-1,"") ->  | BM79: =IFERROR(INDEX($BK$24:$BK$4119,MATCH(SMALL($BL$24:$BL$4119,ROWS($BM$24:BM79)),$BL$24:$BL$4119,0))," ") -> 490.175 | BO79: 43 | BP79: 493.875 | BQ79: 24.475 | BR79: 24.975 | BS79: 25.7 | BT79: 26.625 | BU79: 27.75 | BV79: 28.575 | BW79: 29.2 | BX79: 29.6 | BY79: 54.25 | BZ79: 54.775 | CA79: 55.8 | CB79: 57.15 | CC79: 57.875 | CD79: 58.275 | CE79: 59.1 | CF79: 59.725 | CI79: 43 | CJ79: 493.875 | CK79: 0 | CL79: 0 | CM79: 0 | CN79: 0 | CO79: 0 | CP79: 0 | CQ79: 0 | CR79: 0 | CS79: 0 | CT79: 0 | CU79: 0 | CV79: 0 | CW79: 0 | CX79: 0 | CY79: 0 | CZ79: 0
P80: 514.25 | Q80: 474.175 | R80: 490.5 | U80: T 10 | W80: 488.55 | X80: 489.275 | Y80: 490.2 | Z80: 491.325 | AA80: 492.15 | AB80: 492.775 | AC80: 493.175 | AD80: =IF(AND($U20>0,AD410>0,$T$71>0),$T$71-AD20,"0") -> 517.825 | AF80: =IF(AND($U20>0,AF410>0,$T$71>0),$T$71+AF20,"0") -> 519.375 | AG80: 520.725 | AH80: 521.45 | AI80: 521.85 | AJ80: 522.675 | AK80: 523.3 | AM80: 9 | AN80: 4 | AO80: 57 | AP80: =IF(INDEX($V$31:$AK$46,AM80,AN80)>0,INDEX($V$31:$AK$46,AM80,AN80),"") -> 492.875 | AQ80: =IFERROR(RANK(AP80,$AP$24:$AP$279,1)+COUNTIF($AP$24:AP80,AP80)-1,"") -> 41 | AR80: =IFERROR(INDEX($AP$24:$AP$279,MATCH(SMALL($AQ$24:$AQ$279,ROWS($AR$24:AR80)),$AQ$24:$AQ$279,0))," ") -> 496.25 | AS80: =IF(ISNUMBER(AR80),(IF(COUNTIF( AR$24:AR80, AR80 )=1,AR80,"")),"") -> 496.25 | AT80: =IFERROR(RANK(AS80,$AS$24:$AS$279,1)+COUNTIF($AS$24:AS80,AS80)-1,"") -> 52 | AU80: =IFERROR(INDEX($AS$24:$AS$279,MATCH(SMALL($AT$24:$AT$279,ROWS(AU$24:$AU80)),$AT$24:$AT$279,0))," ") -> 498.025 | AW80: 57 | AX80: =IF(INDEX($V$51:$AK$66,AM80,AN80)>0,INDEX($V$51:$AK$66,AM80,AN80),"") -> 465.25 | AY80: =IFERROR(RANK(AX80,$AX$24:$AX$279,1)+COUNTIF($AX$24:AX80,AX80)-1,"") -> 46 | AZ80: =IFERROR(INDEX($AX$24:$AX$279,MATCH(SMALL($AY$24:$AY$279,ROWS($AZ$24:AZ80)),$AY$24:$AY$279,0))," ") -> 469.875 | BA80: =IF(ISNUMBER(AZ80),(IF(COUNTIF( AZ$24:AZ80, AZ80 )=1,AZ80,"")),"") -> 469.875 | BB80: =IFERROR(RANK(BA80,$BA$24:$BA$279,1)+COUNTIF($BA$24:BA80,BA80)-1,"") -> 56 | BC80: =IFERROR(INDEX($BA$24:$BA$279,MATCH(SMALL($BB$24:$BB$279,ROWS($BC$24:BC80)),$BB$24:$BB$279,0))," ") -> 470.05 | BE80: 57 | BF80: 1 | BG80: 57 | BH80: =IF(INDEX($V$71:$AK$326,BE80,BF80)>0,INDEX($V$71:$AK$326,BE80,BF80),"") -> 490.725 | BI80: =IFERROR(RANK(BH80,$BH$24:$BH$4119,1)+COUNTIF($BH$24:BH80,BH80)-1,"") -> 213 | BJ80: =IFERROR(INDEX($BH$24:$BH$4119,MATCH(SMALL($BI$24:$BI$4119,ROWS($BJ$24:BJ80)),$BI$24:$BI$4119,0))," ") -> 487.5 | BK80: =IF(ISNUMBER(BJ80),(IF(COUNTIF( BJ$24:BJ80, BJ80 )=1,BJ80,"")),"") -> 487.5 | BL80: =IFERROR(RANK(BK80,$BK$24:$BK$4119,1)+COUNTIF($BK$24:BK80,BK80)-1,"") -> 24 | BM80: =IFERROR(INDEX($BK$24:$BK$4119,MATCH(SMALL($BL$24:$BL$4119,ROWS($BM$24:BM80)),$BL$24:$BL$4119,0))," ") -> 490.2 | BO80: 44 | BP80: 493.975 | BQ80: 24.375 | BR80: 24.875 | BS80: 25.6 | BT80: 26.525 | BU80: 27.65 | BV80: 28.475 | BW80: 29.1 | BX80: 29.5 | BY80: 54.15 | BZ80: 54.675 | CA80: 55.7 | CB80: 57.05 | CC80: 57.775 | CD80: 58.175 | CE80: 59 | CF80: 59.625 | CI80: 44 | CJ80: 493.975 | CK80: 0 | CL80: 0 | CM80: 0 | CN80: 0 | CO80: 0 | CP80: 0 | CQ80: 0 | CR80: 0 | CS80: 0 | CT80: 0 | CU80: 0 | CV80: 0 | CW80: 0 | CX80: 0 | CY80: 0 | CZ80: 0
P81: 514.625 | Q81: 508.1 | R81: 490.575 | U81: T 11 | W81: 487.525 | X81: 488.25 | Y81: 489.175 | Z81: 490.3 | AA81: 491.125 | AB81: 491.75 | AC81: 492.15 | AD81: 516.8 | AE81: =IF(AND($U21>0,AE411>0,$T$71>0),$T$71-AE21,"0") -> 517.325 | AG81: =IF(AND($U21>0,AG411>0,$T$71>0),$T$71+AG21,"0") -> 519.7 | AH81: =IF(AND($U21>0,AH411>0,$T$71>0),$T$71+AH21,"0") -> 520.425 | AI81: =IF(AND($U21>0,AI411>0,$T$71>0),$T$71+AI21,"0") -> 520.825 | AJ81: =IF(AND($U21>0,AJ411>0,$T$71>0),$T$71+AJ21,"0") -> 521.65 | AK81: =IF(AND($U21>0,AK411>0,$T$71>0),$T$71+AK21,"0") -> 522.275 | AM81: 10 | AN81: 4 | AO81: 58 | AP81: =IF(INDEX($V$31:$AK$46,AM81,AN81)>0,INDEX($V$31:$AK$46,AM81,AN81),"") -> 492.35 | AQ81: =IFERROR(RANK(AP81,$AP$24:$AP$279,1)+COUNTIF($AP$24:AP81,AP81)-1,"") -> 38 | AR81: =IFERROR(INDEX($AP$24:$AP$279,MATCH(SMALL($AQ$24:$AQ$279,ROWS($AR$24:AR81)),$AQ$24:$AQ$279,0))," ") -> 496.475 | AS81: =IF(ISNUMBER(AR81),(IF(COUNTIF( AR$24:AR81, AR81 )=1,AR81,"")),"") -> 496.475 | AT81: =IFERROR(RANK(AS81,$AS$24:$AS$279,1)+COUNTIF($AS$24:AS81,AS81)-1,"") -> 53 | AU81: =IFERROR(INDEX($AS$24:$AS$279,MATCH(SMALL($AT$24:$AT$279,ROWS(AU$24:$AU81)),$AT$24:$AT$279,0))," ") -> 498.3 | AW81: 58 | AX81: =IF(INDEX($V$51:$AK$66,AM81,AN81)>0,INDEX($V$51:$AK$66,AM81,AN81),"") -> 464.2 | AY81: =IFERROR(RANK(AX81,$AX$24:$AX$279,1)+COUNTIF($AX$24:AX81,AX81)-1,"") -> 43 | AZ81: =IFERROR(INDEX($AX$24:$AX$279,MATCH(SMALL($AY$24:$AY$279,ROWS($AZ$24:AZ81)),$AY$24:$AY$279,0))," ") -> 470.05 | BA81: =IF(ISNUMBER(AZ81),(IF(COUNTIF( AZ$24:AZ81, AZ81 )=1,AZ81,"")),"") -> 470.05 | BB81: =IFERROR(RANK(BA81,$BA$24:$BA$279,1)+COUNTIF($BA$24:BA81,BA81)-1,"") -> 57 | BC81: =IFERROR(INDEX($BA$24:$BA$279,MATCH(SMALL($BB$24:$BB$279,ROWS($BC$24:BC81)),$BB$24:$BB$279,0))," ") -> 471.075 | BE81: 58 | BF81: 1 | BG81: 58 | BH81: =IF(INDEX($V$71:$AK$326,BE81,BF81)>0,INDEX($V$71:$AK$326,BE81,BF81),"") -> 490.2 | BI81: =IFERROR(RANK(BH81,$BH$24:$BH$4119,1)+COUNTIF($BH$24:BH81,BH81)-1,"") -> 185 | BJ81: =IFERROR(INDEX($BH$24:$BH$4119,MATCH(SMALL($BI$24:$BI$4119,ROWS($BJ$24:BJ81)),$BI$24:$BI$4119,0))," ") -> 487.5 | BK81: =IF(ISNUMBER(BJ81),(IF(COUNTIF( BJ$24:BJ81, BJ81 )=1,BJ81,"")),"") ->  | BL81: =IFERROR(RANK(BK81,$BK$24:$BK$4119,1)+COUNTIF($BK$24:BK81,BK81)-1,"") ->  | BM81: =IFERROR(INDEX($BK$24:$BK$4119,MATCH(SMALL($BL$24:$BL$4119,ROWS($BM$24:BM81)),$BL$24:$BL$4119,0))," ") -> 490.275 | BO81: 45 | BP81: 494 | BQ81: 24.35 | BR81: 24.85 | BS81: 25.575 | BT81: 26.5 | BU81: 27.625 | BV81: 28.45 | BW81: 29.075 | BX81: 29.475 | BY81: 54.125 | BZ81: 54.65 | CA81: 55.675 | CB81: 57.025 | CC81: 57.75 | CD81: 58.15 | CE81: 58.975 | CF81: 59.6 | CI81: 45 | CJ81: 494 | CK81: 0 | CL81: 0 | CM81: 0 | CN81: 0 | CO81: 0 | CP81: 0 | CQ81: 0 | CR81: 0 | CS81: 0 | CT81: 0 | CU81: 0 | CV81: 0 | CW81: 0 | CX81: 0 | CY81: 0 | CZ81: 0
P82: =AU88 -> 515.075 | Q82: =BC88 -> 508.9 | R82: =BM88 -> 490.6 | U82: T 12 | W82: 486.175 | X82: 486.9 | Y82: 487.825 | Z82: 488.95 | AA82: 489.775 | AB82: 490.4 | AC82: 490.8 | AD82: 515.45 | AE82: 515.975 | AF82: =IF(AND($U22>0,AF412>0,$T$71>0),$T$71-AF22,"0") -> 517 | AH82: =IF(AND($U22>0,AH412>0,$T$71>0),$T$71+AH22,"0") -> 519.075 | AI82: =IF(AND($U22>0,AI412>0,$T$71>0),$T$71+AI22,"0") -> 519.475 | AJ82: =IF(AND($U22>0,AJ412>0,$T$71>0),$T$71+AJ22,"0") -> 520.3 | AK82: =IF(AND($U22>0,AK412>0,$T$71>0),$T$71+AK22,"0") -> 520.925 | AM82: 11 | AN82: 4 | AO82: 59 | AP82: =IF(INDEX($V$31:$AK$46,AM82,AN82)>0,INDEX($V$31:$AK$46,AM82,AN82),"") -> 491.325 | AQ82: =IFERROR(RANK(AP82,$AP$24:$AP$279,1)+COUNTIF($AP$24:AP82,AP82)-1,"") -> 34 | AR82: =IFERROR(INDEX($AP$24:$AP$279,MATCH(SMALL($AQ$24:$AQ$279,ROWS($AR$24:AR82)),$AQ$24:$AQ$279,0))," ") -> 496.775 | AS82: =IF(ISNUMBER(AR82),(IF(COUNTIF( AR$24:AR82, AR82 )=1,AR82,"")),"") -> 496.775 | AT82: =IFERROR(RANK(AS82,$AS$24:$AS$279,1)+COUNTIF($AS$24:AS82,AS82)-1,"") -> 54 | AU82: =IFERROR(INDEX($AS$24:$AS$279,MATCH(SMALL($AT$24:$AT$279,ROWS(AU$24:$AU82)),$AT$24:$AT$279,0))," ") -> 498.825 | AW82: 59 | AX82: =IF(INDEX($V$51:$AK$66,AM82,AN82)>0,INDEX($V$51:$AK$66,AM82,AN82),"") -> 462.15 | AY82: =IFERROR(RANK(AX82,$AX$24:$AX$279,1)+COUNTIF($AX$24:AX82,AX82)-1,"") -> 36 | AZ82: =IFERROR(INDEX($AX$24:$AX$279,MATCH(SMALL($AY$24:$AY$279,ROWS($AZ$24:AZ82)),$AY$24:$AY$279,0))," ") -> 471.075 | BA82: =IF(ISNUMBER(AZ82),(IF(COUNTIF( AZ$24:AZ82, AZ82 )=1,AZ82,"")),"") -> 471.075 | BB82: =IFERROR(RANK(BA82,$BA$24:$BA$279,1)+COUNTIF($BA$24:BA82,BA82)-1,"") -> 58 | BC82: =IFERROR(INDEX($BA$24:$BA$279,MATCH(SMALL($BB$24:$BB$279,ROWS($BC$24:BC82)),$BB$24:$BB$279,0))," ") -> 471.1 | BE82: 59 | BF82: 1 | BG82: 59 | BH82: =IF(INDEX($V$71:$AK$326,BE82,BF82)>0,INDEX($V$71:$AK$326,BE82,BF82),"") -> 489.175 | BI82: =IFERROR(RANK(BH82,$BH$24:$BH$4119,1)+COUNTIF($BH$24:BH82,BH82)-1,"") -> 133 | BJ82: =IFERROR(INDEX($BH$24:$BH$4119,MATCH(SMALL($BI$24:$BI$4119,ROWS($BJ$24:BJ82)),$BI$24:$BI$4119,0))," ") -> 487.525 | BK82: =IF(ISNUMBER(BJ82),(IF(COUNTIF( BJ$24:BJ82, BJ82 )=1,BJ82,"")),"") -> 487.525 | BL82: =IFERROR(RANK(BK82,$BK$24:$BK$4119,1)+COUNTIF($BK$24:BK82,BK82)-1,"") -> 25 | BM82: =IFERROR(INDEX($BK$24:$BK$4119,MATCH(SMALL($BL$24:$BL$4119,ROWS($BM$24:BM82)),$BL$24:$BL$4119,0))," ") -> 490.3 | BO82: 46 | BP82: 494.4 | BQ82: 23.95 | BR82: 24.45 | BS82: 25.175 | BT82: 26.1 | BU82: 27.225 | BV82: 28.05 | BW82: 28.675 | BX82: 29.075 | BY82: 53.725 | BZ82: 54.25 | CA82: 55.275 | CB82: 56.625 | CC82: 57.35 | CD82: 57.75 | CE82: 58.575 | CF82: =IF(ISNUMBER($BP82),ABS($BP82-CF$35),"") -> 59.2 | CI82: 46 | CJ82: 494.4 | CK82: 0 | CL82: 0 | CM82: 0 | CN82: 0 | CO82: 0 | CP82: 0 | CQ82: 0 | CR82: 0 | CS82: 0 | CT82: 0 | CU82: 0 | CV82: 0 | CW82: 0 | CX82: 0 | CY82: 0 | CZ82: 0
P83: 515.25 | Q83: 509.6 | R83: 490.7 | U83: T 13 | W83: 485.45 | X83: 486.175 | Y83: 487.1 | Z83: 488.225 | AA83: 489.05 | AB83: 489.675 | AC83: 490.075 | AD83: 514.725 | AE83: 515.25 | AF83: =IF(AND($U23>0,AF413>0,$T$71>0),$T$71-AF23,"0") -> 516.275 | AG83: =IF(AND($U23>0,AG413>0,$T$71>0),$T$71-AG23,"0") -> 517.625 | AI83: =IF(AND($U23>0,AI413>0,$T$71>0),$T$71+AI23,"0") -> 518.75 | AJ83: =IF(AND($U23>0,AJ413>0,$T$71>0),$T$71+AJ23,"0") -> 519.575 | AK83: =IF(AND($U23>0,AK413>0,$T$71>0),$T$71+AK23,"0") -> 520.2 | AM83: 12 | AN83: 4 | AO83: 60 | AP83: =IF(INDEX($V$31:$AK$46,AM83,AN83)>0,INDEX($V$31:$AK$46,AM83,AN83),"") -> 489.975 | AQ83: =IFERROR(RANK(AP83,$AP$24:$AP$279,1)+COUNTIF($AP$24:AP83,AP83)-1,"") -> 28 | AR83: =IFERROR(INDEX($AP$24:$AP$279,MATCH(SMALL($AQ$24:$AQ$279,ROWS($AR$24:AR83)),$AQ$24:$AQ$279,0))," ") -> 497.275 | AS83: =IF(ISNUMBER(AR83),(IF(COUNTIF( AR$24:AR83, AR83 )=1,AR83,"")),"") -> 497.275 | AT83: =IFERROR(RANK(AS83,$AS$24:$AS$279,1)+COUNTIF($AS$24:AS83,AS83)-1,"") -> 55 | AU83: =IFERROR(INDEX($AS$24:$AS$279,MATCH(SMALL($AT$24:$AT$279,ROWS(AU$24:$AU83)),$AT$24:$AT$279,0))," ") -> 513.225 | AW83: 60 | AX83: =IF(INDEX($V$51:$AK$66,AM83,AN83)>0,INDEX($V$51:$AK$66,AM83,AN83),"") -> 459.45 | AY83: =IFERROR(RANK(AX83,$AX$24:$AX$279,1)+COUNTIF($AX$24:AX83,AX83)-1,"") -> 28 | AZ83: =IFERROR(INDEX($AX$24:$AX$279,MATCH(SMALL($AY$24:$AY$279,ROWS($AZ$24:AZ83)),$AY$24:$AY$279,0))," ") -> 471.1 | BA83: =IF(ISNUMBER(AZ83),(IF(COUNTIF( AZ$24:AZ83, AZ83 )=1,AZ83,"")),"") -> 471.1 | BB83: =IFERROR(RANK(BA83,$BA$24:$BA$279,1)+COUNTIF($BA$24:BA83,BA83)-1,"") -> 59 | BC83: =IFERROR(INDEX($BA$24:$BA$279,MATCH(SMALL($BB$24:$BB$279,ROWS($BC$24:BC83)),$BB$24:$BB$279,0))," ") -> 471.925 | BE83: 60 | BF83: 1 | BG83: 60 | BH83: =IF(INDEX($V$71:$AK$326,BE83,BF83)>0,INDEX($V$71:$AK$326,BE83,BF83),"") -> 487.825 | BI83: =IFERROR(RANK(BH83,$BH$24:$BH$4119,1)+COUNTIF($BH$24:BH83,BH83)-1,"") -> 67 | BJ83: =IFERROR(INDEX($BH$24:$BH$4119,MATCH(SMALL($BI$24:$BI$4119,ROWS($BJ$24:BJ83)),$BI$24:$BI$4119,0))," ") -> 487.525 | BK83: =IF(ISNUMBER(BJ83),(IF(COUNTIF( BJ$24:BJ83, BJ83 )=1,BJ83,"")),"") ->  | BL83: =IFERROR(RANK(BK83,$BK$24:$BK$4119,1)+COUNTIF($BK$24:BK83,BK83)-1,"") ->  | BM83: =IFERROR(INDEX($BK$24:$BK$4119,MATCH(SMALL($BL$24:$BL$4119,ROWS($BM$24:BM83)),$BL$24:$BL$4119,0))," ") -> 490.375 | BO83: 47 | BP83: 494.6 | BQ83: 23.75 | BR83: 24.25 | BS83: 24.975 | BT83: 25.9 | BU83: 27.025 | BV83: 27.85 | BW83: 28.475 | BX83: 28.875 | BY83: 53.525 | BZ83: 54.05 | CA83: 55.075 | CB83: 56.425 | CC83: 57.15 | CD83: 57.55 | CE83: 58.375 | CF83: 59 | CI83: 47 | CJ83: 494.6 | CK83: 0 | CL83: 0 | CM83: 0 | CN83: 0 | CO83: 0 | CP83: 0 | CQ83: 0 | CR83: 0 | CS83: 0 | CT83: 0 | CU83: 0 | CV83: 0 | CW83: 0 | CX83: 0 | CY83: 0 | CZ83: 0
P84: 515.675 | Q84: 510.15 | R84: 490.725 | U84: T 14 | W84: 485.05 | X84: 485.775 | Y84: 486.7 | Z84: 487.825 | AA84: 488.65 | AB84: 489.275 | AC84: 489.675 | AD84: 514.325 | AE84: 514.85 | AF84: =IF(AND($U24>0,AF414>0,$T$71>0),$T$71-AF24,"0") -> 515.875 | AG84: =IF(AND($U24>0,AG414>0,$T$71>0),$T$71-AG24,"0") -> 517.225 | AH84: =IF(AND($U24>0,AH414>0,$T$71>0),$T$71-AH24,"0") -> 517.95 | AJ84: =IF(AND($U24>0,AJ414>0,$T$71>0),$T$71+AJ24,"0") -> 519.175 | AK84: =IF(AND($U24>0,AK414>0,$T$71>0),$T$71+AK24,"0") -> 519.8 | AM84: 13 | AN84: 4 | AO84: 61 | AP84: =IF(INDEX($V$31:$AK$46,AM84,AN84)>0,INDEX($V$31:$AK$46,AM84,AN84),"") -> 489.25 | AQ84: =IFERROR(RANK(AP84,$AP$24:$AP$279,1)+COUNTIF($AP$24:AP84,AP84)-1,"") -> 24 | AR84: =IFERROR(INDEX($AP$24:$AP$279,MATCH(SMALL($AQ$24:$AQ$279,ROWS($AR$24:AR84)),$AQ$24:$AQ$279,0))," ") -> 497.5 | AS84: =IF(ISNUMBER(AR84),(IF(COUNTIF( AR$24:AR84, AR84 )=1,AR84,"")),"") -> 497.5 | AT84: =IFERROR(RANK(AS84,$AS$24:$AS$279,1)+COUNTIF($AS$24:AS84,AS84)-1,"") -> 56 | AU84: =IFERROR(INDEX($AS$24:$AS$279,MATCH(SMALL($AT$24:$AT$279,ROWS(AU$24:$AU84)),$AT$24:$AT$279,0))," ") -> 513.625 | AW84: 61 | AX84: =IF(INDEX($V$51:$AK$66,AM84,AN84)>0,INDEX($V$51:$AK$66,AM84,AN84),"") -> 458 | AY84: =IFERROR(RANK(AX84,$AX$24:$AX$279,1)+COUNTIF($AX$24:AX84,AX84)-1,"") -> 23 | AZ84: =IFERROR(INDEX($AX$24:$AX$279,MATCH(SMALL($AY$24:$AY$279,ROWS($AZ$24:AZ84)),$AY$24:$AY$279,0))," ") -> 471.925 | BA84: =IF(ISNUMBER(AZ84),(IF(COUNTIF( AZ$24:AZ84, AZ84 )=1,AZ84,"")),"") -> 471.925 | BB84: =IFERROR(RANK(BA84,$BA$24:$BA$279,1)+COUNTIF($BA$24:BA84,BA84)-1,"") -> 60 | BC84: =IFERROR(INDEX($BA$24:$BA$279,MATCH(SMALL($BB$24:$BB$279,ROWS($BC$24:BC84)),$BB$24:$BB$279,0))," ") -> 472.975 | BE84: 61 | BF84: 1 | BG84: 61 | BH84: =IF(INDEX($V$71:$AK$326,BE84,BF84)>0,INDEX($V$71:$AK$326,BE84,BF84),"") -> 487.1 | BI84: =IFERROR(RANK(BH84,$BH$24:$BH$4119,1)+COUNTIF($BH$24:BH84,BH84)-1,"") -> 47 | BJ84: =IFERROR(INDEX($BH$24:$BH$4119,MATCH(SMALL($BI$24:$BI$4119,ROWS($BJ$24:BJ84)),$BI$24:$BI$4119,0))," ") -> 487.6 | BK84: =IF(ISNUMBER(BJ84),(IF(COUNTIF( BJ$24:BJ84, BJ84 )=1,BJ84,"")),"") -> 487.6 | BL84: =IFERROR(RANK(BK84,$BK$24:$BK$4119,1)+COUNTIF($BK$24:BK84,BK84)-1,"") -> 26 | BM84: =IFERROR(INDEX($BK$24:$BK$4119,MATCH(SMALL($BL$24:$BL$4119,ROWS($BM$24:BM84)),$BL$24:$BL$4119,0))," ") -> 490.4 | BO84: 48 | BP84: 494.8 | BQ84: 23.55 | BR84: 24.05 | BS84: 24.775 | BT84: 25.7 | BU84: 26.825 | BV84: 27.65 | BW84: 28.275 | BX84: 28.675 | BY84: 53.325 | BZ84: 53.85 | CA84: 54.875 | CB84: 56.225 | CC84: 56.95 | CD84: 57.35 | CE84: 58.175 | CF84: 58.8 | CI84: 48 | CJ84: 494.8 | CK84: 0 | CL84: 0 | CM84: 0 | CN84: 0 | CO84: 0 | CP84: 0 | CQ84: 0 | CR84: 0 | CS84: 0 | CT84: 0 | CU84: 0 | CV84: 0 | CW84: 0 | CX84: 0 | CY84: 0 | CZ84: 0
P85: 516.075 | Q85: 510.4 | R85: 490.8 | U85: T 15 | W85: 484.225 | X85: 484.95 | Y85: 485.875 | Z85: 487 | AA85: 487.825 | AB85: 488.45 | AC85: 488.85 | AD85: 513.5 | AE85: 514.025 | AF85: =IF(AND($U25>0,AF415>0,$T$71>0),$T$71-AF25,"0") -> 515.05 | AG85: =IF(AND($U25>0,AG415>0,$T$71>0),$T$71-AG25,"0") -> 516.4 | AH85: =IF(AND($U25>0,AH415>0,$T$71>0),$T$71-AH25,"0") -> 517.125 | AI85: =IF(AND($U25>0,AI415>0,$T$71>0),$T$71-AI25,"0") -> 517.525 | AK85: =IF(AND($U25>0,AK415>0,$T$71>0),$T$71+AK25,"0") -> 518.975 | AM85: 14 | AN85: 4 | AO85: 62 | AP85: =IF(INDEX($V$31:$AK$46,AM85,AN85)>0,INDEX($V$31:$AK$46,AM85,AN85),"") -> 488.85 | AQ85: =IFERROR(RANK(AP85,$AP$24:$AP$279,1)+COUNTIF($AP$24:AP85,AP85)-1,"") -> 22 | AR85: =IFERROR(INDEX($AP$24:$AP$279,MATCH(SMALL($AQ$24:$AQ$279,ROWS($AR$24:AR85)),$AQ$24:$AQ$279,0))," ") -> 498.025 | AS85: =IF(ISNUMBER(AR85),(IF(COUNTIF( AR$24:AR85, AR85 )=1,AR85,"")),"") -> 498.025 | AT85: =IFERROR(RANK(AS85,$AS$24:$AS$279,1)+COUNTIF($AS$24:AS85,AS85)-1,"") -> 57 | AU85: =IFERROR(INDEX($AS$24:$AS$279,MATCH(SMALL($AT$24:$AT$279,ROWS(AU$24:$AU85)),$AT$24:$AT$279,0))," ") -> 514.225 | AW85: 62 | AX85: =IF(INDEX($V$51:$AK$66,AM85,AN85)>0,INDEX($V$51:$AK$66,AM85,AN85),"") -> 457.2 | AY85: =IFERROR(RANK(AX85,$AX$24:$AX$279,1)+COUNTIF($AX$24:AX85,AX85)-1,"") -> 20 | AZ85: =IFERROR(INDEX($AX$24:$AX$279,MATCH(SMALL($AY$24:$AY$279,ROWS($AZ$24:AZ85)),$AY$24:$AY$279,0))," ") -> 472.975 | BA85: =IF(ISNUMBER(AZ85),(IF(COUNTIF( AZ$24:AZ85, AZ85 )=1,AZ85,"")),"") -> 472.975 | BB85: =IFERROR(RANK(BA85,$BA$24:$BA$279,1)+COUNTIF($BA$24:BA85,BA85)-1,"") -> 61 | BC85: =IFERROR(INDEX($BA$24:$BA$279,MATCH(SMALL($BB$24:$BB$279,ROWS($BC$24:BC85)),$BB$24:$BB$279,0))," ") -> 473.125 | BE85: 62 | BF85: 1 | BG85: 62 | BH85: =IF(INDEX($V$71:$AK$326,BE85,BF85)>0,INDEX($V$71:$AK$326,BE85,BF85),"") -> 486.7 | BI85: =IFERROR(RANK(BH85,$BH$24:$BH$4119,1)+COUNTIF($BH$24:BH85,BH85)-1,"") -> 39 | BJ85: =IFERROR(INDEX($BH$24:$BH$4119,MATCH(SMALL($BI$24:$BI$4119,ROWS($BJ$24:BJ85)),$BI$24:$BI$4119,0))," ") -> 487.6 | BK85: =IF(ISNUMBER(BJ85),(IF(COUNTIF( BJ$24:BJ85, BJ85 )=1,BJ85,"")),"") ->  | BL85: =IFERROR(RANK(BK85,$BK$24:$BK$4119,1)+COUNTIF($BK$24:BK85,BK85)-1,"") ->  | BM85: =IFERROR(INDEX($BK$24:$BK$4119,MATCH(SMALL($BL$24:$BL$4119,ROWS($BM$24:BM85)),$BL$24:$BL$4119,0))," ") -> 490.475 | BO85: 49 | BP85: 495.125 | BQ85: 23.225 | BR85: 23.725 | BS85: 24.45 | BT85: 25.375 | BU85: 26.5 | BV85: 27.325 | BW85: 27.95 | BX85: 28.35 | BY85: 53 | BZ85: 53.525 | CA85: 54.55 | CB85: 55.9 | CC85: 56.625 | CD85: 57.025 | CE85: 57.85 | CF85: 58.475 | CI85: 49 | CJ85: 495.125 | CK85: 0 | CL85: 0 | CM85: 0 | CN85: 0 | CO85: 0 | CP85: 0 | CQ85: 0 | CR85: 0 | CS85: 0 | CT85: 0 | CU85: 0 | CV85: 0 | CW85: 0 | CX85: 0 | CY85: 0 | CZ85: 0
P86: 516.2 | Q86: 511.65 | R86: 490.9 | U86: T 16 | W86: 483.6 | X86: 484.325 | Y86: 485.25 | Z86: 486.375 | AA86: 487.2 | AB86: 487.825 | AC86: 488.225 | AD86: 512.875 | AE86: 513.4 | AF86: =IF(AND($U26>0,AF416>0,$T$71>0),$T$71-AF26,"0") -> 514.425 | AG86: =IF(AND($U26>0,AG416>0,$T$71>0),$T$71-AG26,"0") -> 515.775 | AH86: =IF(AND($U26>0,AH416>0,$T$71>0),$T$71-AH26,"0") -> 516.5 | AI86: =IF(AND($U26>0,AI416>0,$T$71>0),$T$71-AI26,"0") -> 516.9 | AJ86: =IF(AND($U26>0,AJ416>0,$T$71>0),$T$71-AJ26,"0") -> 517.725 | AM86: 15 | AN86: 4 | AO86: 63 | AP86: =IF(INDEX($V$31:$AK$46,AM86,AN86)>0,INDEX($V$31:$AK$46,AM86,AN86),"") -> 488.025 | AQ86: =IFERROR(RANK(AP86,$AP$24:$AP$279,1)+COUNTIF($AP$24:AP86,AP86)-1,"") -> 18 | AR86: =IFERROR(INDEX($AP$24:$AP$279,MATCH(SMALL($AQ$24:$AQ$279,ROWS($AR$24:AR86)),$AQ$24:$AQ$279,0))," ") -> 498.3 | AS86: =IF(ISNUMBER(AR86),(IF(COUNTIF( AR$24:AR86, AR86 )=1,AR86,"")),"") -> 498.3 | AT86: =IFERROR(RANK(AS86,$AS$24:$AS$279,1)+COUNTIF($AS$24:AS86,AS86)-1,"") -> 58 | AU86: =IFERROR(INDEX($AS$24:$AS$279,MATCH(SMALL($AT$24:$AT$279,ROWS(AU$24:$AU86)),$AT$24:$AT$279,0))," ") -> 514.25 | AW86: 63 | AX86: =IF(INDEX($V$51:$AK$66,AM86,AN86)>0,INDEX($V$51:$AK$66,AM86,AN86),"") -> 455.55 | AY86: =IFERROR(RANK(AX86,$AX$24:$AX$279,1)+COUNTIF($AX$24:AX86,AX86)-1,"") -> 16 | AZ86: =IFERROR(INDEX($AX$24:$AX$279,MATCH(SMALL($AY$24:$AY$279,ROWS($AZ$24:AZ86)),$AY$24:$AY$279,0))," ") -> 473.125 | BA86: =IF(ISNUMBER(AZ86),(IF(COUNTIF( AZ$24:AZ86, AZ86 )=1,AZ86,"")),"") -> 473.125 | BB86: =IFERROR(RANK(BA86,$BA$24:$BA$279,1)+COUNTIF($BA$24:BA86,BA86)-1,"") -> 62 | BC86: =IFERROR(INDEX($BA$24:$BA$279,MATCH(SMALL($BB$24:$BB$279,ROWS($BC$24:BC86)),$BB$24:$BB$279,0))," ") -> 474.175 | BE86: 63 | BF86: 1 | BG86: 63 | BH86: =IF(INDEX($V$71:$AK$326,BE86,BF86)>0,INDEX($V$71:$AK$326,BE86,BF86),"") -> 485.875 | BI86: =IFERROR(RANK(BH86,$BH$24:$BH$4119,1)+COUNTIF($BH$24:BH86,BH86)-1,"") -> 23 | BJ86: =IFERROR(INDEX($BH$24:$BH$4119,MATCH(SMALL($BI$24:$BI$4119,ROWS($BJ$24:BJ86)),$BI$24:$BI$4119,0))," ") -> 487.6 | BK86: =IF(ISNUMBER(BJ86),(IF(COUNTIF( BJ$24:BJ86, BJ86 )=1,BJ86,"")),"") ->  | BL86: =IFERROR(RANK(BK86,$BK$24:$BK$4119,1)+COUNTIF($BK$24:BK86,BK86)-1,"") ->  | BM86: =IFERROR(INDEX($BK$24:$BK$4119,MATCH(SMALL($BL$24:$BL$4119,ROWS($BM$24:BM86)),$BL$24:$BL$4119,0))," ") -> 490.5 | BO86: 50 | BP86: 495.225 | BQ86: 23.125 | BR86: 23.625 | BS86: 24.35 | BT86: 25.275 | BU86: 26.4 | BV86: 27.225 | BW86: 27.85 | BX86: 28.25 | BY86: 52.9 | BZ86: 53.425 | CA86: 54.45 | CB86: 55.8 | CC86: 56.525 | CD86: 56.925 | CE86: 57.75 | CF86: 58.375 | CI86: 50 | CJ86: 495.225 | CK86: 0 | CL86: 0 | CM86: 0 | CN86: 0 | CO86: 0 | CP86: 0 | CQ86: 0 | CR86: 0 | CS86: 0 | CT86: 0 | CU86: 0 | CV86: 0 | CW86: 0 | CX86: 0 | CY86: 0 | CZ86: 0
P87: 516.7 | Q87: 511.775 | R87: 491 | T87: =W401 -> 518.85 | U87: T 1 | X87: =IF(AND($U11>0,X401>0,$T$87>0),$T$87+X11,"0") -> 520.075 | Y87: 521 | Z87: 522.125 | AA87: 522.95 | AB87: 523.575 | AC87: 523.975 | AD87: 548.625 | AE87: 549.15 | AF87: 550.175 | AG87: 551.525 | AH87: 552.25 | AI87: 552.65 | AJ87: 553.475 | AK87: 554.1 | AM87: 16 | AN87: 4 | AO87: 64 | AP87: =IF(INDEX($V$31:$AK$46,AM87,AN87)>0,INDEX($V$31:$AK$46,AM87,AN87),"") -> 487.4 | AQ87: =IFERROR(RANK(AP87,$AP$24:$AP$279,1)+COUNTIF($AP$24:AP87,AP87)-1,"") -> 16 | AR87: =IFERROR(INDEX($AP$24:$AP$279,MATCH(SMALL($AQ$24:$AQ$279,ROWS($AR$24:AR87)),$AQ$24:$AQ$279,0))," ") -> 498.825 | AS87: =IF(ISNUMBER(AR87),(IF(COUNTIF( AR$24:AR87, AR87 )=1,AR87,"")),"") -> 498.825 | AT87: =IFERROR(RANK(AS87,$AS$24:$AS$279,1)+COUNTIF($AS$24:AS87,AS87)-1,"") -> 59 | AU87: =IFERROR(INDEX($AS$24:$AS$279,MATCH(SMALL($AT$24:$AT$279,ROWS(AU$24:$AU87)),$AT$24:$AT$279,0))," ") -> 514.625 | AW87: 64 | AX87: =IF(INDEX($V$51:$AK$66,AM87,AN87)>0,INDEX($V$51:$AK$66,AM87,AN87),"") -> 454.3 | AY87: =IFERROR(RANK(AX87,$AX$24:$AX$279,1)+COUNTIF($AX$24:AX87,AX87)-1,"") -> 12 | AZ87: =IFERROR(INDEX($AX$24:$AX$279,MATCH(SMALL($AY$24:$AY$279,ROWS($AZ$24:AZ87)),$AY$24:$AY$279,0))," ") -> 474.175 | BA87: =IF(ISNUMBER(AZ87),(IF(COUNTIF( AZ$24:AZ87, AZ87 )=1,AZ87,"")),"") -> 474.175 | BB87: =IFERROR(RANK(BA87,$BA$24:$BA$279,1)+COUNTIF($BA$24:BA87,BA87)-1,"") -> 63 | BC87: =IFERROR(INDEX($BA$24:$BA$279,MATCH(SMALL($BB$24:$BB$279,ROWS($BC$24:BC87)),$BB$24:$BB$279,0))," ") -> 508.1 | BE87: 64 | BF87: 1 | BG87: 64 | BH87: =IF(INDEX($V$71:$AK$326,BE87,BF87)>0,INDEX($V$71:$AK$326,BE87,BF87),"") -> 485.25 | BI87: =IFERROR(RANK(BH87,$BH$24:$BH$4119,1)+COUNTIF($BH$24:BH87,BH87)-1,"") -> 13 | BJ87: =IFERROR(INDEX($BH$24:$BH$4119,MATCH(SMALL($BI$24:$BI$4119,ROWS($BJ$24:BJ87)),$BI$24:$BI$4119,0))," ") -> 487.6 | BK87: =IF(ISNUMBER(BJ87),(IF(COUNTIF( BJ$24:BJ87, BJ87 )=1,BJ87,"")),"") ->  | BL87: =IFERROR(RANK(BK87,$BK$24:$BK$4119,1)+COUNTIF($BK$24:BK87,BK87)-1,"") ->  | BM87: =IFERROR(INDEX($BK$24:$BK$4119,MATCH(SMALL($BL$24:$BL$4119,ROWS($BM$24:BM87)),$BL$24:$BL$4119,0))," ") -> 490.575 | BO87: 51 | BP87: 495.925 | BQ87: 22.425 | BR87: 22.925 | BS87: 23.65 | BT87: 24.575 | BU87: 25.7 | BV87: 26.525 | BW87: 27.15 | BX87: 27.55 | BY87: 52.2 | BZ87: 52.725 | CA87: 53.75 | CB87: 55.1 | CC87: 55.825 | CD87: 56.225 | CE87: 57.05 | CF87: 57.675 | CI87: 51 | CJ87: 495.925 | CK87: 0 | CL87: 0 | CM87: 0 | CN87: 0 | CO87: 0 | CP87: 0 | CQ87: 0 | CR87: 0 | CS87: 0 | CT87: 0 | CU87: 0 | CV87: 0 | CW87: 0 | CX87: 0 | CY87: 0 | CZ87: 0
P88: 517.125 | Q88: 511.8 | R88: 491.1 | T88: Ch. 2 3T3O | U88: T 2 | AM88: 1 | AN88: 5 | AO88: 65 | AP88: =IF(INDEX($V$31:$AK$46,AM88,AN88)>0,INDEX($V$31:$AK$46,AM88,AN88),"") -> 524.9 | AQ88: =IFERROR(RANK(AP88,$AP$24:$AP$279,1)+COUNTIF($AP$24:AP88,AP88)-1,"") -> 108 | AR88: =IFERROR(INDEX($AP$24:$AP$279,MATCH(SMALL($AQ$24:$AQ$279,ROWS($AR$24:AR88)),$AQ$24:$AQ$279,0))," ") -> 513.225 | AS88: =IF(ISNUMBER(AR88),(IF(COUNTIF( AR$24:AR88, AR88 )=1,AR88,"")),"") -> 513.225 | AT88: =IFERROR(RANK(AS88,$AS$24:$AS$279,1)+COUNTIF($AS$24:AS88,AS88)-1,"") -> 60 | AU88: =IFERROR(INDEX($AS$24:$AS$279,MATCH(SMALL($AT$24:$AT$279,ROWS(AU$24:$AU88)),$AT$24:$AT$279,0))," ") -> 515.075 | AW88: 65 | AX88: =IF(INDEX($V$51:$AK$66,AM88,AN88)>0,INDEX($V$51:$AK$66,AM88,AN88),"") -> 528.175 | AY88: =IFERROR(RANK(AX88,$AX$24:$AX$279,1)+COUNTIF($AX$24:AX88,AX88)-1,"") -> 109 | AZ88: =IFERROR(INDEX($AX$24:$AX$279,MATCH(SMALL($AY$24:$AY$279,ROWS($AZ$24:AZ88)),$AY$24:$AY$279,0))," ") -> 508.1 | BA88: =IF(ISNUMBER(AZ88),(IF(COUNTIF( AZ$24:AZ88, AZ88 )=1,AZ88,"")),"") -> 508.1 | BB88: =IFERROR(RANK(BA88,$BA$24:$BA$279,1)+COUNTIF($BA$24:BA88,BA88)-1,"") -> 64 | BC88: =IFERROR(INDEX($BA$24:$BA$279,MATCH(SMALL($BB$24:$BB$279,ROWS($BC$24:BC88)),$BB$24:$BB$279,0))," ") -> 508.9 | BE88: 65 | BF88: 1 | BG88: 65 | BH88: =IF(INDEX($V$71:$AK$326,BE88,BF88)>0,INDEX($V$71:$AK$326,BE88,BF88),"") ->  | BI88: =IFERROR(RANK(BH88,$BH$24:$BH$4119,1)+COUNTIF($BH$24:BH88,BH88)-1,"") ->  | BJ88: =IFERROR(INDEX($BH$24:$BH$4119,MATCH(SMALL($BI$24:$BI$4119,ROWS($BJ$24:BJ88)),$BI$24:$BI$4119,0))," ") -> 487.7 | BK88: =IF(ISNUMBER(BJ88),(IF(COUNTIF( BJ$24:BJ88, BJ88 )=1,BJ88,"")),"") -> 487.7 | BL88: =IFERROR(RANK(BK88,$BK$24:$BK$4119,1)+COUNTIF($BK$24:BK88,BK88)-1,"") -> 27 | BM88: =IFERROR(INDEX($BK$24:$BK$4119,MATCH(SMALL($BL$24:$BL$4119,ROWS($BM$24:BM88)),$BL$24:$BL$4119,0))," ") -> 490.6 | BO88: 52 | BP88: 496.25 | BQ88: 22.1 | BR88: 22.6 | BS88: 23.325 | BT88: 24.25 | BU88: 25.375 | BV88: 26.2 | BW88: 26.825 | BX88: 27.225 | BY88: 51.875 | BZ88: 52.4 | CA88: 53.425 | CB88: 54.775 | CC88: 55.5 | CD88: 55.9 | CE88: 56.725 | CF88: 57.35 | CI88: 52 | CJ88: 496.25 | CK88: 0 | CL88: 0 | CM88: 0 | CN88: 0 | CO88: 0 | CP88: 0 | CQ88: 0 | CR88: 0 | CS88: 0 | CT88: 0 | CU88: 0 | CV88: 0 | CW88: 0 | CX88: 0 | CY88: 0 | CZ88: 0
P89: 517.2 | Q89: 512.575 | R89: 491.125 | U89: T 3 | V89: =IF(AND($U13>0,V403>0,$T$87>0),$T$87-V13,"0") -> 517.625 | Y89: =IF(AND($U13>0,Y403>0,$T$87>0),$T$87+Y13,"0") -> 519.775 | Z89: 520.9 | AA89: 521.725 | AB89: 522.35 | AC89: 522.75 | AD89: 547.4 | AE89: 547.925 | AF89: 548.95 | AG89: 550.3 | AH89: 551.025 | AI89: 551.425 | AJ89: 552.25 | AK89: 552.875 | AM89: 2 | AN89: 5 | AO89: 66 | AP89: =IF(INDEX($V$31:$AK$46,AM89,AN89)>0,INDEX($V$31:$AK$46,AM89,AN89),"") -> 524.4 | AQ89: =IFERROR(RANK(AP89,$AP$24:$AP$279,1)+COUNTIF($AP$24:AP89,AP89)-1,"") -> 104 | AR89: =IFERROR(INDEX($AP$24:$AP$279,MATCH(SMALL($AQ$24:$AQ$279,ROWS($AR$24:AR89)),$AQ$24:$AQ$279,0))," ") -> 513.625 | AS89: =IF(ISNUMBER(AR89),(IF(COUNTIF( AR$24:AR89, AR89 )=1,AR89,"")),"") -> 513.625 | AT89: =IFERROR(RANK(AS89,$AS$24:$AS$279,1)+COUNTIF($AS$24:AS89,AS89)-1,"") -> 61 | AU89: =IFERROR(INDEX($AS$24:$AS$279,MATCH(SMALL($AT$24:$AT$279,ROWS(AU$24:$AU89)),$AT$24:$AT$279,0))," ") -> 515.25 | AW89: 66 | AX89: =IF(INDEX($V$51:$AK$66,AM89,AN89)>0,INDEX($V$51:$AK$66,AM89,AN89),"") -> 527.175 | AY89: =IFERROR(RANK(AX89,$AX$24:$AX$279,1)+COUNTIF($AX$24:AX89,AX89)-1,"") -> 107 | AZ89: =IFERROR(INDEX($AX$24:$AX$279,MATCH(SMALL($AY$24:$AY$279,ROWS($AZ$24:AZ89)),$AY$24:$AY$279,0))," ") -> 508.9 | BA89: =IF(ISNUMBER(AZ89),(IF(COUNTIF( AZ$24:AZ89, AZ89 )=1,AZ89,"")),"") -> 508.9 | BB89: =IFERROR(RANK(BA89,$BA$24:$BA$279,1)+COUNTIF($BA$24:BA89,BA89)-1,"") -> 65 | BC89: =IFERROR(INDEX($BA$24:$BA$279,MATCH(SMALL($BB$24:$BB$279,ROWS($BC$24:BC89)),$BB$24:$BB$279,0))," ") -> 509.6 | BE89: 66 | BF89: 1 | BG89: 66 | BH89: =IF(INDEX($V$71:$AK$326,BE89,BF89)>0,INDEX($V$71:$AK$326,BE89,BF89),"") -> 521.125 | BI89: =IFERROR(RANK(BH89,$BH$24:$BH$4119,1)+COUNTIF($BH$24:BH89,BH89)-1,"") -> 1083 | BJ89: =IFERROR(INDEX($BH$24:$BH$4119,MATCH(SMALL($BI$24:$BI$4119,ROWS($BJ$24:BJ89)),$BI$24:$BI$4119,0))," ") -> 487.7 | BK89: =IF(ISNUMBER(BJ89),(IF(COUNTIF( BJ$24:BJ89, BJ89 )=1,BJ89,"")),"") ->  | BL89: =IFERROR(RANK(BK89,$BK$24:$BK$4119,1)+COUNTIF($BK$24:BK89,BK89)-1,"") ->  | BM89: =IFERROR(INDEX($BK$24:$BK$4119,MATCH(SMALL($BL$24:$BL$4119,ROWS($BM$24:BM89)),$BL$24:$BL$4119,0))," ") -> 490.7 | BO89: 53 | BP89: 496.475 | BQ89: 21.875 | BR89: 22.375 | BS89: 23.1 | BT89: 24.025 | BU89: 25.15 | BV89: 25.975 | BW89: 26.6 | BX89: 27 | BY89: 51.65 | BZ89: 52.175 | CA89: 53.2 | CB89: 54.55 | CC89: 55.275 | CD89: 55.675 | CE89: 56.5 | CF89: 57.125 | CI89: 53 | CJ89: 496.475 | CK89: 0 | CL89: 0 | CM89: 0 | CN89: 0 | CO89: 0 | CP89: 0 | CQ89: 0 | CR89: 0 | CS89: 0 | CT89: 0 | CU89: 0 | CV89: 0 | CW89: 0 | CX89: 0 | CY89: 0 | CZ89: 0
P90: 517.525 | Q90: 513.3 | R90: 491.2 | U90: T 4 | V90: 516.7 | X90: =IF(AND($U14>0,X404>0,$T$87>0),$T$87-X14,"0") -> 517.925 | Z90: =IF(AND($U14>0,Z404>0,$T$87>0),$T$87+Z14,"0") -> 519.975 | AA90: 520.8 | AB90: 521.425 | AC90: 521.825 | AD90: 546.475 | AE90: 547 | AF90: 548.025 | AG90: 549.375 | AH90: 550.1 | AI90: 550.5 | AJ90: 551.325 | AK90: 551.95 | AM90: 3 | AN90: 5 | AO90: 67 | AP90: =IF(INDEX($V$31:$AK$46,AM90,AN90)>0,INDEX($V$31:$AK$46,AM90,AN90),"") -> 523.675 | AQ90: =IFERROR(RANK(AP90,$AP$24:$AP$279,1)+COUNTIF($AP$24:AP90,AP90)-1,"") -> 101 | AR90: =IFERROR(INDEX($AP$24:$AP$279,MATCH(SMALL($AQ$24:$AQ$279,ROWS($AR$24:AR90)),$AQ$24:$AQ$279,0))," ") -> 514.225 | AS90: =IF(ISNUMBER(AR90),(IF(COUNTIF( AR$24:AR90, AR90 )=1,AR90,"")),"") -> 514.225 | AT90: =IFERROR(RANK(AS90,$AS$24:$AS$279,1)+COUNTIF($AS$24:AS90,AS90)-1,"") -> 62 | AU90: =IFERROR(INDEX($AS$24:$AS$279,MATCH(SMALL($AT$24:$AT$279,ROWS(AU$24:$AU90)),$AT$24:$AT$279,0))," ") -> 515.675 | AW90: 67 | AX90: =IF(INDEX($V$51:$AK$66,AM90,AN90)>0,INDEX($V$51:$AK$66,AM90,AN90),"") -> 525.725 | AY90: =IFERROR(RANK(AX90,$AX$24:$AX$279,1)+COUNTIF($AX$24:AX90,AX90)-1,"") -> 104 | AZ90: =IFERROR(INDEX($AX$24:$AX$279,MATCH(SMALL($AY$24:$AY$279,ROWS($AZ$24:AZ90)),$AY$24:$AY$279,0))," ") -> 509.6 | BA90: =IF(ISNUMBER(AZ90),(IF(COUNTIF( AZ$24:AZ90, AZ90 )=1,AZ90,"")),"") -> 509.6 | BB90: =IFERROR(RANK(BA90,$BA$24:$BA$279,1)+COUNTIF($BA$24:BA90,BA90)-1,"") -> 66 | BC90: =IFERROR(INDEX($BA$24:$BA$279,MATCH(SMALL($BB$24:$BB$279,ROWS($BC$24:BC90)),$BB$24:$BB$279,0))," ") -> 510.15 | BE90: 67 | BF90: 1 | BG90: 67 | BH90: =IF(INDEX($V$71:$AK$326,BE90,BF90)>0,INDEX($V$71:$AK$326,BE90,BF90),"") -> 520.4 | BI90: =IFERROR(RANK(BH90,$BH$24:$BH$4119,1)+COUNTIF($BH$24:BH90,BH90)-1,"") -> 985 | BJ90: =IFERROR(INDEX($BH$24:$BH$4119,MATCH(SMALL($BI$24:$BI$4119,ROWS($BJ$24:BJ90)),$BI$24:$BI$4119,0))," ") -> 487.825 | BK90: =IF(ISNUMBER(BJ90),(IF(COUNTIF( BJ$24:BJ90, BJ90 )=1,BJ90,"")),"") -> 487.825 | BL90: =IFERROR(RANK(BK90,$BK$24:$BK$4119,1)+COUNTIF($BK$24:BK90,BK90)-1,"") -> 28 | BM90: =IFERROR(INDEX($BK$24:$BK$4119,MATCH(SMALL($BL$24:$BL$4119,ROWS($BM$24:BM90)),$BL$24:$BL$4119,0))," ") -> 490.725 | BO90: 54 | BP90: 496.775 | BQ90: 21.575 | BR90: 22.075 | BS90: 22.8 | BT90: 23.725 | BU90: 24.85 | BV90: 25.675 | BW90: 26.3 | BX90: 26.7 | BY90: 51.35 | BZ90: 51.875 | CA90: 52.9 | CB90: 54.25 | CC90: 54.975 | CD90: 55.375 | CE90: 56.2 | CF90: 56.825 | CI90: 54 | CJ90: 496.775 | CK90: 0 | CL90: 0 | CM90: 0 | CN90: 0 | CO90: 0 | CP90: 0 | CQ90: 0 | CR90: 0 | CS90: 0 | CT90: 0 | CU90: 0 | CV90: 0 | CW90: 0 | CX90: 0 | CY90: 0 | CZ90: 0
P91: 517.85 | Q91: 513.825 | R91: 491.225 | U91: T 5 | V91: 515.575 | X91: 516.8 | Y91: =IF(AND($U15>0,Y405>0,$T$87>0),$T$87-Y15,"0") -> 517.725 | AA91: =IF(AND($U15>0,AA405>0,$T$87>0),$T$87+AA15,"0") -> 519.675 | AB91: 520.3 | AC91: 520.7 | AD91: 545.35 | AE91: 545.875 | AF91: 546.9 | AG91: 548.25 | AH91: 548.975 | AI91: 549.375 | AJ91: 550.2 | AK91: 550.825 | AM91: 4 | AN91: 5 | AO91: 68 | AP91: =IF(INDEX($V$31:$AK$46,AM91,AN91)>0,INDEX($V$31:$AK$46,AM91,AN91),"") -> 522.75 | AQ91: =IFERROR(RANK(AP91,$AP$24:$AP$279,1)+COUNTIF($AP$24:AP91,AP91)-1,"") -> 99 | AR91: =IFERROR(INDEX($AP$24:$AP$279,MATCH(SMALL($AQ$24:$AQ$279,ROWS($AR$24:AR91)),$AQ$24:$AQ$279,0))," ") -> 514.25 | AS91: =IF(ISNUMBER(AR91),(IF(COUNTIF( AR$24:AR91, AR91 )=1,AR91,"")),"") -> 514.25 | AT91: =IFERROR(RANK(AS91,$AS$24:$AS$279,1)+COUNTIF($AS$24:AS91,AS91)-1,"") -> 63 | AU91: =IFERROR(INDEX($AS$24:$AS$279,MATCH(SMALL($AT$24:$AT$279,ROWS(AU$24:$AU91)),$AT$24:$AT$279,0))," ") -> 516.075 | AW91: 68 | AX91: =IF(INDEX($V$51:$AK$66,AM91,AN91)>0,INDEX($V$51:$AK$66,AM91,AN91),"") -> 523.875 | AY91: =IFERROR(RANK(AX91,$AX$24:$AX$279,1)+COUNTIF($AX$24:AX91,AX91)-1,"") -> 98 | AZ91: =IFERROR(INDEX($AX$24:$AX$279,MATCH(SMALL($AY$24:$AY$279,ROWS($AZ$24:AZ91)),$AY$24:$AY$279,0))," ") -> 510.15 | BA91: =IF(ISNUMBER(AZ91),(IF(COUNTIF( AZ$24:AZ91, AZ91 )=1,AZ91,"")),"") -> 510.15 | BB91: =IFERROR(RANK(BA91,$BA$24:$BA$279,1)+COUNTIF($BA$24:BA91,BA91)-1,"") -> 67 | BC91: =IFERROR(INDEX($BA$24:$BA$279,MATCH(SMALL($BB$24:$BB$279,ROWS($BC$24:BC91)),$BB$24:$BB$279,0))," ") -> 510.4 | BE91: 68 | BF91: 1 | BG91: 68 | BH91: =IF(INDEX($V$71:$AK$326,BE91,BF91)>0,INDEX($V$71:$AK$326,BE91,BF91),"") -> 519.475 | BI91: =IFERROR(RANK(BH91,$BH$24:$BH$4119,1)+COUNTIF($BH$24:BH91,BH91)-1,"") -> 859 | BJ91: =IFERROR(INDEX($BH$24:$BH$4119,MATCH(SMALL($BI$24:$BI$4119,ROWS($BJ$24:BJ91)),$BI$24:$BI$4119,0))," ") -> 487.825 | BK91: =IF(ISNUMBER(BJ91),(IF(COUNTIF( BJ$24:BJ91, BJ91 )=1,BJ91,"")),"") ->  | BL91: =IFERROR(RANK(BK91,$BK$24:$BK$4119,1)+COUNTIF($BK$24:BK91,BK91)-1,"") ->  | BM91: =IFERROR(INDEX($BK$24:$BK$4119,MATCH(SMALL($BL$24:$BL$4119,ROWS($BM$24:BM91)),$BL$24:$BL$4119,0))," ") -> 490.8 | BO91: 55 | BP91: 497.275 | BQ91: 21.075 | BR91: 21.575 | BS91: 22.3 | BT91: 23.225 | BU91: 24.35 | BV91: 25.175 | BW91: 25.8 | BX91: 26.2 | BY91: 50.85 | BZ91: 51.375 | CA91: 52.4 | CB91: 53.75 | CC91: 54.475 | CD91: 54.875 | CE91: 55.7 | CF91: 56.325 | CI91: 55 | CJ91: 497.275 | CK91: 0 | CL91: 0 | CM91: 0 | CN91: 0 | CO91: 0 | CP91: 0 | CQ91: 0 | CR91: 0 | CS91: 0 | CT91: 0 | CU91: 0 | CV91: 0 | CW91: 0 | CX91: 0 | CY91: 0 | CZ91: 0
P92: 517.925 | Q92: 514.05 | R92: 491.3 | U92: T 6 | V92: 514.75 | X92: 515.975 | Y92: 516.9 | Z92: =IF(AND(U16>0,Z407>0,T$87>0),T$87-Z16,"0") -> 518.025 | AB92: =IF(AND($U16>0,AB406>0,$T$87>0),$T$87+AB16,"0") -> 519.475 | AC92: 519.875 | AD92: 544.525 | AE92: 545.05 | AF92: 546.075 | AG92: 547.425 | AH92: 548.15 | AI92: 548.55 | AJ92: 549.375 | AK92: 550 | AM92: 5 | AN92: 5 | AO92: 69 | AP92: =IF(INDEX($V$31:$AK$46,AM92,AN92)>0,INDEX($V$31:$AK$46,AM92,AN92),"") ->  | AQ92: =IFERROR(RANK(AP92,$AP$24:$AP$279,1)+COUNTIF($AP$24:AP92,AP92)-1,"") ->  | AR92: =IFERROR(INDEX($AP$24:$AP$279,MATCH(SMALL($AQ$24:$AQ$279,ROWS($AR$24:AR92)),$AQ$24:$AQ$279,0))," ") -> 514.625 | AS92: =IF(ISNUMBER(AR92),(IF(COUNTIF( AR$24:AR92, AR92 )=1,AR92,"")),"") -> 514.625 | AT92: =IFERROR(RANK(AS92,$AS$24:$AS$279,1)+COUNTIF($AS$24:AS92,AS92)-1,"") -> 64 | AU92: =IFERROR(INDEX($AS$24:$AS$279,MATCH(SMALL($AT$24:$AT$279,ROWS(AU$24:$AU92)),$AT$24:$AT$279,0))," ") -> 516.2 | AW92: 69 | AX92: =IF(INDEX($V$51:$AK$66,AM92,AN92)>0,INDEX($V$51:$AK$66,AM92,AN92),"") ->  | AY92: =IFERROR(RANK(AX92,$AX$24:$AX$279,1)+COUNTIF($AX$24:AX92,AX92)-1,"") ->  | AZ92: =IFERROR(INDEX($AX$24:$AX$279,MATCH(SMALL($AY$24:$AY$279,ROWS($AZ$24:AZ92)),$AY$24:$AY$279,0))," ") -> 510.4 | BA92: =IF(ISNUMBER(AZ92),(IF(COUNTIF( AZ$24:AZ92, AZ92 )=1,AZ92,"")),"") -> 510.4 | BB92: =IFERROR(RANK(BA92,$BA$24:$BA$279,1)+COUNTIF($BA$24:BA92,BA92)-1,"") -> 68 | BC92: =IFERROR(INDEX($BA$24:$BA$279,MATCH(SMALL($BB$24:$BB$279,ROWS($BC$24:BC92)),$BB$24:$BB$279,0))," ") -> 511.65 | BE92: 69 | BF92: 1 | BG92: 69 | BH92: =IF(INDEX($V$71:$AK$326,BE92,BF92)>0,INDEX($V$71:$AK$326,BE92,BF92),"") ->  | BI92: =IFERROR(RANK(BH92,$BH$24:$BH$4119,1)+COUNTIF($BH$24:BH92,BH92)-1,"") ->  | BJ92: =IFERROR(INDEX($BH$24:$BH$4119,MATCH(SMALL($BI$24:$BI$4119,ROWS($BJ$24:BJ92)),$BI$24:$BI$4119,0))," ") -> 487.825 | BK92: =IF(ISNUMBER(BJ92),(IF(COUNTIF( BJ$24:BJ92, BJ92 )=1,BJ92,"")),"") ->  | BL92: =IFERROR(RANK(BK92,$BK$24:$BK$4119,1)+COUNTIF($BK$24:BK92,BK92)-1,"") ->  | BM92: =IFERROR(INDEX($BK$24:$BK$4119,MATCH(SMALL($BL$24:$BL$4119,ROWS($BM$24:BM92)),$BL$24:$BL$4119,0))," ") -> 490.9 | BO92: 56 | BP92: 497.5 | BQ92: 20.85 | BR92: 21.35 | BS92: 22.075 | BT92: 23 | BU92: 24.125 | BV92: 24.95 | BW92: 25.575 | BX92: 25.975 | BY92: 50.625 | BZ92: 51.15 | CA92: 52.175 | CB92: 53.525 | CC92: 54.25 | CD92: 54.65 | CE92: 55.475 | CF92: 56.1 | CI92: 56 | CJ92: 497.5 | CK92: 0 | CL92: 0 | CM92: 0 | CN92: 0 | CO92: 0 | CP92: 0 | CQ92: 0 | CR92: 0 | CS92: 0 | CT92: 0 | CU92: 0 | CV92: 0 | CW92: 0 | CX92: 0 | CY92: 0 | CZ92: 0
P93: 518.125 | Q93: 514.55 | R93: 491.325 | U93: T 7 | V93: 514.125 | X93: 515.35 | Y93: 516.275 | Z93: =IF(AND($U17>0,Z407>0,$T$87>0),$T$87-Z17,"0") -> 517.4 | AA93: 518.225 | AC93: =IF(AND($U17>0,AC407>0,$T$87>0),$T$87+AC17,"0") -> 519.25 | AD93: 543.9 | AE93: 544.425 | AF93: 545.45 | AG93: 546.8 | AH93: 547.525 | AI93: 547.925 | AJ93: 548.75 | AK93: 549.375 | AM93: 6 | AN93: 5 | AO93: 70 | AP93: =IF(INDEX($V$31:$AK$46,AM93,AN93)>0,INDEX($V$31:$AK$46,AM93,AN93),"") -> 520.8 | AQ93: =IFERROR(RANK(AP93,$AP$24:$AP$279,1)+COUNTIF($AP$24:AP93,AP93)-1,"") -> 92 | AR93: =IFERROR(INDEX($AP$24:$AP$279,MATCH(SMALL($AQ$24:$AQ$279,ROWS($AR$24:AR93)),$AQ$24:$AQ$279,0))," ") -> 515.075 | AS93: =IF(ISNUMBER(AR93),(IF(COUNTIF( AR$24:AR93, AR93 )=1,AR93,"")),"") -> 515.075 | AT93: =IFERROR(RANK(AS93,$AS$24:$AS$279,1)+COUNTIF($AS$24:AS93,AS93)-1,"") -> 65 | AU93: =IFERROR(INDEX($AS$24:$AS$279,MATCH(SMALL($AT$24:$AT$279,ROWS(AU$24:$AU93)),$AT$24:$AT$279,0))," ") -> 516.7 | AW93: 70 | AX93: =IF(INDEX($V$51:$AK$66,AM93,AN93)>0,INDEX($V$51:$AK$66,AM93,AN93),"") -> 519.975 | AY93: =IFERROR(RANK(AX93,$AX$24:$AX$279,1)+COUNTIF($AX$24:AX93,AX93)-1,"") -> 90 | AZ93: =IFERROR(INDEX($AX$24:$AX$279,MATCH(SMALL($AY$24:$AY$279,ROWS($AZ$24:AZ93)),$AY$24:$AY$279,0))," ") -> 511.65 | BA93: =IF(ISNUMBER(AZ93),(IF(COUNTIF( AZ$24:AZ93, AZ93 )=1,AZ93,"")),"") -> 511.65 | BB93: =IFERROR(RANK(BA93,$BA$24:$BA$279,1)+COUNTIF($BA$24:BA93,BA93)-1,"") -> 69 | BC93: =IFERROR(INDEX($BA$24:$BA$279,MATCH(SMALL($BB$24:$BB$279,ROWS($BC$24:BC93)),$BB$24:$BB$279,0))," ") -> 511.775 | BE93: 70 | BF93: 1 | BG93: 70 | BH93: =IF(INDEX($V$71:$AK$326,BE93,BF93)>0,INDEX($V$71:$AK$326,BE93,BF93),"") -> 517.525 | BI93: =IFERROR(RANK(BH93,$BH$24:$BH$4119,1)+COUNTIF($BH$24:BH93,BH93)-1,"") -> 653 | BJ93: =IFERROR(INDEX($BH$24:$BH$4119,MATCH(SMALL($BI$24:$BI$4119,ROWS($BJ$24:BJ93)),$BI$24:$BI$4119,0))," ") -> 487.825 | BK93: =IF(ISNUMBER(BJ93),(IF(COUNTIF( BJ$24:BJ93, BJ93 )=1,BJ93,"")),"") ->  | BL93: =IFERROR(RANK(BK93,$BK$24:$BK$4119,1)+COUNTIF($BK$24:BK93,BK93)-1,"") ->  | BM93: =IFERROR(INDEX($BK$24:$BK$4119,MATCH(SMALL($BL$24:$BL$4119,ROWS($BM$24:BM93)),$BL$24:$BL$4119,0))," ") -> 491 | BO93: 57 | BP93: 498.025 | BQ93: 20.325 | BR93: 20.825 | BS93: 21.55 | BT93: 22.475 | BU93: 23.6 | BV93: 24.425 | BW93: 25.05 | BX93: 25.45 | BY93: 50.1 | BZ93: 50.625 | CA93: 51.65 | CB93: 53 | CC93: 53.725 | CD93: 54.125 | CE93: 54.95 | CF93: 55.575 | CI93: 57 | CJ93: 498.025 | CK93: 0 | CL93: 0 | CM93: 0 | CN93: 0 | CO93: 0 | CP93: 0 | CQ93: 0 | CR93: 0 | CS93: 0 | CT93: 0 | CU93: 0 | CV93: 0 | CW93: 0 | CX93: 0 | CY93: 0 | CZ93: 0
P94: 518.55 | Q94: 515.35 | R94: 491.425 | U94: T 8 | V94: 513.725 | X94: 514.95 | Y94: 515.875 | Z94: 517 | AA94: 517.825 | AB94: =IF(AND($U18>0,AB408>0,$T$87>0),$T$87-AB18,"0") -> 518.45 | AD94: =IF(AND($U18>0,AD408>0,$T$87>0),$T$87+AD18,"0") -> 543.5 | AE94: 544.025 | AF94: 545.05 | AG94: 546.4 | AH94: 547.125 | AI94: 547.525 | AJ94: 548.35 | AK94: 548.975 | AM94: 7 | AN94: 5 | AO94: 71 | AP94: =IF(INDEX($V$31:$AK$46,AM94,AN94)>0,INDEX($V$31:$AK$46,AM94,AN94),"") -> 520.175 | AQ94: =IFERROR(RANK(AP94,$AP$24:$AP$279,1)+COUNTIF($AP$24:AP94,AP94)-1,"") -> 89 | AR94: =IFERROR(INDEX($AP$24:$AP$279,MATCH(SMALL($AQ$24:$AQ$279,ROWS($AR$24:AR94)),$AQ$24:$AQ$279,0))," ") -> 515.25 | AS94: =IF(ISNUMBER(AR94),(IF(COUNTIF( AR$24:AR94, AR94 )=1,AR94,"")),"") -> 515.25 | AT94: =IFERROR(RANK(AS94,$AS$24:$AS$279,1)+COUNTIF($AS$24:AS94,AS94)-1,"") -> 66 | AU94: =IFERROR(INDEX($AS$24:$AS$279,MATCH(SMALL($AT$24:$AT$279,ROWS(AU$24:$AU94)),$AT$24:$AT$279,0))," ") -> 517.125 | AW94: 71 | AX94: =IF(INDEX($V$51:$AK$66,AM94,AN94)>0,INDEX($V$51:$AK$66,AM94,AN94),"") -> 518.725 | AY94: =IFERROR(RANK(AX94,$AX$24:$AX$279,1)+COUNTIF($AX$24:AX94,AX94)-1,"") -> 88 | AZ94: =IFERROR(INDEX($AX$24:$AX$279,MATCH(SMALL($AY$24:$AY$279,ROWS($AZ$24:AZ94)),$AY$24:$AY$279,0))," ") -> 511.775 | BA94: =IF(ISNUMBER(AZ94),(IF(COUNTIF( AZ$24:AZ94, AZ94 )=1,AZ94,"")),"") -> 511.775 | BB94: =IFERROR(RANK(BA94,$BA$24:$BA$279,1)+COUNTIF($BA$24:BA94,BA94)-1,"") -> 70 | BC94: =IFERROR(INDEX($BA$24:$BA$279,MATCH(SMALL($BB$24:$BB$279,ROWS($BC$24:BC94)),$BB$24:$BB$279,0))," ") -> 511.8 | BE94: 71 | BF94: 1 | BG94: 71 | BH94: =IF(INDEX($V$71:$AK$326,BE94,BF94)>0,INDEX($V$71:$AK$326,BE94,BF94),"") -> 516.9 | BI94: =IFERROR(RANK(BH94,$BH$24:$BH$4119,1)+COUNTIF($BH$24:BH94,BH94)-1,"") -> 597 | BJ94: =IFERROR(INDEX($BH$24:$BH$4119,MATCH(SMALL($BI$24:$BI$4119,ROWS($BJ$24:BJ94)),$BI$24:$BI$4119,0))," ") -> 487.825 | BK94: =IF(ISNUMBER(BJ94),(IF(COUNTIF( BJ$24:BJ94, BJ94 )=1,BJ94,"")),"") ->  | BL94: =IFERROR(RANK(BK94,$BK$24:$BK$4119,1)+COUNTIF($BK$24:BK94,BK94)-1,"") ->  | BM94: =IFERROR(INDEX($BK$24:$BK$4119,MATCH(SMALL($BL$24:$BL$4119,ROWS($BM$24:BM94)),$BL$24:$BL$4119,0))," ") -> 491.1 | BO94: 58 | BP94: 498.3 | BQ94: 20.05 | BR94: 20.55 | BS94: 21.275 | BT94: 22.2 | BU94: 23.325 | BV94: 24.15 | BW94: 24.775 | BX94: 25.175 | BY94: 49.825 | BZ94: 50.35 | CA94: 51.375 | CB94: 52.725 | CC94: 53.45 | CD94: 53.85 | CE94: 54.675 | CF94: 55.3 | CI94: 58 | CJ94: 498.3 | CK94: 0 | CL94: 0 | CM94: 0 | CN94: 0 | CO94: 0 | CP94: 0 | CQ94: 0 | CR94: 0 | CS94: 0 | CT94: 0 | CU94: 0 | CV94: 0 | CW94: 0 | CX94: 0 | CY94: 0 | CZ94: 0
P95: 518.65 | Q95: 515.475 | R95: 491.5 | U95: T 9 | V95: 489.075 | X95: 490.3 | Y95: 491.225 | Z95: 492.35 | AA95: 493.175 | AB95: 493.8 | AC95: =IF(AND($U19>0,AC409>0,$T$87>0),$T$87-AC19,"0") -> 494.2 | AE95: =IF(AND($U19>0,AE409>0,$T$87>0),$T$87+AE19,"0") -> 519.375 | AF95: 520.4 | AG95: 521.75 | AH95: 522.475 | AI95: 522.875 | AJ95: 523.7 | AK95: 524.325 | AM95: 8 | AN95: 5 | AO95: 72 | AP95: =IF(INDEX($V$31:$AK$46,AM95,AN95)>0,INDEX($V$31:$AK$46,AM95,AN95),"") -> 519.775 | AQ95: =IFERROR(RANK(AP95,$AP$24:$AP$279,1)+COUNTIF($AP$24:AP95,AP95)-1,"") -> 88 | AR95: =IFERROR(INDEX($AP$24:$AP$279,MATCH(SMALL($AQ$24:$AQ$279,ROWS($AR$24:AR95)),$AQ$24:$AQ$279,0))," ") -> 515.675 | AS95: =IF(ISNUMBER(AR95),(IF(COUNTIF( AR$24:AR95, AR95 )=1,AR95,"")),"") -> 515.675 | AT95: =IFERROR(RANK(AS95,$AS$24:$AS$279,1)+COUNTIF($AS$24:AS95,AS95)-1,"") -> 67 | AU95: =IFERROR(INDEX($AS$24:$AS$279,MATCH(SMALL($AT$24:$AT$279,ROWS(AU$24:$AU95)),$AT$24:$AT$279,0))," ") -> 517.2 | AW95: 72 | AX95: =IF(INDEX($V$51:$AK$66,AM95,AN95)>0,INDEX($V$51:$AK$66,AM95,AN95),"") -> 517.925 | AY95: =IFERROR(RANK(AX95,$AX$24:$AX$279,1)+COUNTIF($AX$24:AX95,AX95)-1,"") -> 86 | AZ95: =IFERROR(INDEX($AX$24:$AX$279,MATCH(SMALL($AY$24:$AY$279,ROWS($AZ$24:AZ95)),$AY$24:$AY$279,0))," ") -> 511.8 | BA95: =IF(ISNUMBER(AZ95),(IF(COUNTIF( AZ$24:AZ95, AZ95 )=1,AZ95,"")),"") -> 511.8 | BB95: =IFERROR(RANK(BA95,$BA$24:$BA$279,1)+COUNTIF($BA$24:BA95,BA95)-1,"") -> 71 | BC95: =IFERROR(INDEX($BA$24:$BA$279,MATCH(SMALL($BB$24:$BB$279,ROWS($BC$24:BC95)),$BB$24:$BB$279,0))," ") -> 512.575 | BE95: 72 | BF95: 1 | BG95: 72 | BH95: =IF(INDEX($V$71:$AK$326,BE95,BF95)>0,INDEX($V$71:$AK$326,BE95,BF95),"") -> 516.5 | BI95: =IFERROR(RANK(BH95,$BH$24:$BH$4119,1)+COUNTIF($BH$24:BH95,BH95)-1,"") -> 573 | BJ95: =IFERROR(INDEX($BH$24:$BH$4119,MATCH(SMALL($BI$24:$BI$4119,ROWS($BJ$24:BJ95)),$BI$24:$BI$4119,0))," ") -> 487.825 | BK95: =IF(ISNUMBER(BJ95),(IF(COUNTIF( BJ$24:BJ95, BJ95 )=1,BJ95,"")),"") ->  | BL95: =IFERROR(RANK(BK95,$BK$24:$BK$4119,1)+COUNTIF($BK$24:BK95,BK95)-1,"") ->  | BM95: =IFERROR(INDEX($BK$24:$BK$4119,MATCH(SMALL($BL$24:$BL$4119,ROWS($BM$24:BM95)),$BL$24:$BL$4119,0))," ") -> 491.125 | BO95: 59 | BP95: 498.825 | BQ95: 19.525 | BR95: 20.025 | BS95: 20.75 | BT95: 21.675 | BU95: 22.8 | BV95: 23.625 | BW95: 24.25 | BX95: 24.65 | BY95: 49.3 | BZ95: 49.825 | CA95: 50.85 | CB95: 52.2 | CC95: 52.925 | CD95: 53.325 | CE95: 54.15 | CF95: 54.775 | CI95: 59 | CJ95: 498.825 | CK95: 0 | CL95: 0 | CM95: 0 | CN95: 0 | CO95: 0 | CP95: 0 | CQ95: 0 | CR95: 0 | CS95: 0 | CT95: 0 | CU95: 0 | CV95: 0 | CW95: 0 | CX95: 0 | CY95: 0 | CZ95: 0
P96: 519.35 | Q96: 515.55 | R96: 491.525 | U96: T 10 | V96: 488.55 | X96: 489.775 | Y96: 490.7 | Z96: 491.825 | AA96: 492.65 | AB96: 493.275 | AC96: 493.675 | AD96: =IF(AND($U20>0,AD410>0,$T$87>0),$T$87-AD20,"0") -> 518.325 | AF96: =IF(AND($U20>0,AF410>0,$T$87>0),$T$87+AF20,"0") -> 519.875 | AG96: 521.225 | AH96: 521.95 | AI96: 522.35 | AJ96: 523.175 | AK96: 523.8 | AM96: 9 | AN96: 5 | AO96: 73 | AP96: =IF(INDEX($V$31:$AK$46,AM96,AN96)>0,INDEX($V$31:$AK$46,AM96,AN96),"") -> 495.125 | AQ96: =IFERROR(RANK(AP96,$AP$24:$AP$279,1)+COUNTIF($AP$24:AP96,AP96)-1,"") -> 52 | AR96: =IFERROR(INDEX($AP$24:$AP$279,MATCH(SMALL($AQ$24:$AQ$279,ROWS($AR$24:AR96)),$AQ$24:$AQ$279,0))," ") -> 516.075 | AS96: =IF(ISNUMBER(AR96),(IF(COUNTIF( AR$24:AR96, AR96 )=1,AR96,"")),"") -> 516.075 | AT96: =IFERROR(RANK(AS96,$AS$24:$AS$279,1)+COUNTIF($AS$24:AS96,AS96)-1,"") -> 68 | AU96: =IFERROR(INDEX($AS$24:$AS$279,MATCH(SMALL($AT$24:$AT$279,ROWS(AU$24:$AU96)),$AT$24:$AT$279,0))," ") -> 517.525 | AW96: 73 | AX96: =IF(INDEX($V$51:$AK$66,AM96,AN96)>0,INDEX($V$51:$AK$66,AM96,AN96),"") -> 468.625 | AY96: =IFERROR(RANK(AX96,$AX$24:$AX$279,1)+COUNTIF($AX$24:AX96,AX96)-1,"") -> 56 | AZ96: =IFERROR(INDEX($AX$24:$AX$279,MATCH(SMALL($AY$24:$AY$279,ROWS($AZ$24:AZ96)),$AY$24:$AY$279,0))," ") -> 512.575 | BA96: =IF(ISNUMBER(AZ96),(IF(COUNTIF( AZ$24:AZ96, AZ96 )=1,AZ96,"")),"") -> 512.575 | BB96: =IFERROR(RANK(BA96,$BA$24:$BA$279,1)+COUNTIF($BA$24:BA96,BA96)-1,"") -> 72 | BC96: =IFERROR(INDEX($BA$24:$BA$279,MATCH(SMALL($BB$24:$BB$279,ROWS($BC$24:BC96)),$BB$24:$BB$279,0))," ") -> 513.3 | BE96: 73 | BF96: 1 | BG96: 73 | BH96: =IF(INDEX($V$71:$AK$326,BE96,BF96)>0,INDEX($V$71:$AK$326,BE96,BF96),"") -> 491.85 | BI96: =IFERROR(RANK(BH96,$BH$24:$BH$4119,1)+COUNTIF($BH$24:BH96,BH96)-1,"") -> 271 | BJ96: =IFERROR(INDEX($BH$24:$BH$4119,MATCH(SMALL($BI$24:$BI$4119,ROWS($BJ$24:BJ96)),$BI$24:$BI$4119,0))," ") -> 487.825 | BK96: =IF(ISNUMBER(BJ96),(IF(COUNTIF( BJ$24:BJ96, BJ96 )=1,BJ96,"")),"") ->  | BL96: =IFERROR(RANK(BK96,$BK$24:$BK$4119,1)+COUNTIF($BK$24:BK96,BK96)-1,"") ->  | BM96: =IFERROR(INDEX($BK$24:$BK$4119,MATCH(SMALL($BL$24:$BL$4119,ROWS($BM$24:BM96)),$BL$24:$BL$4119,0))," ") -> 491.2 | BO96: 60 | BP96: 513.225 | BQ96: 5.125 | BR96: 5.625 | BS96: 6.35 | BT96: 7.275 | BU96: 8.4 | BV96: 9.225 | BW96: 9.85 | BX96: 10.25 | BY96: 34.9 | BZ96: 35.425 | CA96: 36.45 | CB96: 37.8 | CC96: 38.525 | CD96: 38.925 | CE96: 39.75 | CF96: 40.375 | CI96: 60 | CJ96: 513.225 | CK96: 0 | CL96: 0 | CM96: 0 | CN96: 0 | CO96: 0 | CP96: 0 | CQ96: 0 | CR96: 0 | CS96: 0 | CT96: 0 | CU96: 0 | CV96: 0 | CW96: 0 | CX96: 0 | CY96: 0 | CZ96: 0
P97: 519.375 | Q97: 515.9 | R97: 491.625 | U97: T 11 | V97: 487.525 | X97: 488.75 | Y97: 489.675 | Z97: 490.8 | AA97: 491.625 | AB97: 492.25 | AC97: 492.65 | AD97: 517.3 | AE97: =IF(AND($U21>0,AE411>0,$T$87>0),$T$87-AE21,"0") -> 517.825 | AG97: =IF(AND($U21>0,AG411>0,$T$87>0),$T$87+AG21,"0") -> 520.2 | AH97: =IF(AND($U21>0,AH411>0,$T$87>0),$T$87+AH21,"0") -> 520.925 | AI97: =IF(AND($U21>0,AI411>0,$T$87>0),$T$87+AI21,"0") -> 521.325 | AJ97: =IF(AND($U21>0,AJ411>0,$T$87>0),$T$87+AJ21,"0") -> 522.15 | AK97: =IF(AND($U21>0,AK411>0,$T$87>0),$T$87+AK21,"0") -> 522.775 | AM97: 10 | AN97: 5 | AO97: 74 | AP97: =IF(INDEX($V$31:$AK$46,AM97,AN97)>0,INDEX($V$31:$AK$46,AM97,AN97),"") -> 494.6 | AQ97: =IFERROR(RANK(AP97,$AP$24:$AP$279,1)+COUNTIF($AP$24:AP97,AP97)-1,"") -> 50 | AR97: =IFERROR(INDEX($AP$24:$AP$279,MATCH(SMALL($AQ$24:$AQ$279,ROWS($AR$24:AR97)),$AQ$24:$AQ$279,0))," ") -> 516.075 | AS97: =IF(ISNUMBER(AR97),(IF(COUNTIF( AR$24:AR97, AR97 )=1,AR97,"")),"") ->  | AT97: =IFERROR(RANK(AS97,$AS$24:$AS$279,1)+COUNTIF($AS$24:AS97,AS97)-1,"") ->  | AU97: =IFERROR(INDEX($AS$24:$AS$279,MATCH(SMALL($AT$24:$AT$279,ROWS(AU$24:$AU97)),$AT$24:$AT$279,0))," ") -> 517.85 | AW97: 74 | AX97: =IF(INDEX($V$51:$AK$66,AM97,AN97)>0,INDEX($V$51:$AK$66,AM97,AN97),"") -> 467.575 | AY97: =IFERROR(RANK(AX97,$AX$24:$AX$279,1)+COUNTIF($AX$24:AX97,AX97)-1,"") -> 53 | AZ97: =IFERROR(INDEX($AX$24:$AX$279,MATCH(SMALL($AY$24:$AY$279,ROWS($AZ$24:AZ97)),$AY$24:$AY$279,0))," ") -> 513.3 | BA97: =IF(ISNUMBER(AZ97),(IF(COUNTIF( AZ$24:AZ97, AZ97 )=1,AZ97,"")),"") -> 513.3 | BB97: =IFERROR(RANK(BA97,$BA$24:$BA$279,1)+COUNTIF($BA$24:BA97,BA97)-1,"") -> 73 | BC97: =IFERROR(INDEX($BA$24:$BA$279,MATCH(SMALL($BB$24:$BB$279,ROWS($BC$24:BC97)),$BB$24:$BB$279,0))," ") -> 513.825 | BE97: 74 | BF97: 1 | BG97: 74 | BH97: =IF(INDEX($V$71:$AK$326,BE97,BF97)>0,INDEX($V$71:$AK$326,BE97,BF97),"") -> 491.325 | BI97: =IFERROR(RANK(BH97,$BH$24:$BH$4119,1)+COUNTIF($BH$24:BH97,BH97)-1,"") -> 247 | BJ97: =IFERROR(INDEX($BH$24:$BH$4119,MATCH(SMALL($BI$24:$BI$4119,ROWS($BJ$24:BJ97)),$BI$24:$BI$4119,0))," ") -> 487.825 | BK97: =IF(ISNUMBER(BJ97),(IF(COUNTIF( BJ$24:BJ97, BJ97 )=1,BJ97,"")),"") ->  | BL97: =IFERROR(RANK(BK97,$BK$24:$BK$4119,1)+COUNTIF($BK$24:BK97,BK97)-1,"") ->  | BM97: =IFERROR(INDEX($BK$24:$BK$4119,MATCH(SMALL($BL$24:$BL$4119,ROWS($BM$24:BM97)),$BL$24:$BL$4119,0))," ") -> 491.225 | BO97: 61 | BP97: 513.625 | BQ97: 4.725 | BR97: 5.225 | BS97: 5.95 | BT97: 6.875 | BU97: 8 | BV97: 8.825 | BW97: 9.45 | BX97: 9.85 | BY97: 34.5 | BZ97: 35.025 | CA97: 36.05 | CB97: 37.4 | CC97: 38.125 | CD97: 38.525 | CE97: 39.35 | CF97: 39.975 | CI97: 61 | CJ97: 513.625 | CK97: 0 | CL97: 0 | CM97: 0 | CN97: 0 | CO97: 0 | CP97: 0 | CQ97: 0 | CR97: 0 | CS97: 0 | CT97: 0 | CU97: 0 | CV97: 0 | CW97: 0 | CX97: 0 | CY97: 0 | CZ97: 0
P98: 519.775 | Q98: 516.6 | R98: 491.725 | U98: T 12 | V98: 486.175 | X98: 487.4 | Y98: 488.325 | Z98: 489.45 | AA98: 490.275 | AB98: 490.9 | AC98: 491.3 | AD98: 515.95 | AE98: 516.475 | AF98: =IF(AND($U22>0,AF412>0,$T$87>0),$T$87-AF22,"0") -> 517.5 | AH98: =IF(AND($U22>0,AH412>0,$T$87>0),$T$87+AH22,"0") -> 519.575 | AI98: =IF(AND($U22>0,AI412>0,$T$87>0),$T$87+AI22,"0") -> 519.975 | AJ98: =IF(AND($U22>0,AJ412>0,$T$87>0),$T$87+AJ22,"0") -> 520.8 | AK98: =IF(AND($U22>0,AK412>0,$T$87>0),$T$87+AK22,"0") -> 521.425 | AM98: 11 | AN98: 5 | AO98: 75 | AP98: =IF(INDEX($V$31:$AK$46,AM98,AN98)>0,INDEX($V$31:$AK$46,AM98,AN98),"") -> 493.575 | AQ98: =IFERROR(RANK(AP98,$AP$24:$AP$279,1)+COUNTIF($AP$24:AP98,AP98)-1,"") -> 45 | AR98: =IFERROR(INDEX($AP$24:$AP$279,MATCH(SMALL($AQ$24:$AQ$279,ROWS($AR$24:AR98)),$AQ$24:$AQ$279,0))," ") -> 516.2 | AS98: =IF(ISNUMBER(AR98),(IF(COUNTIF( AR$24:AR98, AR98 )=1,AR98,"")),"") -> 516.2 | AT98: =IFERROR(RANK(AS98,$AS$24:$AS$279,1)+COUNTIF($AS$24:AS98,AS98)-1,"") -> 69 | AU98: =IFERROR(INDEX($AS$24:$AS$279,MATCH(SMALL($AT$24:$AT$279,ROWS(AU$24:$AU98)),$AT$24:$AT$279,0))," ") -> 517.925 | AW98: 75 | AX98: =IF(INDEX($V$51:$AK$66,AM98,AN98)>0,INDEX($V$51:$AK$66,AM98,AN98),"") -> 465.525 | AY98: =IFERROR(RANK(AX98,$AX$24:$AX$279,1)+COUNTIF($AX$24:AX98,AX98)-1,"") -> 48 | AZ98: =IFERROR(INDEX($AX$24:$AX$279,MATCH(SMALL($AY$24:$AY$279,ROWS($AZ$24:AZ98)),$AY$24:$AY$279,0))," ") -> 513.825 | BA98: =IF(ISNUMBER(AZ98),(IF(COUNTIF( AZ$24:AZ98, AZ98 )=1,AZ98,"")),"") -> 513.825 | BB98: =IFERROR(RANK(BA98,$BA$24:$BA$279,1)+COUNTIF($BA$24:BA98,BA98)-1,"") -> 74 | BC98: =IFERROR(INDEX($BA$24:$BA$279,MATCH(SMALL($BB$24:$BB$279,ROWS($BC$24:BC98)),$BB$24:$BB$279,0))," ") -> 514.05 | BE98: 75 | BF98: 1 | BG98: 75 | BH98: =IF(INDEX($V$71:$AK$326,BE98,BF98)>0,INDEX($V$71:$AK$326,BE98,BF98),"") -> 490.3 | BI98: =IFERROR(RANK(BH98,$BH$24:$BH$4119,1)+COUNTIF($BH$24:BH98,BH98)-1,"") -> 191 | BJ98: =IFERROR(INDEX($BH$24:$BH$4119,MATCH(SMALL($BI$24:$BI$4119,ROWS($BJ$24:BJ98)),$BI$24:$BI$4119,0))," ") -> 487.925 | BK98: =IF(ISNUMBER(BJ98),(IF(COUNTIF( BJ$24:BJ98, BJ98 )=1,BJ98,"")),"") -> 487.925 | BL98: =IFERROR(RANK(BK98,$BK$24:$BK$4119,1)+COUNTIF($BK$24:BK98,BK98)-1,"") -> 29 | BM98: =IFERROR(INDEX($BK$24:$BK$4119,MATCH(SMALL($BL$24:$BL$4119,ROWS($BM$24:BM98)),$BL$24:$BL$4119,0))," ") -> 491.3 | BO98: 62 | BP98: 514.225 | BQ98: 4.125 | BR98: 4.625 | BS98: 5.35 | BT98: 6.275 | BU98: 7.4 | BV98: 8.225 | BW98: 8.85 | BX98: 9.25 | BY98: 33.9 | BZ98: 34.425 | CA98: 35.45 | CB98: 36.8 | CC98: 37.525 | CD98: 37.925 | CE98: 38.75 | CF98: 39.375 | CI98: 62 | CJ98: 514.225 | CK98: 0 | CL98: 0 | CM98: 0 | CN98: 0 | CO98: 0 | CP98: 0 | CQ98: 0 | CR98: 0 | CS98: 0 | CT98: 0 | CU98: 0 | CV98: 0 | CW98: 0 | CX98: 0 | CY98: 0 | CZ98: 0
P99: 520.175 | Q99: 517.35 | R99: 491.75 | U99: T 13 | V99: 485.45 | X99: 486.675 | Y99: 487.6 | Z99: 488.725 | AA99: 489.55 | AB99: 490.175 | AC99: 490.575 | AD99: 515.225 | AE99: 515.75 | AF99: =IF(AND($U23>0,AF413>0,$T$87>0),$T$87-AF23,"0") -> 516.775 | AG99: =IF(AND($U23>0,AG413>0,$T$87>0),$T$87-AG23,"0") -> 518.125 | AI99: =IF(AND($U23>0,AI413>0,$T$87>0),$T$87-AI23,"0") -> 518.45 | AJ99: =IF(AND($U23>0,AJ413>0,$T$87>0),$T$87+AJ23,"0") -> 520.075 | AK99: =IF(AND($U23>0,AK413>0,$T$87>0),$T$87+AK23,"0") -> 520.7 | AM99: 12 | AN99: 5 | AO99: 76 | AP99: =IF(INDEX($V$31:$AK$46,AM99,AN99)>0,INDEX($V$31:$AK$46,AM99,AN99),"") -> 492.225 | AQ99: =IFERROR(RANK(AP99,$AP$24:$AP$279,1)+COUNTIF($AP$24:AP99,AP99)-1,"") -> 37 | AR99: =IFERROR(INDEX($AP$24:$AP$279,MATCH(SMALL($AQ$24:$AQ$279,ROWS($AR$24:AR99)),$AQ$24:$AQ$279,0))," ") -> 516.7 | AS99: =IF(ISNUMBER(AR99),(IF(COUNTIF( AR$24:AR99, AR99 )=1,AR99,"")),"") -> 516.7 | AT99: =IFERROR(RANK(AS99,$AS$24:$AS$279,1)+COUNTIF($AS$24:AS99,AS99)-1,"") -> 70 | AU99: =IFERROR(INDEX($AS$24:$AS$279,MATCH(SMALL($AT$24:$AT$279,ROWS(AU$24:$AU99)),$AT$24:$AT$279,0))," ") -> 518.125 | AW99: 76 | AX99: =IF(INDEX($V$51:$AK$66,AM99,AN99)>0,INDEX($V$51:$AK$66,AM99,AN99),"") -> 462.825 | AY99: =IFERROR(RANK(AX99,$AX$24:$AX$279,1)+COUNTIF($AX$24:AX99,AX99)-1,"") -> 38 | AZ99: =IFERROR(INDEX($AX$24:$AX$279,MATCH(SMALL($AY$24:$AY$279,ROWS($AZ$24:AZ99)),$AY$24:$AY$279,0))," ") -> 514.05 | BA99: =IF(ISNUMBER(AZ99),(IF(COUNTIF( AZ$24:AZ99, AZ99 )=1,AZ99,"")),"") -> 514.05 | BB99: =IFERROR(RANK(BA99,$BA$24:$BA$279,1)+COUNTIF($BA$24:BA99,BA99)-1,"") -> 75 | BC99: =IFERROR(INDEX($BA$24:$BA$279,MATCH(SMALL($BB$24:$BB$279,ROWS($BC$24:BC99)),$BB$24:$BB$279,0))," ") -> 514.55 | BE99: 76 | BF99: 1 | BG99: 76 | BH99: =IF(INDEX($V$71:$AK$326,BE99,BF99)>0,INDEX($V$71:$AK$326,BE99,BF99),"") -> 488.95 | BI99: =IFERROR(RANK(BH99,$BH$24:$BH$4119,1)+COUNTIF($BH$24:BH99,BH99)-1,"") -> 113 | BJ99: =IFERROR(INDEX($BH$24:$BH$4119,MATCH(SMALL($BI$24:$BI$4119,ROWS($BJ$24:BJ99)),$BI$24:$BI$4119,0))," ") -> 487.925 | BK99: =IF(ISNUMBER(BJ99),(IF(COUNTIF( BJ$24:BJ99, BJ99 )=1,BJ99,"")),"") ->  | BL99: =IFERROR(RANK(BK99,$BK$24:$BK$4119,1)+COUNTIF($BK$24:BK99,BK99)-1,"") ->  | BM99: =IFERROR(INDEX($BK$24:$BK$4119,MATCH(SMALL($BL$24:$BL$4119,ROWS($BM$24:BM99)),$BL$24:$BL$4119,0))," ") -> 491.325 | BO99: 63 | BP99: 514.25 | BQ99: 4.1 | BR99: 4.6 | BS99: 5.325 | BT99: 6.25 | BU99: 7.375 | BV99: 8.2 | BW99: 8.825 | BX99: 9.225 | BY99: 33.875 | BZ99: 34.4 | CA99: 35.425 | CB99: 36.775 | CC99: 37.5 | CD99: 37.9 | CE99: 38.725 | CF99: 39.35 | CI99: 63 | CJ99: 514.25 | CK99: 0 | CL99: 0 | CM99: 0 | CN99: 0 | CO99: 0 | CP99: 0 | CQ99: 0 | CR99: 0 | CS99: 0 | CT99: 0 | CU99: 0 | CV99: 0 | CW99: 0 | CX99: 0 | CY99: 0 | CZ99: 0
P100: 520.3 | Q100: 517.4 | R100: 491.825 | U100: T 14 | V100: 485.05 | X100: 486.275 | Y100: 487.2 | Z100: 488.325 | AA100: 489.15 | AB100: 489.775 | AC100: 490.175 | AD100: 514.825 | AE100: 515.35 | AF100: =IF(AND($U24>0,AF414>0,$T$87>0),$T$87-AF24,"0") -> 516.375 | AG100: =IF(AND($U24>0,AG414>0,$T$87>0),$T$87-AG24,"0") -> 517.725 | AH100: =IF(AND($U24>0,AH414>0,$T$87>0),$T$87-AH24,"0") -> 518.45 | AJ100: =IF(AND($U24>0,AJ414>0,$T$87>0),$T$87+AJ24,"0") -> 519.675 | AK100: =IF(AND($U24>0,AK414>0,$T$87>0),$T$87+AK24,"0") -> 520.3 | AM100: 13 | AN100: 5 | AO100: 77 | AP100: =IF(INDEX($V$31:$AK$46,AM100,AN100)>0,INDEX($V$31:$AK$46,AM100,AN100),"") -> 491.5 | AQ100: =IFERROR(RANK(AP100,$AP$24:$AP$279,1)+COUNTIF($AP$24:AP100,AP100)-1,"") -> 35 | AR100: =IFERROR(INDEX($AP$24:$AP$279,MATCH(SMALL($AQ$24:$AQ$279,ROWS($AR$24:AR100)),$AQ$24:$AQ$279,0))," ") -> 517.125 | AS100: =IF(ISNUMBER(AR100),(IF(COUNTIF( AR$24:AR100, AR100 )=1,AR100,"")),"") -> 517.125 | AT100: =IFERROR(RANK(AS100,$AS$24:$AS$279,1)+COUNTIF($AS$24:AS100,AS100)-1,"") -> 71 | AU100: =IFERROR(INDEX($AS$24:$AS$279,MATCH(SMALL($AT$24:$AT$279,ROWS(AU$24:$AU100)),$AT$24:$AT$279,0))," ") -> 518.55 | AW100: 77 | AX100: =IF(INDEX($V$51:$AK$66,AM100,AN100)>0,INDEX($V$51:$AK$66,AM100,AN100),"") -> 461.375 | AY100: =IFERROR(RANK(AX100,$AX$24:$AX$279,1)+COUNTIF($AX$24:AX100,AX100)-1,"") -> 32 | AZ100: =IFERROR(INDEX($AX$24:$AX$279,MATCH(SMALL($AY$24:$AY$279,ROWS($AZ$24:AZ100)),$AY$24:$AY$279,0))," ") -> 514.55 | BA100: =IF(ISNUMBER(AZ100),(IF(COUNTIF( AZ$24:AZ100, AZ100 )=1,AZ100,"")),"") -> 514.55 | BB100: =IFERROR(RANK(BA100,$BA$24:$BA$279,1)+COUNTIF($BA$24:BA100,BA100)-1,"") -> 76 | BC100: =IFERROR(INDEX($BA$24:$BA$279,MATCH(SMALL($BB$24:$BB$279,ROWS($BC$24:BC100)),$BB$24:$BB$279,0))," ") -> 515.35 | BE100: 77 | BF100: 1 | BG100: 77 | BH100: =IF(INDEX($V$71:$AK$326,BE100,BF100)>0,INDEX($V$71:$AK$326,BE100,BF100),"") -> 488.225 | BI100: =IFERROR(RANK(BH100,$BH$24:$BH$4119,1)+COUNTIF($BH$24:BH100,BH100)-1,"") -> 77 | BJ100: =IFERROR(INDEX($BH$24:$BH$4119,MATCH(SMALL($BI$24:$BI$4119,ROWS($BJ$24:BJ100)),$BI$24:$BI$4119,0))," ") -> 488.225 | BK100: =IF(ISNUMBER(BJ100),(IF(COUNTIF( BJ$24:BJ100, BJ100 )=1,BJ100,"")),"") -> 488.225 | BL100: =IFERROR(RANK(BK100,$BK$24:$BK$4119,1)+COUNTIF($BK$24:BK100,BK100)-1,"") -> 30 | BM100: =IFERROR(INDEX($BK$24:$BK$4119,MATCH(SMALL($BL$24:$BL$4119,ROWS($BM$24:BM100)),$BL$24:$BL$4119,0))," ") -> 491.425 | BO100: 64 | BP100: 514.625 | BQ100: 3.725 | BR100: 4.225 | BS100: 4.95 | BT100: 5.875 | BU100: 7 | BV100: 7.825 | BW100: 8.45 | BX100: 8.85 | BY100: 33.5 | BZ100: 34.025 | CA100: 35.05 | CB100: 36.4 | CC100: 37.125 | CD100: 37.525 | CE100: 38.35 | CF100: 38.975 | CI100: 64 | CJ100: 514.625 | CK100: 0 | CL100: 0 | CM100: 0 | CN100: 0 | CO100: 0 | CP100: 0 | CQ100: 0 | CR100: 0 | CS100: 0 | CT100: 0 | CU100: 0 | CV100: 0 | CW100: 0 | CX100: 0 | CY100: 0 | CZ100: 0
P101: 520.8 | Q101: 517.725 | R101: 491.85 | U101: T 15 | V101: 484.225 | X101: 485.45 | Y101: 486.375 | Z101: 487.5 | AA101: 488.325 | AB101: 488.95 | AC101: 489.35 | AD101: 514 | AE101: 514.525 | AF101: =IF(AND($U25>0,AF415>0,$T$87>0),$T$87-AF25,"0") -> 515.55 | AG101: =IF(AND($U25>0,AG415>0,$T$87>0),$T$87-AG25,"0") -> 516.9 | AH101: =IF(AND($U25>0,AH415>0,$T$87>0),$T$87-AH25,"0") -> 517.625 | AI101: =IF(AND($U25>0,AI415>0,$T$87>0),$T$87-AI25,"0") -> 518.025 | AK101: =IF(AND($U25>0,AK415>0,$T$87>0),$T$87+AK25,"0") -> 519.475 | AM101: 14 | AN101: 5 | AO101: 78 | AP101: =IF(INDEX($V$31:$AK$46,AM101,AN101)>0,INDEX($V$31:$AK$46,AM101,AN101),"") -> 491.1 | AQ101: =IFERROR(RANK(AP101,$AP$24:$AP$279,1)+COUNTIF($AP$24:AP101,AP101)-1,"") -> 32 | AR101: =IFERROR(INDEX($AP$24:$AP$279,MATCH(SMALL($AQ$24:$AQ$279,ROWS($AR$24:AR101)),$AQ$24:$AQ$279,0))," ") -> 517.2 | AS101: =IF(ISNUMBER(AR101),(IF(COUNTIF( AR$24:AR101, AR101 )=1,AR101,"")),"") -> 517.2 | AT101: =IFERROR(RANK(AS101,$AS$24:$AS$279,1)+COUNTIF($AS$24:AS101,AS101)-1,"") -> 72 | AU101: =IFERROR(INDEX($AS$24:$AS$279,MATCH(SMALL($AT$24:$AT$279,ROWS(AU$24:$AU101)),$AT$24:$AT$279,0))," ") -> 518.65 | AW101: 78 | AX101: =IF(INDEX($V$51:$AK$66,AM101,AN101)>0,INDEX($V$51:$AK$66,AM101,AN101),"") -> 460.575 | AY101: =IFERROR(RANK(AX101,$AX$24:$AX$279,1)+COUNTIF($AX$24:AX101,AX101)-1,"") -> 31 | AZ101: =IFERROR(INDEX($AX$24:$AX$279,MATCH(SMALL($AY$24:$AY$279,ROWS($AZ$24:AZ101)),$AY$24:$AY$279,0))," ") -> 515.35 | BA101: =IF(ISNUMBER(AZ101),(IF(COUNTIF( AZ$24:AZ101, AZ101 )=1,AZ101,"")),"") -> 515.35 | BB101: =IFERROR(RANK(BA101,$BA$24:$BA$279,1)+COUNTIF($BA$24:BA101,BA101)-1,"") -> 77 | BC101: =IFERROR(INDEX($BA$24:$BA$279,MATCH(SMALL($BB$24:$BB$279,ROWS($BC$24:BC101)),$BB$24:$BB$279,0))," ") -> 515.475 | BE101: 78 | BF101: 1 | BG101: 78 | BH101: =IF(INDEX($V$71:$AK$326,BE101,BF101)>0,INDEX($V$71:$AK$326,BE101,BF101),"") -> 487.825 | BI101: =IFERROR(RANK(BH101,$BH$24:$BH$4119,1)+COUNTIF($BH$24:BH101,BH101)-1,"") -> 68 | BJ101: =IFERROR(INDEX($BH$24:$BH$4119,MATCH(SMALL($BI$24:$BI$4119,ROWS($BJ$24:BJ101)),$BI$24:$BI$4119,0))," ") -> 488.225 | BK101: =IF(ISNUMBER(BJ101),(IF(COUNTIF( BJ$24:BJ101, BJ101 )=1,BJ101,"")),"") ->  | BL101: =IFERROR(RANK(BK101,$BK$24:$BK$4119,1)+COUNTIF($BK$24:BK101,BK101)-1,"") ->  | BM101: =IFERROR(INDEX($BK$24:$BK$4119,MATCH(SMALL($BL$24:$BL$4119,ROWS($BM$24:BM101)),$BL$24:$BL$4119,0))," ") -> 491.5 | BO101: 65 | BP101: =AU88 -> 515.075 | BQ101: 3.275 | BR101: 3.775 | BS101: 4.5 | BT101: 5.425 | BU101: =IF(ISNUMBER($BP101),ABS($BP101-BU$35),"") -> 6.55 | BV101: 7.375 | BW101: 8 | BX101: 8.4 | BY101: 33.05 | BZ101: 33.575 | CA101: 34.6 | CB101: 35.95 | CC101: 36.675 | CD101: 37.075 | CE101: 37.9 | CF101: 38.525 | CI101: 65 | CJ101: 515.075 | CK101: 0 | CL101: 0 | CM101: 0 | CN101: 0 | CO101: 0 | CP101: 0 | CQ101: 0 | CR101: 0 | CS101: 0 | CT101: 0 | CU101: 0 | CV101: 0 | CW101: 0 | CX101: 0 | CY101: 0 | CZ101: 0
P102: 521.425 | Q102: 517.925 | R102: 491.925 | U102: T 16 | V102: 483.6 | X102: 484.825 | Y102: 485.75 | Z102: 486.875 | AA102: 487.7 | AB102: 488.325 | AC102: 488.725 | AD102: 513.375 | AE102: 513.9 | AF102: =IF(AND($U26>0,AF416>0,$T$87>0),$T$87-AF26,"0") -> 514.925 | AG102: =IF(AND($U26>0,AG416>0,$T$87>0),$T$87-AG26,"0") -> 516.275 | AH102: =IF(AND($U26>0,AH416>0,$T$87>0),$T$87-AH26,"0") -> 517 | AI102: =IF(AND($U26>0,AI416>0,$T$87>0),$T$87-AI26,"0") -> 517.4 | AJ102: =IF(AND($U26>0,AJ416>0,$T$87>0),$T$87-AJ26,"0") -> 518.225 | AM102: 15 | AN102: 5 | AO102: 79 | AP102: =IF(INDEX($V$31:$AK$46,AM102,AN102)>0,INDEX($V$31:$AK$46,AM102,AN102),"") -> 490.275 | AQ102: =IFERROR(RANK(AP102,$AP$24:$AP$279,1)+COUNTIF($AP$24:AP102,AP102)-1,"") -> 29 | AR102: =IFERROR(INDEX($AP$24:$AP$279,MATCH(SMALL($AQ$24:$AQ$279,ROWS($AR$24:AR102)),$AQ$24:$AQ$279,0))," ") -> 517.525 | AS102: =IF(ISNUMBER(AR102),(IF(COUNTIF( AR$24:AR102, AR102 )=1,AR102,"")),"") -> 517.525 | AT102: =IFERROR(RANK(AS102,$AS$24:$AS$279,1)+COUNTIF($AS$24:AS102,AS102)-1,"") -> 73 | AU102: =IFERROR(INDEX($AS$24:$AS$279,MATCH(SMALL($AT$24:$AT$279,ROWS(AU$24:$AU102)),$AT$24:$AT$279,0))," ") -> 519.35 | AW102: 79 | AX102: =IF(INDEX($V$51:$AK$66,AM102,AN102)>0,INDEX($V$51:$AK$66,AM102,AN102),"") -> 458.925 | AY102: =IFERROR(RANK(AX102,$AX$24:$AX$279,1)+COUNTIF($AX$24:AX102,AX102)-1,"") -> 25 | AZ102: =IFERROR(INDEX($AX$24:$AX$279,MATCH(SMALL($AY$24:$AY$279,ROWS($AZ$24:AZ102)),$AY$24:$AY$279,0))," ") -> 515.475 | BA102: =IF(ISNUMBER(AZ102),(IF(COUNTIF( AZ$24:AZ102, AZ102 )=1,AZ102,"")),"") -> 515.475 | BB102: =IFERROR(RANK(BA102,$BA$24:$BA$279,1)+COUNTIF($BA$24:BA102,BA102)-1,"") -> 78 | BC102: =IFERROR(INDEX($BA$24:$BA$279,MATCH(SMALL($BB$24:$BB$279,ROWS($BC$24:BC102)),$BB$24:$BB$279,0))," ") -> 515.55 | BE102: 79 | BF102: 1 | BG102: 79 | BH102: =IF(INDEX($V$71:$AK$326,BE102,BF102)>0,INDEX($V$71:$AK$326,BE102,BF102),"") -> 487 | BI102: =IFERROR(RANK(BH102,$BH$24:$BH$4119,1)+COUNTIF($BH$24:BH102,BH102)-1,"") -> 45 | BJ102: =IFERROR(INDEX($BH$24:$BH$4119,MATCH(SMALL($BI$24:$BI$4119,ROWS($BJ$24:BJ102)),$BI$24:$BI$4119,0))," ") -> 488.225 | BK102: =IF(ISNUMBER(BJ102),(IF(COUNTIF( BJ$24:BJ102, BJ102 )=1,BJ102,"")),"") ->  | BL102: =IFERROR(RANK(BK102,$BK$24:$BK$4119,1)+COUNTIF($BK$24:BK102,BK102)-1,"") ->  | BM102: =IFERROR(INDEX($BK$24:$BK$4119,MATCH(SMALL($BL$24:$BL$4119,ROWS($BM$24:BM102)),$BL$24:$BL$4119,0))," ") -> 491.525 | BO102: 66 | BP102: 515.25 | BQ102: =IF(ISNUMBER($BP102),ABS($BP102-BQ$35),"") -> 3.1 | BR102: 3.6 | BS102: 4.325 | BT102: 5.25 | BU102: 6.375 | BV102: 7.2 | BW102: 7.825 | BX102: 8.225 | BY102: 32.875 | BZ102: 33.4 | CA102: 34.425 | CB102: 35.775 | CC102: 36.5 | CD102: 36.9 | CE102: 37.725 | CF102: 38.35 | CI102: 66 | CJ102: =AU89 -> 515.25 | CK102: =IF(ISNUMBER($CJ102),IF(ROUND($K$12,3)<=ROUND(BQ102,3),0,1),0) -> 0 | CL102: =IF(ISNUMBER($CJ102),IF(ROUND($K$12,3)<=ROUND(BR102,3),0,1),0) -> 0 | CM102: =IF(ISNUMBER($CJ102),IF(ROUND($K$12,3)<=ROUND(BS102,3),0,1),0) -> 0 | CN102: =IF(ISNUMBER($CJ102),IF(ROUND($K$12,3)<=ROUND(BT102,3),0,1),0) -> 0 | CO102: =IF(ISNUMBER($CJ102),IF(ROUND($K$12,3)<=ROUND(BU102,3),0,1),0) -> 0 | CP102: =IF(ISNUMBER($CJ102),IF(ROUND($K$12,3)<=ROUND(BV102,3),0,1),0) -> 0 | CQ102: =IF(ISNUMBER($CJ102),IF(ROUND($K$12,3)<=ROUND(BW102,3),0,1),0) -> 0 | CR102: =IF(ISNUMBER($CJ102),IF(ROUND($K$12,3)<=ROUND(BX102,3),0,1),0) -> 0 | CS102: =IF(ISNUMBER($CJ102),IF(ROUND($K$12,3)<=ROUND(BY102,3),0,1),0) -> 0 | CT102: =IF(ISNUMBER($CJ102),IF(ROUND($K$12,3)<=ROUND(BZ102,3),0,1),0) -> 0 | CU102: =IF(ISNUMBER($CJ102),IF(ROUND($K$12,3)<=ROUND(CA102,3),0,1),0) -> 0 | CV102: =IF(ISNUMBER($CJ102),IF(ROUND($K$12,3)<=ROUND(CB102,3),0,1),0) -> 0 | CW102: =IF(ISNUMBER($CJ102),IF(ROUND($K$12,3)<=ROUND(CC102,3),0,1),0) -> 0 | CX102: =IF(ISNUMBER($CJ102),IF(ROUND($K$12,3)<=ROUND(CD102,3),0,1),0) -> 0 | CY102: =IF(ISNUMBER($CJ102),IF(ROUND($K$12,3)<=ROUND(CE102,3),0,1),0) -> 0 | CZ102: =IF(ISNUMBER($CJ102),IF(ROUND($K$12,3)<=ROUND(CF102,3),0,1),0) -> 0
P103: 521.825 | Q103: 518.25 | R103: 491.95 | T103: =X401 -> 519.575 | U103: T 1 | W103: =IF(AND($U11>0,W401>0,$T$103>0),$T$103+W11,"0") -> 520.075 | Y103: =IF(AND($U11>0,Y401>0,$T$103>0),$T$103+Y11,"0") -> 521.725 | Z103: 522.85 | AA103: 523.675 | AB103: 524.3 | AC103: 524.7 | AD103: 549.35 | AE103: 549.875 | AF103: 550.9 | AG103: 552.25 | AH103: 552.975 | AI103: 553.375 | AJ103: 554.2 | AK103: 554.825 | AM103: 16 | AN103: 5 | AO103: 80 | AP103: =IF(INDEX($V$31:$AK$46,AM103,AN103)>0,INDEX($V$31:$AK$46,AM103,AN103),"") -> 489.65 | AQ103: =IFERROR(RANK(AP103,$AP$24:$AP$279,1)+COUNTIF($AP$24:AP103,AP103)-1,"") -> 27 | AR103: =IFERROR(INDEX($AP$24:$AP$279,MATCH(SMALL($AQ$24:$AQ$279,ROWS($AR$24:AR103)),$AQ$24:$AQ$279,0))," ") -> 517.525 | AS103: =IF(ISNUMBER(AR103),(IF(COUNTIF( AR$24:AR103, AR103 )=1,AR103,"")),"") ->  | AT103: =IFERROR(RANK(AS103,$AS$24:$AS$279,1)+COUNTIF($AS$24:AS103,AS103)-1,"") ->  | AU103: =IFERROR(INDEX($AS$24:$AS$279,MATCH(SMALL($AT$24:$AT$279,ROWS(AU$24:$AU103)),$AT$24:$AT$279,0))," ") -> 519.375 | AW103: 80 | AX103: =IF(INDEX($V$51:$AK$66,AM103,AN103)>0,INDEX($V$51:$AK$66,AM103,AN103),"") -> 457.675 | AY103: =IFERROR(RANK(AX103,$AX$24:$AX$279,1)+COUNTIF($AX$24:AX103,AX103)-1,"") -> 21 | AZ103: =IFERROR(INDEX($AX$24:$AX$279,MATCH(SMALL($AY$24:$AY$279,ROWS($AZ$24:AZ103)),$AY$24:$AY$279,0))," ") -> 515.55 | BA103: =IF(ISNUMBER(AZ103),(IF(COUNTIF( AZ$24:AZ103, AZ103 )=1,AZ103,"")),"") -> 515.55 | BB103: =IFERROR(RANK(BA103,$BA$24:$BA$279,1)+COUNTIF($BA$24:BA103,BA103)-1,"") -> 79 | BC103: =IFERROR(INDEX($BA$24:$BA$279,MATCH(SMALL($BB$24:$BB$279,ROWS($BC$24:BC103)),$BB$24:$BB$279,0))," ") -> 515.9 | BE103: 80 | BF103: 1 | BG103: 80 | BH103: =IF(INDEX($V$71:$AK$326,BE103,BF103)>0,INDEX($V$71:$AK$326,BE103,BF103),"") -> 486.375 | BI103: =IFERROR(RANK(BH103,$BH$24:$BH$4119,1)+COUNTIF($BH$24:BH103,BH103)-1,"") -> 31 | BJ103: =IFERROR(INDEX($BH$24:$BH$4119,MATCH(SMALL($BI$24:$BI$4119,ROWS($BJ$24:BJ103)),$BI$24:$BI$4119,0))," ") -> 488.225 | BK103: =IF(ISNUMBER(BJ103),(IF(COUNTIF( BJ$24:BJ103, BJ103 )=1,BJ103,"")),"") ->  | BL103: =IFERROR(RANK(BK103,$BK$24:$BK$4119,1)+COUNTIF($BK$24:BK103,BK103)-1,"") ->  | BM103: =IFERROR(INDEX($BK$24:$BK$4119,MATCH(SMALL($BL$24:$BL$4119,ROWS($BM$24:BM103)),$BL$24:$BL$4119,0))," ") -> 491.625 | BO103: 67 | BP103: 515.675 | BQ103: 2.675 | BR103: 3.175 | BS103: 3.9 | BT103: 4.825 | BU103: 5.95 | BV103: 6.775 | BW103: 7.4 | BX103: 7.8 | BY103: 32.45 | BZ103: 32.975 | CA103: 34 | CB103: 35.35 | CC103: 36.075 | CD103: 36.475 | CE103: 37.3 | CF103: 37.925 | CI103: 67 | CJ103: 515.675 | CK103: 0 | CL103: 0 | CM103: 0 | CN103: 0 | CO103: 0 | CP103: 0 | CQ103: 0 | CR103: 0 | CS103: 0 | CT103: 0 | CU103: 0 | CV103: 0 | CW103: 0 | CX103: 0 | CY103: 0 | CZ103: 0
P104: 522.15 | Q104: 518.725 | R104: 492.025 | T104: Ch. 3 3T3O | U104: T 2 | V104: =IF(AND($U12>0,V402>0,$T$103>0),$T$103-V12,"0") -> 519.075 | Y104: =IF(AND($U12>0,Y402>0,$T$103>0),$T$103+Y12,"0") -> 521.225 | Z104: 522.35 | AA104: 523.175 | AB104: 523.8 | AC104: 524.2 | AD104: 548.85 | AE104: 549.375 | AF104: 550.4 | AG104: 551.75 | AH104: 552.475 | AI104: 552.875 | AJ104: 553.7 | AK104: 554.325 | AM104: 1 | AN104: 6 | AO104: 81 | AP104: =IF(INDEX($V$31:$AK$46,AM104,AN104)>0,INDEX($V$31:$AK$46,AM104,AN104),"") -> 526.55 | AQ104: =IFERROR(RANK(AP104,$AP$24:$AP$279,1)+COUNTIF($AP$24:AP104,AP104)-1,"") -> 114 | AR104: =IFERROR(INDEX($AP$24:$AP$279,MATCH(SMALL($AQ$24:$AQ$279,ROWS($AR$24:AR104)),$AQ$24:$AQ$279,0))," ") -> 517.85 | AS104: =IF(ISNUMBER(AR104),(IF(COUNTIF( AR$24:AR104, AR104 )=1,AR104,"")),"") -> 517.85 | AT104: =IFERROR(RANK(AS104,$AS$24:$AS$279,1)+COUNTIF($AS$24:AS104,AS104)-1,"") -> 74 | AU104: =IFERROR(INDEX($AS$24:$AS$279,MATCH(SMALL($AT$24:$AT$279,ROWS(AU$24:$AU104)),$AT$24:$AT$279,0))," ") -> 519.775 | AW104: 81 | AX104: =IF(INDEX($V$51:$AK$66,AM104,AN104)>0,INDEX($V$51:$AK$66,AM104,AN104),"") -> 530.65 | AY104: =IFERROR(RANK(AX104,$AX$24:$AX$279,1)+COUNTIF($AX$24:AX104,AX104)-1,"") -> 115 | AZ104: =IFERROR(INDEX($AX$24:$AX$279,MATCH(SMALL($AY$24:$AY$279,ROWS($AZ$24:AZ104)),$AY$24:$AY$279,0))," ") -> 515.9 | BA104: =IF(ISNUMBER(AZ104),(IF(COUNTIF( AZ$24:AZ104, AZ104 )=1,AZ104,"")),"") -> 515.9 | BB104: =IFERROR(RANK(BA104,$BA$24:$BA$279,1)+COUNTIF($BA$24:BA104,BA104)-1,"") -> 80 | BC104: =IFERROR(INDEX($BA$24:$BA$279,MATCH(SMALL($BB$24:$BB$279,ROWS($BC$24:BC104)),$BB$24:$BB$279,0))," ") -> 516.6 | BE104: 81 | BF104: 1 | BG104: 81 | BH104: =IF(INDEX($V$71:$AK$326,BE104,BF104)>0,INDEX($V$71:$AK$326,BE104,BF104),"") ->  | BI104: =IFERROR(RANK(BH104,$BH$24:$BH$4119,1)+COUNTIF($BH$24:BH104,BH104)-1,"") ->  | BJ104: =IFERROR(INDEX($BH$24:$BH$4119,MATCH(SMALL($BI$24:$BI$4119,ROWS($BJ$24:BJ104)),$BI$24:$BI$4119,0))," ") -> 488.225 | BK104: =IF(ISNUMBER(BJ104),(IF(COUNTIF( BJ$24:BJ104, BJ104 )=1,BJ104,"")),"") ->  | BL104: =IFERROR(RANK(BK104,$BK$24:$BK$4119,1)+COUNTIF($BK$24:BK104,BK104)-1,"") ->  | BM104: =IFERROR(INDEX($BK$24:$BK$4119,MATCH(SMALL($BL$24:$BL$4119,ROWS($BM$24:BM104)),$BL$24:$BL$4119,0))," ") -> 491.725 | BO104: 68 | BP104: 516.075 | BQ104: 2.275 | BR104: 2.775 | BS104: 3.5 | BT104: 4.425 | BU104: 5.55 | BV104: 6.375 | BW104: 7 | BX104: 7.4 | BY104: 32.05 | BZ104: 32.575 | CA104: 33.6 | CB104: 34.95 | CC104: 35.675 | CD104: 36.075 | CE104: 36.9 | CF104: 37.525 | CI104: 68 | CJ104: 516.075 | CK104: 0 | CL104: 0 | CM104: 0 | CN104: 0 | CO104: 0 | CP104: 0 | CQ104: 0 | CR104: 0 | CS104: 0 | CT104: 0 | CU104: 0 | CV104: 0 | CW104: 0 | CX104: 0 | CY104: 0 | CZ104: 0
P105: 522.65 | Q105: 519.85 | R105: 492.125 | U105: T 3 | AM105: 2 | AN105: 6 | AO105: 82 | AP105: =IF(INDEX($V$31:$AK$46,AM105,AN105)>0,INDEX($V$31:$AK$46,AM105,AN105),"") -> 526.05 | AQ105: =IFERROR(RANK(AP105,$AP$24:$AP$279,1)+COUNTIF($AP$24:AP105,AP105)-1,"") -> 112 | AR105: =IFERROR(INDEX($AP$24:$AP$279,MATCH(SMALL($AQ$24:$AQ$279,ROWS($AR$24:AR105)),$AQ$24:$AQ$279,0))," ") -> 517.925 | AS105: =IF(ISNUMBER(AR105),(IF(COUNTIF( AR$24:AR105, AR105 )=1,AR105,"")),"") -> 517.925 | AT105: =IFERROR(RANK(AS105,$AS$24:$AS$279,1)+COUNTIF($AS$24:AS105,AS105)-1,"") -> 75 | AU105: =IFERROR(INDEX($AS$24:$AS$279,MATCH(SMALL($AT$24:$AT$279,ROWS(AU$24:$AU105)),$AT$24:$AT$279,0))," ") -> 520.175 | AW105: 82 | AX105: =IF(INDEX($V$51:$AK$66,AM105,AN105)>0,INDEX($V$51:$AK$66,AM105,AN105),"") -> 529.65 | AY105: =IFERROR(RANK(AX105,$AX$24:$AX$279,1)+COUNTIF($AX$24:AX105,AX105)-1,"") -> 113 | AZ105: =IFERROR(INDEX($AX$24:$AX$279,MATCH(SMALL($AY$24:$AY$279,ROWS($AZ$24:AZ105)),$AY$24:$AY$279,0))," ") -> 516.6 | BA105: =IF(ISNUMBER(AZ105),(IF(COUNTIF( AZ$24:AZ105, AZ105 )=1,AZ105,"")),"") -> 516.6 | BB105: =IFERROR(RANK(BA105,$BA$24:$BA$279,1)+COUNTIF($BA$24:BA105,BA105)-1,"") -> 81 | BC105: =IFERROR(INDEX($BA$24:$BA$279,MATCH(SMALL($BB$24:$BB$279,ROWS($BC$24:BC105)),$BB$24:$BB$279,0))," ") -> 517.35 | BE105: 82 | BF105: 1 | BG105: 82 | BH105: =IF(INDEX($V$71:$AK$326,BE105,BF105)>0,INDEX($V$71:$AK$326,BE105,BF105),"") -> 521.95 | BI105: =IFERROR(RANK(BH105,$BH$24:$BH$4119,1)+COUNTIF($BH$24:BH105,BH105)-1,"") -> 1187 | BJ105: =IFERROR(INDEX($BH$24:$BH$4119,MATCH(SMALL($BI$24:$BI$4119,ROWS($BJ$24:BJ105)),$BI$24:$BI$4119,0))," ") -> 488.225 | BK105: =IF(ISNUMBER(BJ105),(IF(COUNTIF( BJ$24:BJ105, BJ105 )=1,BJ105,"")),"") ->  | BL105: =IFERROR(RANK(BK105,$BK$24:$BK$4119,1)+COUNTIF($BK$24:BK105,BK105)-1,"") ->  | BM105: =IFERROR(INDEX($BK$24:$BK$4119,MATCH(SMALL($BL$24:$BL$4119,ROWS($BM$24:BM105)),$BL$24:$BL$4119,0))," ") -> 491.75 | BO105: 69 | BP105: 516.2 | BQ105: 2.15 | BR105: 2.65 | BS105: 3.375 | BT105: 4.3 | BU105: 5.425 | BV105: 6.25 | BW105: 6.875 | BX105: 7.275 | BY105: 31.925 | BZ105: 32.45 | CA105: 33.475 | CB105: 34.825 | CC105: 35.55 | CD105: 35.95 | CE105: 36.775 | CF105: 37.4 | CI105: 69 | CJ105: 516.2 | CK105: 0 | CL105: 0 | CM105: 0 | CN105: 0 | CO105: 0 | CP105: 0 | CQ105: 0 | CR105: 0 | CS105: 0 | CT105: 0 | CU105: 0 | CV105: 0 | CW105: 0 | CX105: 0 | CY105: 0 | CZ105: 0
P106: 522.675 | Q106: 519.975 | R106: 492.15 | U106: T 4 | V106: =IF(AND($U14>0,V404>0,$T$103>0),$T$103-V14,"0") -> 517.425 | W106: 517.925 | Z106: =IF(AND($U14>0,Z404>0,$T$103>0),$T$103+Z14,"0") -> 520.7 | AA106: 521.525 | AB106: 522.15 | AC106: 522.55 | AD106: 547.2 | AE106: 547.725 | AF106: 548.75 | AG106: 550.1 | AH106: 550.825 | AI106: 551.225 | AJ106: 552.05 | AK106: 552.675 | AM106: 3 | AN106: 6 | AO106: 83 | AP106: =IF(INDEX($V$31:$AK$46,AM106,AN106)>0,INDEX($V$31:$AK$46,AM106,AN106),"") -> 525.325 | AQ106: =IFERROR(RANK(AP106,$AP$24:$AP$279,1)+COUNTIF($AP$24:AP106,AP106)-1,"") -> 109 | AR106: =IFERROR(INDEX($AP$24:$AP$279,MATCH(SMALL($AQ$24:$AQ$279,ROWS($AR$24:AR106)),$AQ$24:$AQ$279,0))," ") -> 518.125 | AS106: =IF(ISNUMBER(AR106),(IF(COUNTIF( AR$24:AR106, AR106 )=1,AR106,"")),"") -> 518.125 | AT106: =IFERROR(RANK(AS106,$AS$24:$AS$279,1)+COUNTIF($AS$24:AS106,AS106)-1,"") -> 76 | AU106: =IFERROR(INDEX($AS$24:$AS$279,MATCH(SMALL($AT$24:$AT$279,ROWS(AU$24:$AU106)),$AT$24:$AT$279,0))," ") -> 520.3 | AW106: 83 | AX106: =IF(INDEX($V$51:$AK$66,AM106,AN106)>0,INDEX($V$51:$AK$66,AM106,AN106),"") -> 528.2 | AY106: =IFERROR(RANK(AX106,$AX$24:$AX$279,1)+COUNTIF($AX$24:AX106,AX106)-1,"") -> 110 | AZ106: =IFERROR(INDEX($AX$24:$AX$279,MATCH(SMALL($AY$24:$AY$279,ROWS($AZ$24:AZ106)),$AY$24:$AY$279,0))," ") -> 517.35 | BA106: =IF(ISNUMBER(AZ106),(IF(COUNTIF( AZ$24:AZ106, AZ106 )=1,AZ106,"")),"") -> 517.35 | BB106: =IFERROR(RANK(BA106,$BA$24:$BA$279,1)+COUNTIF($BA$24:BA106,BA106)-1,"") -> 82 | BC106: =IFERROR(INDEX($BA$24:$BA$279,MATCH(SMALL($BB$24:$BB$279,ROWS($BC$24:BC106)),$BB$24:$BB$279,0))," ") -> 517.4 | BE106: 83 | BF106: 1 | BG106: 83 | BH106: =IF(INDEX($V$71:$AK$326,BE106,BF106)>0,INDEX($V$71:$AK$326,BE106,BF106),"") -> 521.225 | BI106: =IFERROR(RANK(BH106,$BH$24:$BH$4119,1)+COUNTIF($BH$24:BH106,BH106)-1,"") -> 1093 | BJ106: =IFERROR(INDEX($BH$24:$BH$4119,MATCH(SMALL($BI$24:$BI$4119,ROWS($BJ$24:BJ106)),$BI$24:$BI$4119,0))," ") -> 488.25 | BK106: =IF(ISNUMBER(BJ106),(IF(COUNTIF( BJ$24:BJ106, BJ106 )=1,BJ106,"")),"") -> 488.25 | BL106: =IFERROR(RANK(BK106,$BK$24:$BK$4119,1)+COUNTIF($BK$24:BK106,BK106)-1,"") -> 31 | BM106: =IFERROR(INDEX($BK$24:$BK$4119,MATCH(SMALL($BL$24:$BL$4119,ROWS($BM$24:BM106)),$BL$24:$BL$4119,0))," ") -> 491.825 | BO106: 70 | BP106: 516.7 | BQ106: 1.65 | BR106: 2.15 | BS106: 2.875 | BT106: 3.8 | BU106: 4.925 | BV106: 5.75 | BW106: 6.375 | BX106: 6.775 | BY106: 31.425 | BZ106: 31.95 | CA106: 32.975 | CB106: 34.325 | CC106: 35.05 | CD106: 35.45 | CE106: 36.275 | CF106: 36.9 | CI106: 70 | CJ106: 516.7 | CK106: 0 | CL106: 0 | CM106: 0 | CN106: 0 | CO106: 0 | CP106: 0 | CQ106: 0 | CR106: 0 | CS106: 0 | CT106: 0 | CU106: 0 | CV106: 0 | CW106: 0 | CX106: 0 | CY106: 0 | CZ106: 0
P107: 522.75 | Q107: 520.4 | R107: 492.225 | U107: T 5 | V107: 516.3 | W107: 516.8 | Y107: =IF(AND($U15>0,Y405>0,$T$103>0),$T$103-Y15,"0") -> 518.45 | AA107: =IF(AND($U15>0,AA405>0,$T$103>0),$T$103+AA15,"0") -> 520.4 | AB107: 521.025 | AC107: 521.425 | AD107: 546.075 | AE107: 546.6 | AF107: 547.625 | AG107: 548.975 | AH107: 549.7 | AI107: 550.1 | AJ107: 550.925 | AK107: 551.55 | AM107: 4 | AN107: 6 | AO107: 84 | AP107: =IF(INDEX($V$31:$AK$46,AM107,AN107)>0,INDEX($V$31:$AK$46,AM107,AN107),"") -> 524.4 | AQ107: =IFERROR(RANK(AP107,$AP$24:$AP$279,1)+COUNTIF($AP$24:AP107,AP107)-1,"") -> 106 | AR107: =IFERROR(INDEX($AP$24:$AP$279,MATCH(SMALL($AQ$24:$AQ$279,ROWS($AR$24:AR107)),$AQ$24:$AQ$279,0))," ") -> 518.55 | AS107: =IF(ISNUMBER(AR107),(IF(COUNTIF( AR$24:AR107, AR107 )=1,AR107,"")),"") -> 518.55 | AT107: =IFERROR(RANK(AS107,$AS$24:$AS$279,1)+COUNTIF($AS$24:AS107,AS107)-1,"") -> 77 | AU107: =IFERROR(INDEX($AS$24:$AS$279,MATCH(SMALL($AT$24:$AT$279,ROWS(AU$24:$AU107)),$AT$24:$AT$279,0))," ") -> 520.8 | AW107: 84 | AX107: =IF(INDEX($V$51:$AK$66,AM107,AN107)>0,INDEX($V$51:$AK$66,AM107,AN107),"") -> 526.35 | AY107: =IFERROR(RANK(AX107,$AX$24:$AX$279,1)+COUNTIF($AX$24:AX107,AX107)-1,"") -> 106 | AZ107: =IFERROR(INDEX($AX$24:$AX$279,MATCH(SMALL($AY$24:$AY$279,ROWS($AZ$24:AZ107)),$AY$24:$AY$279,0))," ") -> 517.4 | BA107: =IF(ISNUMBER(AZ107),(IF(COUNTIF( AZ$24:AZ107, AZ107 )=1,AZ107,"")),"") -> 517.4 | BB107: =IFERROR(RANK(BA107,$BA$24:$BA$279,1)+COUNTIF($BA$24:BA107,BA107)-1,"") -> 83 | BC107: =IFERROR(INDEX($BA$24:$BA$279,MATCH(SMALL($BB$24:$BB$279,ROWS($BC$24:BC107)),$BB$24:$BB$279,0))," ") -> 517.725 | BE107: 84 | BF107: 1 | BG107: 84 | BH107: =IF(INDEX($V$71:$AK$326,BE107,BF107)>0,INDEX($V$71:$AK$326,BE107,BF107),"") -> 520.3 | BI107: =IFERROR(RANK(BH107,$BH$24:$BH$4119,1)+COUNTIF($BH$24:BH107,BH107)-1,"") -> 971 | BJ107: =IFERROR(INDEX($BH$24:$BH$4119,MATCH(SMALL($BI$24:$BI$4119,ROWS($BJ$24:BJ107)),$BI$24:$BI$4119,0))," ") -> 488.25 | BK107: =IF(ISNUMBER(BJ107),(IF(COUNTIF( BJ$24:BJ107, BJ107 )=1,BJ107,"")),"") ->  | BL107: =IFERROR(RANK(BK107,$BK$24:$BK$4119,1)+COUNTIF($BK$24:BK107,BK107)-1,"") ->  | BM107: =IFERROR(INDEX($BK$24:$BK$4119,MATCH(SMALL($BL$24:$BL$4119,ROWS($BM$24:BM107)),$BL$24:$BL$4119,0))," ") -> 491.85 | BO107: 71 | BP107: 517.125 | BQ107: 1.225 | BR107: 1.725 | BS107: 2.45 | BT107: 3.375 | BU107: 4.5 | BV107: 5.325 | BW107: 5.95 | BX107: 6.35 | BY107: 31 | BZ107: 31.525 | CA107: 32.55 | CB107: 33.9 | CC107: 34.625 | CD107: 35.025 | CE107: 35.85 | CF107: 36.475 | CI107: 71 | CJ107: 517.125 | CK107: 0 | CL107: 0 | CM107: 0 | CN107: 0 | CO107: 0 | CP107: 0 | CQ107: 0 | CR107: 0 | CS107: 0 | CT107: 0 | CU107: 0 | CV107: 0 | CW107: 0 | CX107: 0 | CY107: 0 | CZ107: 0
P108: 523.275 | Q108: 521.025 | R108: 492.25 | U108: T 6 | V108: 515.475 | W108: 515.975 | Y108: 517.625 | Z108: =IF(AND($U16>0,Z406>0,$T$103>0),$T$103-Z16,"0") -> 518.75 | AB108: =IF(AND($U16>0,AB406>0,$T$103>0),$T$103+AB16,"0") -> 520.2 | AC108: 520.6 | AD108: 545.25 | AE108: 545.775 | AF108: 546.8 | AG108: 548.15 | AH108: 548.875 | AI108: 549.275 | AJ108: 550.1 | AK108: 550.725 | AM108: 5 | AN108: 6 | AO108: 85 | AP108: =IF(INDEX($V$31:$AK$46,AM108,AN108)>0,INDEX($V$31:$AK$46,AM108,AN108),"") -> 523.275 | AQ108: =IFERROR(RANK(AP108,$AP$24:$AP$279,1)+COUNTIF($AP$24:AP108,AP108)-1,"") -> 100 | AR108: =IFERROR(INDEX($AP$24:$AP$279,MATCH(SMALL($AQ$24:$AQ$279,ROWS($AR$24:AR108)),$AQ$24:$AQ$279,0))," ") -> 518.65 | AS108: =IF(ISNUMBER(AR108),(IF(COUNTIF( AR$24:AR108, AR108 )=1,AR108,"")),"") -> 518.65 | AT108: =IFERROR(RANK(AS108,$AS$24:$AS$279,1)+COUNTIF($AS$24:AS108,AS108)-1,"") -> 78 | AU108: =IFERROR(INDEX($AS$24:$AS$279,MATCH(SMALL($AT$24:$AT$279,ROWS(AU$24:$AU108)),$AT$24:$AT$279,0))," ") -> 521.425 | AW108: 85 | AX108: =IF(INDEX($V$51:$AK$66,AM108,AN108)>0,INDEX($V$51:$AK$66,AM108,AN108),"") -> 524.1 | AY108: =IFERROR(RANK(AX108,$AX$24:$AX$279,1)+COUNTIF($AX$24:AX108,AX108)-1,"") -> 99 | AZ108: =IFERROR(INDEX($AX$24:$AX$279,MATCH(SMALL($AY$24:$AY$279,ROWS($AZ$24:AZ108)),$AY$24:$AY$279,0))," ") -> 517.725 | BA108: =IF(ISNUMBER(AZ108),(IF(COUNTIF( AZ$24:AZ108, AZ108 )=1,AZ108,"")),"") -> 517.725 | BB108: =IFERROR(RANK(BA108,$BA$24:$BA$279,1)+COUNTIF($BA$24:BA108,BA108)-1,"") -> 84 | BC108: =IFERROR(INDEX($BA$24:$BA$279,MATCH(SMALL($BB$24:$BB$279,ROWS($BC$24:BC108)),$BB$24:$BB$279,0))," ") -> 517.925 | BE108: 85 | BF108: 1 | BG108: 85 | BH108: =IF(INDEX($V$71:$AK$326,BE108,BF108)>0,INDEX($V$71:$AK$326,BE108,BF108),"") -> 519.175 | BI108: =IFERROR(RANK(BH108,$BH$24:$BH$4119,1)+COUNTIF($BH$24:BH108,BH108)-1,"") -> 828 | BJ108: =IFERROR(INDEX($BH$24:$BH$4119,MATCH(SMALL($BI$24:$BI$4119,ROWS($BJ$24:BJ108)),$BI$24:$BI$4119,0))," ") -> 488.325 | BK108: =IF(ISNUMBER(BJ108),(IF(COUNTIF( BJ$24:BJ108, BJ108 )=1,BJ108,"")),"") -> 488.325 | BL108: =IFERROR(RANK(BK108,$BK$24:$BK$4119,1)+COUNTIF($BK$24:BK108,BK108)-1,"") -> 32 | BM108: =IFERROR(INDEX($BK$24:$BK$4119,MATCH(SMALL($BL$24:$BL$4119,ROWS($BM$24:BM108)),$BL$24:$BL$4119,0))," ") -> 491.925 | BO108: 72 | BP108: 517.2 | BQ108: 1.15 | BR108: 1.65 | BS108: 2.375 | BT108: 3.3 | BU108: 4.425 | BV108: 5.25 | BW108: 5.875 | BX108: 6.275 | BY108: 30.925 | BZ108: 31.45 | CA108: 32.475 | CB108: 33.825 | CC108: 34.55 | CD108: 34.95 | CE108: 35.775 | CF108: 36.4 | CI108: 72 | CJ108: 517.2 | CK108: 0 | CL108: 0 | CM108: 0 | CN108: 0 | CO108: 0 | CP108: 0 | CQ108: 0 | CR108: 0 | CS108: 0 | CT108: 0 | CU108: 0 | CV108: 0 | CW108: 0 | CX108: 0 | CY108: 0 | CZ108: 0
P109: 523.675 | Q109: 521.2 | R109: 492.325 | U109: T 7 | V109: 514.85 | W109: 515.35 | Y109: 517 | Z109: 518.125 | AA109: =IF(AND($U17>0,AA407>0,$T$103>0),$T$103-AA17,"0") -> 518.95 | AC109: =IF(AND($U17>0,AC407>0,$T$103>0),$T$103+AC17,"0") -> 519.975 | AD109: 544.625 | AE109: 545.15 | AF109: 546.175 | AG109: 547.525 | AH109: 548.25 | AI109: 548.65 | AJ109: 549.475 | AK109: 550.1 | AM109: 6 | AN109: 6 | AO109: 86 | AP109: =IF(INDEX($V$31:$AK$46,AM109,AN109)>0,INDEX($V$31:$AK$46,AM109,AN109),"") ->  | AQ109: =IFERROR(RANK(AP109,$AP$24:$AP$279,1)+COUNTIF($AP$24:AP109,AP109)-1,"") ->  | AR109: =IFERROR(INDEX($AP$24:$AP$279,MATCH(SMALL($AQ$24:$AQ$279,ROWS($AR$24:AR109)),$AQ$24:$AQ$279,0))," ") -> 519.35 | AS109: =IF(ISNUMBER(AR109),(IF(COUNTIF( AR$24:AR109, AR109 )=1,AR109,"")),"") -> 519.35 | AT109: =IFERROR(RANK(AS109,$AS$24:$AS$279,1)+COUNTIF($AS$24:AS109,AS109)-1,"") -> 79 | AU109: =IFERROR(INDEX($AS$24:$AS$279,MATCH(SMALL($AT$24:$AT$279,ROWS(AU$24:$AU109)),$AT$24:$AT$279,0))," ") -> 521.825 | AW109: 86 | AX109: =IF(INDEX($V$51:$AK$66,AM109,AN109)>0,INDEX($V$51:$AK$66,AM109,AN109),"") ->  | AY109: =IFERROR(RANK(AX109,$AX$24:$AX$279,1)+COUNTIF($AX$24:AX109,AX109)-1,"") ->  | AZ109: =IFERROR(INDEX($AX$24:$AX$279,MATCH(SMALL($AY$24:$AY$279,ROWS($AZ$24:AZ109)),$AY$24:$AY$279,0))," ") -> 517.925 | BA109: =IF(ISNUMBER(AZ109),(IF(COUNTIF( AZ$24:AZ109, AZ109 )=1,AZ109,"")),"") -> 517.925 | BB109: =IFERROR(RANK(BA109,$BA$24:$BA$279,1)+COUNTIF($BA$24:BA109,BA109)-1,"") -> 85 | BC109: =IFERROR(INDEX($BA$24:$BA$279,MATCH(SMALL($BB$24:$BB$279,ROWS($BC$24:BC109)),$BB$24:$BB$279,0))," ") -> 518.25 | BE109: 86 | BF109: 1 | BG109: 86 | BH109: =IF(INDEX($V$71:$AK$326,BE109,BF109)>0,INDEX($V$71:$AK$326,BE109,BF109),"") ->  | BI109: =IFERROR(RANK(BH109,$BH$24:$BH$4119,1)+COUNTIF($BH$24:BH109,BH109)-1,"") ->  | BJ109: =IFERROR(INDEX($BH$24:$BH$4119,MATCH(SMALL($BI$24:$BI$4119,ROWS($BJ$24:BJ109)),$BI$24:$BI$4119,0))," ") -> 488.325 | BK109: =IF(ISNUMBER(BJ109),(IF(COUNTIF( BJ$24:BJ109, BJ109 )=1,BJ109,"")),"") ->  | BL109: =IFERROR(RANK(BK109,$BK$24:$BK$4119,1)+COUNTIF($BK$24:BK109,BK109)-1,"") ->  | BM109: =IFERROR(INDEX($BK$24:$BK$4119,MATCH(SMALL($BL$24:$BL$4119,ROWS($BM$24:BM109)),$BL$24:$BL$4119,0))," ") -> 491.95 | BO109: 73 | BP109: 517.525 | BQ109: 0.825 | BR109: 1.325 | BS109: 2.05 | BT109: 2.975 | BU109: 4.1 | BV109: 4.925 | BW109: 5.55 | BX109: 5.95 | BY109: 30.6 | BZ109: 31.125 | CA109: 32.15 | CB109: 33.5 | CC109: 34.225 | CD109: 34.625 | CE109: 35.45 | CF109: 36.075 | CI109: 73 | CJ109: 517.525 | CK109: 0 | CL109: 0 | CM109: 0 | CN109: 0 | CO109: 0 | CP109: 0 | CQ109: 0 | CR109: 0 | CS109: 0 | CT109: 0 | CU109: 0 | CV109: 0 | CW109: 0 | CX109: 0 | CY109: 0 | CZ109: 0
P110: 523.7 | Q110: 522.025 | R110: 492.35 | U110: T 8 | V110: 514.45 | W110: 514.95 | Y110: 516.6 | Z110: 517.725 | AA110: 518.55 | AB110: =IF(AND($U18>0,AB408>0,$T$103>0),$T$103-AB18,"0") -> 519.175 | AD110: =IF(AND($U18>0,AD408>0,$T$103>0),$T$103+AD18,"0") -> 544.225 | AE110: 544.75 | AF110: 545.775 | AG110: 547.125 | AH110: 547.85 | AI110: 548.25 | AJ110: 549.075 | AK110: 549.7 | AM110: 7 | AN110: 6 | AO110: 87 | AP110: =IF(INDEX($V$31:$AK$46,AM110,AN110)>0,INDEX($V$31:$AK$46,AM110,AN110),"") -> 521.825 | AQ110: =IFERROR(RANK(AP110,$AP$24:$AP$279,1)+COUNTIF($AP$24:AP110,AP110)-1,"") -> 95 | AR110: =IFERROR(INDEX($AP$24:$AP$279,MATCH(SMALL($AQ$24:$AQ$279,ROWS($AR$24:AR110)),$AQ$24:$AQ$279,0))," ") -> 519.375 | AS110: =IF(ISNUMBER(AR110),(IF(COUNTIF( AR$24:AR110, AR110 )=1,AR110,"")),"") -> 519.375 | AT110: =IFERROR(RANK(AS110,$AS$24:$AS$279,1)+COUNTIF($AS$24:AS110,AS110)-1,"") -> 80 | AU110: =IFERROR(INDEX($AS$24:$AS$279,MATCH(SMALL($AT$24:$AT$279,ROWS(AU$24:$AU110)),$AT$24:$AT$279,0))," ") -> 522.15 | AW110: 87 | AX110: =IF(INDEX($V$51:$AK$66,AM110,AN110)>0,INDEX($V$51:$AK$66,AM110,AN110),"") -> 521.2 | AY110: =IFERROR(RANK(AX110,$AX$24:$AX$279,1)+COUNTIF($AX$24:AX110,AX110)-1,"") -> 93 | AZ110: =IFERROR(INDEX($AX$24:$AX$279,MATCH(SMALL($AY$24:$AY$279,ROWS($AZ$24:AZ110)),$AY$24:$AY$279,0))," ") -> 518.25 | BA110: =IF(ISNUMBER(AZ110),(IF(COUNTIF( AZ$24:AZ110, AZ110 )=1,AZ110,"")),"") -> 518.25 | BB110: =IFERROR(RANK(BA110,$BA$24:$BA$279,1)+COUNTIF($BA$24:BA110,BA110)-1,"") -> 86 | BC110: =IFERROR(INDEX($BA$24:$BA$279,MATCH(SMALL($BB$24:$BB$279,ROWS($BC$24:BC110)),$BB$24:$BB$279,0))," ") -> 518.725 | BE110: 87 | BF110: 1 | BG110: 87 | BH110: =IF(INDEX($V$71:$AK$326,BE110,BF110)>0,INDEX($V$71:$AK$326,BE110,BF110),"") -> 517.725 | BI110: =IFERROR(RANK(BH110,$BH$24:$BH$4119,1)+COUNTIF($BH$24:BH110,BH110)-1,"") -> 677 | BJ110: =IFERROR(INDEX($BH$24:$BH$4119,MATCH(SMALL($BI$24:$BI$4119,ROWS($BJ$24:BJ110)),$BI$24:$BI$4119,0))," ") -> 488.325 | BK110: =IF(ISNUMBER(BJ110),(IF(COUNTIF( BJ$24:BJ110, BJ110 )=1,BJ110,"")),"") ->  | BL110: =IFERROR(RANK(BK110,$BK$24:$BK$4119,1)+COUNTIF($BK$24:BK110,BK110)-1,"") ->  | BM110: =IFERROR(INDEX($BK$24:$BK$4119,MATCH(SMALL($BL$24:$BL$4119,ROWS($BM$24:BM110)),$BL$24:$BL$4119,0))," ") -> 492.025 | BO110: 74 | BP110: 517.85 | BQ110: 0.5 | BR110: 1 | BS110: 1.725 | BT110: 2.65 | BU110: 3.775 | BV110: 4.6 | BW110: 5.225 | BX110: 5.625 | BY110: 30.275 | BZ110: 30.8 | CA110: 31.825 | CB110: 33.175 | CC110: 33.9 | CD110: 34.3 | CE110: 35.125 | CF110: 35.75 | CI110: 74 | CJ110: 517.85 | CK110: 0 | CL110: 0 | CM110: 0 | CN110: 0 | CO110: 0 | CP110: 0 | CQ110: 0 | CR110: 0 | CS110: 0 | CT110: 0 | CU110: 0 | CV110: 0 | CW110: 0 | CX110: 0 | CY110: 0 | CZ110: 0
P111: 523.875 | Q111: 522.275 | R111: 492.45 | U111: T 9 | V111: 489.8 | W111: 490.3 | Y111: 491.95 | Z111: 493.075 | AA111: 493.9 | AB111: 494.525 | AC111: =IF(AND($U19>0,AC409>0,$T$103>0),$T$103-AC19,"0") -> 494.925 | AE111: =IF(AND($U19>0,AE409>0,$T$103>0),$T$103+AE19,"0") -> 520.1 | AF111: 521.125 | AG111: 522.475 | AH111: 523.2 | AI111: 523.6 | AJ111: 524.425 | AK111: 525.05 | AM111: 8 | AN111: 6 | AO111: 88 | AP111: =IF(INDEX($V$31:$AK$46,AM111,AN111)>0,INDEX($V$31:$AK$46,AM111,AN111),"") -> 521.425 | AQ111: =IFERROR(RANK(AP111,$AP$24:$AP$279,1)+COUNTIF($AP$24:AP111,AP111)-1,"") -> 95 | AR111: =IFERROR(INDEX($AP$24:$AP$279,MATCH(SMALL($AQ$24:$AQ$279,ROWS($AR$24:AR111)),$AQ$24:$AQ$279,0))," ") -> 519.775 | AS111: =IF(ISNUMBER(AR111),(IF(COUNTIF( AR$24:AR111, AR111 )=1,AR111,"")),"") -> 519.775 | AT111: =IFERROR(RANK(AS111,$AS$24:$AS$279,1)+COUNTIF($AS$24:AS111,AS111)-1,"") -> 81 | AU111: =IFERROR(INDEX($AS$24:$AS$279,MATCH(SMALL($AT$24:$AT$279,ROWS(AU$24:$AU111)),$AT$24:$AT$279,0))," ") -> 522.65 | AW111: 88 | AX111: =IF(INDEX($V$51:$AK$66,AM111,AN111)>0,INDEX($V$51:$AK$66,AM111,AN111),"") -> 520.4 | AY111: =IFERROR(RANK(AX111,$AX$24:$AX$279,1)+COUNTIF($AX$24:AX111,AX111)-1,"") -> 91 | AZ111: =IFERROR(INDEX($AX$24:$AX$279,MATCH(SMALL($AY$24:$AY$279,ROWS($AZ$24:AZ111)),$AY$24:$AY$279,0))," ") -> 518.725 | BA111: =IF(ISNUMBER(AZ111),(IF(COUNTIF( AZ$24:AZ111, AZ111 )=1,AZ111,"")),"") -> 518.725 | BB111: =IFERROR(RANK(BA111,$BA$24:$BA$279,1)+COUNTIF($BA$24:BA111,BA111)-1,"") -> 87 | BC111: =IFERROR(INDEX($BA$24:$BA$279,MATCH(SMALL($BB$24:$BB$279,ROWS($BC$24:BC111)),$BB$24:$BB$279,0))," ") -> 519.85 | BE111: 88 | BF111: 1 | BG111: 88 | BH111: =IF(INDEX($V$71:$AK$326,BE111,BF111)>0,INDEX($V$71:$AK$326,BE111,BF111),"") -> 517.325 | BI111: =IFERROR(RANK(BH111,$BH$24:$BH$4119,1)+COUNTIF($BH$24:BH111,BH111)-1,"") -> 635 | BJ111: =IFERROR(INDEX($BH$24:$BH$4119,MATCH(SMALL($BI$24:$BI$4119,ROWS($BJ$24:BJ111)),$BI$24:$BI$4119,0))," ") -> 488.325 | BK111: =IF(ISNUMBER(BJ111),(IF(COUNTIF( BJ$24:BJ111, BJ111 )=1,BJ111,"")),"") ->  | BL111: =IFERROR(RANK(BK111,$BK$24:$BK$4119,1)+COUNTIF($BK$24:BK111,BK111)-1,"") ->  | BM111: =IFERROR(INDEX($BK$24:$BK$4119,MATCH(SMALL($BL$24:$BL$4119,ROWS($BM$24:BM111)),$BL$24:$BL$4119,0))," ") -> 492.125 | BO111: 75 | BP111: 517.925 | BQ111: 0.425 | BR111: 0.925 | BS111: 1.65 | BT111: 2.575 | BU111: 3.7 | BV111: 4.525 | BW111: 5.15 | BX111: 5.55 | BY111: 30.2 | BZ111: 30.725 | CA111: 31.75 | CB111: 33.1 | CC111: 33.825 | CD111: 34.225 | CE111: 35.05 | CF111: 35.675 | CI111: 75 | CJ111: 517.925 | CK111: 0 | CL111: 0 | CM111: 0 | CN111: 0 | CO111: 0 | CP111: 0 | CQ111: 0 | CR111: 0 | CS111: 0 | CT111: 0 | CU111: 0 | CV111: 0 | CW111: 0 | CX111: 0 | CY111: 0 | CZ111: 0
P112: 524.4 | Q112: 522.35 | R112: 492.55 | U112: T 10 | V112: 489.275 | W112: 489.775 | Y112: 491.425 | Z112: 492.55 | AA112: 493.375 | AB112: 494 | AC112: 494.4 | AD112: =IF(AND($U20>0,AD410>0,$T$103>0),$T$103-AD20,"0") -> 519.05 | AF112: =IF(AND($U20>0,AF410>0,$T$103>0),$T$103+AF20,"0") -> 520.6 | AG112: 521.95 | AH112: 522.675 | AI112: 523.075 | AJ112: 523.9 | AK112: 524.525 | AM112: 9 | AN112: 6 | AO112: 89 | AP112: =IF(INDEX($V$31:$AK$46,AM112,AN112)>0,INDEX($V$31:$AK$46,AM112,AN112),"") -> 496.775 | AQ112: =IFERROR(RANK(AP112,$AP$24:$AP$279,1)+COUNTIF($AP$24:AP112,AP112)-1,"") -> 59 | AR112: =IFERROR(INDEX($AP$24:$AP$279,MATCH(SMALL($AQ$24:$AQ$279,ROWS($AR$24:AR112)),$AQ$24:$AQ$279,0))," ") -> 520.175 | AS112: =IF(ISNUMBER(AR112),(IF(COUNTIF( AR$24:AR112, AR112 )=1,AR112,"")),"") -> 520.175 | AT112: =IFERROR(RANK(AS112,$AS$24:$AS$279,1)+COUNTIF($AS$24:AS112,AS112)-1,"") -> 82 | AU112: =IFERROR(INDEX($AS$24:$AS$279,MATCH(SMALL($AT$24:$AT$279,ROWS(AU$24:$AU112)),$AT$24:$AT$279,0))," ") -> 522.675 | AW112: 89 | AX112: =IF(INDEX($V$51:$AK$66,AM112,AN112)>0,INDEX($V$51:$AK$66,AM112,AN112),"") -> 471.1 | AY112: =IFERROR(RANK(AX112,$AX$24:$AX$279,1)+COUNTIF($AX$24:AX112,AX112)-1,"") -> 60 | AZ112: =IFERROR(INDEX($AX$24:$AX$279,MATCH(SMALL($AY$24:$AY$279,ROWS($AZ$24:AZ112)),$AY$24:$AY$279,0))," ") -> 519.85 | BA112: =IF(ISNUMBER(AZ112),(IF(COUNTIF( AZ$24:AZ112, AZ112 )=1,AZ112,"")),"") -> 519.85 | BB112: =IFERROR(RANK(BA112,$BA$24:$BA$279,1)+COUNTIF($BA$24:BA112,BA112)-1,"") -> 88 | BC112: =IFERROR(INDEX($BA$24:$BA$279,MATCH(SMALL($BB$24:$BB$279,ROWS($BC$24:BC112)),$BB$24:$BB$279,0))," ") -> 519.975 | BE112: 89 | BF112: 1 | BG112: 89 | BH112: =IF(INDEX($V$71:$AK$326,BE112,BF112)>0,INDEX($V$71:$AK$326,BE112,BF112),"") -> 492.675 | BI112: =IFERROR(RANK(BH112,$BH$24:$BH$4119,1)+COUNTIF($BH$24:BH112,BH112)-1,"") -> 315 | BJ112: =IFERROR(INDEX($BH$24:$BH$4119,MATCH(SMALL($BI$24:$BI$4119,ROWS($BJ$24:BJ112)),$BI$24:$BI$4119,0))," ") -> 488.325 | BK112: =IF(ISNUMBER(BJ112),(IF(COUNTIF( BJ$24:BJ112, BJ112 )=1,BJ112,"")),"") ->  | BL112: =IFERROR(RANK(BK112,$BK$24:$BK$4119,1)+COUNTIF($BK$24:BK112,BK112)-1,"") ->  | BM112: =IFERROR(INDEX($BK$24:$BK$4119,MATCH(SMALL($BL$24:$BL$4119,ROWS($BM$24:BM112)),$BL$24:$BL$4119,0))," ") -> 492.15 | BO112: 76 | BP112: 518.125 | BQ112: 0.225 | BR112: 0.725 | BS112: 1.45 | BT112: 2.375 | BU112: 3.5 | BV112: 4.325 | BW112: 4.95 | BX112: 5.35 | BY112: 30 | BZ112: 30.525 | CA112: 31.55 | CB112: 32.9 | CC112: 33.625 | CD112: 34.025 | CE112: 34.85 | CF112: 35.475 | CI112: 76 | CJ112: 518.125 | CK112: 0 | CL112: 0 | CM112: 0 | CN112: 0 | CO112: 0 | CP112: 0 | CQ112: 0 | CR112: 0 | CS112: 0 | CT112: 0 | CU112: 0 | CV112: 0 | CW112: 0 | CX112: 0 | CY112: 0 | CZ112: 0
P113: 524.525 | Q113: 523.8 | R113: 492.65 | U113: T 11 | V113: 488.25 | W113: 488.75 | Y113: 490.4 | Z113: 491.525 | AA113: 492.35 | AB113: 492.975 | AC113: 493.375 | AD113: 518.025 | AE113: =IF(AND($U21>0,AE411>0,$T$103>0),$T$103-AE21,"0") -> 518.55 | AG113: =IF(AND($U21>0,AG411>0,$T$103>0),$T$103+AG21,"0") -> 520.925 | AH113: =IF(AND($U21>0,AH411>0,$T$103>0),$T$103+AH21,"0") -> 521.65 | AI113: =IF(AND($U21>0,AI411>0,$T$103>0),$T$103+AI21,"0") -> 522.05 | AJ113: =IF(AND($U21>0,AJ411>0,$T$103>0),$T$103+AJ21,"0") -> 522.875 | AK113: =IF(AND($U21>0,AK411>0,$T$103>0),$T$103+AK21,"0") -> 523.5 | AM113: 10 | AN113: 6 | AO113: 90 | AP113: =IF(INDEX($V$31:$AK$46,AM113,AN113)>0,INDEX($V$31:$AK$46,AM113,AN113),"") -> 496.25 | AQ113: =IFERROR(RANK(AP113,$AP$24:$AP$279,1)+COUNTIF($AP$24:AP113,AP113)-1,"") -> 57 | AR113: =IFERROR(INDEX($AP$24:$AP$279,MATCH(SMALL($AQ$24:$AQ$279,ROWS($AR$24:AR113)),$AQ$24:$AQ$279,0))," ") -> 520.3 | AS113: =IF(ISNUMBER(AR113),(IF(COUNTIF( AR$24:AR113, AR113 )=1,AR113,"")),"") -> 520.3 | AT113: =IFERROR(RANK(AS113,$AS$24:$AS$279,1)+COUNTIF($AS$24:AS113,AS113)-1,"") -> 83 | AU113: =IFERROR(INDEX($AS$24:$AS$279,MATCH(SMALL($AT$24:$AT$279,ROWS(AU$24:$AU113)),$AT$24:$AT$279,0))," ") -> 522.75 | AW113: 90 | AX113: =IF(INDEX($V$51:$AK$66,AM113,AN113)>0,INDEX($V$51:$AK$66,AM113,AN113),"") -> 470.05 | AY113: =IFERROR(RANK(AX113,$AX$24:$AX$279,1)+COUNTIF($AX$24:AX113,AX113)-1,"") -> 58 | AZ113: =IFERROR(INDEX($AX$24:$AX$279,MATCH(SMALL($AY$24:$AY$279,ROWS($AZ$24:AZ113)),$AY$24:$AY$279,0))," ") -> 519.975 | BA113: =IF(ISNUMBER(AZ113),(IF(COUNTIF( AZ$24:AZ113, AZ113 )=1,AZ113,"")),"") -> 519.975 | BB113: =IFERROR(RANK(BA113,$BA$24:$BA$279,1)+COUNTIF($BA$24:BA113,BA113)-1,"") -> 89 | BC113: =IFERROR(INDEX($BA$24:$BA$279,MATCH(SMALL($BB$24:$BB$279,ROWS($BC$24:BC113)),$BB$24:$BB$279,0))," ") -> 520.4 | BE113: 90 | BF113: 1 | BG113: 90 | BH113: =IF(INDEX($V$71:$AK$326,BE113,BF113)>0,INDEX($V$71:$AK$326,BE113,BF113),"") -> 492.15 | BI113: =IFERROR(RANK(BH113,$BH$24:$BH$4119,1)+COUNTIF($BH$24:BH113,BH113)-1,"") -> 285 | BJ113: =IFERROR(INDEX($BH$24:$BH$4119,MATCH(SMALL($BI$24:$BI$4119,ROWS($BJ$24:BJ113)),$BI$24:$BI$4119,0))," ") -> 488.325 | BK113: =IF(ISNUMBER(BJ113),(IF(COUNTIF( BJ$24:BJ113, BJ113 )=1,BJ113,"")),"") ->  | BL113: =IFERROR(RANK(BK113,$BK$24:$BK$4119,1)+COUNTIF($BK$24:BK113,BK113)-1,"") ->  | BM113: =IFERROR(INDEX($BK$24:$BK$4119,MATCH(SMALL($BL$24:$BL$4119,ROWS($BM$24:BM113)),$BL$24:$BL$4119,0))," ") -> 492.225 | BO113: 77 | BP113: 518.55 | BQ113: 0.2 | BR113: 0.3 | BS113: 1.025 | BT113: 1.95 | BU113: 3.075 | BV113: 3.9 | BW113: 4.525 | BX113: 4.925 | BY113: 29.575 | BZ113: 30.1 | CA113: 31.125 | CB113: 32.475 | CC113: 33.2 | CD113: 33.6 | CE113: 34.425 | CF113: 35.05 | CI113: 77 | CJ113: 518.55 | CK113: 0 | CL113: 0 | CM113: 0 | CN113: 0 | CO113: 0 | CP113: 0 | CQ113: 0 | CR113: 0 | CS113: 0 | CT113: 0 | CU113: 0 | CV113: 0 | CW113: 0 | CX113: 0 | CY113: 0 | CZ113: 0
P114: 524.9 | Q114: 523.875 | R114: 492.675 | U114: T 12 | V114: 486.9 | W114: 487.4 | Y114: 489.05 | Z114: 490.175 | AA114: 491 | AB114: 491.625 | AC114: 492.025 | AD114: 516.675 | AE114: 517.2 | AF114: =IF(AND($U22>0,AF412>0,$T$103>0),$T$103-AF22,"0") -> 518.225 | AH114: =IF(AND($U22>0,AH412>0,$T$103>0),$T$103+AH22,"0") -> 520.3 | AI114: =IF(AND($U22>0,AI412>0,$T$103>0),$T$103+AI22,"0") -> 520.7 | AJ114: =IF(AND($U22>0,AJ412>0,$T$103>0),$T$103+AJ22,"0") -> 521.525 | AK114: =IF(AND($U22>0,AK412>0,$T$103>0),$T$103+AK22,"0") -> 522.15 | AM114: 11 | AN114: 6 | AO114: 91 | AP114: =IF(INDEX($V$31:$AK$46,AM114,AN114)>0,INDEX($V$31:$AK$46,AM114,AN114),"") -> 495.225 | AQ114: =IFERROR(RANK(AP114,$AP$24:$AP$279,1)+COUNTIF($AP$24:AP114,AP114)-1,"") -> 55 | AR114: =IFERROR(INDEX($AP$24:$AP$279,MATCH(SMALL($AQ$24:$AQ$279,ROWS($AR$24:AR114)),$AQ$24:$AQ$279,0))," ") -> 520.8 | AS114: =IF(ISNUMBER(AR114),(IF(COUNTIF( AR$24:AR114, AR114 )=1,AR114,"")),"") -> 520.8 | AT114: =IFERROR(RANK(AS114,$AS$24:$AS$279,1)+COUNTIF($AS$24:AS114,AS114)-1,"") -> 84 | AU114: =IFERROR(INDEX($AS$24:$AS$279,MATCH(SMALL($AT$24:$AT$279,ROWS(AU$24:$AU114)),$AT$24:$AT$279,0))," ") -> 523.275 | AW114: 91 | AX114: =IF(INDEX($V$51:$AK$66,AM114,AN114)>0,INDEX($V$51:$AK$66,AM114,AN114),"") -> 468 | AY114: =IFERROR(RANK(AX114,$AX$24:$AX$279,1)+COUNTIF($AX$24:AX114,AX114)-1,"") -> 54 | AZ114: =IFERROR(INDEX($AX$24:$AX$279,MATCH(SMALL($AY$24:$AY$279,ROWS($AZ$24:AZ114)),$AY$24:$AY$279,0))," ") -> 520.4 | BA114: =IF(ISNUMBER(AZ114),(IF(COUNTIF( AZ$24:AZ114, AZ114 )=1,AZ114,"")),"") -> 520.4 | BB114: =IFERROR(RANK(BA114,$BA$24:$BA$279,1)+COUNTIF($BA$24:BA114,BA114)-1,"") -> 90 | BC114: =IFERROR(INDEX($BA$24:$BA$279,MATCH(SMALL($BB$24:$BB$279,ROWS($BC$24:BC114)),$BB$24:$BB$279,0))," ") -> 521.025 | BE114: 91 | BF114: 1 | BG114: 91 | BH114: =IF(INDEX($V$71:$AK$326,BE114,BF114)>0,INDEX($V$71:$AK$326,BE114,BF114),"") -> 491.125 | BI114: =IFERROR(RANK(BH114,$BH$24:$BH$4119,1)+COUNTIF($BH$24:BH114,BH114)-1,"") -> 237 | BJ114: =IFERROR(INDEX($BH$24:$BH$4119,MATCH(SMALL($BI$24:$BI$4119,ROWS($BJ$24:BJ114)),$BI$24:$BI$4119,0))," ") -> 488.325 | BK114: =IF(ISNUMBER(BJ114),(IF(COUNTIF( BJ$24:BJ114, BJ114 )=1,BJ114,"")),"") ->  | BL114: =IFERROR(RANK(BK114,$BK$24:$BK$4119,1)+COUNTIF($BK$24:BK114,BK114)-1,"") ->  | BM114: =IFERROR(INDEX($BK$24:$BK$4119,MATCH(SMALL($BL$24:$BL$4119,ROWS($BM$24:BM114)),$BL$24:$BL$4119,0))," ") -> 492.25 | BO114: 78 | BP114: 518.65 | BQ114: 0.3 | BR114: 0.2 | BS114: 0.925 | BT114: 1.85 | BU114: 2.975 | BV114: 3.8 | BW114: 4.425 | BX114: 4.825 | BY114: 29.475 | BZ114: 30 | CA114: 31.025 | CB114: 32.375 | CC114: 33.1 | CD114: 33.5 | CE114: 34.325 | CF114: 34.95 | CI114: 78 | CJ114: 518.65 | CK114: 0 | CL114: 0 | CM114: 0 | CN114: 0 | CO114: 0 | CP114: 0 | CQ114: 0 | CR114: 0 | CS114: 0 | CT114: 0 | CU114: 0 | CV114: 0 | CW114: 0 | CX114: 0 | CY114: 0 | CZ114: 0
P115: 525.325 | Q115: 524.1 | R115: 492.775 | U115: T 13 | V115: 486.175 | W115: 486.675 | Y115: 488.325 | Z115: 489.45 | AA115: 490.275 | AB115: 490.9 | AC115: 491.3 | AD115: 515.95 | AE115: 516.475 | AF115: =IF(AND($U23>0,AF413>0,$T$103>0),$T$103-AF23,"0") -> 517.5 | AG115: =IF(AND($U23>0,AG413>0,$T$103>0),$T$103-AG23,"0") -> 518.85 | AI115: =IF(AND($U23>0,AI413>0,$T$103>0),$T$103+AI23,"0") -> 519.975 | AJ115: =IF(AND($U23>0,AJ413>0,$T$103>0),$T$103+AJ23,"0") -> 520.8 | AK115: =IF(AND($U23>0,AK413>0,$T$103>0),$T$103+AK23,"0") -> 521.425 | AM115: 12 | AN115: 6 | AO115: 92 | AP115: =IF(INDEX($V$31:$AK$46,AM115,AN115)>0,INDEX($V$31:$AK$46,AM115,AN115),"") -> 493.875 | AQ115: =IFERROR(RANK(AP115,$AP$24:$AP$279,1)+COUNTIF($AP$24:AP115,AP115)-1,"") -> 46 | AR115: =IFERROR(INDEX($AP$24:$AP$279,MATCH(SMALL($AQ$24:$AQ$279,ROWS($AR$24:AR115)),$AQ$24:$AQ$279,0))," ") -> 520.8 | AS115: =IF(ISNUMBER(AR115),(IF(COUNTIF( AR$24:AR115, AR115 )=1,AR115,"")),"") ->  | AT115: =IFERROR(RANK(AS115,$AS$24:$AS$279,1)+COUNTIF($AS$24:AS115,AS115)-1,"") ->  | AU115: =IFERROR(INDEX($AS$24:$AS$279,MATCH(SMALL($AT$24:$AT$279,ROWS(AU$24:$AU115)),$AT$24:$AT$279,0))," ") -> 523.675 | AW115: 92 | AX115: =IF(INDEX($V$51:$AK$66,AM115,AN115)>0,INDEX($V$51:$AK$66,AM115,AN115),"") -> 465.3 | AY115: =IFERROR(RANK(AX115,$AX$24:$AX$279,1)+COUNTIF($AX$24:AX115,AX115)-1,"") -> 47 | AZ115: =IFERROR(INDEX($AX$24:$AX$279,MATCH(SMALL($AY$24:$AY$279,ROWS($AZ$24:AZ115)),$AY$24:$AY$279,0))," ") -> 521.025 | BA115: =IF(ISNUMBER(AZ115),(IF(COUNTIF( AZ$24:AZ115, AZ115 )=1,AZ115,"")),"") -> 521.025 | BB115: =IFERROR(RANK(BA115,$BA$24:$BA$279,1)+COUNTIF($BA$24:BA115,BA115)-1,"") -> 91 | BC115: =IFERROR(INDEX($BA$24:$BA$279,MATCH(SMALL($BB$24:$BB$279,ROWS($BC$24:BC115)),$BB$24:$BB$279,0))," ") -> 521.2 | BE115: 92 | BF115: 1 | BG115: 92 | BH115: =IF(INDEX($V$71:$AK$326,BE115,BF115)>0,INDEX($V$71:$AK$326,BE115,BF115),"") -> 489.775 | BI115: =IFERROR(RANK(BH115,$BH$24:$BH$4119,1)+COUNTIF($BH$24:BH115,BH115)-1,"") -> 159 | BJ115: =IFERROR(INDEX($BH$24:$BH$4119,MATCH(SMALL($BI$24:$BI$4119,ROWS($BJ$24:BJ115)),$BI$24:$BI$4119,0))," ") -> 488.325 | BK115: =IF(ISNUMBER(BJ115),(IF(COUNTIF( BJ$24:BJ115, BJ115 )=1,BJ115,"")),"") ->  | BL115: =IFERROR(RANK(BK115,$BK$24:$BK$4119,1)+COUNTIF($BK$24:BK115,BK115)-1,"") ->  | BM115: =IFERROR(INDEX($BK$24:$BK$4119,MATCH(SMALL($BL$24:$BL$4119,ROWS($BM$24:BM115)),$BL$24:$BL$4119,0))," ") -> 492.325 | BO115: 79 | BP115: 519.35 | BQ115: 1 | BR115: 0.5 | BS115: 0.225 | BT115: 1.15 | BU115: 2.275 | BV115: 3.1 | BW115: 3.725 | BX115: 4.125 | BY115: 28.775 | BZ115: 29.3 | CA115: 30.325 | CB115: 31.675 | CC115: 32.4 | CD115: 32.8 | CE115: 33.625 | CF115: 34.25 | CI115: 79 | CJ115: 519.35 | CK115: 0 | CL115: 0 | CM115: 0 | CN115: 0 | CO115: 0 | CP115: 0 | CQ115: 0 | CR115: 0 | CS115: 0 | CT115: 0 | CU115: 0 | CV115: 0 | CW115: 0 | CX115: 0 | CY115: 0 | CZ115: 0
P116: 525.65 | Q116: 524.275 | R116: 492.95 | U116: T 14 | V116: 485.775 | W116: 486.275 | Y116: 487.925 | Z116: 489.05 | AA116: 489.875 | AB116: 490.5 | AC116: 490.9 | AD116: 515.55 | AE116: 516.075 | AF116: =IF(AND($U24>0,AF414>0,$T$103>0),$T$103-AF24,"0") -> 517.1 | AG116: =IF(AND($U24>0,AG414>0,$T$103>0),$T$103-AG24,"0") -> 518.45 | AH116: =IF(AND($U24>0,AH414>0,$T$103>0),$T$103-AH24,"0") -> 519.175 | AJ116: =IF(AND($U24>0,AJ414>0,$T$103>0),$T$103+AJ24,"0") -> 520.4 | AK116: =IF(AND($U24>0,AK414>0,$T$103>0),$T$103+AK24,"0") -> 521.025 | AM116: 13 | AN116: 6 | AO116: 93 | AP116: =IF(INDEX($V$31:$AK$46,AM116,AN116)>0,INDEX($V$31:$AK$46,AM116,AN116),"") -> 493.15 | AQ116: =IFERROR(RANK(AP116,$AP$24:$AP$279,1)+COUNTIF($AP$24:AP116,AP116)-1,"") -> 42 | AR116: =IFERROR(INDEX($AP$24:$AP$279,MATCH(SMALL($AQ$24:$AQ$279,ROWS($AR$24:AR116)),$AQ$24:$AQ$279,0))," ") -> 521.425 | AS116: =IF(ISNUMBER(AR116),(IF(COUNTIF( AR$24:AR116, AR116 )=1,AR116,"")),"") -> 521.425 | AT116: =IFERROR(RANK(AS116,$AS$24:$AS$279,1)+COUNTIF($AS$24:AS116,AS116)-1,"") -> 85 | AU116: =IFERROR(INDEX($AS$24:$AS$279,MATCH(SMALL($AT$24:$AT$279,ROWS(AU$24:$AU116)),$AT$24:$AT$279,0))," ") -> 523.7 | AW116: 93 | AX116: =IF(INDEX($V$51:$AK$66,AM116,AN116)>0,INDEX($V$51:$AK$66,AM116,AN116),"") -> 463.85 | AY116: =IFERROR(RANK(AX116,$AX$24:$AX$279,1)+COUNTIF($AX$24:AX116,AX116)-1,"") -> 42 | AZ116: =IFERROR(INDEX($AX$24:$AX$279,MATCH(SMALL($AY$24:$AY$279,ROWS($AZ$24:AZ116)),$AY$24:$AY$279,0))," ") -> 521.2 | BA116: =IF(ISNUMBER(AZ116),(IF(COUNTIF( AZ$24:AZ116, AZ116 )=1,AZ116,"")),"") -> 521.2 | BB116: =IFERROR(RANK(BA116,$BA$24:$BA$279,1)+COUNTIF($BA$24:BA116,BA116)-1,"") -> 92 | BC116: =IFERROR(INDEX($BA$24:$BA$279,MATCH(SMALL($BB$24:$BB$279,ROWS($BC$24:BC116)),$BB$24:$BB$279,0))," ") -> 522.025 | BE116: 93 | BF116: 1 | BG116: 93 | BH116: =IF(INDEX($V$71:$AK$326,BE116,BF116)>0,INDEX($V$71:$AK$326,BE116,BF116),"") -> 489.05 | BI116: =IFERROR(RANK(BH116,$BH$24:$BH$4119,1)+COUNTIF($BH$24:BH116,BH116)-1,"") -> 117 | BJ116: =IFERROR(INDEX($BH$24:$BH$4119,MATCH(SMALL($BI$24:$BI$4119,ROWS($BJ$24:BJ116)),$BI$24:$BI$4119,0))," ") -> 488.325 | BK116: =IF(ISNUMBER(BJ116),(IF(COUNTIF( BJ$24:BJ116, BJ116 )=1,BJ116,"")),"") ->  | BL116: =IFERROR(RANK(BK116,$BK$24:$BK$4119,1)+COUNTIF($BK$24:BK116,BK116)-1,"") ->  | BM116: =IFERROR(INDEX($BK$24:$BK$4119,MATCH(SMALL($BL$24:$BL$4119,ROWS($BM$24:BM116)),$BL$24:$BL$4119,0))," ") -> 492.35 | BO116: 80 | BP116: 519.375 | BQ116: 1.025 | BR116: 0.525 | BS116: 0.2 | BT116: 1.125 | BU116: 2.25 | BV116: 3.075 | BW116: 3.7 | BX116: 4.1 | BY116: 28.75 | BZ116: 29.275 | CA116: 30.3 | CB116: 31.65 | CC116: 32.375 | CD116: 32.775 | CE116: 33.6 | CF116: 34.225 | CI116: 80 | CJ116: 519.375 | CK116: 0 | CL116: 0 | CM116: 0 | CN116: 0 | CO116: 0 | CP116: 0 | CQ116: 0 | CR116: 0 | CS116: 0 | CT116: 0 | CU116: 0 | CV116: 0 | CW116: 0 | CX116: 0 | CY116: 0 | CZ116: 0
P117: 526.05 | Q117: 524.325 | R117: 492.975 | U117: T 15 | V117: 484.95 | W117: 485.45 | Y117: 487.1 | Z117: 488.225 | AA117: 489.05 | AB117: 489.675 | AC117: 490.075 | AD117: 514.725 | AE117: 515.25 | AF117: =IF(AND($U25>0,AF415>0,$T$103>0),$T$103-AF25,"0") -> 516.275 | AG117: =IF(AND($U25>0,AG415>0,$T$103>0),$T$103-AG25,"0") -> 517.625 | AH117: =IF(AND($U25>0,AH415>0,$T$103>0),$T$103-AH25,"0") -> 518.35 | AI117: =IF(AND($U25>0,AI415>0,$T$103>0),$T$103-AI25,"0") -> 518.75 | AK117: =IF(AND($U25>0,AK415>0,$T$103>0),$T$103+AK25,"0") -> 520.2 | AM117: 14 | AN117: 6 | AO117: 94 | AP117: =IF(INDEX($V$31:$AK$46,AM117,AN117)>0,INDEX($V$31:$AK$46,AM117,AN117),"") -> 492.75 | AQ117: =IFERROR(RANK(AP117,$AP$24:$AP$279,1)+COUNTIF($AP$24:AP117,AP117)-1,"") -> 40 | AR117: =IFERROR(INDEX($AP$24:$AP$279,MATCH(SMALL($AQ$24:$AQ$279,ROWS($AR$24:AR117)),$AQ$24:$AQ$279,0))," ") -> 521.825 | AS117: =IF(ISNUMBER(AR117),(IF(COUNTIF( AR$24:AR117, AR117 )=1,AR117,"")),"") -> 521.825 | AT117: =IFERROR(RANK(AS117,$AS$24:$AS$279,1)+COUNTIF($AS$24:AS117,AS117)-1,"") -> 86 | AU117: =IFERROR(INDEX($AS$24:$AS$279,MATCH(SMALL($AT$24:$AT$279,ROWS(AU$24:$AU117)),$AT$24:$AT$279,0))," ") -> 523.875 | AW117: 94 | AX117: =IF(INDEX($V$51:$AK$66,AM117,AN117)>0,INDEX($V$51:$AK$66,AM117,AN117),"") -> 463.05 | AY117: =IFERROR(RANK(AX117,$AX$24:$AX$279,1)+COUNTIF($AX$24:AX117,AX117)-1,"") -> 39 | AZ117: =IFERROR(INDEX($AX$24:$AX$279,MATCH(SMALL($AY$24:$AY$279,ROWS($AZ$24:AZ117)),$AY$24:$AY$279,0))," ") -> 522.025 | BA117: =IF(ISNUMBER(AZ117),(IF(COUNTIF( AZ$24:AZ117, AZ117 )=1,AZ117,"")),"") -> 522.025 | BB117: =IFERROR(RANK(BA117,$BA$24:$BA$279,1)+COUNTIF($BA$24:BA117,BA117)-1,"") -> 93 | BC117: =IFERROR(INDEX($BA$24:$BA$279,MATCH(SMALL($BB$24:$BB$279,ROWS($BC$24:BC117)),$BB$24:$BB$279,0))," ") -> 522.275 | BE117: 94 | BF117: 1 | BG117: 94 | BH117: =IF(INDEX($V$71:$AK$326,BE117,BF117)>0,INDEX($V$71:$AK$326,BE117,BF117),"") -> 488.65 | BI117: =IFERROR(RANK(BH117,$BH$24:$BH$4119,1)+COUNTIF($BH$24:BH117,BH117)-1,"") -> 103 | BJ117: =IFERROR(INDEX($BH$24:$BH$4119,MATCH(SMALL($BI$24:$BI$4119,ROWS($BJ$24:BJ117)),$BI$24:$BI$4119,0))," ") -> 488.325 | BK117: =IF(ISNUMBER(BJ117),(IF(COUNTIF( BJ$24:BJ117, BJ117 )=1,BJ117,"")),"") ->  | BL117: =IFERROR(RANK(BK117,$BK$24:$BK$4119,1)+COUNTIF($BK$24:BK117,BK117)-1,"") ->  | BM117: =IFERROR(INDEX($BK$24:$BK$4119,MATCH(SMALL($BL$24:$BL$4119,ROWS($BM$24:BM117)),$BL$24:$BL$4119,0))," ") -> 492.45 | BO117: 81 | BP117: 519.775 | BQ117: 1.425 | BR117: 0.925 | BS117: 0.2 | BT117: 0.725 | BU117: 1.85 | BV117: 2.675 | BW117: 3.3 | BX117: 3.7 | BY117: 28.35 | BZ117: 28.875 | CA117: 29.9 | CB117: 31.25 | CC117: 31.975 | CD117: 32.375 | CE117: 33.2 | CF117: 33.825 | CI117: 81 | CJ117: 519.775 | CK117: 0 | CL117: 0 | CM117: 0 | CN117: 0 | CO117: 0 | CP117: 0 | CQ117: 0 | CR117: 0 | CS117: 0 | CT117: 0 | CU117: 0 | CV117: 0 | CW117: 0 | CX117: 0 | CY117: 0 | CZ117: 0
P118: 526.45 | Q118: 524.8 | R118: 493.05 | U118: T 16 | V118: 484.325 | W118: 484.825 | Y118: 486.475 | Z118: 487.6 | AA118: 488.425 | AB118: 489.05 | AC118: 489.45 | AD118: 514.1 | AE118: 514.625 | AF118: =IF(AND($U26>0,AF416>0,$T$103>0),$T$103-AF26,"0") -> 515.65 | AG118: =IF(AND($U26>0,AG416>0,$T$103>0),$T$103-AG26,"0") -> 517 | AH118: =IF(AND($U26>0,AH416>0,$T$103>0),$T$103-AH26,"0") -> 517.725 | AI118: =IF(AND($U26>0,AI416>0,$T$103>0),$T$103-AI26,"0") -> 518.125 | AJ118: =IF(AND($U26>0,AJ416>0,$T$103>0),$T$103-AJ26,"0") -> 518.95 | AM118: 15 | AN118: 6 | AO118: 95 | AP118: =IF(INDEX($V$31:$AK$46,AM118,AN118)>0,INDEX($V$31:$AK$46,AM118,AN118),"") -> 491.925 | AQ118: =IFERROR(RANK(AP118,$AP$24:$AP$279,1)+COUNTIF($AP$24:AP118,AP118)-1,"") -> 36 | AR118: =IFERROR(INDEX($AP$24:$AP$279,MATCH(SMALL($AQ$24:$AQ$279,ROWS($AR$24:AR118)),$AQ$24:$AQ$279,0))," ") -> 521.825 | AS118: =IF(ISNUMBER(AR118),(IF(COUNTIF( AR$24:AR118, AR118 )=1,AR118,"")),"") ->  | AT118: =IFERROR(RANK(AS118,$AS$24:$AS$279,1)+COUNTIF($AS$24:AS118,AS118)-1,"") ->  | AU118: =IFERROR(INDEX($AS$24:$AS$279,MATCH(SMALL($AT$24:$AT$279,ROWS(AU$24:$AU118)),$AT$24:$AT$279,0))," ") -> 524.4 | AW118: 95 | AX118: =IF(INDEX($V$51:$AK$66,AM118,AN118)>0,INDEX($V$51:$AK$66,AM118,AN118),"") -> 461.4 | AY118: =IFERROR(RANK(AX118,$AX$24:$AX$279,1)+COUNTIF($AX$24:AX118,AX118)-1,"") -> 33 | AZ118: =IFERROR(INDEX($AX$24:$AX$279,MATCH(SMALL($AY$24:$AY$279,ROWS($AZ$24:AZ118)),$AY$24:$AY$279,0))," ") -> 522.275 | BA118: =IF(ISNUMBER(AZ118),(IF(COUNTIF( AZ$24:AZ118, AZ118 )=1,AZ118,"")),"") -> 522.275 | BB118: =IFERROR(RANK(BA118,$BA$24:$BA$279,1)+COUNTIF($BA$24:BA118,BA118)-1,"") -> 94 | BC118: =IFERROR(INDEX($BA$24:$BA$279,MATCH(SMALL($BB$24:$BB$279,ROWS($BC$24:BC118)),$BB$24:$BB$279,0))," ") -> 522.35 | BE118: 95 | BF118: 1 | BG118: 95 | BH118: =IF(INDEX($V$71:$AK$326,BE118,BF118)>0,INDEX($V$71:$AK$326,BE118,BF118),"") -> 487.825 | BI118: =IFERROR(RANK(BH118,$BH$24:$BH$4119,1)+COUNTIF($BH$24:BH118,BH118)-1,"") -> 69 | BJ118: =IFERROR(INDEX($BH$24:$BH$4119,MATCH(SMALL($BI$24:$BI$4119,ROWS($BJ$24:BJ118)),$BI$24:$BI$4119,0))," ") -> 488.425 | BK118: =IF(ISNUMBER(BJ118),(IF(COUNTIF( BJ$24:BJ118, BJ118 )=1,BJ118,"")),"") -> 488.425 | BL118: =IFERROR(RANK(BK118,$BK$24:$BK$4119,1)+COUNTIF($BK$24:BK118,BK118)-1,"") -> 33 | BM118: =IFERROR(INDEX($BK$24:$BK$4119,MATCH(SMALL($BL$24:$BL$4119,ROWS($BM$24:BM118)),$BL$24:$BL$4119,0))," ") -> 492.55 | BO118: 82 | BP118: 520.175 | BQ118: 1.825 | BR118: 1.325 | BS118: 0.6 | BT118: 0.325 | BU118: 1.45 | BV118: 2.275 | BW118: 2.9 | BX118: 3.3 | BY118: 27.95 | BZ118: 28.475 | CA118: 29.5 | CB118: 30.85 | CC118: 31.575 | CD118: 31.975 | CE118: 32.8 | CF118: 33.425 | CI118: 82 | CJ118: 520.175 | CK118: 0 | CL118: 0 | CM118: 0 | CN118: 0 | CO118: 0 | CP118: 0 | CQ118: 0 | CR118: 0 | CS118: 0 | CT118: 0 | CU118: 0 | CV118: 0 | CW118: 0 | CX118: 0 | CY118: 0 | CZ118: 0
P119: 526.55 | Q119: 525.525 | R119: 493.075 | T119: =Y401 -> 520.5 | U119: T 1 | W119: =IF(AND($U11>0,W401>0,$T$119>0),$T$119+W11,"0") -> 521 | X119: =IF(AND($U11>0,X401>0,$T$119>0),$T$119+X11,"0") -> 521.725 | Z119: =IF(AND($U11>0,Z401>0,$T$119>0),$T$119+Z11,"0") -> 523.775 | AA119: 524.6 | AB119: 525.225 | AC119: 525.625 | AD119: 550.275 | AE119: 550.8 | AF119: 551.825 | AG119: 553.175 | AH119: 553.9 | AI119: 554.3 | AJ119: 555.125 | AK119: 555.75 | AM119: 16 | AN119: 6 | AO119: 96 | AP119: =IF(INDEX($V$31:$AK$46,AM119,AN119)>0,INDEX($V$31:$AK$46,AM119,AN119),"") -> 491.3 | AQ119: =IFERROR(RANK(AP119,$AP$24:$AP$279,1)+COUNTIF($AP$24:AP119,AP119)-1,"") -> 33 | AR119: =IFERROR(INDEX($AP$24:$AP$279,MATCH(SMALL($AQ$24:$AQ$279,ROWS($AR$24:AR119)),$AQ$24:$AQ$279,0))," ") -> 522.15 | AS119: =IF(ISNUMBER(AR119),(IF(COUNTIF( AR$24:AR119, AR119 )=1,AR119,"")),"") -> 522.15 | AT119: =IFERROR(RANK(AS119,$AS$24:$AS$279,1)+COUNTIF($AS$24:AS119,AS119)-1,"") -> 87 | AU119: =IFERROR(INDEX($AS$24:$AS$279,MATCH(SMALL($AT$24:$AT$279,ROWS(AU$24:$AU119)),$AT$24:$AT$279,0))," ") -> 524.525 | AW119: 96 | AX119: =IF(INDEX($V$51:$AK$66,AM119,AN119)>0,INDEX($V$51:$AK$66,AM119,AN119),"") -> 460.15 | AY119: =IFERROR(RANK(AX119,$AX$24:$AX$279,1)+COUNTIF($AX$24:AX119,AX119)-1,"") -> 29 | AZ119: =IFERROR(INDEX($AX$24:$AX$279,MATCH(SMALL($AY$24:$AY$279,ROWS($AZ$24:AZ119)),$AY$24:$AY$279,0))," ") -> 522.35 | BA119: =IF(ISNUMBER(AZ119),(IF(COUNTIF( AZ$24:AZ119, AZ119 )=1,AZ119,"")),"") -> 522.35 | BB119: =IFERROR(RANK(BA119,$BA$24:$BA$279,1)+COUNTIF($BA$24:BA119,BA119)-1,"") -> 95 | BC119: =IFERROR(INDEX($BA$24:$BA$279,MATCH(SMALL($BB$24:$BB$279,ROWS($BC$24:BC119)),$BB$24:$BB$279,0))," ") -> 523.8 | BE119: 96 | BF119: 1 | BG119: 96 | BH119: =IF(INDEX($V$71:$AK$326,BE119,BF119)>0,INDEX($V$71:$AK$326,BE119,BF119),"") -> 487.2 | BI119: =IFERROR(RANK(BH119,$BH$24:$BH$4119,1)+COUNTIF($BH$24:BH119,BH119)-1,"") -> 51 | BJ119: =IFERROR(INDEX($BH$24:$BH$4119,MATCH(SMALL($BI$24:$BI$4119,ROWS($BJ$24:BJ119)),$BI$24:$BI$4119,0))," ") -> 488.425 | BK119: =IF(ISNUMBER(BJ119),(IF(COUNTIF( BJ$24:BJ119, BJ119 )=1,BJ119,"")),"") ->  | BL119: =IFERROR(RANK(BK119,$BK$24:$BK$4119,1)+COUNTIF($BK$24:BK119,BK119)-1,"") ->  | BM119: =IFERROR(INDEX($BK$24:$BK$4119,MATCH(SMALL($BL$24:$BL$4119,ROWS($BM$24:BM119)),$BL$24:$BL$4119,0))," ") -> 492.65 | BO119: 83 | BP119: 520.3 | BQ119: 1.95 | BR119: 1.45 | BS119: 0.725 | BT119: 0.2 | BU119: 1.325 | BV119: 2.15 | BW119: 2.775 | BX119: =IF(ISNUMBER($BP119),ABS($BP119-BX$35),"") -> 3.175 | BY119: 27.825 | BZ119: 28.35 | CA119: 29.375 | CB119: 30.725 | CC119: 31.45 | CD119: 31.85 | CE119: 32.675 | CF119: 33.3 | CI119: 83 | CJ119: 520.3 | CK119: 0 | CL119: 0 | CM119: 0 | CN119: 0 | CO119: 0 | CP119: 0 | CQ119: 0 | CR119: 0 | CS119: 0 | CT119: 0 | CU119: 0 | CV119: 0 | CW119: 0 | CX119: 0 | CY119: 0 | CZ119: 0
P120: 526.575 | Q120: 525.725 | R120: 493.175 | T120: Ch. 4 3T3O | U120: T 2 | V120: =IF(AND($U12>0,V402>0,$T$119>0),$T$119-V12,"0") -> 520 | X120: =IF(AND($U12>0,X402>0,$T$119>0),$T$119+X12,"0") -> 521.225 | Z120: =IF(AND($U12>0,Z402>0,$T$119>0),$T$119+Z12,"0") -> 523.275 | AA120: 524.1 | AB120: 524.725 | AC120: 525.125 | AD120: 549.775 | AE120: 550.3 | AF120: 551.325 | AG120: 552.675 | AH120: 553.4 | AI120: 553.8 | AJ120: 554.625 | AK120: 555.25 | AM120: 1 | AN120: 7 | AO120: 97 | AP120: =IF(INDEX($V$31:$AK$46,AM120,AN120)>0,INDEX($V$31:$AK$46,AM120,AN120),"") -> 527.8 | AQ120: =IFERROR(RANK(AP120,$AP$24:$AP$279,1)+COUNTIF($AP$24:AP120,AP120)-1,"") -> 118 | AR120: =IFERROR(INDEX($AP$24:$AP$279,MATCH(SMALL($AQ$24:$AQ$279,ROWS($AR$24:AR120)),$AQ$24:$AQ$279,0))," ") -> 522.65 | AS120: =IF(ISNUMBER(AR120),(IF(COUNTIF( AR$24:AR120, AR120 )=1,AR120,"")),"") -> 522.65 | AT120: =IFERROR(RANK(AS120,$AS$24:$AS$279,1)+COUNTIF($AS$24:AS120,AS120)-1,"") -> 88 | AU120: =IFERROR(INDEX($AS$24:$AS$279,MATCH(SMALL($AT$24:$AT$279,ROWS(AU$24:$AU120)),$AT$24:$AT$279,0))," ") -> 524.9 | AW120: 97 | AX120: =IF(INDEX($V$51:$AK$66,AM120,AN120)>0,INDEX($V$51:$AK$66,AM120,AN120),"") -> 532.525 | AY120: =IFERROR(RANK(AX120,$AX$24:$AX$279,1)+COUNTIF($AX$24:AX120,AX120)-1,"") -> 118 | AZ120: =IFERROR(INDEX($AX$24:$AX$279,MATCH(SMALL($AY$24:$AY$279,ROWS($AZ$24:AZ120)),$AY$24:$AY$279,0))," ") -> 523.8 | BA120: =IF(ISNUMBER(AZ120),(IF(COUNTIF( AZ$24:AZ120, AZ120 )=1,AZ120,"")),"") -> 523.8 | BB120: =IFERROR(RANK(BA120,$BA$24:$BA$279,1)+COUNTIF($BA$24:BA120,BA120)-1,"") -> 96 | BC120: =IFERROR(INDEX($BA$24:$BA$279,MATCH(SMALL($BB$24:$BB$279,ROWS($BC$24:BC120)),$BB$24:$BB$279,0))," ") -> 523.875 | BE120: 97 | BF120: 1 | BG120: 97 | BH120: =IF(INDEX($V$71:$AK$326,BE120,BF120)>0,INDEX($V$71:$AK$326,BE120,BF120),"") ->  | BI120: =IFERROR(RANK(BH120,$BH$24:$BH$4119,1)+COUNTIF($BH$24:BH120,BH120)-1,"") ->  | BJ120: =IFERROR(INDEX($BH$24:$BH$4119,MATCH(SMALL($BI$24:$BI$4119,ROWS($BJ$24:BJ120)),$BI$24:$BI$4119,0))," ") -> 488.45 | BK120: =IF(ISNUMBER(BJ120),(IF(COUNTIF( BJ$24:BJ120, BJ120 )=1,BJ120,"")),"") -> 488.45 | BL120: =IFERROR(RANK(BK120,$BK$24:$BK$4119,1)+COUNTIF($BK$24:BK120,BK120)-1,"") -> 34 | BM120: =IFERROR(INDEX($BK$24:$BK$4119,MATCH(SMALL($BL$24:$BL$4119,ROWS($BM$24:BM120)),$BL$24:$BL$4119,0))," ") -> 492.675 | BO120: 84 | BP120: 520.8 | BQ120: 2.45 | BR120: 1.95 | BS120: 1.225 | BT120: 0.3 | BU120: 0.825 | BV120: 1.65 | BW120: 2.275 | BX120: 2.675 | BY120: 27.325 | BZ120: 27.85 | CA120: 28.875 | CB120: 30.225 | CC120: 30.95 | CD120: 31.35 | CE120: 32.175 | CF120: 32.8 | CI120: 84 | CJ120: 520.8 | CK120: 0 | CL120: 0 | CM120: 0 | CN120: 0 | CO120: 0 | CP120: 0 | CQ120: 0 | CR120: 0 | CS120: 0 | CT120: 0 | CU120: 0 | CV120: 0 | CW120: 0 | CX120: 0 | CY120: 0 | CZ120: 0
P121: 527.3 | Q121: 525.975 | R121: 493.275 | U121: T 3 | V121: =IF(AND($U13>0,V403>0,$T$119>0),$T$119-V13,"0") -> 519.275 | W121: =IF(AND($U13>0,W403>0,$T$119>0),$T$119-W13,"0") -> 519.775 | Z121: =IF(AND($U13>0,Z403>0,$T$119>0),$T$119+Z13,"0") -> 522.55 | AA121: 523.375 | AB121: 524 | AC121: 524.4 | AD121: 549.05 | AE121: 549.575 | AF121: 550.6 | AG121: 551.95 | AH121: 552.675 | AI121: 553.075 | AJ121: 553.9 | AK121: 554.525 | AM121: 2 | AN121: 7 | AO121: 98 | AP121: =IF(INDEX($V$31:$AK$46,AM121,AN121)>0,INDEX($V$31:$AK$46,AM121,AN121),"") -> 527.3 | AQ121: =IFERROR(RANK(AP121,$AP$24:$AP$279,1)+COUNTIF($AP$24:AP121,AP121)-1,"") -> 116 | AR121: =IFERROR(INDEX($AP$24:$AP$279,MATCH(SMALL($AQ$24:$AQ$279,ROWS($AR$24:AR121)),$AQ$24:$AQ$279,0))," ") -> 522.675 | AS121: =IF(ISNUMBER(AR121),(IF(COUNTIF( AR$24:AR121, AR121 )=1,AR121,"")),"") -> 522.675 | AT121: =IFERROR(RANK(AS121,$AS$24:$AS$279,1)+COUNTIF($AS$24:AS121,AS121)-1,"") -> 89 | AU121: =IFERROR(INDEX($AS$24:$AS$279,MATCH(SMALL($AT$24:$AT$279,ROWS(AU$24:$AU121)),$AT$24:$AT$279,0))," ") -> 525.325 | AW121: 98 | AX121: =IF(INDEX($V$51:$AK$66,AM121,AN121)>0,INDEX($V$51:$AK$66,AM121,AN121),"") -> 531.525 | AY121: =IFERROR(RANK(AX121,$AX$24:$AX$279,1)+COUNTIF($AX$24:AX121,AX121)-1,"") -> 117 | AZ121: =IFERROR(INDEX($AX$24:$AX$279,MATCH(SMALL($AY$24:$AY$279,ROWS($AZ$24:AZ121)),$AY$24:$AY$279,0))," ") -> 523.875 | BA121: =IF(ISNUMBER(AZ121),(IF(COUNTIF( AZ$24:AZ121, AZ121 )=1,AZ121,"")),"") -> 523.875 | BB121: =IFERROR(RANK(BA121,$BA$24:$BA$279,1)+COUNTIF($BA$24:BA121,BA121)-1,"") -> 97 | BC121: =IFERROR(INDEX($BA$24:$BA$279,MATCH(SMALL($BB$24:$BB$279,ROWS($BC$24:BC121)),$BB$24:$BB$279,0))," ") -> 524.1 | BE121: 98 | BF121: 1 | BG121: 98 | BH121: =IF(INDEX($V$71:$AK$326,BE121,BF121)>0,INDEX($V$71:$AK$326,BE121,BF121),"") -> 522.575 | BI121: =IFERROR(RANK(BH121,$BH$24:$BH$4119,1)+COUNTIF($BH$24:BH121,BH121)-1,"") -> 1277 | BJ121: =IFERROR(INDEX($BH$24:$BH$4119,MATCH(SMALL($BI$24:$BI$4119,ROWS($BJ$24:BJ121)),$BI$24:$BI$4119,0))," ") -> 488.45 | BK121: =IF(ISNUMBER(BJ121),(IF(COUNTIF( BJ$24:BJ121, BJ121 )=1,BJ121,"")),"") ->  | BL121: =IFERROR(RANK(BK121,$BK$24:$BK$4119,1)+COUNTIF($BK$24:BK121,BK121)-1,"") ->  | BM121: =IFERROR(INDEX($BK$24:$BK$4119,MATCH(SMALL($BL$24:$BL$4119,ROWS($BM$24:BM121)),$BL$24:$BL$4119,0))," ") -> 492.775 | BO121: 85 | BP121: 521.425 | BQ121: 3.075 | BR121: 2.575 | BS121: 1.85 | BT121: 0.925 | BU121: 0.2 | BV121: 1.025 | BW121: 1.65 | BX121: 2.05 | BY121: 26.7 | BZ121: 27.225 | CA121: 28.25 | CB121: 29.6 | CC121: 30.325 | CD121: 30.725 | CE121: 31.55 | CF121: 32.175 | CI121: 85 | CJ121: 521.425 | CK121: 0 | CL121: 0 | CM121: 0 | CN121: 0 | CO121: 0 | CP121: 0 | CQ121: 0 | CR121: 0 | CS121: 0 | CT121: 0 | CU121: 0 | CV121: 0 | CW121: 0 | CX121: 0 | CY121: 0 | CZ121: 0
P122: 527.375 | Q122: 526.35 | R122: 493.3 | U122: T 4 | AM122: 3 | AN122: 7 | AO122: 99 | AP122: =IF(INDEX($V$31:$AK$46,AM122,AN122)>0,INDEX($V$31:$AK$46,AM122,AN122),"") -> 526.575 | AQ122: =IFERROR(RANK(AP122,$AP$24:$AP$279,1)+COUNTIF($AP$24:AP122,AP122)-1,"") -> 115 | AR122: =IFERROR(INDEX($AP$24:$AP$279,MATCH(SMALL($AQ$24:$AQ$279,ROWS($AR$24:AR122)),$AQ$24:$AQ$279,0))," ") -> 522.75 | AS122: =IF(ISNUMBER(AR122),(IF(COUNTIF( AR$24:AR122, AR122 )=1,AR122,"")),"") -> 522.75 | AT122: =IFERROR(RANK(AS122,$AS$24:$AS$279,1)+COUNTIF($AS$24:AS122,AS122)-1,"") -> 90 | AU122: =IFERROR(INDEX($AS$24:$AS$279,MATCH(SMALL($AT$24:$AT$279,ROWS(AU$24:$AU122)),$AT$24:$AT$279,0))," ") -> 525.65 | AW122: 99 | AX122: =IF(INDEX($V$51:$AK$66,AM122,AN122)>0,INDEX($V$51:$AK$66,AM122,AN122),"") -> 530.075 | AY122: =IFERROR(RANK(AX122,$AX$24:$AX$279,1)+COUNTIF($AX$24:AX122,AX122)-1,"") -> 114 | AZ122: =IFERROR(INDEX($AX$24:$AX$279,MATCH(SMALL($AY$24:$AY$279,ROWS($AZ$24:AZ122)),$AY$24:$AY$279,0))," ") -> 524.1 | BA122: =IF(ISNUMBER(AZ122),(IF(COUNTIF( AZ$24:AZ122, AZ122 )=1,AZ122,"")),"") -> 524.1 | BB122: =IFERROR(RANK(BA122,$BA$24:$BA$279,1)+COUNTIF($BA$24:BA122,BA122)-1,"") -> 98 | BC122: =IFERROR(INDEX($BA$24:$BA$279,MATCH(SMALL($BB$24:$BB$279,ROWS($BC$24:BC122)),$BB$24:$BB$279,0))," ") -> 524.275 | BE122: 99 | BF122: 1 | BG122: 99 | BH122: =IF(INDEX($V$71:$AK$326,BE122,BF122)>0,INDEX($V$71:$AK$326,BE122,BF122),"") -> 521.85 | BI122: =IFERROR(RANK(BH122,$BH$24:$BH$4119,1)+COUNTIF($BH$24:BH122,BH122)-1,"") -> 1175 | BJ122: =IFERROR(INDEX($BH$24:$BH$4119,MATCH(SMALL($BI$24:$BI$4119,ROWS($BJ$24:BJ122)),$BI$24:$BI$4119,0))," ") -> 488.525 | BK122: =IF(ISNUMBER(BJ122),(IF(COUNTIF( BJ$24:BJ122, BJ122 )=1,BJ122,"")),"") -> 488.525 | BL122: =IFERROR(RANK(BK122,$BK$24:$BK$4119,1)+COUNTIF($BK$24:BK122,BK122)-1,"") -> 35 | BM122: =IFERROR(INDEX($BK$24:$BK$4119,MATCH(SMALL($BL$24:$BL$4119,ROWS($BM$24:BM122)),$BL$24:$BL$4119,0))," ") -> 492.95 | BO122: 86 | BP122: 521.825 | BQ122: 3.475 | BR122: 2.975 | BS122: 2.25 | BT122: 1.325 | BU122: 0.2 | BV122: 0.625 | BW122: 1.25 | BX122: 1.65 | BY122: 26.3 | BZ122: 26.825 | CA122: 27.85 | CB122: 29.2 | CC122: 29.925 | CD122: 30.325 | CE122: 31.15 | CF122: 31.775 | CI122: 86 | CJ122: 521.825 | CK122: 0 | CL122: 0 | CM122: 0 | CN122: 0 | CO122: 0 | CP122: 0 | CQ122: 0 | CR122: 0 | CS122: 0 | CT122: 0 | CU122: 0 | CV122: 0 | CW122: 0 | CX122: 0 | CY122: 0 | CZ122: 0
P123: 527.8 | Q123: 527.175 | R123: 493.35 | U123: T 5 | V123: =IF(AND($U15>0,V405>0,$T$119>0),$T$119-V15,"0") -> 517.225 | W123: 517.725 | X123: 518.45 | AA123: =IF(AND($U15>0,AA405>0,$T$119>0),$T$119+AA15,"0") -> 521.325 | AB123: 521.95 | AC123: 522.35 | AD123: 547 | AE123: 547.525 | AF123: 548.55 | AG123: 549.9 | AH123: 550.625 | AI123: 551.025 | AJ123: 551.85 | AK123: 552.475 | AM123: 4 | AN123: 7 | AO123: 100 | AP123: =IF(INDEX($V$31:$AK$46,AM123,AN123)>0,INDEX($V$31:$AK$46,AM123,AN123),"") -> 525.65 | AQ123: =IFERROR(RANK(AP123,$AP$24:$AP$279,1)+COUNTIF($AP$24:AP123,AP123)-1,"") -> 111 | AR123: =IFERROR(INDEX($AP$24:$AP$279,MATCH(SMALL($AQ$24:$AQ$279,ROWS($AR$24:AR123)),$AQ$24:$AQ$279,0))," ") -> 523.275 | AS123: =IF(ISNUMBER(AR123),(IF(COUNTIF( AR$24:AR123, AR123 )=1,AR123,"")),"") -> 523.275 | AT123: =IFERROR(RANK(AS123,$AS$24:$AS$279,1)+COUNTIF($AS$24:AS123,AS123)-1,"") -> 91 | AU123: =IFERROR(INDEX($AS$24:$AS$279,MATCH(SMALL($AT$24:$AT$279,ROWS(AU$24:$AU123)),$AT$24:$AT$279,0))," ") -> 526.05 | AW123: 100 | AX123: =IF(INDEX($V$51:$AK$66,AM123,AN123)>0,INDEX($V$51:$AK$66,AM123,AN123),"") -> 528.225 | AY123: =IFERROR(RANK(AX123,$AX$24:$AX$279,1)+COUNTIF($AX$24:AX123,AX123)-1,"") -> 111 | AZ123: =IFERROR(INDEX($AX$24:$AX$279,MATCH(SMALL($AY$24:$AY$279,ROWS($AZ$24:AZ123)),$AY$24:$AY$279,0))," ") -> 524.275 | BA123: =IF(ISNUMBER(AZ123),(IF(COUNTIF( AZ$24:AZ123, AZ123 )=1,AZ123,"")),"") -> 524.275 | BB123: =IFERROR(RANK(BA123,$BA$24:$BA$279,1)+COUNTIF($BA$24:BA123,BA123)-1,"") -> 99 | BC123: =IFERROR(INDEX($BA$24:$BA$279,MATCH(SMALL($BB$24:$BB$279,ROWS($BC$24:BC123)),$BB$24:$BB$279,0))," ") -> 524.325 | BE123: 100 | BF123: 1 | BG123: 100 | BH123: =IF(INDEX($V$71:$AK$326,BE123,BF123)>0,INDEX($V$71:$AK$326,BE123,BF123),"") -> 520.925 | BI123: =IFERROR(RANK(BH123,$BH$24:$BH$4119,1)+COUNTIF($BH$24:BH123,BH123)-1,"") -> 1051 | BJ123: =IFERROR(INDEX($BH$24:$BH$4119,MATCH(SMALL($BI$24:$BI$4119,ROWS($BJ$24:BJ123)),$BI$24:$BI$4119,0))," ") -> 488.525 | BK123: =IF(ISNUMBER(BJ123),(IF(COUNTIF( BJ$24:BJ123, BJ123 )=1,BJ123,"")),"") ->  | BL123: =IFERROR(RANK(BK123,$BK$24:$BK$4119,1)+COUNTIF($BK$24:BK123,BK123)-1,"") ->  | BM123: =IFERROR(INDEX($BK$24:$BK$4119,MATCH(SMALL($BL$24:$BL$4119,ROWS($BM$24:BM123)),$BL$24:$BL$4119,0))," ") -> 492.975 | BO123: 87 | BP123: 522.15 | BQ123: 3.8 | BR123: 3.3 | BS123: 2.575 | BT123: 1.65 | BU123: 0.525 | BV123: 0.3 | BW123: 0.925 | BX123: 1.325 | BY123: 25.975 | BZ123: 26.5 | CA123: 27.525 | CB123: 28.875 | CC123: 29.6 | CD123: 30 | CE123: 30.825 | CF123: 31.45 | CI123: 87 | CJ123: 522.15 | CK123: 0 | CL123: 0 | CM123: 0 | CN123: 0 | CO123: 0 | CP123: 0 | CQ123: 0 | CR123: 0 | CS123: 0 | CT123: 0 | CU123: 0 | CV123: 0 | CW123: 0 | CX123: 0 | CY123: 0 | CZ123: 0
P124: 528.1 | Q124: 528.175 | R124: 493.375 | U124: T 6 | V124: 516.4 | W124: 516.9 | X124: 517.625 | Z124: =IF(AND($U16>0,Z406>0,$T$119>0),$T$119-Z16,"0") -> 519.675 | AB124: =IF(AND($U16>0,AB406>0,$T$119>0),$T$119+AB16,"0") -> 521.125 | AC124: 521.525 | AD124: 546.175 | AE124: 546.7 | AF124: 547.725 | AG124: 549.075 | AH124: 549.8 | AI124: 550.2 | AJ124: 551.025 | AK124: 551.65 | AM124: 5 | AN124: 7 | AO124: 101 | AP124: =IF(INDEX($V$31:$AK$46,AM124,AN124)>0,INDEX($V$31:$AK$46,AM124,AN124),"") -> 524.525 | AQ124: =IFERROR(RANK(AP124,$AP$24:$AP$279,1)+COUNTIF($AP$24:AP124,AP124)-1,"") -> 107 | AR124: =IFERROR(INDEX($AP$24:$AP$279,MATCH(SMALL($AQ$24:$AQ$279,ROWS($AR$24:AR124)),$AQ$24:$AQ$279,0))," ") -> 523.675 | AS124: =IF(ISNUMBER(AR124),(IF(COUNTIF( AR$24:AR124, AR124 )=1,AR124,"")),"") -> 523.675 | AT124: =IFERROR(RANK(AS124,$AS$24:$AS$279,1)+COUNTIF($AS$24:AS124,AS124)-1,"") -> 92 | AU124: =IFERROR(INDEX($AS$24:$AS$279,MATCH(SMALL($AT$24:$AT$279,ROWS(AU$24:$AU124)),$AT$24:$AT$279,0))," ") -> 526.45 | AW124: 101 | AX124: =IF(INDEX($V$51:$AK$66,AM124,AN124)>0,INDEX($V$51:$AK$66,AM124,AN124),"") -> 525.975 | AY124: =IFERROR(RANK(AX124,$AX$24:$AX$279,1)+COUNTIF($AX$24:AX124,AX124)-1,"") -> 105 | AZ124: =IFERROR(INDEX($AX$24:$AX$279,MATCH(SMALL($AY$24:$AY$279,ROWS($AZ$24:AZ124)),$AY$24:$AY$279,0))," ") -> 524.325 | BA124: =IF(ISNUMBER(AZ124),(IF(COUNTIF( AZ$24:AZ124, AZ124 )=1,AZ124,"")),"") -> 524.325 | BB124: =IFERROR(RANK(BA124,$BA$24:$BA$279,1)+COUNTIF($BA$24:BA124,BA124)-1,"") -> 100 | BC124: =IFERROR(INDEX($BA$24:$BA$279,MATCH(SMALL($BB$24:$BB$279,ROWS($BC$24:BC124)),$BB$24:$BB$279,0))," ") -> 524.8 | BE124: 101 | BF124: 1 | BG124: 101 | BH124: =IF(INDEX($V$71:$AK$326,BE124,BF124)>0,INDEX($V$71:$AK$326,BE124,BF124),"") -> 519.8 | BI124: =IFERROR(RANK(BH124,$BH$24:$BH$4119,1)+COUNTIF($BH$24:BH124,BH124)-1,"") -> 903 | BJ124: =IFERROR(INDEX($BH$24:$BH$4119,MATCH(SMALL($BI$24:$BI$4119,ROWS($BJ$24:BJ124)),$BI$24:$BI$4119,0))," ") -> 488.55 | BK124: =IF(ISNUMBER(BJ124),(IF(COUNTIF( BJ$24:BJ124, BJ124 )=1,BJ124,"")),"") -> 488.55 | BL124: =IFERROR(RANK(BK124,$BK$24:$BK$4119,1)+COUNTIF($BK$24:BK124,BK124)-1,"") -> 36 | BM124: =IFERROR(INDEX($BK$24:$BK$4119,MATCH(SMALL($BL$24:$BL$4119,ROWS($BM$24:BM124)),$BL$24:$BL$4119,0))," ") -> 493.05 | BO124: 88 | BP124: 522.65 | BQ124: 4.3 | BR124: 3.8 | BS124: 3.075 | BT124: 2.15 | BU124: 1.025 | BV124: 0.2 | BW124: 0.425 | BX124: 0.825 | BY124: 25.475 | BZ124: 26 | CA124: 27.025 | CB124: 28.375 | CC124: 29.1 | CD124: 29.5 | CE124: 30.325 | CF124: 30.95 | CI124: 88 | CJ124: 522.65 | CK124: 0 | CL124: 0 | CM124: 0 | CN124: 0 | CO124: 0 | CP124: 0 | CQ124: 0 | CR124: 0 | CS124: 0 | CT124: 0 | CU124: 0 | CV124: 0 | CW124: 0 | CX124: 0 | CY124: 0 | CZ124: 0
P125: 528.6 | Q125: 528.2 | R125: 493.475 | U125: T 7 | V125: 515.775 | W125: 516.275 | X125: 517 | Z125: 519.05 | AA125: =IF(AND($U17>0,AA407>0,$T$119>0),$T$119-AA17,"0") -> 519.875 | AC125: =IF(AND($U17>0,AC407>0,$T$119>0),$T$119+AC17,"0") -> 520.9 | AD125: 545.55 | AE125: 546.075 | AF125: 547.1 | AG125: 548.45 | AH125: 549.175 | AI125: 549.575 | AJ125: 550.4 | AK125: 551.025 | AM125: 6 | AN125: 7 | AO125: 102 | AP125: =IF(INDEX($V$31:$AK$46,AM125,AN125)>0,INDEX($V$31:$AK$46,AM125,AN125),"") -> 523.7 | AQ125: =IFERROR(RANK(AP125,$AP$24:$AP$279,1)+COUNTIF($AP$24:AP125,AP125)-1,"") -> 102 | AR125: =IFERROR(INDEX($AP$24:$AP$279,MATCH(SMALL($AQ$24:$AQ$279,ROWS($AR$24:AR125)),$AQ$24:$AQ$279,0))," ") -> 523.7 | AS125: =IF(ISNUMBER(AR125),(IF(COUNTIF( AR$24:AR125, AR125 )=1,AR125,"")),"") -> 523.7 | AT125: =IFERROR(RANK(AS125,$AS$24:$AS$279,1)+COUNTIF($AS$24:AS125,AS125)-1,"") -> 93 | AU125: =IFERROR(INDEX($AS$24:$AS$279,MATCH(SMALL($AT$24:$AT$279,ROWS(AU$24:$AU125)),$AT$24:$AT$279,0))," ") -> 526.55 | AW125: 102 | AX125: =IF(INDEX($V$51:$AK$66,AM125,AN125)>0,INDEX($V$51:$AK$66,AM125,AN125),"") -> 524.325 | AY125: =IFERROR(RANK(AX125,$AX$24:$AX$279,1)+COUNTIF($AX$24:AX125,AX125)-1,"") -> 101 | AZ125: =IFERROR(INDEX($AX$24:$AX$279,MATCH(SMALL($AY$24:$AY$279,ROWS($AZ$24:AZ125)),$AY$24:$AY$279,0))," ") -> 524.8 | BA125: =IF(ISNUMBER(AZ125),(IF(COUNTIF( AZ$24:AZ125, AZ125 )=1,AZ125,"")),"") -> 524.8 | BB125: =IFERROR(RANK(BA125,$BA$24:$BA$279,1)+COUNTIF($BA$24:BA125,BA125)-1,"") -> 101 | BC125: =IFERROR(INDEX($BA$24:$BA$279,MATCH(SMALL($BB$24:$BB$279,ROWS($BC$24:BC125)),$BB$24:$BB$279,0))," ") -> 525.525 | BE125: 102 | BF125: 1 | BG125: 102 | BH125: =IF(INDEX($V$71:$AK$326,BE125,BF125)>0,INDEX($V$71:$AK$326,BE125,BF125),"") -> 518.975 | BI125: =IFERROR(RANK(BH125,$BH$24:$BH$4119,1)+COUNTIF($BH$24:BH125,BH125)-1,"") -> 800 | BJ125: =IFERROR(INDEX($BH$24:$BH$4119,MATCH(SMALL($BI$24:$BI$4119,ROWS($BJ$24:BJ125)),$BI$24:$BI$4119,0))," ") -> 488.55 | BK125: =IF(ISNUMBER(BJ125),(IF(COUNTIF( BJ$24:BJ125, BJ125 )=1,BJ125,"")),"") ->  | BL125: =IFERROR(RANK(BK125,$BK$24:$BK$4119,1)+COUNTIF($BK$24:BK125,BK125)-1,"") ->  | BM125: =IFERROR(INDEX($BK$24:$BK$4119,MATCH(SMALL($BL$24:$BL$4119,ROWS($BM$24:BM125)),$BL$24:$BL$4119,0))," ") -> 493.075 | BO125: 89 | BP125: 522.675 | BQ125: 4.325 | BR125: 3.825 | BS125: 3.1 | BT125: 2.175 | BU125: 1.05 | BV125: 0.225 | BW125: 0.4 | BX125: 0.8 | BY125: 25.45 | BZ125: 25.975 | CA125: 27 | CB125: 28.35 | CC125: 29.075 | CD125: 29.475 | CE125: 30.3 | CF125: 30.925 | CI125: 89 | CJ125: 522.675 | CK125: 0 | CL125: 0 | CM125: 0 | CN125: 0 | CO125: 0 | CP125: 0 | CQ125: 0 | CR125: 0 | CS125: 0 | CT125: 0 | CU125: 0 | CV125: 0 | CW125: 0 | CX125: 0 | CY125: 0 | CZ125: 0
P126: 542.65 | Q126: 528.225 | R126: 493.575 | U126: T 8 | V126: 515.375 | W126: 515.875 | X126: 516.6 | Z126: 518.65 | AA126: 519.475 | AB126: =IF(AND($U18>0,AB408>0,$T$119>0),$T$119-AB18,"0") -> 520.1 | AD126: =IF(AND($U18>0,AD408>0,$T$119>0),$T$119+AD18,"0") -> 545.15 | AE126: 545.675 | AF126: 546.7 | AG126: 548.05 | AH126: 548.775 | AI126: 549.175 | AJ126: 550 | AK126: 550.625 | AM126: 7 | AN126: 7 | AO126: 103 | AP126: =IF(INDEX($V$31:$AK$46,AM126,AN126)>0,INDEX($V$31:$AK$46,AM126,AN126),"") ->  | AQ126: =IFERROR(RANK(AP126,$AP$24:$AP$279,1)+COUNTIF($AP$24:AP126,AP126)-1,"") ->  | AR126: =IFERROR(INDEX($AP$24:$AP$279,MATCH(SMALL($AQ$24:$AQ$279,ROWS($AR$24:AR126)),$AQ$24:$AQ$279,0))," ") -> 523.875 | AS126: =IF(ISNUMBER(AR126),(IF(COUNTIF( AR$24:AR126, AR126 )=1,AR126,"")),"") -> 523.875 | AT126: =IFERROR(RANK(AS126,$AS$24:$AS$279,1)+COUNTIF($AS$24:AS126,AS126)-1,"") -> 94 | AU126: =IFERROR(INDEX($AS$24:$AS$279,MATCH(SMALL($AT$24:$AT$279,ROWS(AU$24:$AU126)),$AT$24:$AT$279,0))," ") -> 526.575 | AW126: 103 | AX126: =IF(INDEX($V$51:$AK$66,AM126,AN126)>0,INDEX($V$51:$AK$66,AM126,AN126),"") ->  | AY126: =IFERROR(RANK(AX126,$AX$24:$AX$279,1)+COUNTIF($AX$24:AX126,AX126)-1,"") ->  | AZ126: =IFERROR(INDEX($AX$24:$AX$279,MATCH(SMALL($AY$24:$AY$279,ROWS($AZ$24:AZ126)),$AY$24:$AY$279,0))," ") -> 525.525 | BA126: =IF(ISNUMBER(AZ126),(IF(COUNTIF( AZ$24:AZ126, AZ126 )=1,AZ126,"")),"") -> 525.525 | BB126: =IFERROR(RANK(BA126,$BA$24:$BA$279,1)+COUNTIF($BA$24:BA126,BA126)-1,"") -> 102 | BC126: =IFERROR(INDEX($BA$24:$BA$279,MATCH(SMALL($BB$24:$BB$279,ROWS($BC$24:BC126)),$BB$24:$BB$279,0))," ") -> 525.725 | BE126: 103 | BF126: 1 | BG126: 103 | BH126: =IF(INDEX($V$71:$AK$326,BE126,BF126)>0,INDEX($V$71:$AK$326,BE126,BF126),"") ->  | BI126: =IFERROR(RANK(BH126,$BH$24:$BH$4119,1)+COUNTIF($BH$24:BH126,BH126)-1,"") ->  | BJ126: =IFERROR(INDEX($BH$24:$BH$4119,MATCH(SMALL($BI$24:$BI$4119,ROWS($BJ$24:BJ126)),$BI$24:$BI$4119,0))," ") -> 488.65 | BK126: =IF(ISNUMBER(BJ126),(IF(COUNTIF( BJ$24:BJ126, BJ126 )=1,BJ126,"")),"") -> 488.65 | BL126: =IFERROR(RANK(BK126,$BK$24:$BK$4119,1)+COUNTIF($BK$24:BK126,BK126)-1,"") -> 37 | BM126: =IFERROR(INDEX($BK$24:$BK$4119,MATCH(SMALL($BL$24:$BL$4119,ROWS($BM$24:BM126)),$BL$24:$BL$4119,0))," ") -> 493.175 | BO126: 90 | BP126: 522.75 | BQ126: 4.4 | BR126: 3.9 | BS126: 3.175 | BT126: 2.25 | BU126: 1.125 | BV126: 0.3 | BW126: 0.325 | BX126: 0.725 | BY126: 25.375 | BZ126: 25.9 | CA126: 26.925 | CB126: 28.275 | CC126: 29 | CD126: 29.4 | CE126: 30.225 | CF126: 30.85 | CI126: 90 | CJ126: 522.75 | CK126: 0 | CL126: 0 | CM126: 0 | CN126: 0 | CO126: 0 | CP126: 0 | CQ126: 0 | CR126: 0 | CS126: 0 | CT126: 0 | CU126: 0 | CV126: 0 | CW126: 0 | CX126: 0 | CY126: 0 | CZ126: 0
P127: 543.275 | Q127: 529.425 | R127: 493.675 | U127: T 9 | V127: 490.725 | W127: 491.225 | X127: 491.95 | Z127: 494 | AA127: 494.825 | AB127: 495.45 | AC127: =IF(AND($U19>0,AC409>0,$T$119>0),$T$119-AC19,"0") -> 495.85 | AE127: =IF(AND($U19>0,AE409>0,$T$119>0),$T$119+AE19,"0") -> 521.025 | AF127: 522.05 | AG127: 523.4 | AH127: 524.125 | AI127: 524.525 | AJ127: 525.35 | AK127: 525.975 | AM127: 8 | AN127: 7 | AO127: 104 | AP127: =IF(INDEX($V$31:$AK$46,AM127,AN127)>0,INDEX($V$31:$AK$46,AM127,AN127),"") -> 522.675 | AQ127: =IFERROR(RANK(AP127,$AP$24:$AP$279,1)+COUNTIF($AP$24:AP127,AP127)-1,"") -> 98 | AR127: =IFERROR(INDEX($AP$24:$AP$279,MATCH(SMALL($AQ$24:$AQ$279,ROWS($AR$24:AR127)),$AQ$24:$AQ$279,0))," ") -> 524.4 | AS127: =IF(ISNUMBER(AR127),(IF(COUNTIF( AR$24:AR127, AR127 )=1,AR127,"")),"") -> 524.4 | AT127: =IFERROR(RANK(AS127,$AS$24:$AS$279,1)+COUNTIF($AS$24:AS127,AS127)-1,"") -> 95 | AU127: =IFERROR(INDEX($AS$24:$AS$279,MATCH(SMALL($AT$24:$AT$279,ROWS(AU$24:$AU127)),$AT$24:$AT$279,0))," ") -> 527.3 | AW127: 104 | AX127: =IF(INDEX($V$51:$AK$66,AM127,AN127)>0,INDEX($V$51:$AK$66,AM127,AN127),"") -> 522.275 | AY127: =IFERROR(RANK(AX127,$AX$24:$AX$279,1)+COUNTIF($AX$24:AX127,AX127)-1,"") -> 95 | AZ127: =IFERROR(INDEX($AX$24:$AX$279,MATCH(SMALL($AY$24:$AY$279,ROWS($AZ$24:AZ127)),$AY$24:$AY$279,0))," ") -> 525.725 | BA127: =IF(ISNUMBER(AZ127),(IF(COUNTIF( AZ$24:AZ127, AZ127 )=1,AZ127,"")),"") -> 525.725 | BB127: =IFERROR(RANK(BA127,$BA$24:$BA$279,1)+COUNTIF($BA$24:BA127,BA127)-1,"") -> 103 | BC127: =IFERROR(INDEX($BA$24:$BA$279,MATCH(SMALL($BB$24:$BB$279,ROWS($BC$24:BC127)),$BB$24:$BB$279,0))," ") -> 525.975 | BE127: 104 | BF127: 1 | BG127: 104 | BH127: =IF(INDEX($V$71:$AK$326,BE127,BF127)>0,INDEX($V$71:$AK$326,BE127,BF127),"") -> 517.95 | BI127: =IFERROR(RANK(BH127,$BH$24:$BH$4119,1)+COUNTIF($BH$24:BH127,BH127)-1,"") -> 699 | BJ127: =IFERROR(INDEX($BH$24:$BH$4119,MATCH(SMALL($BI$24:$BI$4119,ROWS($BJ$24:BJ127)),$BI$24:$BI$4119,0))," ") -> 488.65 | BK127: =IF(ISNUMBER(BJ127),(IF(COUNTIF( BJ$24:BJ127, BJ127 )=1,BJ127,"")),"") ->  | BL127: =IFERROR(RANK(BK127,$BK$24:$BK$4119,1)+COUNTIF($BK$24:BK127,BK127)-1,"") ->  | BM127: =IFERROR(INDEX($BK$24:$BK$4119,MATCH(SMALL($BL$24:$BL$4119,ROWS($BM$24:BM127)),$BL$24:$BL$4119,0))," ") -> 493.275 | BO127: 91 | BP127: 523.275 | BQ127: 4.925 | BR127: 4.425 | BS127: 3.7 | BT127: 2.775 | BU127: 1.65 | BV127: 0.825 | BW127: 0.2 | BX127: 0.2 | BY127: 24.85 | BZ127: 25.375 | CA127: 26.4 | CB127: 27.75 | CC127: 28.475 | CD127: 28.875 | CE127: 29.7 | CF127: 30.325 | CI127: 91 | CJ127: 523.275 | CK127: 0 | CL127: 0 | CM127: 0 | CN127: 0 | CO127: 0 | CP127: 0 | CQ127: 0 | CR127: 0 | CS127: 0 | CT127: 0 | CU127: 0 | CV127: 0 | CW127: 0 | CX127: 0 | CY127: 0 | CZ127: 0
P128: 543.7 | Q128: 529.65 | R128: 493.7 | U128: T 10 | V128: 490.2 | W128: 490.7 | X128: 491.425 | Z128: 493.475 | AA128: 494.3 | AB128: 494.925 | AC128: 495.325 | AD128: =IF(AND($U20>0,AD410>0,$T$119>0),$T$119-AD20,"0") -> 519.975 | AF128: =IF(AND($U20>0,AF410>0,$T$119>0),$T$119+AF20,"0") -> 521.525 | AG128: 522.875 | AH128: 523.6 | AI128: 524 | AJ128: 524.825 | AK128: 525.45 | AM128: 9 | AN128: 7 | AO128: 105 | AP128: =IF(INDEX($V$31:$AK$46,AM128,AN128)>0,INDEX($V$31:$AK$46,AM128,AN128),"") -> 498.025 | AQ128: =IFERROR(RANK(AP128,$AP$24:$AP$279,1)+COUNTIF($AP$24:AP128,AP128)-1,"") -> 62 | AR128: =IFERROR(INDEX($AP$24:$AP$279,MATCH(SMALL($AQ$24:$AQ$279,ROWS($AR$24:AR128)),$AQ$24:$AQ$279,0))," ") -> 524.4 | AS128: =IF(ISNUMBER(AR128),(IF(COUNTIF( AR$24:AR128, AR128 )=1,AR128,"")),"") ->  | AT128: =IFERROR(RANK(AS128,$AS$24:$AS$279,1)+COUNTIF($AS$24:AS128,AS128)-1,"") ->  | AU128: =IFERROR(INDEX($AS$24:$AS$279,MATCH(SMALL($AT$24:$AT$279,ROWS(AU$24:$AU128)),$AT$24:$AT$279,0))," ") -> 527.375 | AW128: 105 | AX128: =IF(INDEX($V$51:$AK$66,AM128,AN128)>0,INDEX($V$51:$AK$66,AM128,AN128),"") -> 472.975 | AY128: =IFERROR(RANK(AX128,$AX$24:$AX$279,1)+COUNTIF($AX$24:AX128,AX128)-1,"") -> 62 | AZ128: =IFERROR(INDEX($AX$24:$AX$279,MATCH(SMALL($AY$24:$AY$279,ROWS($AZ$24:AZ128)),$AY$24:$AY$279,0))," ") -> 525.975 | BA128: =IF(ISNUMBER(AZ128),(IF(COUNTIF( AZ$24:AZ128, AZ128 )=1,AZ128,"")),"") -> 525.975 | BB128: =IFERROR(RANK(BA128,$BA$24:$BA$279,1)+COUNTIF($BA$24:BA128,BA128)-1,"") -> 104 | BC128: =IFERROR(INDEX($BA$24:$BA$279,MATCH(SMALL($BB$24:$BB$279,ROWS($BC$24:BC128)),$BB$24:$BB$279,0))," ") -> 526.35 | BE128: 105 | BF128: 1 | BG128: 105 | BH128: =IF(INDEX($V$71:$AK$326,BE128,BF128)>0,INDEX($V$71:$AK$326,BE128,BF128),"") -> 493.3 | BI128: =IFERROR(RANK(BH128,$BH$24:$BH$4119,1)+COUNTIF($BH$24:BH128,BH128)-1,"") -> 343 | BJ128: =IFERROR(INDEX($BH$24:$BH$4119,MATCH(SMALL($BI$24:$BI$4119,ROWS($BJ$24:BJ128)),$BI$24:$BI$4119,0))," ") -> 488.725 | BK128: =IF(ISNUMBER(BJ128),(IF(COUNTIF( BJ$24:BJ128, BJ128 )=1,BJ128,"")),"") -> 488.725 | BL128: =IFERROR(RANK(BK128,$BK$24:$BK$4119,1)+COUNTIF($BK$24:BK128,BK128)-1,"") -> 38 | BM128: =IFERROR(INDEX($BK$24:$BK$4119,MATCH(SMALL($BL$24:$BL$4119,ROWS($BM$24:BM128)),$BL$24:$BL$4119,0))," ") -> 493.3 | BO128: 92 | BP128: 523.675 | BQ128: 5.325 | BR128: 4.825 | BS128: 4.1 | BT128: 3.175 | BU128: 2.05 | BV128: 1.225 | BW128: 0.6 | BX128: 0.2 | BY128: 24.45 | BZ128: 24.975 | CA128: 26 | CB128: 27.35 | CC128: 28.075 | CD128: 28.475 | CE128: 29.3 | CF128: 29.925 | CI128: 92 | CJ128: 523.675 | CK128: 0 | CL128: 0 | CM128: 0 | CN128: 0 | CO128: 0 | CP128: 0 | CQ128: 0 | CR128: 0 | CS128: 0 | CT128: 0 | CU128: 0 | CV128: 0 | CW128: 0 | CX128: 0 | CY128: 0 | CZ128: 0
P129: 544.1 | Q129: 530.075 | R129: 493.775 | U129: T 11 | V129: 489.175 | W129: 489.675 | X129: 490.4 | Z129: 492.45 | AA129: 493.275 | AB129: 493.9 | AC129: 494.3 | AD129: 518.95 | AE129: =IF(AND($U21>0,AE411>0,$T$119>0),$T$119-AE21,"0") -> 519.475 | AG129: =IF(AND($U21>0,AG411>0,$T$119>0),$T$119+AG21,"0") -> 521.85 | AH129: =IF(AND($U21>0,AH411>0,$T$119>0),$T$119+AH21,"0") -> 522.575 | AI129: =IF(AND($U21>0,AI411>0,$T$119>0),$T$119+AI21,"0") -> 522.975 | AJ129: =IF(AND($U21>0,AJ411>0,$T$119>0),$T$119+AJ21,"0") -> 523.8 | AK129: =IF(AND($U21>0,AK411>0,$T$119>0),$T$119+AK21,"0") -> 524.425 | AM129: 10 | AN129: 7 | AO129: 106 | AP129: =IF(INDEX($V$31:$AK$46,AM129,AN129)>0,INDEX($V$31:$AK$46,AM129,AN129),"") -> 497.5 | AQ129: =IFERROR(RANK(AP129,$AP$24:$AP$279,1)+COUNTIF($AP$24:AP129,AP129)-1,"") -> 61 | AR129: =IFERROR(INDEX($AP$24:$AP$279,MATCH(SMALL($AQ$24:$AQ$279,ROWS($AR$24:AR129)),$AQ$24:$AQ$279,0))," ") -> 524.4 | AS129: =IF(ISNUMBER(AR129),(IF(COUNTIF( AR$24:AR129, AR129 )=1,AR129,"")),"") ->  | AT129: =IFERROR(RANK(AS129,$AS$24:$AS$279,1)+COUNTIF($AS$24:AS129,AS129)-1,"") ->  | AU129: =IFERROR(INDEX($AS$24:$AS$279,MATCH(SMALL($AT$24:$AT$279,ROWS(AU$24:$AU129)),$AT$24:$AT$279,0))," ") -> 527.8 | AW129: 106 | AX129: =IF(INDEX($V$51:$AK$66,AM129,AN129)>0,INDEX($V$51:$AK$66,AM129,AN129),"") -> 471.925 | AY129: =IFERROR(RANK(AX129,$AX$24:$AX$279,1)+COUNTIF($AX$24:AX129,AX129)-1,"") -> 61 | AZ129: =IFERROR(INDEX($AX$24:$AX$279,MATCH(SMALL($AY$24:$AY$279,ROWS($AZ$24:AZ129)),$AY$24:$AY$279,0))," ") -> 526.35 | BA129: =IF(ISNUMBER(AZ129),(IF(COUNTIF( AZ$24:AZ129, AZ129 )=1,AZ129,"")),"") -> 526.35 | BB129: =IFERROR(RANK(BA129,$BA$24:$BA$279,1)+COUNTIF($BA$24:BA129,BA129)-1,"") -> 105 | BC129: =IFERROR(INDEX($BA$24:$BA$279,MATCH(SMALL($BB$24:$BB$279,ROWS($BC$24:BC129)),$BB$24:$BB$279,0))," ") -> 527.175 | BE129: 106 | BF129: 1 | BG129: 106 | BH129: =IF(INDEX($V$71:$AK$326,BE129,BF129)>0,INDEX($V$71:$AK$326,BE129,BF129),"") -> 492.775 | BI129: =IFERROR(RANK(BH129,$BH$24:$BH$4119,1)+COUNTIF($BH$24:BH129,BH129)-1,"") -> 317 | BJ129: =IFERROR(INDEX($BH$24:$BH$4119,MATCH(SMALL($BI$24:$BI$4119,ROWS($BJ$24:BJ129)),$BI$24:$BI$4119,0))," ") -> 488.725 | BK129: =IF(ISNUMBER(BJ129),(IF(COUNTIF( BJ$24:BJ129, BJ129 )=1,BJ129,"")),"") ->  | BL129: =IFERROR(RANK(BK129,$BK$24:$BK$4119,1)+COUNTIF($BK$24:BK129,BK129)-1,"") ->  | BM129: =IFERROR(INDEX($BK$24:$BK$4119,MATCH(SMALL($BL$24:$BL$4119,ROWS($BM$24:BM129)),$BL$24:$BL$4119,0))," ") -> 493.35 | BO129: 93 | BP129: 523.7 | BQ129: 5.35 | BR129: 4.85 | BS129: 4.125 | BT129: 3.2 | BU129: 2.075 | BV129: 1.25 | BW129: 0.625 | BX129: 0.225 | BY129: 24.425 | BZ129: 24.95 | CA129: 25.975 | CB129: 27.325 | CC129: 28.05 | CD129: 28.45 | CE129: 29.275 | CF129: 29.9 | CI129: 93 | CJ129: 523.7 | CK129: 0 | CL129: 0 | CM129: 0 | CN129: 0 | CO129: 0 | CP129: 0 | CQ129: 0 | CR129: 0 | CS129: 0 | CT129: 0 | CU129: 0 | CV129: 0 | CW129: 0 | CX129: 0 | CY129: 0 | CZ129: 0
